Workbook

Sheet Instructions
A1: Instructions
A2: 1 | B2: Click the "Begin Button" below
A3: 2 | B3: Enter the Community using the pull-down menu in cell B2
A4: 3 | B4: Enter the information in cells B3-B11
A5: 4 | B5: Select Yes in cell B14 to use the default borrowing rate* or No and then enter the known borrowing rate for the Community
A6: 5 | B6: Click on the "Run Model" button to view the results on the Drinking Water Outputs page
A7: 6 | B7: Navigate through the results using the "Go To Outputs" buttons to view the results on for Wastewater or Combined Household Bills
A8: 7 | B8: Click on the "New Model" button from any page to return to the Inputs page and repeat steps 2-6
B13: * The default borrowing rate is the average of the most recent National A-rated municipal bond yield curve rates at various maturities.

Sheet Inputs
A1: Model Inputs
A2: Community | B2: Abbeville city, Louisiana
A3: Current Average Household Monthly Drinking Water Bill ($) | B3: 0
A4: Current Annual Growth Rate in Drinking Water Bills* | B4: 0
A5: Current Average Household Monthly Wastewater Bill ($) | B5: 0
A6: Current Annual Growth Rate in Wastewater Bills* | B6: 0
A8: Planned Expenditure on Drinking Water Infrastructure | B8: 0
A9: Number of Years that the Infrastructure Will be Financed | B9: 0
A10: Planned Expenditure on Wastewater Infrastructure | B10: 0
A11: Number of Years that the Infrastructure Will be Financed | B11: 0
A13: Annual Interest Rate
A14: Use Default Rate? | B14: No
A15: If not, Enter Annual Interest Rate for Financing | B15: 0
A19: * - Note: The current annual growth rate in bills should
A20: incorporate all projected cost increases
A21: EXCEPT for those associated with the debt
A22: payments on infrastructure.

Sheet Drinking Water Output
A1: Model Outputs - Drinking Water
A2: Community | B2: =city -> Abbeville city, Louisiana
A3: Community Population (2021) | B3: ='Drinking Water Analysis Sheet'!M6 -> 12178.47879
A4: Increase in Average Monthly Drinking Water Bill | B4: =IF(drinkprincipal>0,((PMT(rate,drinkyears,-drinkprincipal))/('Drinking Water Analysis Sheet'!N6/2.5))/12,0) -> 0
A5: Probability that Monthly Drinking Water Bill
A6: Exceeds 2.5% of Median Household Income | B6: =drinkmaxprob -> 0.004242868119
A7: Sustainability Risk | B7: =IF(B6<0.33,"Low",IF(B6<0.67,"Moderate","High")) -> Low
A9: Current MHI (2021) | B9: =+B24 -> 36544.0247
A10: Current Drinking Water Bill | B10: =+drinkbill -> 0
A11: Projected Average Drinking Water Bill | B11: =+B10+B4 -> 0
A17: Note: The graph shows the typical sustainable threshold
A18: for the community (blue line), forecast into the future,
A19: along with a range of estimates developed in a
A20: statistical model. It also shows the projected drinking water
A21: bills using the inputs you provided.
A23: Projections | B23: 2021 | C23: 2022 | D23: 2023 | E23: 2024 | F23: 2025 | G23: 2026 | H23: 2027 | I23: 2028 | J23: 2029 | K23: 2030 | L23: 2031 | M23: 2032 | N23: 2033
A24: Median Household Income | B24: ='Drinking Water Analysis Sheet'!M2*12 -> 36544.0247 | C24: ='Drinking Water Analysis Sheet'!N2*12 -> 35380.93785 | D24: ='Drinking Water Analysis Sheet'!O2*12 -> 34809.97727 | E24: ='Drinking Water Analysis Sheet'!P2*12 -> 34485.80743 | F24: ='Drinking Water Analysis Sheet'!Q2*12 -> 34372.58453 | G24: ='Drinking Water Analysis Sheet'!R2*12 -> 34352.26221 | H24: ='Drinking Water Analysis Sheet'!S2*12 -> 34373.77945 | I24: ='Drinking Water Analysis Sheet'!T2*12 -> 34432.40701 | J24: ='Drinking Water Analysis Sheet'!U2*12 -> 34505.25345 | K24: ='Drinking Water Analysis Sheet'!V2*12 -> 34585.41588 | L24: ='Drinking Water Analysis Sheet'!W2*12 -> 34589.41777 | M24: ='Drinking Water Analysis Sheet'!X2*12 -> 34605.07112 | N24: ='Drinking Water Analysis Sheet'!Y2*12 -> 34618.12109
A25: Monthly Drinking Water Bill | B25: ='Drinking Water Analysis Sheet'!M7 -> 0 | C25: ='Drinking Water Analysis Sheet'!N7 -> 0 | D25: ='Drinking Water Analysis Sheet'!O7 -> 0 | E25: ='Drinking Water Analysis Sheet'!P7 -> 0 | F25: ='Drinking Water Analysis Sheet'!Q7 -> 0 | G25: ='Drinking Water Analysis Sheet'!R7 -> 0 | H25: ='Drinking Water Analysis Sheet'!S7 -> 0 | I25: ='Drinking Water Analysis Sheet'!T7 -> 0 | J25: ='Drinking Water Analysis Sheet'!U7 -> 0 | K25: ='Drinking Water Analysis Sheet'!V7 -> 0 | L25: ='Drinking Water Analysis Sheet'!W7 -> 0 | M25: ='Drinking Water Analysis Sheet'!X7 -> 0 | N25: ='Drinking Water Analysis Sheet'!Y7 -> 0
A26: % MHI | B26: =+(B25/B24)*12 -> 0 | C26: =+(C25/C24)*12 -> 0 | D26: 0 | E26: 0 | F26: 0 | G26: 0 | H26: 0 | I26: 0 | J26: 0 | K26: 0 | L26: 0 | M26: 0 | N26: 0
A27: Population | B27: =VLOOKUP(city,poptable,B23-2008,FALSE) -> 12178.47879 | C27: 12165.29091 | D27: 12152.10303 | E27: 12138.91515 | F27: 12125.72727 | G27: 12112.53939 | H27: 12099.35152 | I27: 12086.16364 | J27: 12072.97576 | K27: 12059.78788 | L27: 12046.6 | M27: 12033.41212 | N27: 12020.22424
A29: Projections | B29: 2034 | C29: 2035 | D29: 2036 | E29: 2037 | F29: 2038 | G29: 2039 | H29: 2040 | I29: 2041 | J29: 2042 | K29: 2043 | L29: 2044 | M29: 2045 | N29: 2046
A30: Median Household Income | B30: =+'Drinking Water Analysis Sheet'!Z2*12 -> 34617.87469 | C30: =+'Drinking Water Analysis Sheet'!AA2*12 -> 34621.21469 | D30: =+'Drinking Water Analysis Sheet'!AB2*12 -> 34623.20796 | E30: =+'Drinking Water Analysis Sheet'!AC2*12 -> 34623.03592 | F30: =+'Drinking Water Analysis Sheet'!AD2*12 -> 34623.72674 | G30: =+'Drinking Water Analysis Sheet'!AE2*12 -> 34623.99651 | H30: =+'Drinking Water Analysis Sheet'!AF2*12 -> 34623.94647 | I30: =+'Drinking Water Analysis Sheet'!AG2*12 -> 34624.0775 | J30: =+'Drinking Water Analysis Sheet'!AH2*12 -> 34624.09934 | K30: =+'Drinking Water Analysis Sheet'!AI2*12 -> 34624.08119 | L30: =+'Drinking Water Analysis Sheet'!AJ2*12 -> 34624.0972 | M30: =+'Drinking Water Analysis Sheet'!AK2*12 -> 34624.08784 | N30: =+'Drinking Water Analysis Sheet'!AL2*12 -> 34624.07522
A31: Monthly Drinking Water Bill | B31: =+'Drinking Water Analysis Sheet'!Z7 -> 0 | C31: =+'Drinking Water Analysis Sheet'!AA7 -> 0 | D31: =+'Drinking Water Analysis Sheet'!AB7 -> 0 | E31: =+'Drinking Water Analysis Sheet'!AC7 -> 0 | F31: =+'Drinking Water Analysis Sheet'!AD7 -> 0 | G31: =+'Drinking Water Analysis Sheet'!AE7 -> 0 | H31: =+'Drinking Water Analysis Sheet'!AF7 -> 0 | I31: =+'Drinking Water Analysis Sheet'!AG7 -> 0 | J31: =+'Drinking Water Analysis Sheet'!AH7 -> 0 | K31: =+'Drinking Water Analysis Sheet'!AI7 -> 0 | L31: =+'Drinking Water Analysis Sheet'!AJ7 -> 0 | M31: =+'Drinking Water Analysis Sheet'!AK7 -> 0 | N31: =+'Drinking Water Analysis Sheet'!AL7 -> 0
A32: % MHI | B32: =+(B31/B30)*12 -> 0 | C32: =+(C31/C30)*12 -> 0 | D32: 0 | E32: 0 | F32: 0 | G32: 0 | H32: 0 | I32: 0 | J32: 0 | K32: 0 | L32: 0 | M32: 0 | N32: 0
A33: Population | B33: =VLOOKUP(city,poptable,B29-2008,FALSE) -> 12007.03636 | C33: 11993.84848 | D33: 11980.66061 | E33: 11967.47273 | F33: 11954.28485 | G33: 11941.09697 | H33: 11927.90909 | I33: 11914.72121 | J33: 11901.53333 | K33: 11888.34545 | L33: 11875.15758 | M33: 11861.9697 | N33: 11848.78182
A35: Projections | B35: 2047 | C35: 2048 | D35: 2049 | E35: 2050 | F35: 2051
A36: Median Household Income | B36: =+'Drinking Water Analysis Sheet'!AM2*12 -> 34624.06839 | C36: =+'Drinking Water Analysis Sheet'!AN2*12 -> 34624.05612 | D36: =+'Drinking Water Analysis Sheet'!AO2*12 -> 34624.04407 | E36: =+'Drinking Water Analysis Sheet'!AP2*12 -> 34624.03288 | F36: =+'Drinking Water Analysis Sheet'!AQ2*12 -> 34624.02059
A37: Monthly Drinking Water Bill | B37: =+'Drinking Water Analysis Sheet'!AM7 -> 0 | C37: =+'Drinking Water Analysis Sheet'!AN7 -> 0 | D37: =+'Drinking Water Analysis Sheet'!AO7 -> 0 | E37: =+'Drinking Water Analysis Sheet'!AP7 -> 0 | F37: =+'Drinking Water Analysis Sheet'!AQ7 -> 0
A38: % MHI | B38: =+B37/B36*12 -> 0 | C38: =+C37/C36*12 -> 0 | D38: 0 | E38: 0 | F38: 0
A39: Population | B39: =VLOOKUP(city,poptable,B35-2008,FALSE) -> 11835.59394 | C39: =VLOOKUP(city,poptable,C35-2008,FALSE) -> 11822.40606 | D39: =VLOOKUP(city,poptable,D35-2008,FALSE) -> 11809.21818 | E39: =VLOOKUP(city,poptable,E35-2008,FALSE) -> 11796.0303 | F39: =VLOOKUP(city,poptable,F35-2008,FALSE) -> 11782.84242

Sheet Drinking Water Analysis Sheet (hidden)
A1: City | B1: 2010 | C1: 2011 | D1: 2012 | E1: 2013 | F1: 2014 | G1: 2015 | H1: 2016 | I1: 2017 | J1: 2018 | K1: 2019 | L1: 2020 | M1: 2021 | N1: 2022 | O1: 2023 | P1: 2024 | Q1: 2025 | R1: 2026 | S1: 2027 | T1: 2028 | U1: 2029 | V1: 2030 | W1: 2031 | X1: 2032 | Y1: 2033 | Z1: 2034 | AA1: 2035 | AB1: 2036 | AC1: 2037 | AD1: 2038 | AE1: 2039 | AF1: 2040 | AG1: 2041 | AH1: 2042 | AI1: 2043 | AJ1: 2044 | AK1: 2045 | AL1: 2046 | AM1: 2047 | AN1: 2048 | AO1: 2049 | AP1: 2050 | AQ1: 2051 | AT1: rate | AU1: =IF(Inputs!B14="Yes",VLOOKUP(drinkyears,yieldcurve,2),userrate) -> 0 | AW1: 0 | AX1: 0.0218 | AZ1: Yes
A2: Income | B2: =VLOOKUP(city,incometable,'Drinking Water Analysis Sheet'!B1-2008,FALSE)/12 -> 2501.75 | C2: =VLOOKUP(city,incometable,'Drinking Water Analysis Sheet'!C1-2008,FALSE)/12 -> 2584.25 | D2: =VLOOKUP(city,incometable,'Drinking Water Analysis Sheet'!D1-2008,FALSE)/12 -> 2520.083333 | E2: =VLOOKUP(city,incometable,'Drinking Water Analysis Sheet'!E1-2008,FALSE)/12 -> 2433.5 | F2: =VLOOKUP(city,incometable,'Drinking Water Analysis Sheet'!F1-2008,FALSE)/12 -> 2411.583333 | G2: =VLOOKUP(city,incometable,'Drinking Water Analysis Sheet'!G1-2008,FALSE)/12 -> 2346.5 | H2: =VLOOKUP(city,incometable,'Drinking Water Analysis Sheet'!H1-2008,FALSE)/12 -> 2480.416667 | I2: =VLOOKUP(city,incometable,'Drinking Water Analysis Sheet'!I1-2008,FALSE)/12 -> 2844.75 | J2: =VLOOKUP(city,incometable,'Drinking Water Analysis Sheet'!J1-2008,FALSE)/12 -> 3058 | K2: =VLOOKUP(city,incometable,'Drinking Water Analysis Sheet'!K1-2008,FALSE)/12 -> 3241.666667 | L2: =VLOOKUP(city,incometable,'Drinking Water Analysis Sheet'!L1-2008,FALSE)/12 -> 2942.95175 | M2: =VLOOKUP(city,incometable,'Drinking Water Analysis Sheet'!M1-2008,FALSE)/12 -> 3045.335391 | N2: =VLOOKUP(city,incometable,'Drinking Water Analysis Sheet'!N1-2008,FALSE)/12 -> 2948.411487 | O2: =VLOOKUP(city,incometable,'Drinking Water Analysis Sheet'!O1-2008,FALSE)/12 -> 2900.831439 | P2: =VLOOKUP(city,incometable,'Drinking Water Analysis Sheet'!P1-2008,FALSE)/12 -> 2873.817286 | Q2: =VLOOKUP(city,incometable,'Drinking Water Analysis Sheet'!Q1-2008,FALSE)/12 -> 2864.382044 | R2: =VLOOKUP(city,incometable,'Drinking Water Analysis Sheet'!R1-2008,FALSE)/12 -> 2862.688517 | S2: =VLOOKUP(city,incometable,'Drinking Water Analysis Sheet'!S1-2008,FALSE)/12 -> 2864.481621 | T2: =VLOOKUP(city,incometable,'Drinking Water Analysis Sheet'!T1-2008,FALSE)/12 -> 2869.367251 | U2: =VLOOKUP(city,incometable,'Drinking Water Analysis Sheet'!U1-2008,FALSE)/12 -> 2875.437788 | V2: =VLOOKUP(city,incometable,'Drinking Water Analysis Sheet'!V1-2008,FALSE)/12 -> 2882.11799 | W2: =VLOOKUP(city,incometable,'Drinking Water Analysis Sheet'!W1-2008,FALSE)/12 -> 2882.45148 | X2: =VLOOKUP(city,incometable,'Drinking Water Analysis Sheet'!X1-2008,FALSE)/12 -> 2883.755927 | Y2: =VLOOKUP(city,incometable,'Drinking Water Analysis Sheet'!Y1-2008,FALSE)/12 -> 2884.843424 | Z2: =VLOOKUP(city,incometable,'Drinking Water Analysis Sheet'!Z1-2008,FALSE)/12 -> 2884.822891 | AA2: =VLOOKUP(city,incometable,'Drinking Water Analysis Sheet'!AA1-2008,FALSE)/12 -> 2885.101224 | AB2: =VLOOKUP(city,incometable,'Drinking Water Analysis Sheet'!AB1-2008,FALSE)/12 -> 2885.26733 | AC2: =VLOOKUP(city,incometable,'Drinking Water Analysis Sheet'!AC1-2008,FALSE)/12 -> 2885.252993 | AD2: =VLOOKUP(city,incometable,'Drinking Water Analysis Sheet'!AD1-2008,FALSE)/12 -> 2885.310562 | AE2: =VLOOKUP(city,incometable,'Drinking Water Analysis Sheet'!AE1-2008,FALSE)/12 -> 2885.333043 | AF2: =VLOOKUP(city,incometable,'Drinking Water Analysis Sheet'!AF1-2008,FALSE)/12 -> 2885.328873 | AG2: =VLOOKUP(city,incometable,'Drinking Water Analysis Sheet'!AG1-2008,FALSE)/12 -> 2885.339792 | AH2: =VLOOKUP(city,incometable,'Drinking Water Analysis Sheet'!AH1-2008,FALSE)/12 -> 2885.341611 | AI2: =VLOOKUP(city,incometable,'Drinking Water Analysis Sheet'!AI1-2008,FALSE)/12 -> 2885.340099 | AJ2: =VLOOKUP(city,incometable,'Drinking Water Analysis Sheet'!AJ1-2008,FALSE)/12 -> 2885.341433 | AK2: =VLOOKUP(city,incometable,'Drinking Water Analysis Sheet'!AK1-2008,FALSE)/12 -> 2885.340653 | AL2: =VLOOKUP(city,incometable,'Drinking Water Analysis Sheet'!AL1-2008,FALSE)/12 -> 2885.339602 | AM2: =VLOOKUP(city,incometable,'Drinking Water Analysis Sheet'!AM1-2008,FALSE)/12 -> 2885.339032 | AN2: =VLOOKUP(city,incometable,'Drinking Water Analysis Sheet'!AN1-2008,FALSE)/12 -> 2885.33801 | AO2: =VLOOKUP(city,incometable,'Drinking Water Analysis Sheet'!AO1-2008,FALSE)/12 -> 2885.337006 | AP2: =VLOOKUP(city,incometable,'Drinking Water Analysis Sheet'!AP1-2008,FALSE)/12 -> 2885.336073 | AQ2: =VLOOKUP(city,incometable,'Drinking Water Analysis Sheet'!AQ1-2008,FALSE)/12 -> 2885.33505 | AT2: =MAX(M8:AQ8) -> 0.004242868119 | AW2: 10 | AX2: 0.036 | AZ2: No
A3: SE | B3: =VLOOKUP(city,setable,B1-2008,FALSE)/12 -> 0 | C3: 0 | D3: 0 | E3: 0 | F3: 0 | G3: 0 | H3: 0 | I3: 0 | J3: 0 | K3: 0 | L3: 193.7839809 | M3: 274.0519339 | N3: 335.6437006 | O3: 387.5679618 | P3: 433.3141542 | Q3: 474.6718735 | R3: 512.7042215 | S3: 548.1038679 | T3: 581.3519427 | U3: 612.7987537 | V3: 642.708755 | W3: 671.2874012 | X3: 698.6980795 | Y3: 725.0732635 | Z3: 750.5221307 | AA3: 775.1359236 | AB3: 798.9918218 | AC3: 822.1558018 | AD3: 844.6847896 | AE3: 866.6283084 | AF3: 888.0297609 | AG3: 908.927438 | AH3: 929.3553243 | AI3: 949.343747 | AJ3: 968.9199044 | AK3: 988.1083 | AL3: 1006.931102 | AM3: 1025.408443 | AN3: 1043.558674 | AO3: 1061.398576 | AP3: 1078.943543 | AQ3: 1096.207736 | AW3: 20 | AX3: 0.041
A4: 2.5% Income | B4: =B2*0.025 -> 62.54375 | C4: =C2*0.025 -> 64.60625 | D4: 63.00208333 | E4: 60.8375 | F4: 60.28958333 | G4: 58.6625 | H4: 62.01041667 | I4: 71.11875 | J4: 76.45 | K4: 81.04166667 | L4: 73.57379375 | M4: 76.13338478 | N4: 73.71028718 | O4: 72.52078597 | P4: 71.84543214 | Q4: 71.60955111 | R4: 71.56721293 | S4: 71.61204053 | T4: 71.73418127 | U4: 71.88594469 | V4: 72.05294974 | W4: 72.06128701 | X4: 72.09389817 | Y4: 72.12108559 | Z4: 72.12057227 | AA4: 72.1275306 | AB4: 72.13168324 | AC4: 72.13132483 | AD4: 72.13276405 | AE4: 72.13332607 | AF4: 72.13322182 | AG4: 72.1334948 | AH4: 72.13354029 | AI4: 72.13350248 | AJ4: 72.13353584 | AK4: 72.13351633 | AL4: 72.13349004 | AM4: 72.13347581 | AN4: 72.13345024 | AO4: 72.13342515 | AP4: 72.13340183 | AQ4: 72.13337624
A5: 2.5% SE | B5: =B3*0.025 -> 0 | C5: =C3*0.025 -> 0 | D5: 0 | E5: 0 | F5: 0 | G5: 0 | H5: 0 | I5: 0 | J5: 0 | K5: 0 | L5: 4.844599522 | M5: 6.851298349 | N5: 8.391092515 | O5: 9.689199044 | P5: 10.83285386 | Q5: 11.86679684 | R5: 12.81760554 | S5: 13.7025967 | T5: 14.53379857 | U5: 15.31996884 | V5: 16.06771887 | W5: 16.78218503 | X5: 17.46745199 | Y5: 18.12683159 | Z5: 18.76305327 | AA5: 19.37839809 | AB5: 19.97479554 | AC5: 20.55389505 | AD5: 21.11711974 | AE5: 21.66570771 | AF5: 22.20074402 | AG5: 22.72318595 | AH5: 23.23388311 | AI5: 23.73359368 | AJ5: 24.22299761 | AK5: 24.7027075 | AL5: 25.17327754 | AM5: 25.63521108 | AN5: 26.08896685 | AO5: 26.5349644 | AP5: 26.97358857 | AQ5: 27.40519339
A6: Population | B6: =VLOOKUP(city,poptable,B1-2008,FALSE) -> 12225 | C6: 12181 | D6: 12326 | E6: 12379 | F6: 12356 | G6: 12357 | H6: 12357 | I6: 12246 | J6: 12177 | K6: 12038 | L6: 12191.66667 | M6: =VLOOKUP(city,poptable,M1-2008,FALSE) -> 12178.47879 | N6: 12165.29091 | O6: 12152.10303 | P6: 12138.91515 | Q6: 12125.72727 | R6: 12112.53939 | S6: 12099.35152 | T6: 12086.16364 | U6: 12072.97576 | V6: 12059.78788 | W6: 12046.6 | X6: 12033.41212 | Y6: 12020.22424 | Z6: 12007.03636 | AA6: 11993.84848 | AB6: 11980.66061 | AC6: 11967.47273 | AD6: 11954.28485 | AE6: 11941.09697 | AF6: 11927.90909 | AG6: 11914.72121 | AH6: 11901.53333 | AI6: 11888.34545 | AJ6: 11875.15758 | AK6: 11861.9697 | AL6: 11848.78182 | AM6: 11835.59394 | AN6: 11822.40606 | AO6: 11809.21818 | AP6: 11796.0303 | AQ6: 11782.84242
A7: Water Cost | M7: =drinkbill -> 0 | N7: =M7*(1+drinkbillgrowth)+IF(drinkprincipal>0,((PMT(rate,drinkyears,-drinkprincipal))/(N6/2.5))/12,0) -> 0 | O7: =IF(O1<$M$1+drinkyears+1,N7*(1+drinkbillgrowth)-IF(drinkprincipal>0,O14*(PMT(rate,drinkyears,-drinkprincipal)/(N6/2.5)/12),0),O16) -> 0 | P7: 0 | Q7: 0 | R7: 0 | S7: 0 | T7: 0 | U7: 0 | V7: 0 | W7: 0 | X7: 0 | Y7: 0 | Z7: 0 | AA7: 0 | AB7: 0 | AC7: 0 | AD7: 0 | AE7: 0 | AF7: 0 | AG7: 0 | AH7: 0 | AI7: 0 | AJ7: 0 | AK7: 0 | AL7: 0 | AM7: 0 | AN7: 0 | AO7: 0 | AP7: 0 | AQ7: 0
A8: Probability Unafforable | M8: =_xlfn.NORM.DIST(M7,M4,M5,TRUE) -> 5.468024266e-29 | N8: 7.863617482e-19 | O8: 3.585430883e-14 | P8: 1.653829032e-11 | Q8: 7.975421259e-10 | R8: 1.178569431e-08 | S8: 8.653065167e-08 | T8: 3.993595471e-07 | U8: 1.350729266e-06 | V8: =_xlfn.NORM.DIST(V7,V4,V5,TRUE) -> 3.657173907e-06 | W8: 8.777459452e-06 | X8: 1.835016239e-05 | Y8: 3.464767345e-05 | Z8: 6.058308586e-05 | AA8: 9.880262726e-05 | AB8: 0.0001524299575 | AC8: 0.00022458059 | AD8: 0.0003179245641 | AE8: 0.0004352012632 | AF8: 0.0005787819605 | AG8: 0.0007506177428 | AH8: 0.0009524570646 | AI8: 0.001185644413 | AJ8: 0.001451178466 | AK8: 0.001749790844 | AL8: 0.002081896565 | AM8: 0.002447651596 | AN8: 0.002846990411 | AO8: 0.003279633434 | AP8: =_xlfn.NORM.DIST(AP7,AP4,AP5,TRUE) -> 0.00374512679 | AQ8: 0.004242868119
A10: Chart Inputs
A11: 2.5% High Income | L11: =_xlfn.NORM.INV(0.95,L4,L5) -> 81.54245084 | M11: =_xlfn.NORM.INV(0.95,M4,M5) -> 87.40276772 | N11: 87.51240614 | O11: 88.45810017 | P11: 89.6638911 | Q11: 91.12869493 | R11: 92.65029789 | S11: 94.1508064 | T11: 95.64015256 | U11: 97.08505101 | V11: =_xlfn.NORM.INV(0.95,V4,V5) -> 98.48199541 | W11: 99.66552493 | X11: 100.8252999 | Y11: 101.9370703 | Z11: 102.9830485 | AA11: 104.002159 | AB11: 104.9872981 | AC11: 105.9394736 | AD11: 106.867335 | AE11: 107.770244 | AF11: 108.6501961 | AG11: 109.5098096 | AH11: 110.3498772 | AI11: 111.1717901 | AJ11: 111.9768213 | AK11: 112.7658544 | AL11: 113.5398469 | AM11: 114.2996457 | AN11: 115.045982 | AO11: 115.7795576 | AP11: =_xlfn.NORM.INV(0.95,AP4,AP5) -> 116.5010068 | AQ11: 117.210908
A12: 2.5% Low Income | L12: =_xlfn.NORM.INV(0.05,L4,L5) -> 65.60513665 | M12: =_xlfn.NORM.INV(0.05,M4,M5) -> 64.86400185 | N12: 59.90816823 | O12: 56.58347178 | P12: 54.02697319 | Q12: 52.09040729 | R12: 50.48412797 | S12: 49.07327465 | T12: 47.82820999 | U12: 46.68683838 | V12: =_xlfn.NORM.INV(0.05,V4,V5) -> 45.62390408 | W12: 44.4570491 | X12: 43.36249641 | Y12: 42.30510091 | Z12: 41.25809605 | AA12: 40.25290221 | AB12: 39.27606835 | AC12: 38.32317602 | AD12: 37.39819306 | AE12: 36.49640816 | AF12: 35.6162475 | AG12: 34.75717998 | AH12: 33.91720339 | AI12: 33.09521485 | AJ12: 32.29025036 | AK12: 31.5011783 | AL12: 30.72713317 | AM12: 29.9673059 | AN12: 29.22091849 | AO12: 28.48729271 | AP12: =_xlfn.NORM.INV(0.05,AP4,AP5) -> 27.76579684 | AQ12: 27.05584449
A14: Payoff Counter | M14: =IF(M1=$M$1+drinkyears+1,1,0) -> 0 | N14: 1 | O14: 0 | P14: 0 | Q14: 0 | R14: 0 | S14: 0 | T14: 0 | U14: 0 | V14: 0 | W14: 0 | X14: 0 | Y14: 0 | Z14: 0 | AA14: 0 | AB14: 0 | AC14: 0 | AD14: 0 | AE14: 0 | AF14: 0 | AG14: 0 | AH14: 0 | AI14: 0 | AJ14: 0 | AK14: 0 | AL14: 0 | AM14: 0 | AN14: 0 | AO14: 0 | AP14: 0 | AQ14: 0
A16: Growthrate | M16: =drinkbill -> 0 | N16: =M16*(1+drinkbillgrowth) -> 0 | O16: 0 | P16: 0 | Q16: 0 | R16: 0 | S16: 0 | T16: 0 | U16: 0 | V16: 0 | W16: 0 | X16: 0 | Y16: 0 | Z16: 0 | AA16: 0 | AB16: 0 | AC16: 0 | AD16: 0 | AE16: 0 | AF16: 0 | AG16: 0 | AH16: 0 | AI16: 0 | AJ16: 0 | AK16: 0 | AL16: 0 | AM16: 0 | AN16: 0 | AO16: 0 | AP16: 0 | AQ16: 0

Sheet Wastewater Output
A1: Model Outputs - Wastewater
A2: Community | B2: =city -> Abbeville city, Louisiana
A3: Community Population (2021) | B3: ='Wastewater Analysis Sheet'!M6 -> 12178.47879
A4: Increase in Average Monthly Wastewater Bill | B4: =IF(wasteprincipal>0,((PMT(wasterate,wasteyears,-wasteprincipal))/('Wastewater Analysis Sheet'!N6/2.5))/12,0) -> 0
A5: Probability that Monthly Wastewater Bill
A6: Exceeds 2.0% of Median Household Income | B6: =wastemaxprob -> 0.004242868119
A7: Sustainability Risk | B7: =IF(B6<0.33,"Low",IF(B6<0.67,"Moderate","High")) -> Low
A9: Current MHI (2021) | B9: =+B24 -> 36544.0247
A10: Current Wastewater Bill | B10: =+wastebill -> 0
A11: Projected Average Wastewater Bill | B11: =+B10+B4 -> 0
A17: Note: The graph shows the typical sustainable threshold
A18: for the community (blue line), forecast into the future,
A19: along with a range of estimates developed in a
A20: statistical model. It also shows the projected wastewater
A21: bills using the inputs you provided.
A23: Projections | B23: 2021 | C23: 2022 | D23: 2023 | E23: 2024 | F23: 2025 | G23: 2026 | H23: 2027 | I23: 2028 | J23: 2029 | K23: 2030 | L23: 2031 | M23: 2032 | N23: 2033
A24: Median Household Income | B24: ='Wastewater Analysis Sheet'!M2*12 -> 36544.0247 | C24: ='Wastewater Analysis Sheet'!N2*12 -> 35380.93785 | D24: ='Wastewater Analysis Sheet'!O2*12 -> 34809.97727 | E24: ='Wastewater Analysis Sheet'!P2*12 -> 34485.80743 | F24: ='Wastewater Analysis Sheet'!Q2*12 -> 34372.58453 | G24: ='Wastewater Analysis Sheet'!R2*12 -> 34352.26221 | H24: ='Wastewater Analysis Sheet'!S2*12 -> 34373.77945 | I24: ='Wastewater Analysis Sheet'!T2*12 -> 34432.40701 | J24: ='Wastewater Analysis Sheet'!U2*12 -> 34505.25345 | K24: ='Wastewater Analysis Sheet'!V2*12 -> 34585.41588 | L24: ='Wastewater Analysis Sheet'!W2*12 -> 34589.41777 | M24: ='Wastewater Analysis Sheet'!X2*12 -> 34605.07112 | N24: ='Wastewater Analysis Sheet'!Y2*12 -> 34618.12109
A25: Monthly Wastewater Bill | B25: ='Wastewater Analysis Sheet'!M7 -> 0 | C25: ='Wastewater Analysis Sheet'!N7 -> 0 | D25: ='Wastewater Analysis Sheet'!O7 -> 0 | E25: ='Wastewater Analysis Sheet'!P7 -> 0 | F25: ='Wastewater Analysis Sheet'!Q7 -> 0 | G25: ='Wastewater Analysis Sheet'!R7 -> 0 | H25: ='Wastewater Analysis Sheet'!S7 -> 0 | I25: ='Wastewater Analysis Sheet'!T7 -> 0 | J25: ='Wastewater Analysis Sheet'!U7 -> 0 | K25: ='Wastewater Analysis Sheet'!V7 -> 0 | L25: ='Wastewater Analysis Sheet'!W7 -> 0 | M25: ='Wastewater Analysis Sheet'!X7 -> 0 | N25: ='Wastewater Analysis Sheet'!Y7 -> 0
A26: %MHI | B26: =+B25*12/B24 -> 0 | C26: =+C25*12/C24 -> 0 | D26: 0 | E26: 0 | F26: 0 | G26: 0 | H26: 0 | I26: 0 | J26: 0 | K26: 0 | L26: 0 | M26: 0 | N26: 0
A27: Population | B27: =VLOOKUP(city,poptable,B23-2008,FALSE) -> 12178.47879 | C27: 12165.29091 | D27: 12152.10303 | E27: 12138.91515 | F27: 12125.72727 | G27: 12112.53939 | H27: 12099.35152 | I27: 12086.16364 | J27: 12072.97576 | K27: 12059.78788 | L27: 12046.6 | M27: 12033.41212 | N27: 12020.22424
A29: Projections | B29: 2034 | C29: 2035 | D29: 2036 | E29: 2037 | F29: 2038 | G29: 2039 | H29: 2040 | I29: 2041 | J29: 2042 | K29: 2043 | L29: 2044 | M29: 2045 | N29: 2046
A30: Median Household Income | B30: =+'Wastewater Analysis Sheet'!Z2*12 -> 34617.87469 | C30: =+'Wastewater Analysis Sheet'!AA2*12 -> 34621.21469 | D30: =+'Wastewater Analysis Sheet'!AB2*12 -> 34623.20796 | E30: =+'Wastewater Analysis Sheet'!AC2*12 -> 34623.03592 | F30: =+'Wastewater Analysis Sheet'!AD2*12 -> 34623.72674 | G30: =+'Wastewater Analysis Sheet'!AE2*12 -> 34623.99651 | H30: =+'Wastewater Analysis Sheet'!AF2*12 -> 34623.94647 | I30: =+'Wastewater Analysis Sheet'!AG2*12 -> 34624.0775 | J30: =+'Wastewater Analysis Sheet'!AH2*12 -> 34624.09934 | K30: =+'Wastewater Analysis Sheet'!AI2*12 -> 34624.08119 | L30: =+'Wastewater Analysis Sheet'!AJ2*12 -> 34624.0972 | M30: =+'Wastewater Analysis Sheet'!AK2*12 -> 34624.08784 | N30: =+'Wastewater Analysis Sheet'!AL2*12 -> 34624.07522
A31: Monthly Wastewater Bill | B31: ='Wastewater Analysis Sheet'!Z7 -> 0 | C31: ='Wastewater Analysis Sheet'!AA7 -> 0 | D31: ='Wastewater Analysis Sheet'!AB7 -> 0 | E31: ='Wastewater Analysis Sheet'!AC7 -> 0 | F31: ='Wastewater Analysis Sheet'!AD7 -> 0 | G31: ='Wastewater Analysis Sheet'!AE7 -> 0 | H31: ='Wastewater Analysis Sheet'!AF7 -> 0 | I31: ='Wastewater Analysis Sheet'!AG7 -> 0 | J31: ='Wastewater Analysis Sheet'!AH7 -> 0 | K31: ='Wastewater Analysis Sheet'!AI7 -> 0 | L31: ='Wastewater Analysis Sheet'!AJ7 -> 0 | M31: ='Wastewater Analysis Sheet'!AK7 -> 0 | N31: ='Wastewater Analysis Sheet'!AL7 -> 0
A32: % MHI | B32: =+(B31/B30)*12 -> 0 | C32: =+(C31/C30)*12 -> 0 | D32: 0 | E32: 0 | F32: 0 | G32: 0 | H32: 0 | I32: 0 | J32: 0 | K32: 0 | L32: 0 | M32: 0 | N32: 0
A33: Population | B33: =VLOOKUP(city,poptable,B29-2008,FALSE) -> 12007.03636 | C33: 11993.84848 | D33: 11980.66061 | E33: 11967.47273 | F33: 11954.28485 | G33: 11941.09697 | H33: 11927.90909 | I33: 11914.72121 | J33: 11901.53333 | K33: 11888.34545 | L33: 11875.15758 | M33: 11861.9697 | N33: 11848.78182
A35: Projections | B35: 2047 | C35: 2048 | D35: 2049 | E35: 2050 | F35: 2051
A36: Median Household Income | B36: =+'Wastewater Analysis Sheet'!AM2*12 -> 34624.06839 | C36: =+'Wastewater Analysis Sheet'!AN2*12 -> 34624.05612 | D36: =+'Wastewater Analysis Sheet'!AO2*12 -> 34624.04407 | E36: =+'Wastewater Analysis Sheet'!AP2*12 -> 34624.03288 | F36: =+'Wastewater Analysis Sheet'!AQ2*12 -> 34624.02059
A37: Monthly Wastewater Bill | B37: =+'Wastewater Analysis Sheet'!AM7 -> 0 | C37: =+'Wastewater Analysis Sheet'!AN7 -> 0 | D37: =+'Wastewater Analysis Sheet'!AO7 -> 0 | E37: =+'Wastewater Analysis Sheet'!AP7 -> 0 | F37: =+'Wastewater Analysis Sheet'!AQ7 -> 0
A38: % MHI | B38: =+B37/B36*12 -> 0 | C38: =+C37/C36*12 -> 0 | D38: 0 | E38: 0 | F38: 0
A39: Population | B39: =VLOOKUP(city,poptable,B35-2008,FALSE) -> 11835.59394 | C39: =VLOOKUP(city,poptable,C35-2008,FALSE) -> 11822.40606 | D39: =VLOOKUP(city,poptable,D35-2008,FALSE) -> 11809.21818 | E39: =VLOOKUP(city,poptable,E35-2008,FALSE) -> 11796.0303 | F39: =VLOOKUP(city,poptable,F35-2008,FALSE) -> 11782.84242

Sheet Combined Bill Output
A1: Model Outputs - Combined Bill
A2: Community | B2: =city -> Abbeville city, Louisiana
A3: Community Population (2021) | B3: ='Wastewater Analysis Sheet'!M6 -> 12178.47879
A4: Increase in Average Monthly Combined Bill | B4: =C25-B25 -> 0
A5: Probability that Monthly Combined Bill
A6: Exceeds 2.0% of Median Household Income | B6: ='Combined Bill Analysis Sheet'!combinedmaxprob -> 0.004242868119
A7: Sustainability Risk | B7: =IF(B6<0.33,"Low",IF(B6<0.67,"Moderate","High")) -> Low
A9: Current MHI (2021) | B9: =+B24 -> 36544.0247
A10: Current Combined Bill | B10: =+wastebill+drinkbill -> 0
A11: Projected Combined Bill | B11: =+B10+B4 -> 0
A17: Note: The graph shows the typical sustainable threshold
A18: for the community (blue line), forecast into the future,
A19: along with a range of estimates developed in a
A20: statistical model. It also shows the projected combined
A21: bills using the inputs you provided.
A23: Projections | B23: 2021 | C23: 2022 | D23: 2023 | E23: 2024 | F23: 2025 | G23: 2026 | H23: 2027 | I23: 2028 | J23: 2029 | K23: 2030 | L23: 2031 | M23: 2032 | N23: 2033
A24: Median Household Income | B24: ='Wastewater Analysis Sheet'!M2*12 -> 36544.0247 | C24: ='Wastewater Analysis Sheet'!N2*12 -> 35380.93785 | D24: ='Wastewater Analysis Sheet'!O2*12 -> 34809.97727 | E24: ='Wastewater Analysis Sheet'!P2*12 -> 34485.80743 | F24: ='Wastewater Analysis Sheet'!Q2*12 -> 34372.58453 | G24: ='Wastewater Analysis Sheet'!R2*12 -> 34352.26221 | H24: ='Wastewater Analysis Sheet'!S2*12 -> 34373.77945 | I24: ='Wastewater Analysis Sheet'!T2*12 -> 34432.40701 | J24: ='Wastewater Analysis Sheet'!U2*12 -> 34505.25345 | K24: ='Wastewater Analysis Sheet'!V2*12 -> 34585.41588 | L24: ='Wastewater Analysis Sheet'!W2*12 -> 34589.41777 | M24: ='Wastewater Analysis Sheet'!X2*12 -> 34605.07112 | N24: ='Wastewater Analysis Sheet'!Y2*12 -> 34618.12109
A25: Monthly Combined Bill | B25: ='Wastewater Analysis Sheet'!M7+'Drinking Water Analysis Sheet'!M7 -> 0 | C25: ='Wastewater Analysis Sheet'!N7+'Drinking Water Analysis Sheet'!N7 -> 0 | D25: ='Wastewater Analysis Sheet'!O7+'Drinking Water Analysis Sheet'!O7 -> 0 | E25: ='Wastewater Analysis Sheet'!P7+'Drinking Water Analysis Sheet'!P7 -> 0 | F25: ='Wastewater Analysis Sheet'!Q7+'Drinking Water Analysis Sheet'!Q7 -> 0 | G25: ='Wastewater Analysis Sheet'!R7+'Drinking Water Analysis Sheet'!R7 -> 0 | H25: ='Wastewater Analysis Sheet'!S7+'Drinking Water Analysis Sheet'!S7 -> 0 | I25: ='Wastewater Analysis Sheet'!T7+'Drinking Water Analysis Sheet'!T7 -> 0 | J25: ='Wastewater Analysis Sheet'!U7+'Drinking Water Analysis Sheet'!U7 -> 0 | K25: ='Wastewater Analysis Sheet'!V7+'Drinking Water Analysis Sheet'!V7 -> 0 | L25: ='Wastewater Analysis Sheet'!W7+'Drinking Water Analysis Sheet'!W7 -> 0 | M25: ='Wastewater Analysis Sheet'!X7+'Drinking Water Analysis Sheet'!X7 -> 0 | N25: ='Wastewater Analysis Sheet'!Y7+'Drinking Water Analysis Sheet'!Y7 -> 0
A26: %MHI | B26: =+B25*12/B24 -> 0 | C26: =+C25*12/C24 -> 0 | D26: 0 | E26: 0 | F26: 0 | G26: 0 | H26: 0 | I26: 0 | J26: 0 | K26: 0 | L26: 0 | M26: 0 | N26: 0
A27: Population | B27: =VLOOKUP(city,poptable,B23-2008,FALSE) -> 12178.47879 | C27: 12165.29091 | D27: 12152.10303 | E27: 12138.91515 | F27: 12125.72727 | G27: 12112.53939 | H27: 12099.35152 | I27: 12086.16364 | J27: 12072.97576 | K27: 12059.78788 | L27: 12046.6 | M27: 12033.41212 | N27: 12020.22424
A29: Projections | B29: 2034 | C29: 2035 | D29: 2036 | E29: 2037 | F29: 2038 | G29: 2039 | H29: 2040 | I29: 2041 | J29: 2042 | K29: 2043 | L29: 2044 | M29: 2045 | N29: 2046
A30: Median Household Income | B30: =+'Wastewater Analysis Sheet'!Z2*12 -> 34617.87469 | C30: =+'Wastewater Analysis Sheet'!AA2*12 -> 34621.21469 | D30: =+'Wastewater Analysis Sheet'!AB2*12 -> 34623.20796 | E30: =+'Wastewater Analysis Sheet'!AC2*12 -> 34623.03592 | F30: =+'Wastewater Analysis Sheet'!AD2*12 -> 34623.72674 | G30: =+'Wastewater Analysis Sheet'!AE2*12 -> 34623.99651 | H30: =+'Wastewater Analysis Sheet'!AF2*12 -> 34623.94647 | I30: =+'Wastewater Analysis Sheet'!AG2*12 -> 34624.0775 | J30: =+'Wastewater Analysis Sheet'!AH2*12 -> 34624.09934 | K30: =+'Wastewater Analysis Sheet'!AI2*12 -> 34624.08119 | L30: =+'Wastewater Analysis Sheet'!AJ2*12 -> 34624.0972 | M30: =+'Wastewater Analysis Sheet'!AK2*12 -> 34624.08784 | N30: =+'Wastewater Analysis Sheet'!AL2*12 -> 34624.07522
A31: Monthly Combined Bill | B31: ='Wastewater Analysis Sheet'!Z7+'Drinking Water Analysis Sheet'!Z7 -> 0 | C31: ='Wastewater Analysis Sheet'!AA7+'Drinking Water Analysis Sheet'!AA7 -> 0 | D31: ='Wastewater Analysis Sheet'!AB7+'Drinking Water Analysis Sheet'!AB7 -> 0 | E31: ='Wastewater Analysis Sheet'!AC7+'Drinking Water Analysis Sheet'!AC7 -> 0 | F31: ='Wastewater Analysis Sheet'!AD7+'Drinking Water Analysis Sheet'!AD7 -> 0 | G31: ='Wastewater Analysis Sheet'!AE7+'Drinking Water Analysis Sheet'!AE7 -> 0 | H31: ='Wastewater Analysis Sheet'!AF7+'Drinking Water Analysis Sheet'!AF7 -> 0 | I31: ='Wastewater Analysis Sheet'!AG7+'Drinking Water Analysis Sheet'!AG7 -> 0 | J31: ='Wastewater Analysis Sheet'!AH7+'Drinking Water Analysis Sheet'!AH7 -> 0 | K31: ='Wastewater Analysis Sheet'!AI7+'Drinking Water Analysis Sheet'!AI7 -> 0 | L31: ='Wastewater Analysis Sheet'!AJ7+'Drinking Water Analysis Sheet'!AJ7 -> 0 | M31: ='Wastewater Analysis Sheet'!AK7+'Drinking Water Analysis Sheet'!AK7 -> 0 | N31: ='Wastewater Analysis Sheet'!AL7+'Drinking Water Analysis Sheet'!AL7 -> 0
A32: % MHI | B32: =+(B31/B30)*12 -> 0 | C32: =+(C31/C30)*12 -> 0 | D32: 0 | E32: 0 | F32: 0 | G32: 0 | H32: 0 | I32: 0 | J32: 0 | K32: 0 | L32: 0 | M32: 0 | N32: 0
A33: Population | B33: =VLOOKUP(city,poptable,B29-2008,FALSE) -> 12007.03636 | C33: 11993.84848 | D33: 11980.66061 | E33: 11967.47273 | F33: 11954.28485 | G33: 11941.09697 | H33: 11927.90909 | I33: 11914.72121 | J33: 11901.53333 | K33: 11888.34545 | L33: 11875.15758 | M33: 11861.9697 | N33: 11848.78182
A35: Projections | B35: 2047 | C35: 2048 | D35: 2049 | E35: 2050 | F35: 2051
A36: Monthly Household Income | B36: =+'Wastewater Analysis Sheet'!AM2*12 -> 34624.06839 | C36: =+'Wastewater Analysis Sheet'!AN2*12 -> 34624.05612 | D36: =+'Wastewater Analysis Sheet'!AO2*12 -> 34624.04407 | E36: =+'Wastewater Analysis Sheet'!AP2*12 -> 34624.03288 | F36: =+'Wastewater Analysis Sheet'!AQ2*12 -> 34624.02059
A37: Monthly Combined Bill | B37: =+'Wastewater Analysis Sheet'!AM7+'Drinking Water Analysis Sheet'!AM7 -> 0 | C37: =+'Wastewater Analysis Sheet'!AN7+'Drinking Water Analysis Sheet'!AN7 -> 0 | D37: =+'Wastewater Analysis Sheet'!AO7+'Drinking Water Analysis Sheet'!AO7 -> 0 | E37: =+'Wastewater Analysis Sheet'!AP7+'Drinking Water Analysis Sheet'!AP7 -> 0 | F37: =+'Wastewater Analysis Sheet'!AQ7+'Drinking Water Analysis Sheet'!AQ7 -> 0
A38: % MHI | B38: =+B37/B36*12 -> 0 | C38: =+C37/C36*12 -> 0 | D38: 0 | E38: 0 | F38: 0
A39: Population | B39: =VLOOKUP(city,poptable,B35-2008,FALSE) -> 11835.59394 | C39: =VLOOKUP(city,poptable,C35-2008,FALSE) -> 11822.40606 | D39: =VLOOKUP(city,poptable,D35-2008,FALSE) -> 11809.21818 | E39: =VLOOKUP(city,poptable,E35-2008,FALSE) -> 11796.0303 | F39: =VLOOKUP(city,poptable,F35-2008,FALSE) -> 11782.84242

Sheet Coefficients (hidden)
A1: Income Lag | B1: POP_ | C1: MANU_ | D1: ED_HS_ | E1: ED_BACH_
A2: 0.5512712 | B2: 0.0004136 | C2: 0.6739801 | D2: 108.3894 | E2: 200.7302

Sheet Unit Specific Constants (hidden)
A1: Abbeville city, Louisiana | B1: 5323.635
A2: Abita Springs town, Louis.. | B2: 11414.06
A3: Addis town, Louisiana | B3: 15789.245
A4: Albany town, Louisiana | B4: 8412.579
A5: Alexandria city, Louisiana | B5: 3921.451
A6: Amite City town, Louisiana | B6: 7363.445
A7: Anacoco village, Louisiana | B7: 14664.785
A8: Angie village, Louisiana | B8: 5018.2792
A9: Arcadia town, Louisiana | B9: -1745.952
A10: Arnaudville town, Louisiana | B10: 6417.411
A11: Ashland village, Louisiana | B11: 7334.331
A12: Athens village, Louisiana | B12: 4760.1526
A13: Atlanta village, Louisiana | B13: 8685.791
A14: Baker city, Louisiana | B14: 7437.864
A15: Baldwin town, Louisiana | B15: 5061.5577
A16: Ball town, Louisiana | B16: 9564.561
A17: Basile town, Louisiana | B17: 4248.409
A18: Baskin village, Louisiana | B18: 7410.357
A19: Bastrop city, Louisiana | B19: -533.246
A20: Baton Rouge city, Louisiana | B20: 2770.187
A21: Belcher village, Louisiana | B21: 1560.794
A22: Benton town, Louisiana | B22: 8994.066
A23: Bernice town, Louisiana | B23: -457.517
A24: Berwick town, Louisiana | B24: 9081.56
A25: Bienville village, Louisi.. | B25: 5549.2135
A26: Blanchard town, Louisiana | B26: 16432.825
A27: Bogalusa city, Louisiana | B27: 1722.525
A28: Bonita village, Louisiana | B28: 1512.226
A29: Bossier City city, Louisi.. | B29: 7432.233
A30: Boyce town, Louisiana | B30: -627.596
A31: Breaux Bridge city, Louis.. | B31: 6369.25
A32: Broussard city, Louisiana | B32: 15473.625
A33: Brusly town, Louisiana | B33: 19470.825
A34: Bunkie city, Louisiana | B34: 1160.134
A35: Calvin village, Louisiana | B35: 3619.552
A36: Campti town, Louisiana | B36: -1771.311
A37: Cankton village, Louisiana | B37: 11169.575
A38: Carencro city, Louisiana | B38: 6421.607
A39: Castor village, Louisiana | B39: 1194.384
A40: Central city, Louisiana | B40: 17736.915
A41: Chataignier village, Loui.. | B41: 3196.802
A42: Chatham town, Louisiana | B42: -913.526
A43: Cheneyville town, Louisiana | B43: 1059.556
A44: Choudrant village, Louisi.. | B44: 7662.355
A45: Church Point town, Louisi.. | B45: 5460.6097
A46: Clarence village, Louisiana | B46: -1367.396
A47: Clarks village, Louisiana | B47: 3464.564
A48: Clayton town, Louisiana | B48: 874.334
A49: Clinton town, Louisiana | B49: 3214.235
A50: Colfax town, Louisiana | B50: -99.347
A51: Collinston village, Louis.. | B51: -541.777
A52: Columbia town, Louisiana | B52: 5889.8302
A53: Converse village, Louisiana | B53: 4856.0622
A54: Cotton Valley town, Louis.. | B54: 2304.295
A55: Cottonport town, Louisiana | B55: 2125.936
A56: Coushatta town, Louisiana | B56: 1505.989
A57: Covington city, Louisiana | B57: 9151.945
A58: Creola village, Louisiana | B58: 14993.066
A59: Crowley city, Louisiana | B59: 2811.223
A60: Cullen town, Louisiana | B60: -904.071
A61: Delcambre town, Louisiana | B61: 8573.197
A62: Delhi town, Louisiana | B62: 2695.585
A63: Delta village, Louisiana | B63: 2139.293
A64: Denham Springs city, Loui.. | B64: 10171.97
A65: DeQuincy city, Louisiana | B65: 8461.796
A66: DeRidder city, Louisiana | B66: 5634.0149
A67: Dixie Inn village, Louisi.. | B67: -156.945
A68: Dodson village, Louisiana | B68: 5705.2473
A69: Donaldsonville city, Loui.. | B69: 2919.356
A70: Downsville village, Louis.. | B70: 9168.471
A71: Doyline village, Louisiana | B71: 2242.877
A72: Dry Prong village, Louisi.. | B72: 6490.471
A73: Dubach town, Louisiana | B73: 1004.291
A74: Dubberly village, Louisiana | B74: 7016.143
A75: Duson town, Louisiana | B75: 5650.2268
A76: East Hodge village, Louis.. | B76: -1739.877
A77: Edgefield village, Louisi.. | B77: 10473.136
A78: Elizabeth town, Louisiana | B78: 6514.598
A79: Elton town, Louisiana | B79: 4530.3253
A80: Epps village, Louisiana | B80: 4396.9937
A81: Erath town, Louisiana | B81: 6516.709
A82: Eros town, Louisiana | B82: 5490.0983
A83: Estherwood village, Louis.. | B83: 8948.267
A84: Eunice city, Louisiana | B84: 4538.1442
A85: Evergreen town, Louisiana | B85: 2742.633
A86: Farmerville town, Louisiana | B86: 504.705
A87: Fenton village, Louisiana | B87: 1302.788
A88: Ferriday town, Louisiana | B88: -1538.496
A89: Fisher village, Louisiana | B89: 13465.281
A90: Florien village, Louisiana | B90: 890.9
A91: Folsom village, Louisiana | B91: 7030.794
A92: Fordoche town, Louisiana | B92: 12704.04
A93: Forest Hill village, Loui.. | B93: 3274.318
A94: Forest village, Louisiana | B94: 7199.22
A95: Franklin city, Louisiana | B95: 5034.3428
A96: Franklinton town, Louisiana | B96: 1662.524
A97: French Settlement village.. | B97: 14121.323
A98: Georgetown village, Louis.. | B98: 10015.834
A99: Gibsland town, Louisiana | B99: -107.597
A100: Gilbert village, Louisiana | B100: 1559.54
A101: Gilliam village, Louisiana | B101: 7291.234
A102: Glenmora town, Louisiana | B102: 5450.4554
A103: Golden Meadow town, Louis.. | B103: 14243.278
A104: Goldonna village, Louisiana | B104: 9575.243
A105: Gonzales city, Louisiana | B105: 11174.932
A106: Grambling city, Louisiana | B106: -5256.785
A107: Gramercy town, Louisiana | B107: 10085.711
A108: Grand Cane village, Louis.. | B108: 12094.244
A109: Grand Coteau town, Louisi.. | B109: -0.921
A110: Grand Isle town, Louisiana | B110: 8932.692
A111: Grayson village, Louisiana | B111: 4564.4951
A112: Greensburg town, Louisiana | B112: 4563.3292
A113: Greenwood town, Louisiana | B113: 9202.934
A114: Gretna city, Louisiana | B114: 6243.168
A115: Grosse Tete village, Loui.. | B115: 9077.412
A116: Gueydan town, Louisiana | B116: 7317.002
A117: Hall Summit village, Loui.. | B117: 13071.594
A118: Hammond city, Louisiana | B118: 1659.897
A119: Harahan city, Louisiana | B119: 12848.097
A120: Harrisonburg village, Lou.. | B120: 200.829
A121: Haughton town, Louisiana | B121: 10630.135
A122: Haynesville town, Louisiana | B122: 1098.379
A123: Heflin village, Louisiana | B123: 8880.95
A124: Henderson town, Louisiana | B124: 6622.856
A125: Hessmer village, Louisiana | B125: 3563.531
A126: Hodge village, Louisiana | B126: 6859.752
A127: Homer town, Louisiana | B127: -458.465
A128: Hornbeck town, Louisiana | B128: 8989.653
A129: Hosston village, Louisiana | B129: 7644.582
A130: Houma city, Louisiana | B130: 8306.175
A131: Ida village, Louisiana | B131: 4790.5434
A132: Independence town, Louisi.. | B132: 5321.844021
A133: Iota town, Louisiana | B133: 7319.188
A134: Iowa town, Louisiana | B134: 7216.716
A135: Jackson town, Louisiana | B135: 8378.712
A136: Jamestown village, Louisi.. | B136: 8500.741
A137: Jean Lafitte town, Louisi.. | B137: 11357.635
A138: Jeanerette city, Louisiana | B138: 7183.366
A139: Jena town, Louisiana | B139: 4689.0587
A140: Jennings city, Louisiana | B140: 2909.794
A141: Jonesboro town, Louisiana | B141: 365.011
A142: Jonesville town, Louisiana | B142: 968.778
A143: Junction City village, Lo.. | B143: -20.3
A144: Kaplan city, Louisiana | B144: 5160.0381
A145: Keachi town, Louisiana | B145: 8841.745
A146: Kenner city, Louisiana | B146: 9577.418
A147: Kentwood town, Louisiana | B147: 562.506
A148: Kilbourne village, Louisi.. | B148: 1271.93
A149: Killian town, Louisiana | B149: 11707.132
A150: Kinder town, Louisiana | B150: 6515.184
A151: Krotz Springs town, Louis.. | B151: 1094.195
A152: Lafayette city, Louisiana | B152: 5548.6377
A153: Lake Arthur town, Louisiana | B153: 4457.3647
A154: Lake Charles city, Louisi.. | B154: 3609.871
A155: Lake Providence town, Lou.. | B155: -1305.323
A156: Lecompte town, Louisiana | B156: 2396.537
A157: Leesville city, Louisiana | B157: 4222.979
A158: Leonville town, Louisiana | B158: 5645.0982
A159: Lillie village, Louisiana | B159: 7867.627
A160: Lisbon village, Louisiana | B160: 14555.641
A161: Livingston town, Louisiana | B161: 11652.645
A162: Livonia town, Louisiana | B162: 13153.658
A163: Lockport town, Louisiana | B163: 13042.488
A164: Logansport town, Louisiana | B164: 4688.6684
A165: Longstreet village, Louis.. | B165: 8640.688
A166: Loreauville village, Loui.. | B166: 4540.9028
A167: Lucky village, Louisiana | B167: 2132.117
A168: Lutcher town, Louisiana | B168: 9624.893
A169: Madisonville town, Louisi.. | B169: 12753.914
A170: Mamou town, Louisiana | B170: 8338.704
A171: Mandeville city, Louisiana | B171: 7049.43
A172: Mangham town, Louisiana | B172: 7067.38
A173: Mansfield city, Louisiana | B173: 1667.648
A174: Mansura town, Louisiana | B174: 1252.418
A175: Many town, Louisiana | B175: -1295.585
A176: Maringouin town, Louisiana | B176: 1454.152
A177: Marion town, Louisiana | B177: 2833.189
A178: Marksville city, Louisiana | B178: 3908.62
A179: Martin village, Louisiana | B179: 10764.379
A180: Maurice village, Louisiana | B180: 17173.075
A181: McNary village, Louisiana | B181: 8205.365
A182: Melville town, Louisiana | B182: 712.883
A183: Mer Rouge village, Louisi.. | B183: 2206.058
A184: Mermentau village, Louisi.. | B184: 5459.4571
A185: Merryville town, Louisiana | B185: 2386.154
A186: Minden city, Louisiana | B186: 434.588
A187: Monroe city, Louisiana | B187: -1032.126
A188: Montgomery town, Louisiana | B188: 3264.538
A189: Montpelier village, Louis.. | B189: 5405.07208
A190: Mooringsport town, Louisi.. | B190: 2574.861
A191: Moreauville village, Loui.. | B191: 3351.024
A192: Morgan City city, Louisiana | B192: 7390.592
A193: Morganza village, Louisiana | B193: 7095.067
A194: Morse village, Louisiana | B194: 11332.853
A195: Napoleonville village, Lo.. | B195: 1864.911
A196: Natchez village, Louisiana | B196: -152.622
A197: Natchitoches city, Louisi.. | B197: -2786.612
A198: New Iberia city, Louisiana | B198: 4358.0023
A199: New Llano town, Louisiana | B199: 7318.958
A200: New Orleans city, Louisiana | B200: 1264.533
... 101 more rows

Sheet High School (hidden)
A1: GEO_ID | B1: NAME | C1: ED_HS_10 | D1: ED_HS_11 | E1: ED_HS_12 | F1: ED_HS_13 | G1: ED_HS_14 | H1: ED_HS_15 | I1: ED_HS_16 | J1: ED_HS_17 | K1: ED_HS_18 | L1: ED_HS_19 | M1: ED_HS_20 | N1: ED_HS_21 | O1: ED_HS_22 | P1: ED_HS_23 | Q1: ED_HS_24 | R1: ED_HS_25 | S1: ED_HS_26 | T1: ED_HS_27 | U1: ED_HS_28 | V1: ED_HS_29 | W1: ED_HS_30 | X1: ED_HS_31 | Y1: ED_HS_32 | Z1: ED_HS_33 | AA1: ED_HS_34 | AB1: ED_HS_35 | AC1: ED_HS_36 | AD1: ED_HS_37 | AE1: ED_HS_38 | AF1: ED_HS_39 | AG1: ED_HS_40 | AH1: ED_HS_41 | AI1: ED_HS_42 | AJ1: ED_HS_43 | AK1: ED_HS_44 | AL1: ED_HS_45 | AM1: ED_HS_46 | AN1: ED_HS_47 | AO1: ED_HS_48 | AP1: ED_HS_49 | AQ1: ED_HS_50 | AR1: ED_HS_51
A2: 1600000US2200100 | B2: Abbeville city, Louisiana | C2: 67.8 | D2: 67.1 | E2: 69.4 | F2: 68 | G2: 71.3 | H2: 70 | I2: 70.9 | J2: 70.28628942 | K2: 72.72526988 | L2: 69.08973253 | M2: 71.75399348 | N2: 72.13469608 | O2: 72.51539868 | P2: 72.89610129 | Q2: 73.27680389 | R2: 73.65750649 | S2: 74.03820909 | T2: 74.41891169 | U2: 74.79961429 | V2: 75.18031689 | W2: =(V2+U2+T2)/3 -> 74.79961429 | X2: 74.92651515 | Y2: 74.96881544 | Z2: 74.89831496 | AA2: 74.93121519 | AB2: 74.93278186 | AC2: 74.92077067 | AD2: 74.92825591 | AE2: 74.92726948 | AF2: 74.92543202 | AG2: 74.9269858 | AH2: 74.92656243 | AI2: 74.92632675 | AJ2: 74.92662499 | AK2: 74.92650473 | AL2: 74.92648549 | AM2: =(AL2+AK2+AJ2)/3 -> 74.9265384 | AN2: 74.92650954 | AO2: 74.92651114 | AP2: 74.9265197 | AQ2: 74.92651346 | AR2: 74.92651477
A3: 1600000US2200240 | B3: Abita Springs town, Louisiana | C3: 89.3 | D3: 91.5 | E3: 92.7 | F3: 92.8 | G3: 94.7 | H3: 92.5 | I3: 93.7 | J3: 92.17171717 | K3: 93.41902314 | L3: 95.37366548 | M3: 95.01493182 | N3: 95.4146575 | O3: 95.81438318 | P3: 96.21410886 | Q3: 96.61383454 | R3: 97.01356021 | S3: 97.41328589 | T3: 97.81301157 | U3: 98.21273725 | V3: 98.61246293 | W3: 98.21273725 | X3: 98.34597915 | Y3: 98.39039311 | Z3: 98.31636984 | AA3: 98.35091403 | AB3: 98.35255899 | AC3: 98.33994762 | AD3: 98.34780688 | AE3: 98.34677117 | AF3: 98.34484189 | AG3: 98.34647331 | AH3: 98.34602879 | AI3: 98.34578133 | AJ3: 98.34609448 | AK3: 98.3459682 | AL3: 98.345948 | AM3: 98.34600356 | AN3: 98.34597325 | AO3: 98.34597494 | AP3: 98.34598392 | AQ3: 98.34597737 | AR3: 98.34597874
A4: 1600000US2200415 | B4: Addis town, Louisiana | C4: 83.7 | D4: 81.4 | E4: 84.6 | F4: 84 | G4: 85.9 | H4: 88.6 | I4: 88.3 | J4: 85.81473555 | K4: 86.09134045 | L4: 90.45183291 | M4: 89.72844279 | N4: 90.42710678 | O4: 91.12577076 | P4: 91.82443474 | Q4: 92.52309872 | R4: 93.22176271 | S4: 93.92042669 | T4: 94.61909067 | U4: 95.31775465 | V4: 96.01641864 | W4: 95.31775465 | X4: 95.55064265 | Y4: 95.62827198 | Z4: 95.49888976 | AA4: 95.55926813 | AB4: 95.56214329 | AC4: 95.54010039 | AD4: 95.55383727 | AE4: 95.55202698 | AF4: 95.54865488 | AG4: 95.55150638 | AH4: 95.55072942 | AI4: 95.55029689 | AJ4: 95.55084423 | AK4: 95.55062351 | AL4: 95.55058821 | AM4: 95.55068532 | AN4: 95.55063235 | AO4: 95.55063529 | AP4: 95.55065099 | AQ4: 95.55063954 | AR4: 95.55064194
A5: 1600000US2200835 | B5: Albany village, Louisiana | C5: 81.6 | D5: 81.9 | E5: 84.2 | F5: 81.9 | G5: 87.4 | H5: 91.3 | I5: 91.9 | J5: 95.26315789 | K5: 94.57900807 | L5: 92.71070615 | M5: 97.54079392 | N5: 99.22543151 | O5: 100 | P5: 100 | Q5: 100 | R5: 100 | S5: 100 | T5: 100 | U5: 100 | V5: 100 | W5: 100 | X5: 100 | Y5: 100 | Z5: 100 | AA5: 100 | AB5: 100 | AC5: 100 | AD5: 100 | AE5: 100 | AF5: 100 | AG5: 100 | AH5: 100 | AI5: 100 | AJ5: 100 | AK5: 100 | AL5: 100 | AM5: 100 | AN5: 100 | AO5: 100 | AP5: 100 | AQ5: 100 | AR5: 100
A6: 1600000US2200975 | B6: Alexandria city, Louisiana | C6: 80.7 | D6: 80.3 | E6: 81.1 | F6: 80.3 | G6: 81.2 | H6: 81.7 | I6: 83.8 | J6: 82.7233762 | K6: 83.67845765 | L6: 83.42173973 | M6: 84.13441543 | N6: 84.54206235 | O6: 84.94970927 | P6: 85.35735619 | Q6: 85.76500311 | R6: 86.17265004 | S6: 86.58029696 | T6: 86.98794388 | U6: 87.3955908 | V6: 87.80323772 | W6: 87.3955908 | X6: 87.53147311 | Y6: 87.57676721 | Z6: 87.50127704 | AA6: 87.53650579 | AB6: 87.53818335 | AC6: 87.52532206 | AD6: 87.53333706 | AE6: 87.53228082 | AF6: 87.53031331 | AG6: 87.53197707 | AH6: 87.53152373 | AI6: 87.53127137 | AJ6: 87.53159072 | AK6: 87.53146194 | AL6: 87.53144135 | AM6: 87.531498 | AN6: 87.5314671 | AO6: 87.53146882 | AP6: 87.53147797 | AQ6: 87.5314713 | AR6: 87.53147269
A7: 1600000US2201885 | B7: Amite City town, Louisiana | C7: 70 | D7: 71.5 | E7: 75.7 | F7: 76.8 | G7: 79.6 | H7: 77.2 | I7: 75.2 | J7: 82.05537806 | K7: 85.53424658 | L7: 80.2523172 | M7: 84.55377655 | N7: 85.85733699 | O7: 87.16089742 | P7: 88.46445785 | Q7: 89.76801828 | R7: 91.07157871 | S7: 92.37513914 | T7: 93.67869957 | U7: 94.98226 | V7: 96.28582043 | W7: 94.98226 | X7: 95.41678015 | Y7: 95.56162019 | Z7: 95.32022011 | AA7: 95.43287349 | AB7: 95.43823793 | AC7: 95.39711051 | AD7: 95.42274064 | AE7: 95.41936303 | AF7: 95.41307139 | AG7: 95.41839169 | AH7: 95.41694204 | AI7: 95.41613504 | AJ7: 95.41715625 | AK7: 95.41674444 | AL7: 95.41667858 | AM7: 95.41685976 | AN7: 95.41676093 | AO7: 95.41676642 | AP7: 95.4167957 | AQ7: 95.41677435 | AR7: 95.41677883
A8: 1600000US2201920 | B8: Anacoco village, Louisiana | C8: 86.7 | D8: 87.9 | E8: 91.3 | F8: 90.3 | G8: 92.2 | H8: 92.5 | I8: 92.3 | J8: 90.28571429 | K8: 90.79254079 | L8: 89.72691808 | M8: 92.0244713 | N8: 92.31973567 | O8: 92.61500003 | P8: 92.91026439 | Q8: 93.20552875 | R8: 93.50079311 | S8: 93.79605747 | T8: 94.09132183 | U8: 94.3865862 | V8: 94.68185056 | W8: 94.3865862 | X8: 94.48500765 | Y8: 94.5178148 | Z8: 94.46313622 | AA8: 94.48865289 | AB8: 94.48986797 | AC8: 94.48055236 | AD8: 94.48635774 | AE8: 94.48559269 | AF8: 94.4841676 | AG8: 94.48537267 | AH8: 94.48504432 | AI8: 94.48486153 | AJ8: 94.48509284 | AK8: 94.48499956 | AL8: 94.48498464 | AM8: 94.48502568 | AN8: 94.4850033 | AO8: 94.48500454 | AP8: 94.48501117 | AQ8: 94.48500634 | AR8: 94.48500735
A9: 1600000US2202165 | B9: Angie village, Louisiana | C9: 97.1 | D9: 89.2 | E9: 88 | F9: 88.2 | G9: 84.8 | H9: 86.5 | I9: 74.7 | J9: 80.92783505 | K9: 84.54935622 | L9: 85.50724638 | M9: 78.91343997 | N9: 77.63434837 | O9: 76.35525677 | P9: 75.07616518 | Q9: 73.79707358 | R9: 72.51798198 | S9: 71.23889038 | T9: 69.95979878 | U9: 68.68070718 | V9: 67.40161558 | W9: 68.68070718 | X9: 68.25434332 | Y9: 68.11222203 | Z9: 68.34909084 | AA9: 68.23855206 | AB9: 68.23328831 | AC9: 68.27364374 | AD9: 68.2484947 | AE9: 68.25180892 | AF9: 68.25798245 | AG9: 68.25276202 | AH9: 68.25418446 | AI9: 68.25497631 | AJ9: 68.25397427 | AK9: 68.25437835 | AL9: 68.25444298 | AM9: 68.2542652 | AN9: 68.25436217 | AO9: 68.25435678 | AP9: 68.25432805 | AQ9: 68.254349 | AR9: 68.25434461
A10: 1600000US2202655 | B10: Arcadia town, Louisiana | C10: 78 | D10: 81.6 | E10: 77.4 | F10: 81.2 | G10: 75.6 | H10: 74 | I10: 77.1 | J10: 81.95555556 | K10: 78.61975643 | L10: 83.89380531 | M10: 80.30558908 | N10: 80.55443951 | O10: 80.80328994 | P10: 81.05214036 | Q10: 81.30099079 | R10: 81.54984122 | S10: 81.79869165 | T10: 82.04754207 | U10: 82.2963925 | V10: 82.54524293 | W10: 82.2963925 | X10: 82.37934264 | Y10: 82.40699269 | Z10: 82.36090928 | AA10: 82.38241487 | AB10: 82.38343895 | AC10: 82.3755877 | AD10: 82.38048051 | AE10: 82.37983572 | AF10: 82.37863464 | AG10: 82.37965029 | AH10: 82.37937355 | AI10: 82.37921949 | AJ10: 82.37941444 | AK10: 82.37933583 | AL10: 82.37932326 | AM10: 82.37935784 | AN10: 82.37933898 | AO10: 82.37934002 | AP10: 82.37934561 | AQ10: 82.37934154 | AR10: 82.37934239
A11: 1600000US2203110 | B11: Arnaudville town, Louisiana | C11: 62.2 | D11: 68.1 | E11: 75.5 | F11: 78.2 | G11: 80.2 | H11: 80.7 | I11: 82.8 | J11: 82.74470232 | K11: 76.80652681 | L11: 74.72636816 | M11: 83.67131015 | N11: 85.0301375 | O11: 86.38896485 | P11: 87.7477922 | Q11: 89.10661955 | R11: 90.4654469 | S11: 91.82427425 | T11: 93.1831016 | U11: 94.54192895 | V11: 95.9007563 | W11: 94.54192895 | X11: 94.9948714 | Y11: 95.14585221 | Z11: 94.89421752 | AA11: 95.01164704 | AB11: 95.01723893 | AC11: 94.97436783 | AD11: 95.0010846 | AE11: 94.99756379 | AF11: 94.99100541 | AG11: 94.99655126 | AH11: 94.99504015 | AI11: 94.99419894 | AJ11: 94.99526345 | AK11: 94.99483418 | AL11: 94.99476552 | AM11: 94.99495439 | AN11: 94.99485136 | AO11: 94.99485709 | AP11: 94.99488761 | AQ11: 94.99486536 | AR11: 94.99487002
A12: 1600000US2203145 | B12: Ashland village, Louisiana | C12: 86.1 | D12: 81.7 | E12: 80.5 | F12: 77 | G12: 72.7 | H12: 77.2 | I12: 76.2 | J12: 74.83443709 | K12: 82.41758242 | L12: 92.54658385 | M12: 81.3470109 | N12: 81.57012919 | O12: 81.79324747 | P12: 82.01636576 | Q12: 82.23948404 | R12: 82.46260233 | S12: 82.68572061 | T12: 82.9088389 | U12: 83.13195718 | V12: 83.35507547 | W12: 83.13195718 | X12: 83.20632994 | Y12: 83.23112086 | Z12: 83.18980266 | AA12: 83.20908449 | AB12: 83.21000267 | AC12: 83.20296328 | AD12: 83.20735015 | AE12: 83.20677203 | AF12: 83.20569515 | AG12: 83.20660578 | AH12: 83.20635765 | AI12: 83.20621953 | AJ12: 83.20639432 | AK12: 83.20632383 | AL12: 83.20631256 | AM12: 83.20634357 | AN12: 83.20632665 | AO12: 83.20632759 | AP12: 83.20633261 | AQ12: 83.20632895 | AR12: 83.20632972
A13: 1600000US2203320 | B13: Athens village, Louisiana | C13: 69.8 | D13: 73.2 | E13: 72.6 | F13: 69.7 | G13: 87.2 | H13: 85.6 | I13: 88.7 | J13: 90.16393443 | K13: 92.93680297 | L13: 90.45801527 | M13: 97.61252295 | N13: 100 | O13: 100 | P13: 100 | Q13: 100 | R13: 100 | S13: 100 | T13: 100 | U13: 100 | V13: 100 | W13: 100 | X13: 100 | Y13: 100 | Z13: 100 | AA13: 100 | AB13: 100 | AC13: 100 | AD13: 100 | AE13: 100 | AF13: 100 | AG13: 100 | AH13: 100 | AI13: 100 | AJ13: 100 | AK13: 100 | AL13: 100 | AM13: 100 | AN13: 100 | AO13: 100 | AP13: 100 | AQ13: 100 | AR13: 100
A14: 1600000US2203390 | B14: Atlanta village, Louisiana | C14: 65.4 | D14: 67.1 | E14: 56.6 | F14: 57.1 | G14: 74.1 | H14: 64.9 | I14: 75 | J14: 86.71875 | K14: 86.66666667 | L14: 80.58252427 | M14: 87.04023193 | N14: 89.88085699 | O14: 92.72148205 | P14: 95.56210711 | Q14: 98.40273218 | R14: 100 | S14: 100 | T14: 100 | U14: 100 | V14: 100 | W14: 100 | X14: 100 | Y14: 100 | Z14: 100 | AA14: 100 | AB14: 100 | AC14: 100 | AD14: 100 | AE14: 100 | AF14: 100 | AG14: 100 | AH14: 100 | AI14: 100 | AJ14: 100 | AK14: 100 | AL14: 100 | AM14: 100 | AN14: 100 | AO14: 100 | AP14: 100 | AQ14: 100 | AR14: 100
A15: 1600000US2203985 | B15: Baker city, Louisiana | C15: 83.2 | D15: 83.8 | E15: 82.3 | F15: 84.9 | G15: 86.4 | H15: 86 | I15: 88.1 | J15: 87.18021603 | K15: 89.6253882 | L15: 88.77541095 | M15: 90.18001806 | N15: 90.93491197 | O15: 91.68980589 | P15: 92.4446998 | Q15: 93.19959372 | R15: 93.95448764 | S15: 94.70938155 | T15: 95.46427547 | U15: 96.21916938 | V15: 96.9740633 | W15: 96.21916938 | X15: 96.47080069 | Y15: 96.55467779 | Z15: 96.41488262 | AA15: 96.48012037 | AB15: 96.48322693 | AC15: 96.45940997 | AD15: 96.47425242 | AE15: 96.47229644 | AF15: 96.46865294 | AG15: 96.47173393 | AH15: 96.47089444 | AI15: 96.47042711 | AJ15: 96.47101849 | AK15: 96.47078001 | AL15: 96.47074187 | AM15: 96.47084679 | AN15: 96.47078956 | AO15: 96.47079274 | AP15: 96.4708097 | AQ15: 96.47079733 | AR15: 96.47079992
A16: 1600000US2204020 | B16: Baldwin town, Louisiana | C16: 74.4 | D16: 77.5 | E16: 77.2 | F16: 78.6 | G16: 77.6 | H16: 74.4 | I16: 79 | J16: 78.36484983 | K16: 81.37829912 | L16: 85.89341693 | M16: 82.9140931 | N16: 83.72871792 | O16: 84.54334274 | P16: 85.35796756 | Q16: 86.17259238 | R16: 86.9872172 | S16: 87.80184202 | T16: 88.61646684 | U16: 89.43109166 | V16: 90.24571648 | W16: 89.43109166 | X16: 89.70263327 | Y16: 89.79314714 | Z16: 89.64229069 | AA16: 89.71269037 | AB16: 89.71604273 | AC16: 89.69034126 | AD16: 89.70635812 | AE16: 89.70424737 | AF16: 89.70031558 | AG16: 89.70364036 | AH16: 89.70273444 | AI16: 89.70223013 | AJ16: 89.70286831 | AK16: 89.70261096 | AL16: 89.7025698 | AM16: 89.70268302 | AN16: 89.70262126 | AO16: 89.70262469 | AP16: 89.70264299 | AQ16: 89.70262965 | AR16: 89.70263244
A17: 1600000US2204055 | B17: Ball town, Louisiana | C17: 84.3 | D17: 90.3 | E17: 92.7 | F17: 92.9 | G17: 88.4 | H17: 89.3 | I17: 86 | J17: 86.70212766 | K17: 86.54533637 | L17: 92.20611916 | M17: 88.7714605 | N17: 88.74166089 | O17: 88.71186129 | P17: 88.68206168 | Q17: 88.65226208 | R17: 88.62246248 | S17: 88.59266287 | T17: 88.56286327 | U17: 88.53306366 | V17: 88.50326406 | W17: 88.53306366 | X17: 88.52313046 | Y17: 88.5198194 | Z17: 88.52533784 | AA17: 88.52276257 | AB17: 88.52263993 | AC17: 88.52358011 | AD17: 88.5229942 | AE17: 88.52307142 | AF17: 88.52321525 | AG17: 88.52309362 | AH17: 88.52312676 | AI17: 88.52314521 | AJ17: 88.52312186 | AK17: 88.52313128 | AL17: =(AK17+AJ17+AI17)/3 -> 88.52313278 | AM17: 88.52312864 | AN17: 88.5231309 | AO17: 88.52313078 | AP17: 88.52313011 | AQ17: 88.5231306 | AR17: 88.52313049
A18: 1600000US2204580 | B18: Basile town, Louisiana | C18: 68.9 | D18: 66.9 | E18: 66.3 | F18: 62.2 | G18: 65.2 | H18: 59.3 | I18: 57.5 | J18: 52.59197324 | K18: 55.24769102 | L18: 64.81340442 | M18: 54.9991183 | N18: 53.74526584 | O18: 52.49141337 | P18: 51.23756091 | Q18: 49.98370844 | R18: 48.72985597 | S18: 47.47600351 | T18: 46.22215104 | U18: 44.96829858 | V18: 43.71444611 | W18: =(V18+U18+T18)/3 -> 44.96829858 | X18: 44.55034775 | Y18: 44.41103081 | Z18: 44.64322571 | AA18: 44.53486809 | AB18: 44.52970821 | AC18: 44.56926734 | AD18: 44.54461455 | AE18: 44.54786336 | AF18: 44.55391508 | AG18: 44.54879766 | AH18: 44.55019204 | AI18: 44.55096826 | AJ18: 44.54998599 | AK18: 44.55038209 | AL18: 44.55044545 | AM18: 44.55027118 | AN18: 44.55036624 | AO18: 44.55036095 | AP18: 44.55033279 | AQ18: 44.55035333 | AR18: 44.55034902
A19: 1600000US2204615 | B19: Baskin village, Louisiana | C19: 75.1 | D19: 71.6 | E19: 72.6 | F19: 79.5 | G19: 81 | H19: 80.5 | I19: 87.7 | J19: 83.14606742 | K19: 79.23497268 | L19: 81.72043011 | M19: 85.53878091 | N19: 86.68944162 | O19: 87.84010233 | P19: 88.99076304 | Q19: 90.14142374 | R19: 91.29208445 | S19: 92.44274516 | T19: 93.59340587 | U19: 94.74406658 | V19: 95.89472728 | W19: 94.74406658 | X19: 95.12762014 | Y19: 95.25547133 | Z19: 95.04238602 | AA19: 95.14182583 | AB19: 95.14656106 | AC19: 95.11025764 | AD19: 95.13288151 | AE19: 95.12990007 | AF19: 95.12434641 | AG19: 95.12904266 | AH19: 95.12776305 | AI19: 95.1270507 | AJ19: 95.12795214 | AK19: 95.12758863 | AL19: 95.12753049 | AM19: 95.12769042 | AN19: 95.12760318 | AO19: 95.12760803 | AP19: 95.12763388 | AQ19: 95.12761503 | AR19: 95.12761898
A20: 1600000US2204685 | B20: Bastrop city, Louisiana | C20: 68.4 | D20: 70.1 | E20: 68.6 | F20: 71.7 | G20: 72.8 | H20: 76.4 | I20: 78.4 | J20: 77.81685378 | K20: 74.30555556 | L20: 75.38970893 | M20: 78.7955631 | N20: 79.77817242 | O20: 80.76078174 | P20: 81.74339106 | Q20: 82.72600038 | R20: 83.70860971 | S20: 84.69121903 | T20: 85.67382835 | U20: 86.65643767 | V20: 87.63904699 | W20: 86.65643767 | X20: 86.98397411 | Y20: 87.09315293 | Z20: 86.91118824 | AA20: 86.99610509 | AB20: 87.00014875 | AC20: 86.96914736 | AD20: 86.98846707 | AE20: 86.98592106 | AF20: 86.9811785 | AG20: 86.98518887 | AH20: 86.98409614 | AI20: 86.98348784 | AJ20: 86.98425762 | AK20: 86.9839472 | AL20: 86.98389755 | AM20: 86.98403412 | AN20: 86.98395963 | AO20: 86.98396377 | AP20: 86.98398584 | AQ20: 86.98396974 | AR20: 86.98397312
A21: 1600000US2205000 | B21: Baton Rouge city, Louisiana | C21: 84.2 | D21: 84.3 | E21: 84.8 | F21: 85.4 | G21: 85.9 | H21: 86.7 | I21: 87.6 | J21: 87.94153948 | K21: 88.03211394 | L21: 88.07932315 | M21: 89.10017777 | N21: 89.61015597 | O21: 90.12013417 | P21: 90.63011237 | Q21: 91.14009057 | R21: 91.65006877 | S21: 92.16004698 | T21: 92.67002518 | U21: 93.18000338 | V21: 93.68998158 | W21: 93.18000338 | X21: 93.34999611 | Y21: 93.40666036 | Z21: 93.31221995 | AA21: 93.35629214 | AB21: 93.35839082 | AC21: 93.34230097 | AD21: 93.35232797 | AE21: 93.35100659 | AF21: 93.34854518 | AG21: 93.35062658 | AH21: 93.35005945 | AI21: 93.34974373 | AJ21: 93.35014325 | AK21: 93.34998214 | AL21: 93.34995638 | AM21: 93.35002726 | AN21: 93.34998859 | AO21: 93.34999074 | AP21: 93.3500022 | AQ21: 93.34999385 | AR21: 93.3499956
A22: 1600000US2205945 | B22: Belcher village, Louisiana | C22: 82.4 | D22: 77.6 | E22: 84.6 | F22: 89.5 | G22: 87.3 | H22: 86.9 | I22: 85.2 | J22: 83.10502283 | K22: 83.18584071 | L22: 89.40092166 | M22: 87.63032165 | N22: 88.12325677 | O22: 88.61619189 | P22: 89.109127 | Q22: 89.60206212 | R22: 90.09499723 | S22: 90.58793235 | T22: 91.08086746 | U22: 91.57380258 | V22: 92.06673769 | W22: 91.57380258 | X22: 91.73811428 | Y22: 91.79288485 | Z22: 91.70160057 | AA22: 91.7441999 | AB22: 91.74622844 | AC22: 91.7306763 | AD22: 91.74036822 | AE22: 91.73909099 | AF22: 91.73671184 | AG22: 91.73872368 | AH22: 91.7381755 | AI22: 91.73787034 | AJ22: 91.73825651 | AK22: 91.73810078 | AL22: 91.73807588 | AM22: 91.73814439 | AN22: 91.73810702 | AO22: 91.73810909 | AP22: 91.73812017 | AQ22: 91.73811209 | AR22: 91.73811378
A23: 1600000US2206925 | B23: Benton town, Louisiana | C23: 77.1 | D23: 79.7 | E23: 83.7 | F23: 80.4 | G23: 83.3 | H23: 87.7 | I23: 86.7 | J23: 85.7560263 | K23: 89.85330073 | L23: 91.87757504 | M23: 92.53040394 | N23: 93.97071553 | O23: 95.41102712 | P23: 96.85133871 | Q23: 98.29165029 | R23: 99.73196188 | S23: 100 | T23: 100 | U23: 100 | V23: 100 | W23: 100 | X23: 100 | Y23: 100 | Z23: 100 | AA23: 100 | AB23: 100 | AC23: 100 | AD23: 100 | AE23: 100 | AF23: 100 | AG23: 100 | AH23: 100 | AI23: 100 | AJ23: 100 | AK23: 100 | AL23: 100 | AM23: 100 | AN23: 100 | AO23: 100 | AP23: 100 | AQ23: 100 | AR23: 100
A24: 1600000US2207030 | B24: Bernice town, Louisiana | C24: 75.8 | D24: 79.7 | E24: 78.3 | F24: 78.3 | G24: 75.9 | H24: 74.3 | I24: 78.5 | J24: 72.08510638 | K24: 78.61319967 | L24: 83.01056338 | M24: 78.29132028 | N24: 78.44412634 | O24: 78.5969324 | P24: 78.74973846 | Q24: 78.90254452 | R24: 79.05535058 | S24: 79.20815664 | T24: 79.3609627 | U24: 79.51376876 | V24: 79.66657482 | W24: 79.51376876 | X24: 79.56470411 | Y24: 79.58168257 | Z24: 79.55338515 | AA24: 79.56659061 | AB24: 79.56721944 | AC24: 79.5623984 | AD24: 79.56540282 | AE24: 79.56500689 | AF24: 79.56426937 | AG24: 79.56489302 | AH24: 79.56472309 | AI24: 79.56462849 | AJ24: 79.5647482 | AK24: 79.56469993 | AL24: 79.56469221 | AM24: 79.56471345 | AN24: 79.56470186 | AO24: 79.56470251 | AP24: 79.56470594 | AQ24: 79.56470344 | AR24: 79.56470396
A25: 1600000US2207100 | B25: Berwick town, Louisiana | C25: 73.2 | D25: 68.5 | E25: 71.6 | F25: 75.1 | G25: 69.9 | H25: 73.3 | I25: 75.6 | J25: 71.19234117 | K25: 72.77184886 | L25: 72.43032664 | M25: 73.22070459 | N25: 73.37729603 | O25: 73.53388747 | P25: 73.69047891 | Q25: 73.84707035 | R25: 74.00366179 | S25: 74.16025323 | T25: 74.31684467 | U25: 74.47343611 | V25: 74.63002755 | W25: 74.47343611 | X25: 74.52563326 | Y25: 74.5430323 | Z25: 74.51403389 | AA25: 74.52756648 | AB25: 74.52821089 | AC25: 74.52327042 | AD25: 74.52634927 | AE25: 74.52594353 | AF25: 74.52518774 | AG25: 74.52582684 | AH25: 74.5256527 | AI25: 74.52555576 | AJ25: 74.52567844 | AK25: 74.52562897 | AL25: 74.52562105 | AM25: 74.52564282 | AN25: 74.52563095 | AO25: 74.52563161 | AP25: 74.52563512 | AQ25: 74.52563256 | AR25: 74.5256331
A26: 1600000US2207205 | B26: Bienville village, Louisiana | C26: 76.4 | D26: 72.6 | E26: 70.8 | F26: 72.7 | G26: 83.8 | H26: 78.2 | I26: 80 | J26: 81.3253012 | K26: 81.64556962 | L26: 87.82051282 | M26: 86.36347532 | N26: 87.78790022 | O26: 89.21232513 | P26: 90.63675003 | Q26: 92.06117493 | R26: 93.48559983 | S26: 94.91002473 | T26: 96.33444963 | U26: 97.75887454 | V26: 99.18329944 | W26: 97.75887454 | X26: 98.23368284 | Y26: 98.39195227 | Z26: 98.12816988 | AA26: 98.25126833 | AB26: 98.25713016 | AC26: 98.21218946 | AD26: 98.24019598 | AE26: 98.2365052 | AF26: 98.22963021 | AG26: 98.2354438 | AH26: 98.23385974 | AI26: 98.23297791 | AJ26: 98.23409382 | AK26: 98.23364382 | AL26: 98.23357185 | AM26: 98.23376983 | AN26: 98.23366183 | AO26: 98.23366784 | AP26: 98.23369983 | AQ26: 98.2336765 | AR26: 98.23368139
A27: 1600000US2207730 | B27: Blanchard town, Louisiana | C27: 92.6 | D27: 91 | E27: 88.3 | F27: 90 | G27: 89 | H27: 92.6 | I27: 93.9 | J27: 96.35645303 | K27: 95.01965924 | L27: 93.35494327 | M27: 95.2302512 | N27: 95.77882313 | O27: 96.32739507 | P27: 96.875967 | Q27: 97.42453894 | R27: 97.97311087 | S27: 98.52168281 | T27: 99.07025474 | U27: 99.61882668 | V27: 100 | W27: 99.56302714 | X27: 99.72728461 | Y27: 99.76343725 | Z27: 99.684583 | AA27: 99.72510162 | AB27: 99.72437395 | AC27: 99.71135286 | AD27: 99.72027614 | AE27: 99.71866765 | AF27: 99.71676555 | AG27: 99.71856978 | AH27: 99.71800099 | AI27: 99.71777878 | AJ27: 99.71811652 | AK27: 99.71796543 | AL27: 99.71795357 | AM27: 99.71801184 | AN27: 99.71797695 | AO27: 99.71798079 | AP27: 99.71798986 | AQ27: 99.71798253 | AR27: 99.71798439
A28: 1600000US2208150 | B28: Bogalusa city, Louisiana | C28: 75.5 | D28: 72.9 | E28: 75.3 | F28: 75.7 | G28: 77 | H28: 75.8 | I28: 77.2 | J28: 77.43506494 | K28: 77.00023883 | L28: 78.9067005 | M28: 78.71877713 | N28: 79.16324562 | O28: 79.60771411 | P28: 80.0521826 | Q28: 80.49665109 | R28: 80.94111958 | S28: 81.38558807 | T28: 81.83005656 | U28: 82.27452505 | V28: 82.71899354 | W28: 82.27452505 | X28: 82.42268122 | Y28: 82.4720666 | Z28: 82.38975762 | AA28: 82.42816848 | AB28: 82.42999757 | AC28: 82.41597456 | AD28: 82.42471354 | AE28: 82.42356189 | AF28: 82.42141666 | AG28: 82.4232307 | AH28: 82.42273641 | AI28: 82.42246126 | AJ28: 82.42280946 | AK28: 82.42266904 | AL28: 82.42264658 | AM28: 82.42270836 | AN28: 82.42267466 | AO28: 82.42267654 | AP28: 82.42268652 | AQ28: 82.42267924 | AR28: 82.42268077
A29: 1600000US2208535 | B29: Bonita village, Louisiana | C29: 84.8 | D29: 78.2 | E29: 67.1 | F29: 68.9 | G29: 70.9 | H29: 60 | I29: 60 | J29: 73.18435754 | K29: 71.69811321 | L29: 73.51598174 | M29: 65.68825911 | N29: 64.75342526 | O29: 63.81859142 | P29: 62.88375758 | Q29: 61.94892373 | R29: 61.01408989 | S29: 60.07925605 | T29: 59.1444222 | U29: 58.20958836 | V29: 57.27475451 | W29: 58.20958836 | X29: 57.89797708 | Y29: 57.79410665 | Z29: 57.96722403 | AA29: 57.88643592 | AB29: 57.88258886 | AC29: 57.91208294 | AD29: 57.89370257 | AE29: 57.89612479 | AF29: 57.90063677 | AG29: 57.89682138 | AH29: 57.89786098 | AI29: 57.89843971 | AJ29: 57.89770735 | AK29: 57.89800268 | AL29: 57.89804991 | AM29: 57.89791998 | AN29: 57.89799086 | AO29: 57.89798692 | AP29: 57.89796592 | AQ29: 57.89798123 | AR29: 57.89797802
A30: 1600000US2208920 | B30: Bossier City city, Louisiana | C30: 87.6 | D30: 88.6 | E30: 88.3 | F30: 89.1 | G30: 88.9 | H30: 88.4 | I30: 88.1 | J30: 88.21190481 | K30: 88.39797375 | L30: 87.57707548 | M30: 88.13332939 | N30: 88.09962648 | O30: 88.06592357 | P30: 88.03222066 | Q30: 87.99851775 | R30: 87.96481484 | S30: 87.93111192 | T30: 87.89740901 | U30: 87.8637061 | V30: 87.83000319 | W30: 87.8637061 | X30: 87.8524718 | Y30: 87.84872703 | Z30: 87.85496831 | AA30: 87.85205571 | AB30: 87.85191702 | AC30: 87.85298035 | AD30: 87.85231769 | AE30: 87.85240502 | AF30: 87.85256769 | AG30: 87.85243013 | AH30: 87.85246761 | AI30: 87.85248848 | AJ30: 87.85246207 | AK30: 87.85247272 | AL30: 87.85247442 | AM30: 87.85246974 | AN30: 87.8524723 | AO30: 87.85247215 | AP30: 87.8524714 | AQ30: 87.85247195 | AR30: 87.85247183
A31: 1600000US2209165 | B31: Boyce town, Louisiana | C31: 81 | D31: 79.6 | E31: 79.3 | F31: 77.8 | G31: 78.6 | H31: 80.6 | I31: 81.9 | J31: 82.96164139 | K31: 82.88381743 | L31: 84.92597577 | M31: 83.98810049 | N31: 84.53918359 | O31: 85.09026668 | P31: 85.64134978 | Q31: 86.19243288 | R31: 86.74351597 | S31: 87.29459907 | T31: 87.84568216 | U31: 88.39676526 | V31: 88.94784836 | W31: 88.39676526 | X31: 88.58045963 | Y31: 88.64169108 | Z31: 88.53963866 | AA31: 88.58726312 | AB31: 88.58953095 | AC31: 88.57214424 | AD31: 88.58297944 | AE31: 88.58155155 | AF31: 88.57889174 | AG31: 88.58114091 | AH31: 88.58052807 | AI31: 88.58018691 | AJ31: 88.58061863 | AK31: 88.58044453 | AL31: 88.58041669 | AM31: 88.58049328 | AN31: 88.5804515 | AO31: 88.58045382 | AP31: 88.5804662 | AQ31: 88.58045718 | AR31: 88.58045907
A32: 1600000US2209340 | B32: Breaux Bridge city, Louisiana | C32: 74.1 | D32: 73.6 | E32: 70.6 | F32: 70.5 | G32: 72.5 | H32: 74.1 | I32: 76.4 | J32: 80.01991371 | K32: 82.01568115 | L32: 82.4300275 | M32: 82.30254837 | N32: 83.51636403 | O32: 84.7301797 | P32: 85.94399536 | Q32: 87.15781102 | R32: 88.37162668 | S32: 89.58544234 | T32: 90.799258 | U32: 92.01307366 | V32: 93.22688933 | W32: 92.01307366 | X32: 92.41767888 | Y32: 92.55254729 | Z32: 92.32776661 | AA32: 92.43266426 | AB32: 92.43765939 | AC32: 92.39936342 | AD32: 92.42322902 | AE32: 92.42008395 | AF32: 92.41422546 | AG32: 92.41917948 | AH32: 92.41782963 | AI32: 92.41707819 | AJ32: 92.4180291 | AK32: 92.41764564 | AL32: 92.41758431 | AM32: 92.41775302 | AN32: 92.41766099 | AO32: 92.4176661 | AP32: 92.41769337 | AQ32: 92.41767349 | AR32: 92.41767765
A33: 1600000US2210075 | B33: Broussard city, Louisiana | C33: 85.7 | D33: 84.6 | E33: 86.3 | F33: 87.8 | G33: 87.2 | H33: 90.4 | I33: 91.8 | J33: 91.46535868 | K33: 90.68541301 | L33: 91.50583483 | M33: 93.27490058 | N33: 94.09839875 | O33: 94.92189692 | P33: 95.74539509 | Q33: 96.56889326 | R33: 97.39239143 | S33: 98.21588959 | T33: 99.03938776 | U33: 99.86288593 | V33: 100 | W33: 99.63409123 | X33: 99.83232572 | Y33: 99.82213898 | Z33: 99.76285198 | AA33: 99.80577223 | AB33: 99.79692106 | AC33: 99.78851509 | AD33: 99.79706946 | AE33: 99.79416854 | AF33: 99.79325103 | AG33: 99.79482968 | AH33: 99.79408308 | AI33: 99.7940546 | AJ33: 99.79432245 | AK33: 99.79415338 | AL33: 99.79417681 | AM33: 99.79421755 | AN33: 99.79418258 | AO33: 99.79419231 | AP33: 99.79419748 | AQ33: 99.79419079 | AR33: 99.79419352
A34: 1600000US2210600 | B34: Brusly town, Louisiana | C34: 88.8 | D34: 90.4 | E34: 89.3 | F34: 92.9 | G34: 94.9 | H34: 94.7 | I34: 95.5 | J34: 95.12448133 | K34: 94.50207469 | L34: 93.03030303 | M34: 96.3660078 | N34: 96.99333905 | O34: 97.6206703 | P34: 98.24800155 | Q34: 98.87533281 | R34: 99.50266406 | S34: 100 | T34: 100 | U34: 100 | V34: 100 | W34: 100 | X34: 100 | Y34: 100 | Z34: 100 | AA34: 100 | AB34: 100 | AC34: 100 | AD34: 100 | AE34: 100 | AF34: 100 | AG34: 100 | AH34: 100 | AI34: 100 | AJ34: 100 | AK34: 100 | AL34: 100 | AM34: 100 | AN34: 100 | AO34: 100 | AP34: 100 | AQ34: 100 | AR34: 100
A35: 1600000US2210950 | B35: Bunkie city, Louisiana | C35: 77.3 | D35: 74.7 | E35: 72.7 | F35: 75.6 | G35: 67.2 | H35: 68.5 | I35: 71.9 | J35: 71.51851852 | K35: 74.93055556 | L35: 85.81465373 | M35: 76.10098495 | N35: 76.48000534 | O35: 76.85902574 | P35: 77.23804613 | Q35: 77.61706653 | R35: 77.99608692 | S35: 78.37510731 | T35: 78.75412771 | U35: 79.1331481 | V35: 79.5121685 | W35: =(V35+U35+T35)/3 -> 79.1331481 | X35: 79.25948823 | Y35: 79.30160161 | Z35: 79.23141265 | AA35: 79.2641675 | AB35: 79.26572725 | AC35: 79.25376913 | AD35: 79.2612213 | AE35: 79.26023923 | AF35: 79.25840989 | AG35: 79.2599568 | AH35: 79.25953531 | AI35: 79.25930066 | AJ35: 79.25959759 | AK35: 79.25947785 | AL35: 79.2594587 | AM35: 79.25951138 | AN35: 79.25948265 | AO35: 79.25948424 | AP35: 79.25949276 | AQ35: 79.25948655 | AR35: 79.25948785
A36: 1600000US2211930 | B36: Calvin village, Louisiana | C36: 85.7 | D36: 92 | E36: 93.5 | F36: 95.4 | G36: 96.7 | H36: 95.6 | I36: 94.4 | J36: 92.56756757 | K36: 88.32116788 | L36: 88.42105263 | M36: 91.92682837 | N36: 91.86607374 | O36: 91.80531911 | P36: 91.74456449 | Q36: 91.68380986 | R36: 91.62305523 | S36: 91.56230061 | T36: 91.50154598 | U36: 91.44079136 | V36: 91.38003673 | W36: 91.44079136 | X36: 91.42053981 | Y36: 91.4137893 | Z36: 91.42504016 | AA36: 91.41978976 | AB36: 91.41953974 | AC36: 91.42145655 | AD36: 91.42026202 | AE36: 91.42041944 | AF36: 91.42071267 | AG36: 91.42046471 | AH36: 91.42053227 | AI36: 91.42056988 | AJ36: 91.42052229 | AK36: 91.42054148 | AL36: 91.42054455 | AM36: 91.4205361 | AN36: 91.42054071 | AO36: 91.42054045 | AP36: 91.42053909 | AQ36: 91.42054008 | AR36: 91.42053988
A37: 1600000US2212280 | B37: Campti town, Louisiana | C37: 59.6 | D37: 58.9 | E37: 65.4 | F37: 67.2 | G37: 68.1 | H37: 69 | I37: 74.6 | J37: 82.55639098 | K37: 83.41772152 | L37: 88.2740448 | M37: 89.65722935 | N37: 92.92130456 | O37: 96.18537976 | P37: 99.44945496 | Q37: 100 | R37: 100 | S37: 100 | T37: 100 | U37: 100 | V37: 100 | W37: 100 | X37: 100 | Y37: 100 | Z37: 100 | AA37: 100 | AB37: 100 | AC37: 100 | AD37: 100 | AE37: 100 | AF37: 100 | AG37: 100 | AH37: 100 | AI37: 100 | AJ37: 100 | AK37: 100 | AL37: 100 | AM37: 100 | AN37: 100 | AO37: 100 | AP37: 100 | AQ37: 100 | AR37: 100
A38: 1600000US2212420 | B38: Cankton village, Louisiana | C38: 74.3 | D38: 72.3 | E38: 73.1 | F38: 74.4 | G38: 73.9 | H38: 75.2 | I38: 79.2 | J38: 83.40425532 | K38: 89.17748918 | L38: 87.99076212 | M38: 88.58326933 | N38: 90.45345454 | O38: 92.32363975 | P38: 94.19382496 | Q38: 96.06401018 | R38: 97.93419539 | S38: 99.8043806 | T38: 100 | U38: 100 | V38: 100 | W38: 100 | X38: 100 | Y38: 100 | Z38: 100 | AA38: 100 | AB38: 100 | AC38: 100 | AD38: 100 | AE38: 100 | AF38: 100 | AG38: 100 | AH38: 100 | AI38: 100 | AJ38: 100 | AK38: 100 | AL38: 100 | AM38: 100 | AN38: 100 | AO38: 100 | AP38: 100 | AQ38: 100 | AR38: 100
A39: 1600000US2212665 | B39: Carencro city, Louisiana | C39: 77 | D39: 75.9 | E39: 77.6 | F39: 75.3 | G39: 76.9 | H39: 75.3 | I39: 76 | J39: 77.68700945 | K39: 78.52941176 | L39: 78.86683836 | M39: 78.11307512 | N39: 78.33212042 | O39: 78.55116572 | P39: 78.77021102 | Q39: 78.98925633 | R39: 79.20830163 | S39: 79.42734693 | T39: 79.64639223 | U39: 79.86543753 | V39: 80.08448284 | W39: 79.86543753 | X39: 79.93845263 | Y39: 79.962791 | Z39: 79.92222706 | AA39: 79.9411569 | AB39: 79.94205832 | AC39: 79.93514742 | AD39: 79.93945421 | AE39: 79.93888665 | AF39: 79.93782943 | AG39: 79.93872343 | AH39: 79.93847984 | AI39: 79.93834423 | AJ39: 79.93851583 | AK39: 79.93844664 | AL39: 79.93843557 | AM39: 79.93846601 | AN39: 79.93844941 | AO39: 79.93845033 | AP39: 79.93845525 | AQ39: 79.93845166 | AR39: 79.93845241
A40: 1600000US2213260 | B40: Castor village, Louisiana | C40: 81.2 | D40: 73 | E40: 75 | F40: 78.4 | G40: 78.3 | H40: 62.7 | I40: 67.5 | J40: 65.73033708 | K40: 74 | L40: 75.11520737 | M40: 68.34750617 | N40: 67.48440648 | O40: 66.6213068 | P40: 65.75820711 | Q40: 64.89510742 | R40: 64.03200774 | S40: 63.16890805 | T40: 62.30580837 | U40: 61.44270868 | V40: 60.57960899 | W40: 61.44270868 | X40: 61.15500878 | Y40: 61.05910882 | Z40: 61.21894209 | AA40: 61.14435323 | AB40: 61.14080138 | AC40: 61.16803224 | AD40: 61.15106228 | AE40: 61.15329863 | AF40: 61.15746438 | AG40: 61.15394177 | AH40: 61.1549016 | AI40: 61.15543592 | AJ40: 61.15475976 | AK40: 61.15503242 | AL40: 61.15507603 | AM40: 61.15495607 | AN40: 61.15502151 | AO40: 61.15501787 | AP40: 61.15499848 | AQ40: 61.15501262 | AR40: 61.15500966
A41: 1600000US2213960 | B41: Central city, Louisiana | C41: 91 | D41: 92.2 | E41: 92.9 | F41: 93.5 | G41: 92.9 | H41: 93.6 | I41: 92.9 | J41: 92.69577968 | K41: 92.26392585 | L41: 92.57040966 | M41: 93.06834706 | N41: 93.14386261 | O41: 93.21937817 | P41: 93.29489372 | Q41: 93.37040927 | R41: 93.44592483 | S41: 93.52144038 | T41: 93.59695593 | U41: 93.67247149 | V41: 93.74798704 | W41: 93.67247149 | X41: 93.69764334 | Y41: 93.70603395 | Z41: 93.69204959 | AA41: 93.69857563 | AB41: 93.69888639 | AC41: 93.69650387 | AD41: 93.69798863 | AE41: 93.69779296 | AF41: 93.69742849 | AG41: 93.69773669 | AH41: 93.69765272 | AI41: 93.69760597 | AJ41: 93.69766513 | AK41: 93.69764127 | AL41: 93.69763745 | AM41: 93.69764795 | AN41: 93.69764222 | AO41: 93.69764254 | AP41: 93.69764424 | AQ41: 93.697643 | AR41: 93.69764326
A42: 1600000US2214450 | B42: Chataignier village, Louisiana | C42: 72.4 | D42: 66.8 | E42: 69.5 | F42: 66.8 | G42: 68 | H42: 72.8 | I42: 68.8 | J42: 62.76150628 | K42: 64.67391304 | L42: 72.72727273 | M42: 67.36528178 | N42: 67.15419316 | O42: 66.94310453 | P42: 66.73201591 | Q42: 66.52092729 | R42: 66.30983866 | S42: 66.09875004 | T42: 65.88766142 | U42: 65.6765728 | V42: 65.46548417 | W42: 65.6765728 | X42: 65.60620992 | Y42: 65.58275563 | Z42: 65.62184612 | AA42: 65.60360389 | AB42: 65.60273521 | AC42: 65.60939507 | AD42: 65.60524472 | AE42: 65.60579167 | AF42: 65.60681049 | AG42: 65.60594896 | AH42: 65.60618371 | AI42: 65.60631439 | AJ42: 65.60614902 | AK42: 65.6062157 | AL42: 65.60622637 | AM42: 65.60619703 | AN42: 65.60621303 | AO42: 65.60621214 | AP42: 65.6062074 | AQ42: 65.60621086 | AR42: 65.60621014
A43: 1600000US2214485 | B43: Chatham town, Louisiana | C43: 84.5 | D43: 84.2 | E43: 82 | F43: 78.7 | G43: 79.1 | H43: 72.9 | I43: 71.6 | J43: 67.30769231 | K43: 63.79310345 | L43: 67.3040153 | M43: 61.85469188 | N43: 59.43909384 | O43: 57.0234958 | P43: 54.60789776 | Q43: 52.19229972 | R43: 49.77670168 | S43: 47.36110364 | T43: 44.9455056 | U43: 42.52990756 | V43: 40.11430952 | W43: 42.52990756 | X43: 41.72470821 | Y43: 41.45630843 | Z43: 41.9036414 | AA43: 41.69488602 | AB43: 41.68494528 | AC43: 41.76115757 | AD43: 41.71366296 | AE43: 41.71992194 | AF43: 41.73158082 | AG43: 41.7217219 | AH43: 41.72440822 | AI43: 41.72590365 | AJ43: 41.72401126 | AK43: 41.72477437 | AL43: 41.72489643 | AM43: 41.72456069 | AN43: 41.72474383 | AO43: 41.72473365 | AP43: 41.72467939 | AQ43: 41.72471895 | AR43: 41.72471066
A44: 1600000US2214660 | B44: Cheneyville town, Louisiana | C44: 50.8 | D44: 51.5 | E44: 55.3 | F44: 59.8 | G44: 70.3 | H44: 72.1 | I44: 69.8 | J44: 68.90951276 | K44: 68.82845188 | L44: 74.33264887 | M44: 78.59841358 | N44: 81.2222958 | O44: 83.84617803 | P44: 86.47006025 | Q44: 89.09394247 | R44: 91.71782469 | S44: 94.34170692 | T44: 96.96558914 | U44: 99.58947136 | V44: 100 | W44: 98.85168683 | X44: 99.48038607 | Y44: 99.4440243 | Z44: 99.25869907 | AA44: 99.39436981 | AB44: 99.36569773 | AC44: 99.33958887 | AD44: 99.36655214 | AE44: 99.35727958 | AF44: 99.35447353 | AG44: 99.35943508 | AH44: 99.35706273 | AI44: 99.35699044 | AJ44: 99.35782942 | AK44: 99.3572942 | AL44: 99.35737135 | AM44: 99.35749832 | AN44: 99.35738796 | AO44: 99.35741921 | AP44: =(AO44+AN44+AM44)/3 -> 99.35743516 | AQ44: 99.35741411 | AR44: 99.35742283
A45: 1600000US2215290 | B45: Choudrant village, Louisiana | C45: 81.6 | D45: 83.5 | E45: 85.6 | F45: 89.8 | G45: 94.4 | H45: 94 | I45: 97.4 | J45: 95.96678529 | K45: 93.59430605 | L45: 93.40813464 | M45: 99.29916528 | N45: 100 | O45: 100 | P45: 100 | Q45: 100 | R45: 100 | S45: 100 | T45: 100 | U45: 100 | V45: 100 | W45: 100 | X45: 100 | Y45: 100 | Z45: 100 | AA45: 100 | AB45: 100 | AC45: 100 | AD45: 100 | AE45: 100 | AF45: 100 | AG45: 100 | AH45: 100 | AI45: 100 | AJ45: 100 | AK45: 100 | AL45: 100 | AM45: 100 | AN45: 100 | AO45: 100 | AP45: 100 | AQ45: 100 | AR45: 100
A46: 1600000US2215465 | B46: Church Point town, Louisiana | C46: 64.1 | D46: 62.5 | E46: 62.9 | F46: 61.5 | G46: 64.1 | H46: 68 | I46: 73.4 | J46: 76.28240485 | K46: 78.83253046 | L46: 76.43948296 | M46: 79.8686113 | N46: 81.88009666 | O46: 83.89158202 | P46: 85.90306737 | Q46: 87.91455273 | R46: 89.92603809 | S46: 91.93752345 | T46: 93.94900881 | U46: 95.96049417 | V46: 97.97197953 | W46: 95.96049417 | X46: 96.63098929 | Y46: 96.85448766 | Z46: 96.48199037 | AA46: 96.65582244 | AB46: 96.66410016 | AC46: 96.60063766 | AD46: 96.64018675 | AE46: 96.63497485 | AF46: 96.62526642 | AG46: 96.63347601 | AH46: 96.63123909 | AI46: 96.62999384 | AJ46: 96.63156965 | AK46: 96.63093419 | AL46: 96.63083256 | AM46: 96.63111213 | AN46: 96.63095963 | AO46: 96.63096811 | AP46: 96.63101329 | AQ46: 96.63098034 | AR46: 96.63098725
A47: 1600000US2215745 | B47: Clarence village, Louisiana | C47: 81 | D47: 81.4 | E47: 85.5 | F47: 87.5 | G47: 86.5 | H47: 87.4 | I47: 87.8 | J47: 85.91549296 | K47: 84.97652582 | L47: 86.53846154 | M47: 88.07835801 | N47: 88.5556871 | O47: 89.03301619 | P47: 89.51034527 | Q47: 89.98767436 | R47: 90.46500345 | S47: 90.94233253 | T47: 91.41966162 | U47: 91.89699071 | V47: 92.3743198 | W47: 91.89699071 | X47: 92.0561004 | Y47: 92.10913697 | Z47: 92.02074269 | AA47: 92.06199336 | AB47: 92.06395767 | AC47: 92.04889791 | AD47: 92.05828298 | AE47: 92.05704619 | AF47: 92.05474236 | AG47: 92.05669051 | AH47: 92.05615968 | AI47: 92.05586418 | AJ47: 92.05623813 | AK47: 92.05608733 | AL47: 92.05606321 | AM47: 92.05612956 | AN47: 92.05609337 | AO47: 92.05609538 | AP47: 92.0561061 | AQ47: 92.05609828 | AR47: 92.05609992
A48: 1600000US2215780 | B48: Clarks village, Louisiana | C48: 74.8 | D48: 72.5 | E48: 63.5 | F48: 57.8 | G48: 49.8 | H48: 52.6 | I48: 48 | J48: 51.6509434 | K48: 56.18247299 | L48: 58.8761175 | M48: 47.12485623 | N48: 45.04374766 | O48: 42.96263909 | P48: 40.88153051 | Q48: 38.80042194 | R48: 36.71931337 | S48: 34.63820479 | T48: 32.55709622 | U48: 30.47598765 | V48: 28.39487907 | W48: 30.47598765 | X48: 29.78228479 | Y48: 29.5510505 | Z48: 29.93644098 | AA48: 29.75659209 | AB48: 29.74802786 | AC48: 29.81368698 | AD48: 29.77276897 | AE48: 29.77816127 | AF48: 29.78820574 | AG48: 29.77971199 | AH48: 29.78202633 | AI48: 29.78331469 | AJ48: 29.78168434 | AK48: 29.78234179 | AL48: 29.78244694 | AM48: 29.78215769 | AN48: 29.78231547 | AO48: 29.7823067 | AP48: 29.78225995 | AQ48: 29.78229404 | AR48: 29.7822869
A49: 1600000US2215850 | B49: Clayton town, Louisiana | C49: 45.2 | D49: 54.7 | E49: 54.4 | F49: 55 | G49: 58.5 | H49: 66.2 | I49: 62.1 | J49: 74.87562189 | K49: 73.0952381 | L49: 61.63141994 | M49: 74.17114651 | N49: 76.64404079 | O49: 79.11693506 | P49: 81.58982934 | Q49: 84.06272362 | R49: 86.53561789 | S49: 89.00851217 | T49: 91.48140645 | U49: 93.95430072 | V49: 96.427195 | W49: 93.95430072 | X49: 94.77859881 | Y49: 95.05336484 | Z49: 94.59542146 | AA49: 94.80912837 | AB49: 94.81930489 | AC49: 94.74128491 | AD49: 94.78990606 | AE49: 94.78349862 | AF49: 94.77156319 | AG49: 94.78165596 | AH49: 94.77890592 | AI49: 94.77737503 | AJ49: 94.7793123 | AK49: 94.77853108 | AL49: 94.77840614 | AM49: 94.77874984 | AN49: 94.77856235 | AO49: 94.77857278 | AP49: 94.77862832 | AQ49: 94.77858782 | AR49: 94.77859631
A50: 1600000US2215990 | B50: Clinton town, Louisiana | C50: 83.2 | D50: 84.9 | E50: 85.5 | F50: 84.2 | G50: 85.2 | H50: 88.5 | I50: 90.3 | J50: 89.5716946 | K50: 90.46529367 | L50: 90.40444092 | M50: 92.08265948 | N50: 92.96602613 | O50: 93.84939278 | P50: 94.73275943 | Q50: 95.61612608 | R50: 96.49949273 | S50: 97.38285937 | T50: 98.26622602 | U50: 99.14959267 | V50: 100 | W50: 99.13860623 | X50: 99.42939963 | Y50: 99.52266862 | Z50: 99.36355816 | AA50: 99.43854214 | AB50: 99.44158964 | AC50: 99.41456331 | AD50: 99.43156503 | AE50: 99.42923933 | AF50: 99.42512256 | AG50: 99.42864231 | AH50: 99.42766806 | AI50: 99.42714431 | AJ50: 99.42781823 | AK50: 99.42754353 | AL50: 99.42750202 | AM50: 99.42762126 | AN50: 99.42755561 | AO50: 99.42755963 | AP50: 99.42757883 | AQ50: 99.42756469 | AR50: 99.42756772
A51: 1600000US2216375 | B51: Colfax town, Louisiana | C51: 70.7 | D51: 72.9 | E51: 75.6 | F51: 74 | G51: 74.1 | H51: 77.8 | I51: 80.6 | J51: 86.11491108 | K51: 83.32318929 | L51: 86.94895592 | M51: 88.05128842 | N51: 89.84084892 | O51: 91.63040943 | P51: 93.41996994 | Q51: 95.20953045 | R51: 96.99909095 | S51: 98.78865146 | T51: 100 | U51: 100 | V51: 100 | W51: 100 | X51: 100 | Y51: 100 | Z51: 100 | AA51: 100 | AB51: 100 | AC51: 100 | AD51: 100 | AE51: 100 | AF51: 100 | AG51: 100 | AH51: 100 | AI51: 100 | AJ51: 100 | AK51: 100 | AL51: 100 | AM51: 100 | AN51: 100 | AO51: 100 | AP51: 100 | AQ51: 100 | AR51: 100
A52: 1600000US2216655 | B52: Collinston village, Louisiana | C52: 81.7 | D52: 78 | E52: 82.7 | F52: 79.9 | G52: 67.9 | H52: 70.7 | I52: 75.3 | J52: 74.61538462 | K52: 77.92207792 | L52: 79.0960452 | M52: 74.26987995 | N52: 73.81288526 | O52: 73.35589056 | P52: 72.89889587 | Q52: 72.44190117 | R52: 71.98490648 | S52: 71.52791178 | T52: 71.07091708 | U52: 70.61392239 | V52: 70.15692769 | W52: =(V52+U52+T52)/3 -> 70.61392239 | X52: 70.46159082 | Y52: 70.41081364 | Z52: 70.49544228 | AA52: 70.45594892 | AB52: 70.45406828 | AC52: 70.46848649 | AD52: 70.45950123 | AE52: 70.46068533 | AF52: 70.46289102 | AG52: 70.46102586 | AH52: 70.46153407 | AI52: 70.46181698 | AJ52: 70.46145897 | AK52: 70.46160334 | AL52: 70.46162643 | AM52: 70.46156291 | AN52: 70.46159756 | AO52: 70.46159564 | AP52: 70.46158537 | AQ52: 70.46159286 | AR52: 70.46159129
A53: 1600000US2216830 | B53: Columbia town, Louisiana | C53: 59 | D53: 64.9 | E53: 76 | F53: 79.7 | G53: 84.1 | H53: 81.1 | I53: 83.7 | J53: 75.76601671 | K53: 82.1529745 | L53: 79.55182073 | M53: 87.04932425 | N53: 88.94973208 | O53: 90.85013991 | P53: 92.75054773 | Q53: 94.65095556 | R53: 96.55136339 | S53: 98.45177122 | T53: 100 | U53: 100 | V53: 100 | W53: 100 | X53: 100 | Y53: 100 | Z53: 100 | AA53: 100 | AB53: 100 | AC53: 100 | AD53: 100 | AE53: 100 | AF53: 100 | AG53: 100 | AH53: 100 | AI53: 100 | AJ53: 100 | AK53: 100 | AL53: 100 | AM53: 100 | AN53: 100 | AO53: 100 | AP53: 100 | AQ53: 100 | AR53: 100
A54: 1600000US2217215 | B54: Converse village, Louisiana | C54: 69.7 | D54: 65.1 | E54: 64.6 | F54: 71.6 | G54: 75.3 | H54: 78.3 | I54: 78.4 | J54: 71.85628743 | K54: 73.7012987 | L54: 74.51737452 | M54: 77.74905935 | N54: 78.7384345 | O54: 79.72780964 | P54: 80.71718478 | Q54: 81.70655993 | R54: 82.69593507 | S54: 83.68531022 | T54: 84.67468536 | U54: 85.6640605 | V54: 86.65343565 | W54: 85.6640605 | X54: 85.99385222 | Y54: 86.10378279 | Z54: 85.92056517 | AA54: 86.00606673 | AB54: 86.01013823 | AC54: 85.97892337 | AD54: 85.99837611 | AE54: 85.99581257 | AF54: 85.99103735 | AG54: 85.99507534 | AH54: 85.99397509 | AI54: 85.99336259 | AJ54: 85.99413768 | AK54: 85.99382512 | AL54: 85.99377513 | AM54: 85.99391264 | AN54: 85.99383763 | AO54: 85.9938418 | AP54: 85.99386402 | AQ54: 85.99384782 | AR54: 85.99385121
A55: 1600000US2217915 | B55: Cotton Valley town, Louisiana | C55: 68.2 | D55: 65.7 | E55: 64.4 | F55: 67.2 | G55: 70.2 | H55: 71.5 | I55: 73 | J55: 67.64044944 | K55: 67.64295676 | L55: 64.97829233 | M55: 68.69642237 | N55: 68.8146501 | O55: 68.93287783 | P55: 69.05110556 | Q55: 69.16933329 | R55: 69.28756102 | S55: 69.40578875 | T55: 69.52401648 | U55: 69.64224421 | V55: 69.76047194 | W55: 69.64224421 | X55: 69.68165346 | Y55: 69.69478987 | Z55: 69.67289585 | AA55: 69.68311306 | AB55: 69.68359959 | AC55: 69.6798695 | AD55: 69.68219405 | AE55: 69.68188771 | AF55: 69.68131709 | AG55: 69.68179962 | AH55: 69.68166814 | AI55: 69.68159495 | AJ55: 69.68168757 | AK55: 69.68165022 | AL55: 69.68164424 | AM55: 69.68166068 | AN55: 69.68165171 | AO55: 69.68165221 | AP55: 69.68165487 | AQ55: 69.68165293 | AR55: 69.68165334
A56: 1600000US2217880 | B56: Cottonport town, Louisiana | C56: 57.7 | D56: 63.5 | E56: 60.3 | F56: 62 | G56: 62.3 | H56: 70.2 | I56: 65.3 | J56: 69.13996627 | K56: 66.97952218 | L56: 62.54266212 | M56: 68.32756325 | N56: 69.1150811 | O56: 69.90259895 | P56: 70.69011681 | Q56: 71.47763466 | R56: 72.26515251 | S56: 73.05267036 | T56: 73.84018822 | U56: 74.62770607 | V56: 75.41522392 | W56: 74.62770607 | X56: 74.89021202 | Y56: 74.977714 | Z56: 74.83187736 | AA56: 74.89993446 | AB56: 74.90317528 | AC56: 74.87832903 | AD56: 74.89381292 | AE56: 74.89177241 | AF56: 74.88797146 | AG56: 74.8911856 | AH56: 74.89030982 | AI56: 74.88982229 | AJ56: 74.89043924 | AK56: 74.89019045 | AL56: 74.89015066 | AM56: 74.89026012 | AN56: 74.89020041 | AO56: 74.89020373 | AP56: 74.89022142 | AQ56: 74.89020852 | AR56: 74.89021122
A57: 1600000US2218055 | B57: Coushatta town, Louisiana | C57: 63.3 | D57: 60.9 | E57: 61.2 | F57: 61 | G57: 61.9 | H57: 63.1 | I57: 67.6 | J57: 70.42334096 | K57: 69.43062465 | L57: 75.75406032 | M57: 73.42472327 | N57: 74.87270885 | O57: 76.32069443 | P57: 77.76868 | Q57: 79.21666558 | R57: 80.66465116 | S57: 82.11263674 | T57: 83.56062231 | U57: 85.00860789 | V57: 86.45659347 | W57: 85.00860789 | X57: 85.49126975 | Y57: 85.65215704 | Z57: 85.38401156 | AA57: 85.50914612 | AB57: 85.5151049 | AC57: 85.46942086 | AD57: 85.49789063 | AE57: 85.4941388 | AF57: 85.4871501 | AG57: 85.49305984 | AH57: 85.49144958 | AI57: 85.49055317 | AJ57: 85.49168753 | AK57: 85.49123009 | AL57: 85.49115693 | AM57: 85.49135818 | AN57: 85.4912484 | AO57: 85.49125451 | AP57: 85.49128703 | AQ57: 85.49126331 | AR57: 85.49126828
A58: 1600000US2218125 | B58: Covington city, Louisiana | C58: 85.8 | D58: 88.9 | E58: 87.3 | F58: 83.4 | G58: 82 | H58: 81.3 | I58: 82.8 | J58: 82.3069157 | K58: 82.76896164 | L58: 84.95020288 | M58: 81.55157922 | N58: 81.07866489 | O58: 80.60575056 | P58: 80.13283623 | Q58: 79.6599219 | R58: 79.18700758 | S58: 78.71409325 | T58: 78.24117892 | U58: 77.76826459 | V58: 77.29535026 | W58: 77.76826459 | X58: 77.61062648 | Y58: 77.55808045 | Z58: 77.64565717 | AA58: 77.60478803 | AB58: 77.60284189 | AC58: 77.61776236 | AD58: 77.60846409 | AE58: 77.60968945 | AF58: 77.61197197 | AG58: 77.61004184 | AH58: 77.61056775 | AI58: 77.61086052 | AJ58: 77.61049004 | AK58: 77.61063944 | AL58: 77.61066333 | AM58: 77.6105976 | AN58: 77.61063346 | AO58: 77.61063146 | AP58: 77.61062084 | AQ58: 77.61062859 | AR58: 77.61062696
A59: 1600000US2218295 | B59: Creola village, Louisiana | C59: 91.4 | D59: 86.1 | E59: 85.5 | F59: 85.8 | G59: 87.7 | H59: 86.1 | I59: 83.2 | J59: 86.55462185 | K59: 78.89908257 | L59: 83.96226415 | M59: 81.47249901 | N59: 80.7362994 | O59: 80.00009979 | P59: 79.26390018 | Q59: 78.52770058 | R59: 77.79150097 | S59: 77.05530136 | T59: 76.31910175 | U59: 75.58290214 | V59: 74.84670253 | W59: 75.58290214 | X59: 75.33750227 | Y59: 75.25570231 | Z59: 75.39203558 | AA59: 75.32841339 | AB59: 75.32538376 | AC59: 75.34861091 | AD59: 75.33413602 | AE59: 75.33604356 | AF59: 75.33959683 | AG59: 75.33659214 | AH59: 75.33741084 | AI59: 75.3378666 | AJ59: 75.33728986 | AK59: 75.33752244 | AL59: 75.33755963 | AM59: 75.33745731 | AN59: 75.33751313 | AO59: 75.33751002 | AP59: 75.33749349 | AQ59: 75.33750554 | AR59: 75.33750302
A60: 1600000US2218650 | B60: Crowley city, Louisiana | C60: 66 | D60: 65.6 | E60: 67.9 | F60: 66.6 | G60: 64.7 | H60: 64.8 | I60: 66 | J60: 70.8402147 | K60: 69.87411991 | L60: 72.15449347 | M60: 70.72389461 | N60: 71.31971494 | O60: 71.91553527 | P60: 72.51135559 | Q60: 73.10717592 | R60: 73.70299625 | S60: 74.29881658 | T60: 74.89463691 | U60: 75.49045723 | V60: 76.08627756 | W60: 75.49045723 | X60: 75.68906401 | Y60: 75.75526627 | Z60: 75.64492917 | AA60: 75.69641982 | AB60: 75.69887175 | AC60: 75.68007358 | AD60: 75.69178838 | AE60: 75.69024457 | AF60: 75.68736884 | AG60: 75.6898006 | AH60: 75.689138 | AI60: 75.68876915 | AJ60: 75.68923592 | AK60: 75.68904769 | AL60: 75.68901759 | AM60: 75.6891004 | AN60: 75.68905522 | AO60: 75.68905774 | AP60: 75.68907112 | AQ60: 75.68906136 | AR60: 75.68906341
A61: 1600000US2218790 | B61: Cullen town, Louisiana | C61: 60.3 | D61: 57.2 | E61: 56.8 | F61: 58.4 | G61: 53.9 | H61: 54.1 | I61: 63.6 | J61: 61.19402985 | K61: 62.26650062 | L61: 65.68742656 | M61: 63.40221212 | N61: 64.1399242 | O61: 64.87763628 | P61: 65.61534835 | Q61: 66.35306043 | R61: 67.09077251 | S61: 67.82848458 | T61: 68.56619666 | U61: 69.30390874 | V61: 70.04162081 | W61: 69.30390874 | X61: 69.54981276 | Y61: 69.63178077 | Z61: 69.49516742 | AA61: 69.55892032 | AB61: 69.56195617 | AC61: 69.5386813 | AD61: 69.55318593 | AE61: 69.55127447 | AF61: 69.5477139 | AG61: 69.55072477 | AH61: 69.54990438 | AI61: 69.54944768 | AJ61: 69.55002561 | AK61: 69.54979256 | AL61: 69.54975528 | AM61: 69.54985782 | AN61: 69.54980188 | AO61: 69.54980499 | AP61: 69.54982157 | AQ61: 69.54980948 | AR61: 69.54981201
A62: 1600000US2220155 | B62: Delcambre town, Louisiana | C62: 61.2 | D62: 67.3 | E62: 70.2 | F62: 70.4 | G62: 75.3 | H62: 74.6 | I62: 72.2 | J62: 75.5186722 | K62: 77.27848101 | L62: 79.14923291 | M62: 81.07083276 | N62: 82.66286806 | O62: 84.25490335 | P62: 85.84693865 | Q62: 87.43897395 | R62: 89.03100925 | S62: 90.62304455 | T62: 92.21507985 | U62: 93.80711515 | V62: 95.39915045 | W62: 93.80711515 | X62: 94.33779358 | Y62: 94.51468639 | Z62: 94.21986504 | AA62: 94.35744834 | AB62: 94.36399992 | AC62: 94.3137711 | AD62: 94.34507312 | AE62: 94.34094805 | AF62: 94.33326409 | AG62: 94.33976175 | AH62: 94.3379913 | AI62: 94.33700571 | AJ62: 94.33825292 | AK62: 94.33774998 | AL62: 94.33766954 | AM62: 94.33789081 | AN62: 94.33777011 | AO62: 94.33777682 | AP62: 94.33781258 | AQ62: 94.3377865 | AR62: 94.33779197
A63: 1600000US2220190 | B63: Delhi town, Louisiana | C63: 73 | D63: 75 | E63: 76.4 | F63: 77.4 | G63: 83.4 | H63: 85.9 | I63: 84.6 | J63: 81.30224373 | K63: 82.54319894 | L63: 81.264637 | M63: 85.94085277 | N63: 87.0062791 | O63: 88.07170543 | P63: 89.13713176 | Q63: 90.20255809 | R63: 91.26798442 | S63: 92.33341075 | T63: 93.39883708 | U63: 94.4642634 | V63: 95.52968973 | W63: 94.4642634 | X63: 94.81940551 | Y63: 94.93778622 | Z63: 94.74048504 | AA63: 94.83255893 | AB63: 94.8369434 | AC63: 94.80332912 | AD63: 94.82427715 | AE63: 94.82151655 | AF63: 94.81637427 | AG63: 94.82072266 | AH63: 94.81953783 | AI63: 94.81887825 | AJ63: 94.81971291 | AK63: 94.81937633 | AL63: 94.8193225 | AM63: 94.81947058 | AN63: 94.81938981 | AO63: 94.8193943 | AP63: 94.81941823 | AQ63: 94.81940078 | AR63: 94.81940443
A64: 1600000US2220330 | B64: Delta village, Louisiana | C64: 64.4 | D64: 51.4 | E64: 66.7 | F64: 78.9 | G64: 75.3 | H64: 85.3 | I64: 81.2 | J64: 77.27272727 | K64: 72.5 | L64: 68.86227545 | M64: 80.77097079 | N64: 82.33232906 | O64: 83.89368734 | P64: 85.45504561 | Q64: 87.01640389 | R64: 88.57776216 | S64: 90.13912044 | T64: 91.70047871 | U64: 93.26183699 | V64: 94.82319526 | W64: 93.26183699 | X64: 93.78228975 | Y64: 93.955774 | Z64: 93.66663358 | AA64: 93.80156577 | AB64: 93.80799112 | AC64: 93.75873016 | AD64: 93.78942902 | AE64: 93.78538343 | AF64: 93.77784753 | AG64: 93.78421999 | AH64: 93.78248365 | AI64: 93.78151706 | AJ64: 93.78274023 | AK64: 93.78224698 | AL64: 93.78216809 | AM64: 93.7823851 | AN64: 93.78226673 | AO64: 93.78227331 | AP64: 93.78230838 | AQ64: 93.7822828 | AR64: 93.78228816
A65: 1600000US2220435 | B65: Denham Springs city, Louisiana | C65: 82 | D65: 82.2 | E65: 80.9 | F65: 83.4 | G65: 80.3 | H65: 83.5 | I65: 80.1 | J65: 83.2781457 | K65: 82.86976865 | L65: 88.11578808 | M65: 84.8304103 | N65: 85.22387213 | O65: 85.61733396 | P65: 86.01079579 | Q65: 86.40425761 | R65: 86.79771944 | S65: 87.19118127 | T65: 87.5846431 | U65: 87.97810493 | V65: 88.37156676 | W65: 87.97810493 | X65: 88.10925887 | Y65: 88.15297685 | Z65: 88.08011355 | AA65: 88.11411642 | AB65: 88.11573561 | AC65: 88.10332186 | AD65: 88.11105796 | AE65: 88.11003848 | AF65: 88.10813943 | AG65: 88.10974529 | AH65: 88.10930774 | AI65: 88.10906415 | AJ65: 88.10937239 | AK65: 88.10924809 | AL65: 88.10922821 | AM65: 88.1092829 | AN65: 88.10925307 | AO65: 88.10925473 | AP65: 88.10926357 | AQ65: 88.10925712 | AR65: 88.10925847
A66: 1600000US2220575 | B66: DeQuincy city, Louisiana | C66: 72.4 | D66: 77.6 | E66: 80 | F66: 79.8 | G66: 82.5 | H66: 74.7 | I66: 76.4 | J66: 80.36734694 | K66: 76.89295039 | L66: 78.22680412 | M66: 78.93299763 | N66: 79.12286808 | O66: 79.31273853 | P66: 79.50260899 | Q66: 79.69247944 | R66: 79.88234989 | S66: 80.07222034 | T66: 80.26209079 | U66: 80.45196124 | V66: 80.6418317 | W66: 80.45196124 | X66: 80.5152514 | Y66: 80.53634811 | Z66: 80.50118692 | AA66: 80.51759548 | AB66: 80.51837683 | AC66: 80.51238641 | AD66: 80.51611957 | AE66: 80.51562761 | AF66: 80.5147112 | AG66: 80.51548612 | AH66: 80.51527498 | AI66: 80.51515743 | AJ66: 80.51530618 | AK66: 80.5152462 | AL66: 80.5152366 | AM66: 80.51526299 | AN66: 80.5152486 | AO66: 80.5152494 | AP66: 80.51525366 | AQ66: 80.51525055 | AR66: 80.5152512
A67: 1600000US2220610 | B67: DeRidder city, Louisiana | C67: 84.8 | D67: 85.7 | E67: 85.8 | F67: 86 | G67: 86.3 | H67: 85 | I67: 85.8 | J67: 85.12635379 | K67: 85.87723424 | L67: 86.2698318 | M67: 85.97403848 | N67: 86.02980148 | O67: 86.08556448 | P67: 86.14132748 | Q67: 86.19709048 | R67: 86.25285348 | S67: 86.30861647 | T67: 86.36437947 | U67: 86.42014247 | V67: 86.47590547 | W67: 86.42014247 | X67: 86.43873014 | Y67: 86.44492603 | Z67: 86.43459955 | AA67: 86.43941857 | AB67: 86.43964805 | AC67: 86.43788872 | AD67: 86.43898511 | AE67: 86.43884063 | AF67: 86.43857149 | AG67: 86.43879908 | AH67: 86.43873706 | AI67: 86.43870254 | AJ67: 86.43874623 | AK67: 86.43872861 | AL67: 86.43872579 | AM67: 86.43873355 | AN67: 86.43872932 | AO67: 86.43872955 | AP67: 86.43873081 | AQ67: 86.43872989 | AR67: 86.43873008
A68: 1600000US2221135 | B68: Dixie Inn village, Louisiana | C68: 80.3 | D68: 82.1 | E68: 81.4 | F68: 89.4 | G68: 85.6 | H68: 87.7 | I68: 92.2 | J68: 90.83665339 | K68: 93.89671362 | L68: 93.39622642 | M68: 96.28716934 | N68: 97.85157116 | O68: 99.41597298 | P68: 100 | Q68: 100 | R68: 100 | S68: 100 | T68: 100 | U68: 100 | V68: 100 | W68: 100 | X68: 100 | Y68: 100 | Z68: 100 | AA68: 100 | AB68: 100 | AC68: 100 | AD68: 100 | AE68: 100 | AF68: 100 | AG68: 100 | AH68: 100 | AI68: 100 | AJ68: 100 | AK68: 100 | AL68: 100 | AM68: 100 | AN68: 100 | AO68: 100 | AP68: 100 | AQ68: 100 | AR68: 100
A69: 1600000US2221170 | B69: Dodson village, Louisiana | C69: 74.8 | D69: 72.2 | E69: 68.4 | F69: 70.8 | G69: 68.7 | H69: 66.3 | I69: 71.1 | J69: 76.88679245 | K69: 80.66914498 | L69: 82.01754386 | M69: 78.69321053 | N69: 79.69427642 | O69: 80.69534231 | P69: 81.6964082 | Q69: 82.69747409 | R69: 83.69853998 | S69: 84.69960587 | T69: 85.70067176 | U69: 86.70173765 | V69: 87.70280354 | W69: =(V69+U69+T69)/3 -> 86.70173765 | X69: 87.03542628 | Y69: 87.14665582 | Z69: 86.96127325 | AA69: 87.04778511 | AB69: 87.05190473 | AC69: 87.02032103 | AD69: 87.04000362 | AE69: 87.03740979 | AF69: 87.03257815 | AG69: 87.03666386 | AH69: 87.0355506 | AI69: 87.03493087 | AJ69: 87.03571511 | AK69: 87.03539886 | AL69: 87.03534828 | AM69: 87.03548741 | AN69: 87.03541152 | AO69: 87.03541574 | AP69: 87.03543822 | AQ69: 87.03542183 | AR69: 87.03542526
A70: 1600000US2221240 | B70: Donaldsonville city, Louisiana | C70: 69.3 | D70: 73.5 | E70: 74.1 | F70: 78.2 | G70: 79.3 | H70: 77.6 | I70: 74.5 | J70: 77.55949529 | K70: 76.27006454 | L70: 76.91032654 | M70: 78.80335087 | N70: 79.36323491 | O70: 79.92311896 | P70: 80.483003 | Q70: 81.04288704 | R70: 81.60277108 | S70: 82.16265513 | T70: 82.72253917 | U70: 83.28242321 | V70: 83.84230726 | W70: 83.28242321 | X70: 83.46905123 | Y70: 83.53126056 | Z70: 83.42757833 | AA70: 83.47596338 | AB70: 83.47826742 | AC70: 83.46060304 | AD70: 83.47161128 | AE70: 83.47016058 | AF70: 83.4674583 | AG70: 83.46974339 | AH70: 83.46912076 | AI70: 83.46877415 | AJ70: 83.46921277 | AK70: 83.46903589 | AL70: 83.4690076 | AM70: 83.46908542 | AN70: 83.46904297 | AO70: 83.46904533 | AP70: 83.46905791 | AQ70: 83.46904874 | AR70: 83.46905066
A71: 1600000US2221450 | B71: Downsville village, Louisiana | C71: 97 | D71: 96.3 | E71: 95.1 | F71: 96.2 | G71: 96.8 | H71: 95.7 | I71: 97.2 | J71: 96.55172414 | K71: 97.59036145 | L71: 98.01980198 | M71: 97.55850104 | N71: 97.72437601 | O71: 97.89025097 | P71: 98.05612593 | Q71: 98.22200089 | R71: 98.38787585 | S71: 98.55375081 | T71: 98.71962577 | U71: 98.88550074 | V71: 99.0513757 | W71: 98.88550074 | X71: 98.94079239 | Y71: 98.95922294 | Z71: 98.92850535 | AA71: 98.94284023 | AB71: 98.94352284 | AC71: 98.93828947 | AD71: 98.94155085 | AE71: 98.94112105 | AF71: 98.94032046 | AG71: 98.94099745 | AH71: 98.94081299 | AI71: 98.9407103 | AJ71: 98.94084025 | AK71: 98.94078785 | AL71: 98.94077946 | AM71: 98.94080252 | AN71: 98.94078994 | AO71: 98.94079064 | AP71: 98.94079437 | AQ71: 98.94079165 | AR71: 98.94079222
A72: 1600000US2221590 | B72: Doyline village, Louisiana | C72: 89 | D72: 89.1 | E72: 85.9 | F72: 85 | G72: 82.3 | H72: 80.6 | I72: 85.1 | J72: 88.03278689 | K72: 89.38848921 | L72: 88.95027624 | M72: 86.69835007 | N72: 86.76402186 | O72: 86.82969365 | P72: 86.89536543 | Q72: 86.96103722 | R72: 87.02670901 | S72: 87.0923808 | T72: 87.15805259 | U72: 87.22372438 | V72: 87.28939616 | W72: 87.22372438 | X72: 87.24561497 | Y72: 87.25291184 | Z72: 87.2407504 | AA72: 87.24642574 | AB72: 87.24669599 | AC72: 87.24462404 | AD72: 87.24591525 | AE72: 87.24574509 | AF72: 87.24542813 | AG72: 87.24569616 | AH72: 87.24562313 | AI72: 87.24558247 | AJ72: 87.24563392 | AK72: 87.24561317 | AL72: 87.24560986 | AM72: 87.24561898 | AN72: 87.245614 | AO72: 87.24561428 | AP72: 87.24561576 | AQ72: 87.24561468 | AR72: 87.24561491
A73: 1600000US2221765 | B73: Dry Prong village, Louisiana | C73: 91.6 | D73: 90.3 | E73: 90.6 | F73: 85.1 | G73: 84 | H73: 83.9 | I73: 85.1 | J73: 86.58536585 | K73: 85 | L73: 81.98924731 | M73: 81.62512982 | N73: 80.75379682 | O73: 79.88246382 | P73: 79.01113082 | Q73: 78.13979782 | R73: 77.26846482 | S73: 76.39713182 | T73: 75.52579882 | U73: 74.65446582 | V73: 73.78313282 | W73: 74.65446582 | X73: 74.36402149 | Y73: 74.26720671 | Z73: 74.42856467 | AA73: 74.35326429 | AB73: 74.34967856 | AC73: 74.37716918 | AD73: 74.36003734 | AE73: 74.36229503 | AF73: 74.36650051 | AG73: 74.36294429 | AH73: 74.36391328 | AI73: 74.3644527 | AJ73: 74.36377009 | AK73: 74.36404535 | AL73: 74.36408938 | AM73: 74.36396827 | AN73: 74.36403434 | AO73: 74.36403066 | AP73: 74.36401109 | AQ73: 74.36402536 | AR73: 74.36402237
A74: 1600000US2221800 | B74: Dubach town, Louisiana | C74: 80.6 | D74: 80.9 | E74: 81.3 | F74: 77.7 | G74: 79.8 | H74: 83.2 | I74: 82 | J74: 85.22727273 | K74: 84.62427746 | L74: 84.55790785 | M74: 85.24519502 | N74: 85.83687669 | O74: 86.42855837 | P74: 87.02024004 | Q74: 87.61192172 | R74: 88.20360339 | S74: 88.79528507 | T74: 89.38696675 | U74: 89.97864842 | V74: 90.5703301 | W74: 89.97864842 | X74: 90.17587565 | Y74: 90.24161805 | Z74: 90.13204737 | AA74: 90.18318036 | AB74: 90.18561526 | AC74: 90.16694766 | AD74: 90.1785811 | AE74: 90.17704801 | AF74: 90.17419226 | AG74: 90.17660712 | AH74: 90.17594913 | AI74: 90.17558283 | AJ74: 90.17604636 | AK74: 90.17585944 | AL74: 90.17582955 | AM74: 90.17591178 | AN74: 90.17586692 | AO74: 90.17586942 | AP74: 90.17588271 | AQ74: 90.17587302 | AR74: 90.17587505
A75: 1600000US2221835 | B75: Dubberly village, Louisiana | C75: 85.8 | D75: 81.1 | E75: 82.9 | F75: 80.6 | G75: 85.5 | H75: 78 | I75: 82.5 | J75: 82.8125 | K75: 85.8490566 | L75: 87.56218905 | M75: 84.82456116 | N75: 85.10859508 | O75: 85.39262901 | P75: 85.67666293 | Q75: 85.96069686 | R75: 86.24473078 | S75: 86.52876471 | T75: 86.81279864 | U75: 87.09683256 | V75: 87.38086649 | W75: 87.09683256 | X75: 87.19151054 | Y75: 87.22306986 | Z75: 87.17047099 | AA75: 87.19501713 | AB75: 87.19618599 | AC75: 87.1872247 | AD75: 87.19280927 | AE75: 87.19207332 | AF75: 87.19070243 | AG75: 87.19186168 | AH75: 87.19154581 | AI75: 87.19136997 | AJ75: 87.19159249 | AK75: 87.19150276 | AL75: 87.19148841 | AM75: 87.19152788 | AN75: 87.19150635 | AO75: 87.19150755 | AP75: 87.19151393 | AQ75: 87.19150927 | AR75: 87.19151025
A76: 1600000US2222255 | B76: Duson town, Louisiana | C76: 58.8 | D76: 58.4 | E76: 62.2 | F76: 62.9 | G76: 65.7 | H76: 62.7 | I76: 62.2 | J76: 65.22781775 | K76: 70.14802632 | L76: 68.23529412 | M76: 69.55754448 | N76: 70.63144097 | O76: 71.70533745 | P76: 72.77923394 | Q76: 73.85313042 | R76: 74.92702691 | S76: 76.00092339 | T76: 77.07481988 | U76: 78.14871636 | V76: 79.22261285 | W76: 78.14871636 | X76: 78.50668186 | Y76: 78.62600369 | Z76: 78.42713397 | AA76: 78.51993984 | AB76: 78.52435917 | AC76: 78.49047766 | AD76: 78.51159222 | AE76: 78.50880968 | AF76: 78.50362652 | AG76: 78.50800947 | AH76: 78.50681523 | AI76: 78.50615041 | AJ76: 78.5069917 | AK76: 78.50665245 | AL76: 78.50659819 | AM76: 78.50674744 | AN76: 78.50666603 | AO76: 78.50667055 | AP76: 78.50669467 | AQ76: 78.50667708 | AR76: 78.50668077
A77: 1600000US2222465 | B77: East Hodge village, Louisiana | C77: 80.2 | D77: 81 | E77: 91.6 | F77: 90.3 | G77: 90.2 | H77: 90.4 | I77: 89.9 | J77: 84.47488584 | K77: 82.62910798 | L77: 80.78431373 | M77: 85.48339771 | N77: 85.36240988 | O77: 85.24142206 | P77: 85.12043423 | Q77: 84.9994464 | R77: 84.87845858 | S77: 84.75747075 | T77: 84.63648292 | U77: 84.5154951 | V77: 84.39450727 | W77: 84.5154951 | X77: 84.47516582 | Y77: 84.46172273 | Z77: 84.48412788 | AA77: 84.47367214 | AB77: 84.47317425 | AC77: 84.47699143 | AD77: 84.47461261 | AE77: 84.4749261 | AF77: 84.47551004 | AG77: 84.47501625 | AH77: 84.4751508 | AI77: 84.4752257 | AJ77: 84.47513091 | AK77: 84.47516914 | AL77: 84.47517525 | AM77: 84.47515843 | AN77: 84.47516761 | AO77: 84.4751671 | AP77: 84.47516438 | AQ77: 84.47516636 | AR77: 84.47516594
A78: 1600000US2222850 | B78: Edgefield village, Louisiana | C78: 83.4 | D78: 74.9 | E78: 78.2 | F78: 77.8 | G78: 78.9 | H78: 76.9 | I78: 77.4 | J78: 91.60839161 | K78: 88.63636364 | L78: 87.5 | M78: 88.08769231 | N78: 89.28100445 | O78: 90.47431659 | P78: 91.66762873 | Q78: 92.86094088 | R78: 94.05425302 | S78: 95.24756516 | T78: 96.4408773 | U78: 97.63418945 | V78: 98.82750159 | W78: 97.63418945 | X78: 98.03196016 | Y78: 98.1645504 | Z78: 97.94356667 | AA78: 98.04669241 | AB78: 98.05160316 | AC78: 98.01395408 | AD78: 98.03741655 | AE78: 98.0343246 | AF78: 98.02856507 | AG78: 98.03343541 | AH78: 98.03210836 | AI78: 98.03136961 | AJ78: 98.03230446 | AK78: 98.03192748 | AL78: 98.03186718 | AM78: 98.03203304 | AN78: 98.03194257 | AO78: 98.0319476 | AP78: 98.0319744 | AQ78: 98.03195486 | AR78: 98.03195895
A79: 1600000US2223235 | B79: Elizabeth town, Louisiana | C79: 74 | D79: 74.1 | E79: 77.3 | F79: 77.2 | G79: 74.4 | H79: 82.2 | I79: 84.7 | J79: 82.82051282 | K79: 79.27927928 | L79: 78.3625731 | M79: 82.88359242 | N79: 83.69220258 | O79: 84.50081275 | P79: 85.30942291 | Q79: 86.11803307 | R79: 86.92664324 | S79: 87.7352534 | T79: 88.54386356 | U79: 89.35247373 | V79: 90.16108389 | W79: 89.35247373 | X79: 89.62201045 | Y79: 89.71185602 | Z79: 89.5621134 | AA79: 89.63199329 | AB79: 89.6353209 | AC79: 89.6098092 | AD79: 89.62570779 | AE79: 89.62361263 | AF79: 89.61970987 | AG79: 89.6230101 | AH79: 89.62211087 | AI79: 89.62161028 | AJ79: 89.62224375 | AK79: 89.6219883 | AL79: 89.62194744 | AM79: 89.62205983 | AN79: 89.62199852 | AO79: 89.62200193 | AP79: 89.6220201 | AQ79: 89.62200685 | AR79: 89.62200963
A80: 1600000US2223620 | B80: Elton town, Louisiana | C80: 71.9 | D80: 62.8 | E80: 71.7 | F80: 73.8 | G80: 77.5 | H80: 73.3 | I80: 74.3 | J80: 68.90927625 | K80: 72.11028632 | L80: 70.73954984 | M80: 72.97505571 | N80: 73.20580925 | O80: 73.43656279 | P80: 73.66731633 | Q80: 73.89806987 | R80: 74.12882341 | S80: 74.35957695 | T80: 74.59033049 | U80: 74.82108403 | V80: 75.05183757 | W80: 74.82108403 | X80: 74.89800187 | Y80: 74.92364115 | Z80: 74.88090902 | AA80: 74.90085068 | AB80: 74.90180028 | AC80: 74.89451999 | AD80: 74.89905699 | AE80: 74.89845909 | AF80: 74.89734536 | AG80: 74.89828714 | AH80: 74.89803053 | AI80: 74.89788768 | AJ80: 74.89806845 | AK80: 74.89799555 | AL80: 74.89798389 | AM80: 74.89801597 | AN80: 74.89799847 | AO80: 74.89799944 | AP80: 74.89800463 | AQ80: 74.89800085 | AR80: 74.89800164
A81: 1600000US2224145 | B81: Epps village, Louisiana | C81: 47.3 | D81: 59.5 | E81: 53.8 | F81: 58.7 | G81: 54.7 | H81: 59.9 | I81: 59.7 | J81: 60.8974359 | K81: 61.83465459 | L81: 63.16455696 | M81: 64.71002389 | N81: 65.93918009 | O81: 67.1683363 | P81: 68.39749251 | Q81: 69.62664872 | R81: 70.85580492 | S81: 72.08496113 | T81: 73.31411734 | U81: 74.54327355 | V81: 75.77242975 | W81: 74.54327355 | X81: 74.95299228 | Y81: 75.08956519 | Z81: 74.86194367 | AA81: 74.96816705 | AB81: 74.97322531 | AC81: 74.93444534 | AD81: 74.95861257 | AE81: 74.95542774 | AF81: 74.94949522 | AG81: 74.95451184 | AH81: 74.95314493 | AI81: 74.952384 | AJ81: 74.95334692 | AK81: 74.95295862 | AL81: 74.95289651 | AM81: =(AL81+AK81+AJ81)/3 -> 74.95306735 | AN81: 74.95297416 | AO81: 74.95297934 | AP81: 74.95300695 | AQ81: 74.95298682 | AR81: 74.95299104
A82: 1600000US2224180 | B82: Erath town, Louisiana | C82: 81.8 | D82: 79.8 | E82: 79 | F82: 78.8 | G82: 74.7 | H82: 75.3 | I82: 73.9 | J82: 72.0177665 | K82: 73.93822394 | L82: 76.84906795 | M82: 72.12377289 | N82: 71.30800327 | O82: 70.49223364 | P82: 69.67646401 | Q82: 68.86069439 | R82: 68.04492476 | S82: 67.22915513 | T82: 66.41338551 | U82: 65.59761588 | V82: 64.78184625 | W82: 65.59761588 | X82: 65.32569267 | Y82: 65.2350516 | Z82: 65.38612005 | AA82: 65.31562144 | AB82: 65.31226436 | AC82: 65.33800195 | AD82: 65.32196258 | AE82: 65.3240763 | AF82: 65.32801361 | AG82: 65.32468417 | AH82: 65.32559136 | AI82: 65.32609638 | AJ82: 65.3254573 | AK82: 65.32571501 | AL82: 65.32575623 | AM82: 65.32564285 | AN82: 65.3257047 | AO82: 65.32570126 | AP82: 65.32568293 | AQ82: 65.3256963 | AR82: 65.3256935
A83: 1600000US2224215 | B83: Eros town, Louisiana | C83: 45.7 | D83: 37.4 | E83: 40.4 | F83: 59.2 | G83: 60.4 | H83: 73.9 | I83: 69.9 | J83: 56.48854962 | K83: 55.33333333 | L83: 54.26829268 | M83: 66.25537475 | N83: 68.24743969 | O83: 70.23950463 | P83: 72.23156958 | Q83: 74.22363452 | R83: 76.21569946 | S83: 78.20776441 | T83: 80.19982935 | U83: 82.19189429 | V83: 84.18395923 | W83: 82.19189429 | X83: 82.85591594 | Y83: 83.07725649 | Z83: 82.70835557 | AA83: 82.88050933 | AB83: 82.88870713 | AC83: 82.82585735 | AD83: 82.8650246 | AE83: 82.85986303 | AF83: 82.85024833 | AG83: 82.85837865 | AH83: 82.85616334 | AI83: 82.8549301 | AJ83: 82.8564907 | AK83: 82.85586138 | AL83: 82.85576073 | AM83: 82.8560376 | AN83: 82.85588657 | AO83: 82.85589497 | AP83: 82.85593971 | AQ83: 82.85590708 | AR83: 82.85591392
A84: 1600000US2224460 | B84: Estherwood village, Louisiana | C84: 75.4 | D84: 76.4 | E84: 73.3 | F84: 71.6 | G84: 68.8 | H84: 74.2 | I84: 73.6 | J84: 78.26086957 | K84: 75.67567568 | L84: 74.52531646 | M84: 74.95158369 | N84: 75.09256506 | O84: 75.23354643 | P84: 75.37452779 | Q84: 75.51550916 | R84: 75.65649053 | S84: 75.7974719 | T84: 75.93845326 | U84: 76.07943463 | V84: 76.220416 | W84: 76.07943463 | X84: 76.12642842 | Y84: 76.14209302 | Z84: 76.11598536 | AA84: 76.12816893 | AB84: 76.1287491 | AC84: 76.12430113 | AD84: 76.12707306 | AE84: 76.12670776 | AF84: 76.12602732 | AG84: 76.12660271 | AH84: 76.12644593 | AI84: 76.12635865 | AJ84: 76.1264691 | AK84: 76.12642456 | AL84: 76.12641744 | AM84: 76.12643703 | AN84: 76.12642634 | AO84: 76.12642694 | AP84: 76.1264301 | AQ84: 76.12642779 | AR84: 76.12642828
A85: 1600000US2224565 | B85: Eunice city, Louisiana | C85: 65.6 | D85: 67.6 | E85: 69.8 | F85: 69.7 | G85: 69.2 | H85: 72.5 | I85: 71.2 | J85: 73.28213955 | K85: 72.55059643 | L85: 71.94312796 | M85: 74.23602054 | N85: 74.94482675 | O85: 75.65363296 | P85: 76.36243917 | Q85: 77.07124538 | R85: 77.78005159 | S85: 78.48885779 | T85: 79.197664 | U85: 79.90647021 | V85: 80.61527642 | W85: 79.90647021 | X85: 80.14273895 | Y85: 80.22149519 | Z85: 80.09023478 | AA85: 80.15148964 | AB85: 80.15440654 | AC85: 80.13204366 | AD85: 80.14597995 | AE85: 80.14414338 | AF85: 80.14072233 | AG85: 80.14361522 | AH85: =(AG85+AF85+AE85)/3 -> 80.14282698 | AI85: 80.14238817 | AJ85: 80.14294346 | AK85: 80.14271953 | AL85: 80.14268372 | AM85: 80.14278224 | AN85: 80.1427285 | AO85: 80.14273149 | AP85: 80.14274741 | AQ85: 80.1427358 | AR85: 80.14273823
A86: 1600000US2224775 | B86: Evergreen town, Louisiana | C86: 73.9 | D86: 75 | E86: 69.5 | F86: 62.2 | G86: 60.9 | H86: 48.6 | I86: 54.3 | J86: 58.30388693 | K86: 60.29411765 | L86: 68.16608997 | M86: 54.89884505 | N86: 53.40474243 | O86: 51.91063981 | P86: 50.41653719 | Q86: 48.92243457 | R86: 47.42833195 | S86: 45.93422933 | T86: 44.44012671 | U86: 42.9460241 | V86: 41.45192148 | W86: =(V86+U86+T86)/3 -> 42.9460241 | X86: 42.44798989 | Y86: 42.28197849 | Z86: 42.55866416 | AA86: 42.42954418 | AB86: 42.42339561 | AC86: 42.47053465 | AD86: 42.44115814 | AE86: 42.44502947 | AF86: 42.45224075 | AG86: 42.44614279 | AH86: 42.44780434 | AI86: 42.44872929 | AJ86: 42.44755881 | AK86: 42.44803081 | AL86: 42.4481063 | AM86: 42.44789864 | AN86: 42.44801192 | AO86: 42.44800562 | AP86: 42.44797206 | AQ86: 42.44799653 | AR86: 42.4479914
A87: 1600000US2225160 | B87: Farmerville town, Louisiana | C87: 75.1 | D87: 67.6 | E87: 74.5 | F87: 77.6 | G87: 80.8 | H87: 79.4 | I87: 84.2 | J87: 79.16970138 | K87: 76.60818713 | L87: 75 | M87: 80.46131608 | N87: 81.0910483 | O87: 81.72078053 | P87: 82.35051275 | Q87: 82.98024497 | R87: 83.6099772 | S87: 84.23970942 | T87: 84.86944164 | U87: 85.49917387 | V87: 86.12890609 | W87: 85.49917387 | X87: 85.70908461 | Y87: 85.77905486 | Z87: 85.66243778 | AA87: 85.71685908 | AB87: 85.71945057 | AC87: 85.69958248 | AD87: 85.71196404 | AE87: 85.71033236 | AF87: 85.70729296 | AG87: 85.70986312 | AH87: 85.70916282 | AI87: 85.70877297 | AJ87: 85.7092663 | AK87: 85.70906736 | AL87: 85.70903554 | AM87: 85.70912307 | AN87: 85.70907532 | AO87: 85.70907798 | AP87: 85.70909212 | AQ87: 85.70908181 | AR87: 85.70908397
A88: 1600000US2225335 | B88: Fenton village, Louisiana | C88: 76.2 | D88: 78.2 | E88: 69.8 | F88: 75.4 | G88: 71.3 | H88: 79.4 | I88: 82.7 | J88: 81.29770992 | K88: 80.60344828 | L88: 79.43925234 | M88: 81.88290634 | N88: 82.69179094 | O88: 83.50067553 | P88: 84.30956013 | Q88: 85.11844473 | R88: 85.92732933 | S88: 86.73621392 | T88: 87.54509852 | U88: 88.35398312 | V88: 89.16286772 | W88: 88.35398312 | X88: 88.62361132 | Y88: 88.71348738 | Z88: 88.56369394 | AA88: 88.63359755 | AB88: 88.63692629 | AC88: 88.61140593 | AD88: 88.62730992 | AE88: 88.62521405 | AF88: 88.62130996 | AG88: 88.62461131 | AH88: 88.62371177 | AI88: 88.62321102 | AJ88: 88.6238447 | AK88: 88.62358916 | AL88: 88.62354829 | AM88: 88.62366072 | AN88: 88.62359939 | AO88: 88.6236028 | AP88: 88.62362097 | AQ88: 88.62360772 | AR88: 88.6236105
A89: 1600000US2225440 | B89: Ferriday town, Louisiana | C89: 61.1 | D89: 56.3 | E89: 58 | F89: 60.6 | G89: 68.2 | H89: 74.6 | I89: 77.6 | J89: 74.01229148 | K89: 76.32027257 | L89: 79.37164117 | M89: 83.34535839 | N89: 86.024438 | O89: 88.70351761 | P89: 91.38259723 | Q89: 94.06167684 | R89: 96.74075645 | S89: 99.41983606 | T89: 100 | U89: 100 | V89: 100 | W89: 100 | X89: 100 | Y89: 100 | Z89: 100 | AA89: 100 | AB89: 100 | AC89: 100 | AD89: 100 | AE89: 100 | AF89: 100 | AG89: 100 | AH89: 100 | AI89: 100 | AJ89: 100 | AK89: 100 | AL89: 100 | AM89: 100 | AN89: 100 | AO89: 100 | AP89: 100 | AQ89: 100 | AR89: 100
A90: 1600000US2225615 | B90: Fisher village, Louisiana | C90: 81.5 | D90: 84.8 | E90: 79.6 | F90: 76.7 | G90: 67.3 | H90: 72.4 | I90: 75.8 | J90: 78.46889952 | K90: 78.60465116 | L90: 85.02024291 | M90: 77.52135409 | N90: 77.43080404 | O90: 77.340254 | P90: 77.24970395 | Q90: 77.1591539 | R90: 77.06860385 | S90: 76.9780538 | T90: 76.88750375 | U90: 76.7969537 | V90: 76.70640366 | W90: 76.7969537 | X90: 76.76677035 | Y90: 76.75670924 | Z90: 76.77347777 | AA90: 76.76565245 | AB90: 76.76527982 | AC90: 76.76813668 | AD90: 76.76635632 | AE90: 76.76659094 | AF90: 76.76702798 | AG90: 76.76665841 | AH90: 76.76675911 | AI90: 76.76681517 | AJ90: 76.76674423 | AK90: 76.76677283 | AL90: 76.76677741 | AM90: 76.76676482 | AN90: 76.76677169 | AO90: 76.76677131 | AP90: 76.76676927 | AQ90: 76.76677076 | AR90: 76.76677045
A91: 1600000US2225860 | B91: Florien village, Louisiana | C91: 77.9 | D91: 78.6 | E91: 77 | F91: 73 | G91: 75.9 | H91: 88.4 | I91: 86.1 | J91: 82.75 | K91: 81.09339408 | L91: 80.85106383 | M91: 84.31155689 | N91: 85.06648618 | O91: 85.82141547 | P91: 86.57634476 | Q91: 87.33127405 | R91: 88.08620335 | S91: 88.84113264 | T91: 89.59606193 | U91: 90.35099122 | V91: 91.10592051 | W91: 90.35099122 | X91: 90.60263432 | Y91: 90.68651535 | Z91: 90.54671363 | AA91: 90.61195443 | AB91: 90.61506114 | AC91: 90.59124306 | AD91: 90.60608621 | AE91: 90.60413014 | AF91: 90.60048647 | AG91: 90.60356761 | AH91: 90.60272807 | AI91: 90.60226072 | AJ91: 90.60285213 | AK91: 90.60261364 | AL91: 90.6025755 | AM91: 90.60268042 | AN91: 90.60262319 | AO91: 90.60262637 | AP91: 90.60264332 | AQ91: 90.60263096 | AR91: 90.60263355
A92: 1600000US2226140 | B92: Folsom village, Louisiana | C92: 87.4 | D92: 84.6 | E92: 86 | F92: 86.3 | G92: 81.2 | H92: 83.5 | I92: 80.7 | J92: 79.59183673 | K92: 80.96054889 | L92: 84.6969697 | M92: 80.28346064 | N92: 79.69955611 | O92: 79.11565158 | P92: 78.53174706 | Q92: 77.94784253 | R92: 77.363938 | S92: 76.78003348 | T92: 76.19612895 | U92: 75.61222443 | V92: 75.0283199 | W92: 75.61222443 | X92: 75.41758958 | Y92: 75.3527113 | Z92: 75.46084177 | AA92: 75.41038089 | AB92: 75.40797799 | AC92: 75.42640021 | AD92: 75.41491969 | AE92: 75.41643263 | AF92: 75.41925085 | AG92: 75.41686772 | AH92: 75.41751707 | AI92: 75.41787855 | AJ92: 75.41742111 | AK92: 75.41760558 | AL92: 75.41763508 | AM92: 75.41755392 | AN92: 75.41759819 | AO92: 75.41759573 | AP92: 75.41758261 | AQ92: 75.41759218 | AR92: 75.41759017
A93: 1600000US2226280 | B93: Fordoche town, Louisiana | C93: 60.6 | D93: 66.4 | E93: 69.7 | F93: 71.2 | G93: 76.9 | H93: 75.8 | I93: 79.3 | J93: 77.08894879 | K93: 75.99469496 | L93: 70.33248082 | M93: 79.49494366 | N93: 80.79736751 | O93: 82.09979137 | P93: 83.40221522 | Q93: 84.70463908 | R93: 86.00706293 | S93: 87.30948679 | T93: 88.61191064 | U93: 89.91433449 | V93: 91.21675835 | W93: 89.91433449 | X93: 90.34847578 | Y93: 90.49318954 | Z93: 90.25199994 | AA93: 90.36455509 | AB93: 90.36991486 | AC93: 90.32882329 | AD93: 90.35443108 | AE93: 90.35105641 | AF93: 90.34477026 | AG93: 90.35008592 | AH93: 90.34863753 | AI93: 90.34783123 | AJ93: 90.34885156 | AK93: 90.34844011 | AL93: 90.3483743 | AM93: 90.34855532 | AN93: 90.34845658 | AO93: 90.34846207 | AP93: 90.34849132 | AQ93: 90.34846999 | AR93: 90.34847446
A94: 1600000US2226420 | B94: Forest Hill village, Louisiana | C94: 58 | D94: 51.2 | E94: 54.7 | F94: 63.8 | G94: 72.9 | H94: 74.8 | I94: 76 | J94: 74.4813278 | K94: 69.37901499 | L94: 72.01426025 | M94: 79.75372984 | N94: 82.12214249 | O94: 84.49055513 | P94: 86.85896777 | Q94: 89.22738042 | R94: 91.59579306 | S94: 93.9642057 | T94: 96.33261835 | U94: 98.70103099 | V94: 100 | W94: 98.34454978 | X94: 99.01519359 | Y94: 99.11991446 | Z94: 98.82655261 | AA94: 98.98722022 | AB94: 98.97789576 | AC94: 98.9305562 | AD94: 98.96522406 | AE94: 98.95789201 | AF94: 98.95122409 | AG94: 98.95811338 | AH94: 98.95574316 | AI94: 98.95502688 | AJ94: 98.95629447 | AK94: 98.95568817 | AL94: 98.95566984 | AM94: 98.95588416 | AN94: 98.95574739 | AO94: 98.95576713 | AP94: 98.95579956 | AQ94: 98.95577136 | AR94: 98.95577935
A95: 1600000US2226350 | B95: Forest village, Louisiana | C95: 75.2 | D95: 75.9 | E95: 79.1 | F95: 73.5 | G95: 73.7 | H95: 75.3 | I95: 74.4 | J95: 75.43859649 | K95: 76.49769585 | L95: 81.01265823 | M95: 77.42125431 | N95: 77.67877417 | O95: 77.93629403 | P95: 78.1938139 | Q95: 78.45133376 | R95: 78.70885362 | S95: 78.96637349 | T95: 79.22389335 | U95: 79.48141321 | V95: 79.73893308 | W95: 79.48141321 | X95: 79.56725317 | Y95: 79.59586649 | Z95: 79.54817762 | AA95: 79.57043243 | AB95: 79.57149218 | AC95: 79.56336741 | AD95: 79.56843067 | AE95: 79.56776342 | AF95: 79.5665205 | AG95: 79.56757153 | AH95: 79.56728515 | AI95: 79.56712573 | AJ95: 79.56732747 | AK95: 79.56724612 | AL95: 79.5672331 | AM95: 79.5672689 | AN95: 79.56724937 | AO95: 79.56725046 | AP95: 79.56725624 | AQ95: 79.56725202 | AR95: 79.56725291
A96: 1600000US2227155 | B96: Franklin city, Louisiana | C96: 69.7 | D96: 72.9 | E96: 75.5 | F96: 76.7 | G96: 78.5 | H96: 78.9 | I96: 80 | J96: 81.13963226 | K96: 82.79569892 | L96: 83.8863463 | M96: 85.8503401 | N96: 87.27728052 | O96: 88.70422095 | P96: 90.13116138 | Q96: 91.55810181 | R96: 92.98504223 | S96: 94.41198266 | T96: 95.83892309 | U96: 97.26586351 | V96: 98.69280394 | W96: 97.26586351 | X96: 97.74151032 | Y96: 97.90005926 | Z96: 97.63581103 | AA96: 97.75912687 | AB96: 97.76499905 | AC96: 97.71997899 | AD96: 97.74803497 | AE96: 97.74433767 | AF96: 97.73745054 | AG96: 97.74327439 | AH96: 97.74168754 | AI96: 97.74080416 | AJ96: 97.74192203 | AK96: 97.74147124 | AL96: 97.74139914 | AM96: 97.74159747 | AN96: 97.74148929 | AO96: 97.7414953 | AP96: 97.74152735 | AQ96: 97.74150398 | AR96: 97.74150888
A97: 1600000US2227190 | B97: Franklinton town, Louisiana | C97: 71.5 | D97: 78.6 | E97: 78 | F97: 76.2 | G97: 74.5 | H97: 74.5 | I97: 70.6 | J97: 72.09743752 | K97: 75.10822511 | L97: 78.69918699 | M97: 74.78173317 | N97: 74.74559648 | O97: 74.70945979 | P97: 74.6733231 | Q97: 74.63718641 | R97: 74.60104973 | S97: 74.56491304 | T97: 74.52877635 | U97: 74.49263966 | V97: 74.45650297 | W97: 74.49263966 | X97: 74.48059409 | Y97: 74.47657891 | Z97: 74.48327089 | AA97: 74.48014796 | AB97: 74.47999925 | AC97: 74.48113937 | AD97: 74.48042886 | AE97: 74.48052249 | AF97: 74.48069691 | AG97: 74.48054942 | AH97: 74.48058961 | AI97: 74.48061198 | AJ97: 74.48058367 | AK97: 74.48059508 | AL97: 74.48059691 | AM97: 74.48059189 | AN97: 74.48059463 | AO97: 74.48059448 | AP97: 74.48059366 | AQ97: 74.48059426 | AR97: 74.48059413
A98: 1600000US2227435 | B98: French Settlement village, Louisiana | C98: 76.9 | D98: 78.2 | E98: 84.3 | F98: 86.9 | G98: 89.8 | H98: 89.6 | I98: 86.7 | J98: 83.49007315 | K98: 84.84076433 | L98: 85.22895126 | M98: 88.48252145 | N98: 89.18916556 | O98: 89.89580966 | P98: 90.60245377 | Q98: 91.30909787 | R98: 92.01574198 | S98: 92.72238608 | T98: 93.42903019 | U98: 94.13567429 | V98: 94.8423184 | W98: 94.13567429 | X98: 94.37122233 | Y98: 94.44973834 | Z98: 94.31887832 | AA98: 94.37994633 | AB98: 94.38285433 | AC98: 94.36055966 | AD98: 94.37445344 | AE98: 94.37262248 | AF98: 94.36921186 | AG98: 94.37209592 | AH98: 94.37131009 | AI98: 94.37087262 | AJ98: 94.37142621 | AK98: 94.37120297 | AL98: 94.37116727 | AM98: 94.37126548 | AN98: 94.37121191 | AO98: 94.37121489 | AP98: 94.37123076 | AQ98: 94.37121919 | AR98: 94.37122161
A99: 1600000US2228660 | B99: Georgetown village, Louisiana | C99: 79.2 | D99: 79.2 | E99: 86 | F99: 85.8 | G99: 84.5 | H99: 82.7 | I99: 92.1 | J99: 83.89830508 | K99: 84.61538462 | L99: 89.57528958 | M99: 89.35479206 | N99: 90.19040917 | O99: 91.02602629 | P99: 91.8616434 | Q99: 92.69726052 | R99: 93.53287763 | S99: 94.36849475 | T99: 95.20411186 | U99: 96.03972897 | V99: 96.87534609 | W99: 96.03972897 | X99: 96.31826801 | Y99: 96.41111436 | Z99: 96.25637045 | AA99: 96.32858427 | AB99: 96.33202303 | AC99: 96.30565925 | AD99: 96.32208885 | AE99: 96.31992371 | AF99: 96.3158906 | AG99: 96.31930105 | AH99: 96.31837179 | AI99: 96.31785448 | AJ99: 96.31850911 | AK99: 96.31824513 | AL99: 96.31820291 | AM99: 96.31831905 | AN99: 96.31825569 | AO99: 96.31825921 | AP99: 96.31827798 | AQ99: 96.3182643 | AR99: 96.31826717
A100: 1600000US2228835 | B100: Gibsland town, Louisiana | C100: 83.1 | D100: 80.2 | E100: 83.3 | F100: 83 | G100: 86.1 | H100: 88.8 | I100: 88.4 | J100: 86.82432432 | K100: 83.39920949 | L100: 82.38993711 | M100: 86.30219782 | N100: 86.62053432 | O100: 86.93887082 | P100: 87.25720732 | Q100: 87.57554381 | R100: 87.89388031 | S100: 88.21221681 | T100: 88.5305533 | U100: 88.8488898 | V100: 89.1672263 | W100: 88.8488898 | X100: 88.95500197 | Y100: 88.99037269 | Z100: 88.93142148 | AA100: 88.95893205 | AB100: 88.96024207 | AC100: 88.95019853 | AD100: 88.95645755 | AE100: 88.95563272 | AF100: 88.95409627 | AG100: 88.95539551 | AH100: 88.9550415 | AI100: 88.95484443 | AJ100: 88.95509381 | AK100: 88.95499325 | AL100: 88.95497716 | AM100: 88.95502141 | AN100: 88.95499727 | AO100: 88.95499861 | AP100: 88.95500576 | AQ100: 88.95500055 | AR100: 88.95500164
A101: 1600000US2228940 | B101: Gilbert village, Louisiana | C101: 69.7 | D101: 70 | E101: 65.9 | F101: 72.7 | G101: 67.8 | H101: 71.7 | I101: 68.2 | J101: 70.80745342 | K101: 71.50537634 | L101: 71.60194175 | M101: 71.41122306 | N101: 71.66935868 | O101: 71.9274943 | P101: 72.18562992 | Q101: 72.44376554 | R101: 72.70190116 | S101: 72.96003678 | T101: 73.21817239 | U101: 73.47630801 | V101: 73.73444363 | W101: 73.47630801 | X101: 73.56235322 | Y101: 73.59103496 | Z101: 73.54323206 | AA101: 73.56554008 | AB101: 73.56660237 | AC101: 73.55845817 | AD101: 73.56353354 | AE101: 73.56286469 | AF101: 73.5616188 | AG101: 73.56267234 | AH101: 73.56238528 | AI101: 73.56222547 | AJ101: 73.5624277 | AK101: 73.56234615 | AL101: 73.56233311 | AM101: 73.56236899 | AN101: 73.56234941 | AO101: 73.5623505 | AP101: 73.5623563 | AQ101: 73.56235207 | AR101: 73.56235296
A102: 1600000US2229010 | B102: Gilliam village, Louisiana | C102: 61.4 | D102: 68.1 | E102: 66.9 | F102: 75.7 | G102: 79.3 | H102: 90.5 | I102: 88.9 | J102: 92.55319149 | K102: 81.37254902 | L102: 77.88461538 | M102: 92.27221356 | N102: 94.81970046 | O102: 97.36718736 | P102: 99.91467427 | Q102: 100 | R102: 100 | S102: 100 | T102: 100 | U102: 100 | V102: 100 | W102: 100 | X102: 100 | Y102: 100 | Z102: 100 | AA102: 100 | AB102: 100 | AC102: 100 | AD102: 100 | AE102: 100 | AF102: 100 | AG102: 100 | AH102: 100 | AI102: 100 | AJ102: 100 | AK102: 100 | AL102: 100 | AM102: 100 | AN102: 100 | AO102: 100 | AP102: 100 | AQ102: 100 | AR102: 100
A103: 1600000US2229220 | B103: Glenmora town, Louisiana | C103: 70.6 | D103: 57.4 | E103: 57.5 | F103: 64 | G103: 66.4 | H103: 66.6 | I103: 76 | J103: 73.34851936 | K103: 75.72383073 | L103: 75.49450549 | M103: 77.89868427 | N103: 79.64268404 | O103: 81.3866838 | P103: 83.13068357 | Q103: 84.87468334 | R103: 86.6186831 | S103: 88.36268287 | T103: 90.10668264 | U103: 91.8506824 | V103: 93.59468217 | W103: 91.8506824 | X103: 92.43201566 | Y103: 92.62579341 | Z103: 92.30283049 | AA103: 92.45354652 | AB103: 92.46072347 | AC103: 92.40570016 | AD103: 92.43999005 | AE103: 92.43547123 | AF103: 92.42705381 | AG103: 92.4341717 | AH103: 92.43223225 | AI103: 92.43115258 | AJ103: 92.43251884 | AK103: 92.43196789 | AL103: 92.43187977 | AM103: 92.43212217 | AN103: 92.43198994 | AO103: 92.43199729 | AP103: 92.43203647 | AQ103: 92.4320079 | AR103: 92.43201389
A104: 1600000US2229640 | B104: Golden Meadow town, Louisiana | C104: 63.8 | D104: 61 | E104: 61.1 | F104: 66.2 | G104: 67.8 | H104: 67.9 | I104: 66 | J104: 65.35380507 | K104: 65.56543837 | L104: 64.90765172 | M104: 67.05255483 | N104: 67.43253034 | O104: 67.81250585 | P104: 68.19248136 | Q104: 68.57245688 | R104: 68.95243239 | S104: 69.3324079 | T104: 69.71238341 | U104: 70.09235892 | V104: 70.47233443 | W104: 70.09235892 | X104: 70.21901743 | Y104: 70.26123693 | Z104: 70.19087109 | AA104: 70.22370848 | AB104: 70.22527217 | AC104: 70.21328391 | AD104: 70.22075486 | AE104: 70.21977031 | AF104: 70.21793636 | AG104: 70.21948718 | AH104: 70.21906462 | AI104: 70.21882938 | AJ104: 70.21912706 | AK104: 70.21900702 | AL104: 70.21898782 | AM104: 70.21904063 | AN104: 70.21901182 | AO104: 70.21901343 | AP104: 70.21902196 | AQ104: 70.21901574 | AR104: 70.21901704
A105: 1600000US2229745 | B105: Goldonna village, Louisiana | C105: 77.6 | D105: 71.9 | E105: 72.4 | F105: 74.9 | G105: 72.8 | H105: 77.2 | I105: 84 | J105: 87.90035587 | K105: 84.81481481 | L105: 81.96202532 | M105: 86.5098433 | N105: 87.95750215 | O105: 89.40516101 | P105: 90.85281986 | Q105: 92.30047871 | R105: 93.74813757 | S105: 95.19579642 | T105: 96.64345528 | U105: 98.09111413 | V105: 99.53877298 | W105: 98.09111413 | X105: 98.57366708 | Y105: 98.73451806 | Z105: 98.46643309 | AA105: 98.59153941 | AB105: 98.59749686 | AC105: 98.55182312 | AD105: 98.58028646 | AE105: 98.57653548 | AF105: 98.56954835 | AG105: 98.57545677 | AH105: 98.57384687 | AI105: 98.57295066 | AJ105: 98.57408476 | AK105: 98.57362743 | AL105: 98.57355429 | AM105: 98.57375549 | AN105: 98.57364574 | AO105: 98.57365184 | AP105: 98.57368436 | AQ105: 98.57366064 | AR105: 98.57366561
A106: 1600000US2229850 | B106: Gonzales city, Louisiana | C106: 83.8 | D106: 85.9 | E106: 87.7 | F106: 89.5 | G106: 88.8 | H106: 89.7 | I106: 88.1 | J106: 86.27036438 | K106: 84.29731725 | L106: 80.72440155 | M106: 84.83429687 | N106: 84.53522207 | O106: 84.23614726 | P106: 83.93707245 | Q106: 83.63799764 | R106: 83.33892283 | S106: 83.03984803 | T106: 82.74077322 | U106: 82.44169841 | V106: 82.1426236 | W106: 82.44169841 | X106: 82.34200681 | Y106: 82.30877627 | Z106: 82.3641605 | AA106: 82.33831453 | AB106: 82.33708377 | AC106: 82.3465196 | AD106: 82.3406393 | AE106: 82.34141422 | AF106: 82.3428577 | AG106: 82.34163707 | AH106: 82.34196967 | AI106: 82.34215481 | AJ106: 82.34192052 | AK106: 82.342015 | AL106: 82.34203011 | AM106: 82.34198854 | AN106: 82.34201122 | AO106: 82.34200996 | AP106: 82.34200324 | AQ106: 82.34200814 | AR106: 82.34200711
A107: 1600000US2230515 | B107: Grambling city, Louisiana | C107: 93.6 | D107: 85.7 | E107: 83.1 | F107: 83.9 | G107: 83.3 | H107: 82.3 | I107: 85.8 | J107: 92.29156963 | K107: 94.57705678 | L107: 94.25506555 | M107: 91.83879705 | N107: 92.55814757 | O107: 93.27749809 | P107: 93.99684861 | Q107: 94.71619912 | R107: 95.43554964 | S107: 96.15490016 | T107: 96.87425068 | U107: 97.5936012 | V107: 98.31295172 | W107: 97.5936012 | X107: 97.83338471 | Y107: 97.91331254 | Z107: 97.78009948 | AA107: 97.84226558 | AB107: 97.84522587 | AC107: 97.82253031 | AD107: 97.83667392 | AE107: 97.83481003 | AF107: 97.83133809 | AG107: 97.83427401 | AH107: 97.83347404 | AI107: 97.83302871 | AJ107: 97.83359226 | AK107: 97.833365 | AL107: 97.83332866 | AM107: 97.83342864 | AN107: 97.8333741 | AO107: 97.83337713 | AP107: 97.83339329 | AQ107: 97.83338151 | AR107: 97.83338398
A108: 1600000US2230550 | B108: Gramercy town, Louisiana | C108: 83.8 | D108: 83.4 | E108: 81.8 | F108: 82.3 | G108: 82.4 | H108: 83.1 | I108: 85.8 | J108: 84.30232558 | K108: 87.57259001 | L108: 89.76857491 | M108: 87.97891346 | N108: 88.62519789 | O108: 89.27148233 | P108: 89.91776677 | Q108: 90.56405121 | R108: 91.21033564 | S108: 91.85662008 | T108: 92.50290452 | U108: 93.14918895 | V108: 93.79547339 | W108: 93.14918895 | X108: 93.3646171 | Y108: 93.43642648 | Z108: 93.31674418 | AA108: 93.37259592 | AB108: 93.37525553 | AC108: 93.35486521 | AD108: 93.36757222 | AE108: 93.36589765 | AF108: 93.36277836 | AG108: 93.36541608 | AH108: 93.36469736 | AI108: 93.36429727 | AJ108: 93.36480357 | AK108: 93.3645994 | AL108: 93.36456674 | AM108: 93.36465657 | AN108: 93.36460757 | AO108: 93.3646103 | AP108: 93.36462481 | AQ108: 93.36461423 | AR108: 93.36461645
A109: 1600000US2230690 | B109: Grand Cane village, Louisiana | C109: 92.8 | D109: 88.5 | E109: 86 | F109: 88.1 | G109: 83.5 | H109: 82.5 | I109: 87.4 | J109: 88.36206897 | K109: 83.92156863 | L109: 89.13043478 | M109: 85.14258185 | N109: 84.80097723 | O109: 84.45937261 | P109: 84.117768 | Q109: 83.77616338 | R109: 83.43455876 | S109: 83.09295415 | T109: 82.75134953 | U109: 82.40974491 | V109: 82.0681403 | W109: 82.40974491 | X109: 82.29587671 | Y109: =(X109+W109+V109)/3 -> 82.25792064 | Z109: 82.32118075 | AA109: 82.29165937 | AB109: 82.29025359 | AC109: 82.30103124 | AD109: 82.29431473 | AE109: 82.29519985 | AF109: 82.29684861 | AG109: 82.2954544 | AH109: 82.29583428 | AI109: 82.29604576 | AJ109: 82.29577815 | AK109: 82.29588606 | AL109: 82.29590332 | AM109: 82.29585585 | AN109: 82.29588174 | AO109: 82.2958803 | AP109: 82.29587263 | AQ109: 82.29587823 | AR109: 82.29587705
A110: 1600000US2230760 | B110: Grand Coteau town, Louisiana | C110: 79.5 | D110: 77.5 | E110: 78.8 | F110: 81.4 | G110: 80.2 | H110: 78.9 | I110: 84.4 | J110: 81.64893617 | K110: 76.99836868 | L110: 75.1572327 | M110: 78.76206562 | N110: 78.63690414 | O110: 78.51174266 | P110: 78.38658118 | Q110: 78.2614197 | R110: 78.13625822 | S110: 78.01109675 | T110: 77.88593527 | U110: 77.76077379 | V110: 77.63561231 | W110: =(V110+U110+T110)/3 -> 77.76077379 | X110: 77.71905329 | Y110: 77.70514646 | Z110: 77.72832451 | AA110: 77.71750809 | AB110: 77.71699302 | AC110: 77.72094188 | AD110: 77.718481 | AE110: 77.7188053 | AF110: 77.71940939 | AG110: 77.71889856 | AH110: 77.71903775 | AI110: 77.71911523 | AJ110: 77.71901718 | AK110: 77.71905672 | AL110: 77.71906305 | AM110: 77.71904565 | AN110: 77.71905514 | AO110: 77.71905461 | AP110: 77.7190518 | AQ110: 77.71905385 | AR110: 77.71905342
A111: 1600000US2230830 | B111: Grand Isle town, Louisiana | C111: 72.1 | D111: 71.2 | E111: 72.6 | F111: 76.1 | G111: 74.7 | H111: 71.8 | I111: 77.3 | J111: 78.68852459 | K111: 77.04918033 | L111: 83.55481728 | M111: 81.34859358 | N111: 82.41029201 | O111: 83.47199043 | P111: 84.53368886 | Q111: 85.59538729 | R111: 86.65708572 | S111: 87.71878415 | T111: 88.78048258 | U111: 89.84218101 | V111: 90.90387943 | W111: 89.84218101 | X111: 90.19608048 | Y111: 90.31404697 | Z111: 90.11743615 | AA111: 90.20918787 | AB111: 90.213557 | AC111: 90.18006034 | AD111: 90.20093507 | AE111: 90.19818414 | AF111: 90.19305985 | AG111: 90.19739302 | AH111: 90.19621234 | AI111: 90.19555507 | AJ111: 90.19638681 | AK111: 90.1960514 | AL111: 90.19599776 | AM111: 90.19614532 | AN111: 90.19606483 | AO111: 90.1960693 | AP111: 90.19609315 | AQ111: 90.19607576 | AR111: 90.19607941
A112: 1600000US2231250 | B112: Grayson village, Louisiana | C112: 79.7 | D112: 77.5 | E112: 77.8 | F112: 77.5 | G112: 75.8 | H112: 76.4 | I112: 76.4 | J112: 79.50617284 | K112: 76.26666667 | L112: 83.28981723 | M112: 78.99979521 | N112: 79.17861876 | O112: 79.35744231 | P112: 79.53626586 | Q112: 79.71508941 | R112: 79.89391296 | S112: 80.07273651 | T112: 80.25156006 | U112: 80.43038362 | V112: 80.60920717 | W112: 80.43038362 | X112: 80.48999147 | Y112: 80.50986075 | Z112: 80.47674528 | AA112: 80.49219916 | AB112: 80.49293506 | AC112: 80.48729317 | AD112: 80.49080913 | AE112: 80.49034579 | AF112: 80.4894827 | AG112: 80.49021254 | AH112: 80.49001367 | AI112: 80.48990297 | AJ112: 80.49004306 | AK112: 80.48998657 | AL112: 80.48997753 | AM112: 80.49000239 | AN112: 80.48998883 | AO112: 80.48998958 | AP112: 80.4899936 | AQ112: 80.48999067 | AR112: 80.48999128
A113: 1600000US2231565 | B113: Greensburg town, Louisiana | C113: 92.8 | D113: 82.8 | E113: 80.3 | F113: 79.5 | G113: 77.7 | H113: 77.1 | I113: 76 | J113: 78.26086957 | K113: 77.86144578 | L113: 75.97014925 | M113: 72.91810685 | N113: 71.66153601 | O113: 70.40496517 | P113: 69.14839433 | Q113: 67.89182349 | R113: 66.63525265 | S113: 65.37868181 | T113: 64.12211097 | U113: 62.86554014 | V113: 61.6089693 | W113: 62.86554014 | X113: 62.44668319 | Y113: 62.30706421 | Z113: 62.53976251 | AA113: 62.43116997 | AB113: 62.4259989 | AC113: 62.46564379 | AD113: 62.44093755 | AE113: 62.44419341 | AF113: 62.45025825 | AG113: 62.44512974 | AH113: 62.44652714 | AI113: 62.44730504 | AJ113: 62.44632064 | AK113: 62.44671761 | AL113: 62.4467811 | AM113: 62.44660645 | AN113: 62.44670172 | AO113: 62.44669642 | AP113: 62.44666819 | AQ113: 62.44668878 | AR113: 62.44668446
A114: 1600000US2231705 | B114: Greenwood town, Louisiana | C114: 90 | D114: 89.6 | E114: 88.2 | F114: 91 | G114: 91.8 | H114: 91.4 | I114: 91 | J114: 89.93733874 | K114: 89.96854247 | L114: 91.30752374 | M114: 91.17581398 | N114: 91.31299098 | O114: 91.45016798 | P114: 91.58734498 | Q114: 91.72452197 | R114: 91.86169897 | S114: 91.99887597 | T114: 92.13605297 | U114: 92.27322996 | V114: 92.41040696 | W114: 92.27322996 | X114: 92.31895563 | Y114: 92.33419752 | Z114: 92.30879437 | AA114: 92.32064917 | AB114: 92.32121369 | AC114: 92.31688574 | AD114: 92.31958287 | AE114: 92.31922743 | AF114: 92.31856535 | AG114: 92.31912522 | AH114: 92.31897267 | AI114: 92.31888774 | AJ114: 92.31899521 | AK114: 92.31895187 | AL114: 92.31894494 | AM114: 92.31896401 | AN114: 92.31895361 | AO114: 92.31895419 | AP114: 92.31895727 | AQ114: 92.31895502 | AR114: 92.31895549
A115: 1600000US2231915 | B115: Gretna city, Louisiana | C115: 76 | D115: 76 | E115: 74.4 | F115: 74 | G115: 76.1 | H115: 77.1 | I115: 78.7 | J115: 80.76840982 | K115: 82.31306633 | L115: 80.0493624 | M115: 81.79567636 | N115: 82.56887499 | O115: 83.34207363 | P115: 84.11527227 | Q115: 84.8884709 | R115: 85.66166954 | S115: 86.43486818 | T115: 87.20806681 | U115: 87.98126545 | V115: 88.75446409 | W115: 87.98126545 | X115: 88.23899833 | Y115: 88.32490929 | Z115: 88.18172436 | AA115: 88.24854399 | AB115: 88.25172588 | AC115: 88.22733141 | AD115: 88.24253376 | AE115: 88.24053035 | AF115: 88.23679851 | AG115: 88.23995421 | AH115: 88.23909435 | AI115: 88.23861569 | AJ115: 88.23922142 | AK115: 88.23897715 | AL115: 88.23893809 | AM115: 88.23904555 | AN115: 88.23898693 | AO115: 88.23899019 | AP115: 88.23900756 | AQ115: 88.23899489 | AR115: 88.23899755
A116: 1600000US2232020 | B116: Grosse Tete village, Louisiana | C116: 68.4 | D116: 74.5 | E116: 78.1 | F116: 85.9 | G116: 90.7 | H116: 87.9 | I116: 84.3 | J116: 81.57894737 | K116: 82.98969072 | L116: 80.78358209 | M116: 87.53771571 | N116: 88.63271456 | O116: 89.72771341 | P116: 90.82271227 | Q116: 91.91771112 | R116: 93.01270997 | S116: 94.10770882 | T116: 95.20270768 | U116: 96.29770653 | V116: 97.39270538 | W116: 96.29770653 | X116: 96.66270615 | Y116: 96.78437269 | Z116: 96.58159512 | AA116: 96.67622465 | AB116: 96.68073082 | AC116: 96.64618353 | AD116: 96.667713 | AE116: 96.66487578 | AF116: 96.65959077 | AG116: 96.66405985 | AH116: 96.66284214 | AI116: 96.66216425 | AJ116: 96.66302208 | AK116: 96.66267616 | AL116: 96.66262083 | AM116: 96.66277302 | AN116: 96.66269 | AO116: 96.66269462 | AP116: 96.66271921 | AQ116: 96.66270128 | AR116: 96.66270504
A117: 1600000US2232055 | B117: Gueydan town, Louisiana | C117: 73.3 | D117: 66.2 | E117: 64.5 | F117: 70.3 | G117: 70.1 | H117: 71.3 | I117: 72.6 | J117: 74.14548642 | K117: 66.63385827 | L117: 72.64529058 | M117: 71.95486537 | N117: 72.27893843 | O117: 72.60301149 | P117: 72.92708455 | Q117: 73.25115761 | R117: 73.57523067 | S117: 73.89930374 | T117: 74.2233768 | U117: 74.54744986 | V117: 74.87152292 | W117: 74.54744986 | X117: 74.65547421 | Y117: 74.69148233 | Z117: 74.6314688 | AA117: 74.65947512 | AB117: 74.66080875 | AC117: 74.65058422 | AD117: 74.65695603 | AE117: 74.65611633 | AF117: 74.65455219 | AG117: 74.65587485 | AH117: 74.65551446 | AI117: 74.65531384 | AJ117: 74.65556772 | AK117: 74.65546534 | AL117: 74.65544896 | AM117: 74.65549401 | AN117: 74.65546944 | AO117: 74.6554708 | AP117: 74.65547808 | AQ117: 74.65547277 | AR117: 74.65547388
A118: 1600000US2232650 | B118: Hall Summit village, Louisiana | C118: 65 | D118: 65 | E118: 75 | F118: 82.4 | G118: 73 | H118: 76 | I118: 77.2 | J118: 74.19354839 | K118: 79.33579336 | L118: 83.38762215 | M118: 83.35859288 | N118: 84.8689377 | O118: 86.37928252 | P118: 87.88962733 | Q118: 89.39997215 | R118: 90.91031697 | S118: 92.42066178 | T118: 93.9310066 | U118: 95.44135142 | V118: 96.95169623 | W118: 95.44135142 | X118: 95.94479969 | Y118: 96.11261578 | Z118: 95.8329223 | AA118: 95.96344592 | AB118: 95.96966133 | AC118: 95.92200985 | AD118: 95.9517057 | AE118: 95.9477923 | AF118: 95.94050262 | AG118: 95.94666687 | AH118: 95.94498726 | AI118: 95.94405225 | AJ118: 95.94523546 | AK118: 95.94475832 | AL118: 95.94468201 | AM118: 95.94489193 | AN118: 95.94477742 | AO118: 95.94478379 | AP118: 95.94481771 | AQ118: 95.94479297 | AR118: 95.94479816
A119: 1600000US2232755 | B119: Hammond city, Louisiana | C119: 75.4 | D119: 78.4 | E119: 76.5 | F119: 78 | G119: 77.5 | H119: 81.1 | I119: 80.6 | J119: 85.82183981 | K119: 87.54001477 | L119: 86.72533466 | M119: 88.2226294 | N119: 89.57970403 | O119: 90.93677867 | P119: 92.2938533 | Q119: 93.65092793 | R119: 95.00800256 | S119: 96.3650772 | T119: 97.72215183 | U119: 99.07922646 | V119: 100 | W119: 98.93379276 | X119: 99.33767308 | Y119: 99.42382195 | Z119: 99.2317626 | AA119: 99.33108587 | AB119: 99.32889014 | AC119: 99.2972462 | AD119: 99.31907407 | AE119: 99.31507014 | AF119: 99.31046347 | AG119: 99.31486923 | AH119: 99.31346761 | AI119: 99.31293344 | AJ119: 99.31375676 | AK119: 99.31338593 | AL119: 99.31335871 | AM119: 99.31350047 | AN119: 99.31341504 | AO119: 99.31342474 | AP119: 99.31344675 | AQ119: 99.31342884 | AR119: 99.31343344
A120: 1600000US2232930 | B120: Harahan city, Louisiana | C120: 86.3 | D120: 88.7 | E120: 88.8 | F120: 90 | G120: 90.7 | H120: 89.7 | I120: 90 | J120: 91.27379583 | K120: 92.69286371 | L120: 92.77313121 | M120: 93.34655261 | N120: 93.93792962 | O120: 94.52930662 | P120: 95.12068363 | Q120: 95.71206064 | R120: 96.30343764 | S120: 96.89481465 | T120: 97.48619165 | U120: 98.07756866 | V120: 98.66894567 | W120: 98.07756866 | X120: 98.27469433 | Y120: 98.34040289 | Z120: 98.23088863 | AA120: 98.28199528 | AB120: 98.28442893 | AC120: 98.26577095 | AD120: 98.27739839 | AE120: 98.27586609 | AF120: 98.27301181 | AG120: 98.27542543 | AH120: 98.27476777 | AI120: 98.27440167 | AJ120: 98.27486496 | AK120: 98.27467813 | AL120: 98.27464825 | AM120: 98.27473045 | AN120: 98.27468561 | AO120: 98.2746881 | AP120: 98.27470139 | AQ120: 98.2746917 | AR120: 98.27469373
A121: 1600000US2233210 | B121: Harrisonburg village, Louisiana | C121: 63.2 | D121: 73.2 | E121: 72.2 | F121: 73.7 | G121: 85.7 | H121: 83.8 | I121: 83.4 | J121: 79.7752809 | K121: 76.82926829 | L121: 72.98578199 | M121: 82.43081047 | N121: 83.5129518 | O121: 84.59509314 | P121: 85.67723448 | Q121: 86.75937581 | R121: 87.84151715 | S121: 88.92365848 | T121: 90.00579982 | U121: 91.08794116 | V121: 92.17008249 | W121: 91.08794116 | X121: 91.44865493 | Y121: 91.56889286 | Z121: 91.36849632 | AA121: 91.4620147 | AB121: 91.46646796 | AC121: 91.43232633 | AD121: 91.453603 | AE121: 91.45079909 | AF121: 91.44557614 | AG121: 91.44999274 | AH121: 91.44878933 | AI121: 91.4481194 | AJ121: 91.44896716 | AK121: 91.4486253 | AL121: 91.44857062 | AM121: 91.44872102 | AN121: 91.44863898 | AO121: 91.44864354 | AP121: 91.44866785 | AQ121: 91.44865012 | AR121: 91.44865384
A122: 1600000US2233420 | B122: Haughton town, Louisiana | C122: 77.4 | D122: 78.5 | E122: 75.5 | F122: 69 | G122: 68.8 | H122: 78.1 | I122: 81.3 | J122: 87.07566462 | K122: 88.26373626 | L122: 93.35619374 | M122: 90.26390015 | N122: 92.17923482 | O122: 94.09456949 | P122: 96.00990416 | Q122: 97.92523883 | R122: 99.8405735 | S122: 100 | T122: 100 | U122: 100 | V122: 100 | W122: 100 | X122: 100 | Y122: 100 | Z122: 100 | AA122: 100 | AB122: 100 | AC122: 100 | AD122: 100 | AE122: 100 | AF122: 100 | AG122: 100 | AH122: 100 | AI122: 100 | AJ122: 100 | AK122: 100 | AL122: 100 | AM122: 100 | AN122: 100 | AO122: 100 | AP122: 100 | AQ122: 100 | AR122: 100
A123: 1600000US2233525 | B123: Haynesville town, Louisiana | C123: 74.1 | D123: 76.7 | E123: 71.5 | F123: 74.4 | G123: 75.3 | H123: 73.4 | I123: 75.6 | J123: 77.28918779 | K123: 81.13113113 | L123: 78.82117882 | M123: 79.29596532 | N123: 79.92720451 | O123: 80.5584437 | P123: 81.18968288 | Q123: 81.82092207 | R123: 82.45216126 | S123: 83.08340045 | T123: 83.71463964 | U123: 84.34587883 | V123: 84.97711802 | W123: 84.34587883 | X123: 84.5562919 | Y123: 84.62642958 | Z123: 84.50953344 | AA123: 84.56408497 | AB123: 84.56668266 | AC123: 84.54676702 | AD123: 84.55917822 | AE123: 84.55754264 | AF123: 84.55449596 | AG123: 84.55707227 | AH123: 84.55637029 | AI123: 84.55597951 | AJ123: 84.55647402 | AK123: 84.55627461 | AL123: 84.55624271 | AM123: 84.55633045 | AN123: 84.55628259 | AO123: 84.55628525 | AP123: 84.55629943 | AQ123: 84.55628909 | AR123: 84.55629126
A124: 1600000US2233735 | B124: Heflin village, Louisiana | C124: 93.9 | D124: 90.2 | E124: 87.7 | F124: 90.7 | G124: 88.3 | H124: 94.7 | I124: 96.4 | J124: 97.31543624 | K124: 95.78313253 | L124: 94.73684211 | M124: 96.91323068 | N124: 97.62953788 | O124: 98.34584508 | P124: 99.06215228 | Q124: 99.77845948 | R124: 100 | S124: 100 | T124: 100 | U124: 100 | V124: 100 | W124: 100 | X124: 100 | Y124: 100 | Z124: 100 | AA124: 100 | AB124: 100 | AC124: 100 | AD124: 100 | AE124: 100 | AF124: 100 | AG124: 100 | AH124: 100 | AI124: 100 | AJ124: 100 | AK124: 100 | AL124: 100 | AM124: 100 | AN124: 100 | AO124: 100 | AP124: 100 | AQ124: 100 | AR124: 100
A125: 1600000US2233875 | B125: Henderson town, Louisiana | C125: 59.4 | D125: 58.9 | E125: 62.4 | F125: 64 | G125: 61.5 | H125: 57.1 | I125: 52.2 | J125: 54.70914127 | K125: 55.6632344 | L125: 54.95787427 | M125: 53.38666552 | N125: 52.53278197 | O125: 51.67889843 | P125: 50.82501489 | Q125: 49.97113135 | R125: 49.11724781 | S125: 48.26336427 | T125: 47.40948072 | U125: 46.55559718 | V125: 45.70171364 | W125: 46.55559718 | X125: 46.27096934 | Y125: 46.17609339 | Z125: 46.33421997 | AA125: 46.26042756 | AB125: 46.25691364 | AC125: 46.28385372 | AD125: 46.26706498 | AE125: 46.26927745 | AF125: 46.27339872 | AG125: 46.26991371 | AH125: 46.27086329 | AI125: 46.27139191 | AJ125: 46.27072297 | AK125: 46.27099272 | AL125: 46.27103587 | AM125: 46.27091719 | AN125: 46.27098193 | AO125: 46.27097833 | AP125: 46.27095915 | AQ125: 46.27097313 | AR125: 46.2709702
A126: 1600000US2234015 | B126: Hessmer village, Louisiana | C126: 81.6 | D126: 81.6 | E126: 79.2 | F126: 79.4 | G126: 78.8 | H126: 80.3 | I126: 83.7 | J126: 84.1322314 | K126: 84.28961749 | L126: 83.26300985 | M126: 84.05700481 | N126: 84.49855371 | O126: 84.9401026 | P126: 85.3816515 | Q126: 85.8232004 | R126: 86.26474929 | S126: 86.70629819 | T126: 87.14784709 | U126: 87.58939599 | V126: 88.03094488 | W126: 87.58939599 | X126: 87.73657895 | Y126: 87.78563994 | Z126: 87.70387163 | AA126: 87.74203017 | AB126: 87.74384725 | AC126: 87.72991635 | AD126: 87.73859792 | AE126: 87.73745384 | AF126: 87.7353227 | AG126: 87.73712482 | AH126: 87.73663379 | AI126: 87.73636044 | AJ126: 87.73670635 | AK126: 87.73656686 | AL126: 87.73654455 | AM126: 87.73660592 | AN126: 87.73657244 | AO126: 87.7365743 | AP126: 87.73658422 | AQ126: 87.73657699 | AR126: 87.7365785
A127: 1600000US2235100 | B127: Hodge village, Louisiana | C127: 86.9 | D127: 89.1 | E127: 86.6 | F127: 85.8 | G127: 90.3 | H127: 88.2 | I127: 90.5 | J127: 83.71212121 | K127: 89.7515528 | L127: 89.65517241 | M127: 88.94915222 | N127: 89.11229178 | O127: 89.27543134 | P127: 89.4385709 | Q127: 89.60171046 | R127: 89.76485002 | S127: 89.92798958 | T127: 90.09112914 | U127: 90.2542687 | V127: 90.41740826 | W127: 90.2542687 | X127: 90.30864855 | Y127: 90.32677517 | Z127: 90.29656414 | AA127: 90.31066262 | AB127: 90.31133398 | AC127: 90.30618691 | AD127: 90.3093945 | AE127: 90.3089718 | AF127: 90.3081844 | AG127: 90.30885023 | AH127: 90.30866881 | AI127: 90.30856782 | AJ127: 90.30869562 | AK127: 90.30864408 | AL127: 90.30863584 | AM127: 90.30865851 | AN127: 90.30864615 | AO127: 90.30864683 | AP127: 90.3086505 | AQ127: 90.30864783 | AR127: 90.30864839
A128: 1600000US2235870 | B128: Homer town, Louisiana | C128: 81 | D128: 83 | E128: 79.9 | F128: 80.4 | G128: 81.2 | H128: 79 | I128: 74.8 | J128: 75.59726962 | K128: 75.33274179 | L128: 74.61430575 | M128: 73.42924146 | N128: 72.51011596 | O128: 71.59099046 | P128: 70.67186496 | Q128: 69.75273946 | R128: 68.83361396 | S128: 67.91448846 | T128: 66.99536296 | U128: 66.07623746 | V128: 65.15711196 | W128: 66.07623746 | X128: 65.76986229 | Y128: 65.66773724 | Z128: 65.83794566 | AA128: 65.75851507 | AB128: 65.75473266 | AC128: 65.78373113 | AD128: 65.76565962 | AE128: 65.76804113 | AF128: 65.77247729 | AG128: 65.76872601 | AH128: 65.76974815 | AI128: 65.77031715 | AJ128: 65.7695971 | AK128: 65.76988747 | AL128: 65.76993391 | AM128: 65.76980616 | AN128: 65.76987584 | AO128: 65.76987197 | AP128: 65.76985133 | AQ128: 65.76986638 | AR128: 65.76986323
A129: 1600000US2236045 | B129: Hornbeck town, Louisiana | C129: 81.6 | D129: 81.3 | E129: 83.4 | F129: 81.4 | G129: 82.8 | H129: 82.4 | I129: 84.7 | J129: 83.97932817 | K129: 86.01398601 | L129: 85.23206751 | M129: 85.88530985 | N129: 86.35854107 | O129: 86.83177228 | P129: 87.3050035 | Q129: 87.77823471 | R129: 88.25146593 | S129: 88.72469714 | T129: 89.19792836 | U129: 89.67115958 | V129: 90.14439079 | W129: 89.67115958 | X129: 89.82890331 | Y129: 89.88148456 | Z129: 89.79384915 | AA129: 89.83474567 | AB129: 89.83669313 | AC129: 89.82176265 | AD129: 89.83106715 | AE129: 89.82984098 | AF129: 89.82755693 | AG129: 89.82948835 | AH129: 89.82896208 | AI129: 89.82866912 | AJ129: 89.82903985 | AK129: 89.82889035 | AL129: 89.82886644 | AM129: 89.82893222 | AN129: 89.82889634 | AO129: 89.82889833 | AP129: 89.82890896 | AQ129: 89.82890121 | AR129: 89.82890283
A130: 1600000US2236150 | B130: Hosston village, Louisiana | C130: 72.2 | D130: 71.8 | E130: 72.2 | F130: 80.9 | G130: 77.9 | H130: 78.7 | I130: 85.4 | J130: 86.83274021 | K130: 79.20792079 | L130: 82.70042194 | M130: 86.57820643 | N130: 87.99531518 | O130: 89.41242393 | P130: 90.82953269 | Q130: 92.24664144 | R130: 93.66375019 | S130: 95.08085894 | T130: 96.49796769 | U130: 97.91507645 | V130: 99.3321852 | W130: 97.91507645 | X130: 98.38744603 | Y130: 98.54490256 | Z130: 98.28247501 | AA130: 98.4049412 | AB130: 98.41077292 | AC130: 98.36606305 | AD130: 98.39392572 | AE130: 98.3902539 | AF130: 98.38341422 | AG130: 98.38919795 | AH130: 98.38762202 | AI130: 98.38674473 | AJ130: 98.3878549 | AK130: 98.38740722 | AL130: 98.38733562 | AM130: 98.38753258 | AN130: 98.38742514 | AO130: 98.38743111 | AP130: 98.38746294 | AQ130: 98.38743973 | AR130: 98.38744459
A131: 1600000US2236255 | B131: Houma city, Louisiana | C131: 74.3 | D131: 74.6 | E131: 75.9 | F131: 76.1 | G131: 76.3 | H131: 79.9 | I131: 81.6 | J131: 80.66924671 | K131: 81.93192199 | L131: 82.45773424 | M131: 83.99886681 | N131: 85.02122618 | O131: 86.04358555 | P131: 87.06594492 | Q131: 88.08830428 | R131: 89.11066365 | S131: 90.13302302 | T131: 91.15538239 | U131: 92.17774175 | V131: 93.20010112 | W131: 92.17774175 | X131: 92.51852821 | Y131: 92.6321237 | Z131: 92.44279789 | AA131: 92.53114993 | AB131: 92.53535717 | AC131: 92.50310166 | AD131: 92.52320292 | AE131: 92.52055392 | AF131: 92.5156195 | AG131: 92.51979211 | AH131: 92.51865518 | AI131: 92.51802226 | AJ131: 92.51882319 | AK131: 92.51850021 | AL131: 92.51844855 | AM131: 92.51859065 | AN131: 92.51851314 | AO131: 92.51851745 | AP131: 92.51854041 | AQ131: 92.51852366 | AR131: 92.51852717
A132: 1600000US2236885 | B132: Ida village, Louisiana | C132: 87.4 | D132: 83.2 | E132: 83.9 | F132: 83.6 | G132: 87.1 | H132: 86 | I132: 88.1 | J132: 82.91457286 | K132: 83.06878307 | L132: 83.62068966 | M132: 83.97508965 | N132: 83.80866876 | O132: 83.64224786 | P132: 83.47582697 | Q132: 83.30940608 | R132: 83.14298519 | S132: 82.97656429 | T132: 82.8101434 | U132: 82.64372251 | V132: 82.47730161 | W132: 82.64372251 | X132: 82.58824888 | Y132: 82.56975767 | Z132: 82.60057635 | AA132: 82.5861943 | AB132: 82.58550944 | AC132: 82.59076003 | AD132: 82.58748792 | AE132: 82.58791913 | AF132: 82.58872236 | AG132: 82.58804314 | AH132: 82.58822821 | AI132: 82.58833123 | AJ132: 82.58820086 | AK132: 82.58825343 | AL132: 82.58826184 | AM132: 82.58823871 | AN132: 82.58825133 | AO132: 82.58825063 | AP132: 82.58824689 | AQ132: 82.58824962 | AR132: 82.58824904
A133: 1600000US2237025 | B133: Independence town, Louisiana | C133: 72.2 | D133: 74 | E133: 72.1 | F133: 68.9 | G133: 67.9 | H133: 72.2 | I133: 70.5 | J133: 72.73534636 | K133: 78.83096367 | L133: 77.11370262 | M133: 75.6585613 | N133: 76.20593585 | O133: 76.7533104 | P133: 77.30068496 | Q133: 77.84805951 | R133: 78.39543406 | S133: 78.94280861 | T133: 79.49018316 | U133: 80.03755772 | V133: 80.58493227 | W133: 80.03755772 | X133: 80.2200159 | Y133: 80.28083529 | Z133: 80.17946964 | AA133: 80.22677361 | AB133: 80.22902618 | AC133: 80.21175648 | AD133: 80.22251876 | AE133: 80.22110047 | AF133: 80.21845857 | AG133: 80.2206926 | AH133: 80.22008388 | AI133: 80.21974501 | AJ133: 80.22017383 | AK133: 80.22000091 | AL133: 80.21997325 | AM133: 80.22004933 | AN133: 80.22000783 | AO133: 80.22001014 | AP133: 80.22002243 | AQ133: 80.22001347 | AR133: 80.22001534
A134: 1600000US2237410 | B134: Iota town, Louisiana | C134: 80.9 | D134: 79 | E134: 80.4 | F134: 80.2 | G134: 80.9 | H134: 78.9 | I134: 81.5 | J134: 77.3187841 | K134: 75 | L134: 80.04769475 | M134: 77.77742033 | N134: 77.47937895 | O134: 77.18133758 | P134: 76.88329621 | Q134: 76.58525483 | R134: 76.28721346 | S134: 75.98917208 | T134: 75.69113071 | U134: 75.39308934 | V134: 75.09504796 | W134: 75.39308934 | X134: 75.29374221 | Y134: 75.2606265 | Z134: 75.31581935 | AA134: 75.29006269 | AB134: 75.28883618 | AC134: 75.29823941 | AD134: 75.29237942 | AE134: 75.29315167 | AF134: 75.29459017 | AG134: 75.29337375 | AH134: 75.2937052 | AI134: 75.29388971 | AJ134: 75.29365622 | AK134: 75.29375037 | AL134: 75.29376543 | AM134: 75.29372401 | AN134: 75.29374661 | AO134: 75.29374535 | AP134: 75.29373865 | AQ134: 75.29374354 | AR134: 75.29374251
A135: 1600000US2237445 | B135: Iowa town, Louisiana | C135: 80.4 | D135: 80.4 | E135: 83.8 | F135: 85.2 | G135: 83.2 | H135: 84.5 | I135: 83 | J135: 82.95739348 | K135: 80.39037676 | L135: 82.07456979 | M135: 82.77525843 | N135: 82.8085356 | O135: 82.84181277 | P135: 82.87508994 | Q135: 82.90836711 | R135: 82.94164427 | S135: 82.97492144 | T135: 83.00819861 | U135: 83.04147578 | V135: 83.07475295 | W135: 83.04147578 | X135: 83.05256817 | Y135: 83.05626563 | Z135: 83.0501032 | AA135: 83.052979 | AB135: 83.05311594 | AC135: 83.05206605 | AD135: 83.05272033 | AE135: 83.05263411 | AF135: 83.05247349 | AG135: 83.05260931 | AH135: 83.0525723 | AI135: 83.0525517 | AJ135: 83.05257777 | AK135: 83.05256726 | AL135: 83.05256558 | AM135: 83.0525702 | AN135: 83.05256768 | AO135: 83.05256782 | AP135: 83.05256857 | AQ135: 83.05256802 | AR135: 83.05256814
A136: 1600000US2237830 | B136: Jackson town, Louisiana | C136: 60.5 | D136: 60.9 | E136: 61.3 | F136: 62.2 | G136: 62.3 | H136: 61.8 | I136: 60.6 | J136: 61.22915239 | K136: 59.83004134 | L136: 63.00132217 | M136: 61.67831662 | N136: 61.73509208 | O136: 61.79186754 | P136: 61.848643 | Q136: 61.90541846 | R136: 61.96219392 | S136: 62.01896938 | T136: 62.07574484 | U136: 62.13252029 | V136: 62.18929575 | W136: 62.13252029 | X136: 62.15144545 | Y136: 62.15775383 | Z136: 62.14723986 | AA136: 62.15214638 | AB136: 62.15238002 | AC136: 62.15058875 | AD136: 62.15170505 | AE136: 62.15155794 | AF136: 62.15128392 | AG136: 62.15151564 | AH136: 62.1514525 | AI136: 62.15141735 | AJ136: 62.15146183 | AK136: =(AJ136+AI136+AH136)/3 -> 62.15144389 | AL136: 62.15144102 | AM136: 62.15144892 | AN136: 62.15144461 | AO136: 62.15144485 | AP136: 62.15144613 | AQ136: 62.1514452 | AR136: 62.15144539
A137: 1600000US2237935 | B137: Jamestown village, Louisiana | C137: 79.8 | D137: 79.4 | E137: 77.3 | F137: 70.6 | G137: 71.8 | H137: 79.3 | I137: 78.8 | J137: 83.67346939 | K137: 84 | L137: 88.97637795 | M137: 85.32347635 | N137: 86.40683846 | O137: 87.49020058 | P137: 88.57356269 | Q137: 89.6569248 | R137: 90.74028691 | S137: 91.82364902 | T137: 92.90701114 | U137: 93.99037325 | V137: 95.07373536 | W137: 93.99037325 | X137: 94.35149395 | Y137: 94.47186752 | Z137: 94.27124491 | AA137: 94.36486879 | AB137: 94.36932707 | AC137: 94.33514693 | AD137: 94.3564476 | AE137: 94.35364053 | AF137: 94.34841169 | AG137: 94.35283327 | AH137: 94.3516285 | AI137: 94.35095782 | AJ137: 94.35180653 | AK137: 94.35146428 | AL137: 94.35140954 | AM137: 94.35156012 | AN137: 94.35147798 | AO137: 94.35148255 | AP137: 94.35150688 | AQ137: 94.35148914 | AR137: 94.35149285
A138: 1600000US2238092 | B138: Jean Lafitte town, Louisiana | C138: 70.6 | D138: 69.2 | E138: 74.4 | F138: 76.4 | G138: 76.8 | H138: 73.9 | I138: 74.2 | J138: 71.29151292 | K138: 67.45315753 | L138: 68.91600861 | M138: 70.56852607 | N138: 70.25079119 | O138: 69.93305631 | P138: 69.61532143 | Q138: 69.29758655 | R138: 68.97985167 | S138: 68.66211679 | T138: 68.34438191 | U138: 68.02664703 | V138: 67.70891215 | W138: 68.02664703 | X138: 67.9207354 | Y138: 67.88543152 | Z138: 67.94427132 | AA138: 67.91681275 | AB138: 67.9155052 | AC138: 67.92552975 | AD138: 67.91928257 | AE138: 67.92010584 | AF138: 67.92163939 | AG138: 67.9203426 | AH138: 67.92069594 | AI138: 67.92089264 | AJ138: 67.92064373 | AK138: 67.9207441 | AL138: 67.92076016 | AM138: 67.920716 | AN138: 67.92074008 | AO138: 67.92073875 | AP138: 67.92073161 | AQ138: 67.92073681 | AR138: 67.92073572
A139: 1600000US2238075 | B139: Jeanerette city, Louisiana | C139: 69.2 | D139: 75.3 | E139: 74.7 | F139: 77.5 | G139: 73.3 | H139: 78.7 | I139: 78.5 | J139: 78.97513188 | K139: 76.13961969 | L139: 75.30364372 | M139: 78.78136589 | N139: 79.33037068 | O139: 79.87937547 | P139: 80.42838027 | Q139: 80.97738506 | R139: 81.52638985 | S139: 82.07539464 | T139: 82.62439943 | U139: 83.17340423 | V139: 83.72240902 | W139: 83.17340423 | X139: 83.35640582 | Y139: 83.41740636 | Z139: 83.3157388 | AA139: 83.36318366 | AB139: 83.36544294 | AC139: 83.3481218 | AD139: 83.35891613 | AE139: 83.35749363 | AF139: 83.35484385 | AG139: 83.35708454 | AH139: 83.35647401 | AI139: 83.35613413 | AJ139: 83.35656423 | AK139: 83.35639079 | AL139: 83.35636305 | AM139: 83.35643935 | AN139: 83.35639773 | AO139: 83.35640004 | AP139: 83.35641238 | AQ139: 83.35640338 | AR139: 83.35640527
A140: 1600000US2238285 | B140: Jena town, Louisiana | C140: 79.8 | D140: 82.9 | E140: 84.7 | F140: 84.6 | G140: 82 | H140: 79.5 | I140: 78.8 | J140: 77.63864043 | K140: 79.24872356 | L140: 74.79830964 | M140: 76.20586916 | N140: 75.44356039 | O140: 74.68125163 | P140: 73.91894286 | Q140: 73.1566341 | R140: 72.39432534 | S140: 71.63201657 | T140: 70.86970781 | U140: 70.10739904 | V140: 69.34509028 | W140: 70.10739904 | X140: 69.85329612 | Y140: 69.76859515 | Z140: 69.90976344 | AA140: 69.8438849 | AB140: 69.84074783 | AC140: 69.86479872 | AD140: 69.84981048 | AE140: 69.85178568 | AF140: 69.85546496 | AG140: 69.85235371 | AH140: 69.85320145 | AI140: 69.85367337 | AJ140: 69.85307618 | AK140: 69.853317 | AL140: 69.85335552 | AM140: 69.85324956 | AN140: 69.85330736 | AO140: 69.85330415 | AP140: 69.85328702 | AQ140: 69.85329951 | AR140: 69.85329689
A141: 1600000US2238355 | B141: Jennings city, Louisiana | C141: 71.6 | D141: 72.9 | E141: 75.4 | F141: 74 | G141: 75.6 | H141: 74.5 | I141: 74 | J141: 74.13002428 | K141: 76.11779009 | L141: 77.14827867 | M141: 76.7065813 | N141: 77.10057621 | O141: 77.49457112 | P141: 77.88856603 | Q141: 78.28256094 | R141: 78.67655585 | S141: 79.07055076 | T141: 79.46454567 | U141: 79.85854057 | V141: 80.25253548 | W141: 79.85854057 | X141: 79.98987221 | Y141: 80.03364942 | Z141: 79.9606874 | AA141: 79.99473635 | AB141: 79.99635772 | AC141: 79.98392716 | AD141: 79.99167374 | AE141: 79.99065287 | AF141: 79.98875126 | AG141: 79.99035929 | AH141: 79.98992114 | AI141: 79.98967723 | AJ141: 79.98998589 | AK141: 79.98986142 | AL141: 79.98984151 | AM141: 79.98989627 | AN141: 79.9898664 | AO141: 79.98986806 | AP141: 79.98987691 | AQ141: 79.98987046 | AR141: 79.98987181
A142: 1600000US2238670 | B142: Jonesboro town, Louisiana | C142: 79 | D142: 78.4 | E142: 79.5 | F142: 79 | G142: 78.5 | H142: 72.3 | I142: 71.1 | J142: 65.9693166 | K142: 65.68149211 | L142: 67.67337808 | M142: 64.09499969 | N142: 62.34637806 | O142: 60.59775643 | P142: 58.84913479 | Q142: 57.10051316 | R142: 55.35189152 | S142: 53.60326989 | T142: 51.85464826 | U142: 50.10602662 | V142: 48.35740499 | W142: 50.10602662 | X142: 49.52315274 | Y142: 49.32886145 | Z142: 49.65268027 | AA142: 49.50156482 | AB142: 49.49436885 | AC142: 49.54953798 | AD142: 49.51515722 | AE142: 49.51968802 | AF142: 49.52812774 | AG142: 49.52099099 | AH142: 49.52293558 | AI142: 49.5240181 | AJ142: 49.52264823 | AK142: 49.52320064 | AL142: 49.52328899 | AM142: 49.52304595 | AN142: 49.52317853 | AO142: 49.52317116 | AP142: 49.52313188 | AQ142: 49.52316052 | AR142: 49.52315452
A143: 1600000US2238775 | B143: Jonesville town, Louisiana | C143: 70.2 | D143: 68.7 | E143: 72.9 | F143: 73.9 | G143: 73.7 | H143: 75.2 | I143: 78.6 | J143: 76.28430683 | K143: 73.93162393 | L143: 72.16981132 | M143: 76.45428099 | N143: 76.98077314 | O143: 77.50726528 | P143: 78.03375742 | Q143: 78.56024956 | R143: 79.08674171 | S143: 79.61323385 | T143: 80.13972599 | U143: 80.66621813 | V143: 81.19271028 | W143: 80.66621813 | X143: 80.84171551 | Y143: 80.90021464 | Z143: 80.8027161 | AA143: 80.84821542 | AB143: 80.85038205 | AC143: 80.83377119 | AD143: 80.84412289 | AE143: 80.84275871 | AF143: 80.84021759 | AG143: 80.8423664 | AH143: 80.8417809 | AI143: 80.84145496 | AJ143: 80.84186742 | AK143: 80.84170109 | AL143: 80.84167449 | AM143: 80.84174767 | AN143: 80.84170775 | AO143: 80.84170997 | AP143: 80.8417218 | AQ143: 80.84171317 | AR143: 80.84171498
A144: 1600000US2238985 | B144: Junction City village, Louisiana | C144: 74.1 | D144: 78.8 | E144: 77.3 | F144: 76.8 | G144: 77.6 | H144: 82.8 | I144: 80.3 | J144: 87.23404255 | K144: 88.99082569 | L144: 85.19480519 | M144: 88.79727532 | N144: 90.23096768 | O144: 91.66466004 | P144: 93.0983524 | Q144: 94.53204476 | R144: 95.96573712 | S144: 97.39942948 | T144: 98.83312184 | U144: 100 | V144: 100 | W144: 99.61104061 | X144: 99.87034687 | Y144: 99.82712916 | Z144: 99.76950555 | AA144: 99.82232719 | AB144: 99.80632063 | AC144: 99.79938446 | AD144: 99.8093441 | AE144: 99.8050164 | AF144: 99.80458165 | AG144: 99.80631405 | AH144: 99.80530403 | AI144: 99.80539991 | AJ144: 99.80567266 | AK144: 99.80545887 | AL144: 99.80551048 | AM144: 99.80554734 | AN144: 99.80550556 | AO144: 99.80552113 | AP144: 99.80552467 | AQ144: 99.80551712 | AR144: 99.80552097
A145: 1600000US2239055 | B145: Kaplan city, Louisiana | C145: 67.8 | D145: 69.7 | E145: 75.8 | F145: 68.1 | G145: 65.1 | H145: 64.4 | I145: 65.3 | J145: 67.23856209 | K145: 73.34878331 | L145: 77.55222124 | M145: 71.48076616 | N145: 71.85291334 | O145: 72.22506052 | P145: 72.5972077 | Q145: 72.96935488 | R145: 73.34150206 | S145: 73.71364924 | T145: 74.08579642 | U145: 74.45794361 | V145: 74.83009079 | W145: 74.45794361 | X145: 74.58199267 | Y145: 74.62334235 | Z145: 74.55442621 | AA145: 74.58658708 | AB145: 74.58811855 | AC145: 74.57637728 | AD145: 74.5836943 | AE145: 74.58273004 | AF145: 74.58093387 | AG145: 74.58245274 | AH145: 74.58203888 | AI145: 74.5818085 | AJ145: 74.58210004 | AK145: 74.58198247 | AL145: 74.58196367 | AM145: 74.58201539 | AN145: 74.58198718 | AO145: 74.58198875 | AP145: 74.58199711 | AQ145: 74.58199101 | AR145: 74.58199229
A146: 1600000US2239085 | B146: Keachi town, Louisiana | C146: 87 | D146: 83.2 | E146: 81.9 | F146: 81.3 | G146: 83.2 | H146: 80.2 | I146: 81.3 | J146: 75.8490566 | K146: 74.88372093 | L146: 75.72254335 | M146: 74.02333941 | N146: 72.85384983 | O146: 71.68436026 | P146: 70.51487068 | Q146: 69.3453811 | R146: 68.17589152 | S146: 67.00640195 | T146: 65.83691237 | U146: 64.66742279 | V146: 63.49793321 | W146: 64.66742279 | X146: 64.27759293 | Y146: 64.14764965 | Z146: 64.36422179 | AA146: 64.26315479 | AB146: 64.25834208 | AC146: 64.29523955 | AD146: 64.27224547 | AE146: 64.2752757 | AF146: 64.28092024 | AG146: 64.27614714 | AH146: 64.27744769 | AI146: 64.27817169 | AJ146: 64.27725551 | AK146: 64.27762496 | AL146: 64.27768405 | AM146: 64.27752151 | AN146: 64.27761018 | AO146: 64.27760525 | AP146: 64.27757898 | AQ146: 64.27759813 | AR146: 64.27759412
A147: 1600000US2239475 | B147: Kenner city, Louisiana | C147: 82.8 | D147: 83.4 | E147: 83.7 | F147: 83.7 | G147: 84.4 | H147: 84.7 | I147: 84.7 | J147: 84.57380056 | K147: 85.21591442 | L147: 85.30939543 | M147: 85.68207646 | N147: 85.94247017 | O147: 86.20286388 | P147: 86.4632576 | Q147: 86.72365131 | R147: 86.98404502 | S147: 87.24443873 | T147: 87.50483245 | U147: 87.76522616 | V147: 88.02561987 | W147: 87.76522616 | X147: 87.85202406 | Y147: 87.8809567 | Z147: 87.83273564 | AA147: 87.8552388 | AB147: 87.85631038 | AC147: 87.84809494 | AD147: 87.85321471 | AE147: 87.85254001 | AF147: 87.85128322 | AG147: 87.85234598 | AH147: 87.8520564 | AI147: 87.8518952 | AJ147: 87.85209919 | AK147: 87.85201693 | AL147: 87.85200378 | AM147: 87.85203997 | AN147: 87.85202023 | AO147: 87.85202132 | AP147: 87.85202717 | AQ147: 87.85202291 | AR147: 87.8520238
A148: 1600000US2239545 | B148: Kentwood town, Louisiana | C148: 78 | D148: 71.7 | E148: 70.2 | F148: 71.8 | G148: 73.2 | H148: 74.9 | I148: 79 | J148: 75.68493151 | K148: 74.07407407 | L148: 73.67724868 | M148: 75.17157256 | N148: 75.34392659 | O148: 75.51628061 | P148: 75.68863464 | Q148: 75.86098866 | R148: 76.03334269 | S148: 76.20569671 | T148: 76.37805074 | U148: 76.55040477 | V148: 76.72275879 | W148: 76.55040477 | X148: 76.60785611 | Y148: 76.62700655 | Z148: 76.59508914 | AA148: 76.60998393 | AB148: 76.61069321 | AC148: 76.60525543 | AD148: 76.60864419 | AE148: 76.60819761 | AF148: 76.60736574 | AG148: 76.60806918 | AH148: 76.60787751 | AI148: 76.60777081 | AJ148: 76.60790584 | AK148: 76.60785139 | AL148: 76.60784268 | AM148: 76.60786663 | AN148: 76.60785357 | AO148: 76.60785429 | AP148: 76.60785816 | AQ148: 76.60785534 | AR148: 76.60785593
A149: 1600000US2239650 | B149: Kilbourne village, Louisiana | C149: 66.6 | D149: 59.2 | E149: 62.7 | F149: 66.9 | G149: 70.8 | H149: 73.7 | I149: 77.9 | J149: 82.35294118 | K149: 81.13879004 | L149: 82.66129032 | M149: 86.80489712 | N149: 89.42482348 | O149: 92.04474984 | P149: 94.66467619 | Q149: 97.28460255 | R149: 99.90452891 | S149: 100 | T149: 100 | U149: 100 | V149: 100 | W149: 100 | X149: 100 | Y149: 100 | Z149: 100 | AA149: 100 | AB149: 100 | AC149: 100 | AD149: 100 | AE149: 100 | AF149: 100 | AG149: 100 | AH149: 100 | AI149: 100 | AJ149: 100 | AK149: 100 | AL149: 100 | AM149: 100 | AN149: 100 | AO149: 100 | AP149: 100 | AQ149: 100 | AR149: 100
A150: 1600000US2239685 | B150: Killian town, Louisiana | C150: 82.4 | D150: 83.8 | E150: 83.9 | F150: 87.6 | G150: 87.4 | H150: 88.4 | I150: 88.4 | J150: 87.59358289 | K150: 87.36162362 | L150: 88.45798707 | M150: 89.90869147 | N150: 90.52275913 | O150: 91.13682679 | P150: 91.75089444 | Q150: 92.3649621 | R150: 92.97902976 | S150: 93.59309741 | T150: 94.20716507 | U150: 94.82123273 | V150: 95.43530038 | W150: 94.82123273 | X150: 95.02592195 | Y150: 95.09415169 | Z150: 94.98043545 | AA150: 95.03350303 | AB150: 95.03603006 | AC150: 95.01665618 | AD150: 95.02872975 | AE150: 95.02713866 | AF150: 95.02417487 | AG150: 95.02668109 | AH150: 95.02599821 | AI150: 95.02561806 | AJ150: 95.02609912 | AK150: 95.02590513 | AL150: 95.0258741 | AM150: 95.02595945 | AN150: 95.02591289 | AO150: 95.02591548 | AP150: 95.02592927 | AQ150: 95.02591922 | AR150: 95.02592132
A151: 1600000US2239755 | B151: Kinder town, Louisiana | C151: 80.9 | D151: 77.5 | E151: 77.5 | F151: 78.9 | G151: 82.1 | H151: 83.1 | I151: 81.2 | J151: 78.6074672 | K151: 79.6460177 | L151: 80.72829132 | M151: 80.91531368 | N151: 81.07842933 | O151: 81.24154498 | P151: 81.40466062 | Q151: 81.56777627 | R151: 81.73089192 | S151: 81.89400756 | T151: 82.05712321 | U151: 82.22023886 | V151: 82.3833545 | W151: 82.22023886 | X151: 82.27461074 | Y151: 82.2927347 | Z151: 82.2625281 | AA151: 82.27662451 | AB151: =(AA151+Z151+Y151)/3 -> 82.27729577 | AC151: 82.27214946 | AD151: 82.27535658 | AE151: 82.27493394 | AF151: 82.27414666 | AG151: 82.27481239 | AH151: 82.274631 | AI151: 82.27453002 | AJ151: 82.2746578 | AK151: 82.27460627 | AL151: 82.27459803 | AM151: 82.2746207 | AN151: 82.27460833 | AO151: 82.27460902 | AP151: 82.27461269 | AQ151: 82.27461001 | AR151: 82.27461057
A152: 1600000US2240280 | B152: Krotz Springs town, Louisiana | C152: 67.4 | D152: 70 | E152: 68.4 | F152: 67.9 | G152: 65 | H152: 63.1 | I152: 61.6 | J152: 62.42236025 | K152: 59.02578797 | L152: 60.66282421 | M152: 58.2796884 | N152: 57.13943225 | O152: 55.9991761 | P152: 54.85891995 | Q152: 53.7186638 | R152: 52.57840764 | S152: 51.43815149 | T152: 50.29789534 | U152: 49.15763919 | V152: 48.01738303 | W152: =(V152+U152+T152)/3 -> 49.15763919 | X152: 48.7775538 | Y152: 48.65085867 | Z152: 48.86201722 | AA152: 48.76347657 | AB152: 48.75878415 | AC152: 48.79475931 | AD152: 48.77234001 | AE152: 48.77529449 | AF152: 48.78079794 | AG152: 48.77614415 | AH152: 48.77741219 | AI152: 48.77811809 | AJ152: 48.77722481 | AK152: 48.77758503 | AL152: 48.77764265 | AM152: 48.77748416 | AN152: 48.77757061 | AO152: 48.77756581 | AP152: 48.77754019 | AQ152: 48.77755887 | AR152: 48.77755496
A153: 1600000US2240735 | B153: Lafayette city, Louisiana | C153: 85.2 | D153: 85.9 | E153: 85.9 | F153: 85.8 | G153: 85.8 | H153: 86 | I153: 86.1 | J153: 86.95953339 | K153: 88.54594237 | L153: 89.75767625 | M153: 88.7942602 | N153: 89.19388656 | O153: 89.59351292 | P153: 89.99313928 | Q153: 90.39276565 | R153: 90.79239201 | S153: 91.19201837 | T153: 91.59164473 | U153: 91.9912711 | V153: 92.39089746 | W153: 91.9912711 | X153: 92.12447988 | Y153: 92.16888281 | Z153: 92.09487793 | AA153: 92.12941354 | AB153: 92.1310581 | AC153: 92.11844986 | AD153: 92.12630717 | AE153: 92.12527171 | AF153: 92.12334291 | AG153: 92.12497393 | AH153: 92.12452951 | AI153: 92.12428212 | AJ153: 92.12459519 | AK153: 92.12446894 | AL153: 92.12444875 | AM153: 92.12450429 | AN153: 92.12447399 | AO153: 92.12447568 | AP153: 92.12448465 | AQ153: 92.12447811 | AR153: 92.12447948
A154: 1600000US2241050 | B154: Lake Arthur town, Louisiana | C154: 54.4 | D154: 59.8 | E154: 64.3 | F154: 64.9 | G154: 63.2 | H154: 69.3 | I154: 65.9 | J154: 70.19089574 | K154: 70.13307048 | L154: 71.3562753 | M154: 74.13110581 | N154: 75.72802975 | O154: 77.32495369 | P154: 78.92187763 | Q154: 80.51880156 | R154: 82.1157255 | S154: 83.71264944 | T154: 85.30957338 | U154: 86.90649732 | V154: 88.50342125 | W154: 86.90649732 | X154: 87.4388053 | Y154: 87.61624129 | Z154: 87.32051463 | AA154: 87.45852041 | AB154: 87.46509211 | AC154: 87.41470905 | AD154: 87.44610719 | AE154: 87.44196945 | AF154: 87.4342619 | AG154: 87.44077951 | AH154: 87.43900362 | AI154: 87.43801501 | AJ154: 87.43926605 | AK154: 87.43876156 | AL154: 87.43868087 | AM154: 87.43890283 | AN154: 87.43878175 | AO154: 87.43878848 | AP154: 87.43882435 | AQ154: 87.4387982 | AR154: 87.43880368
A155: 1600000US2241155 | B155: Lake Charles city, Louisiana | C155: 80.7 | D155: 82.6 | E155: 83.7 | F155: 83.8 | G155: 83.5 | H155: 84.7 | I155: 84 | J155: 85.06668509 | K155: 86.45297544 | L155: 86.828636 | M155: 87.16022891 | N155: 87.7103015 | O155: 88.26037409 | P155: 88.81044668 | Q155: 89.36051927 | R155: 89.91059186 | S155: 90.46066445 | T155: 91.01073704 | U155: 91.56080964 | V155: 92.11088223 | W155: 91.56080964 | X155: 91.74416717 | Y155: 91.80528634 | Z155: 91.70342105 | AA155: 91.75095819 | AB155: 91.75322186 | AC155: 91.73586703 | AD155: 91.74668236 | AE155: 91.74525708 | AF155: 91.74260216 | AG155: 91.7448472 | AH155: 91.74423548 | AI155: 91.74389495 | AJ155: 91.74432588 | AK155: 91.7441521 | AL155: 91.74412431 | AM155: 91.74420076 | AN155: 91.74415906 | AO155: 91.74416137 | AP155: 91.74417373 | AQ155: 91.74416472 | AR155: 91.74416661
A156: 1600000US2241400 | B156: Lake Providence town, Louisiana | C156: 55.2 | D156: 64.8 | E156: 60.8 | F156: 61.8 | G156: 67.8 | H156: 73.6 | I156: 72.4 | J156: 75.73143286 | K156: 74.62082912 | L156: 76.54320988 | M156: 80.76594242 | N156: 83.02710519 | O156: 85.28826796 | P156: 87.54943073 | Q156: 89.8105935 | R156: 92.07175627 | S156: 94.33291904 | T156: 96.59408181 | U156: 98.85524458 | V156: 100 | W156: 98.4831088 | X156: 99.11278446 | Y156: 99.19863108 | Z156: 98.93150811 | AA156: 99.08097455 | AB156: 99.07037125 | AC156: 99.02761797 | AD156: 99.05965459 | AE156: 99.05254794 | AF156: 99.04660683 | AG156: 99.05293645 | AH156: 99.05069707 | AI156: 99.05008012 | AJ156: 99.05123788 | AK156: 99.05067169 | AL156: 99.05066323 | AM156: 99.0508576 | AN156: 99.05073084 | AO156: 99.05075056 | AP156: 99.05077967 | AQ156: 99.05075369 | AR156: 99.05076131
A157: 1600000US2242800 | B157: Lecompte town, Louisiana | C157: 78.1 | D157: 77.8 | E157: 79.1 | F157: 82.8 | G157: 81.4 | H157: 84.2 | I157: 82.2 | J157: 77.6077886 | K157: 78.7318362 | L157: 82.47162673 | M157: 81.75467305 | N157: 81.99349994 | O157: 82.23232683 | P157: 82.47115372 | Q157: 82.70998061 | R157: 82.9488075 | S157: 83.18763439 | T157: 83.42646129 | U157: 83.66528818 | V157: 83.90411507 | W157: 83.66528818 | X157: 83.74489714 | Y157: 83.77143346 | Z157: 83.72720626 | AA157: 83.74784562 | AB157: 83.74882845 | AC157: 83.74129344 | AD157: 83.74598917 | AE157: 83.74537035 | AF157: 83.74421765 | AG157: 83.74519239 | AH157: 83.7449268 | AI157: 83.74477895 | AJ157: 83.74496605 | AK157: 83.7448906 | AL157: 83.74487853 | AM157: 83.74491173 | AN157: 83.74489362 | AO157: 83.74489462 | AP157: 83.74489999 | AQ157: 83.74489608 | AR157: 83.7448969
A158: 1600000US2243010 | B158: Leesville city, Louisiana | C158: 80.4 | D158: 81.5 | E158: 81.2 | F158: 82.6 | G158: 82 | H158: 82.5 | I158: 81.8 | J158: 82.11989214 | K158: 82.69355888 | L158: 82.28101378 | M158: 82.84222971 | N158: 83.01182666 | O158: 83.18142361 | P158: 83.35102056 | Q158: 83.52061751 | R158: 83.69021447 | S158: 83.85981142 | T158: 84.02940837 | U158: 84.19900532 | V158: 84.36860227 | W158: 84.19900532 | X158: 84.25553764 | Y158: 84.27438174 | Z158: 84.2429749 | AA158: 84.25763143 | AB158: 84.25832936 | AC158: 84.25297856 | AD158: 84.25631311 | AE158: 84.25587368 | AF158: 84.25505512 | AG158: 84.2557473 | AH158: 84.2555587 | AI158: 84.25545371 | AJ158: 84.25558657 | AK158: 84.25553299 | AL158: 84.25552442 | AM158: 84.25554799 | AN158: 84.25553514 | AO158: 84.25553585 | AP158: 84.25553966 | AQ158: 84.25553688 | AR158: 84.25553746
A159: 1600000US2243395 | B159: Leonville town, Louisiana | C159: 83.6 | D159: 84.2 | E159: 82 | F159: 78.6 | G159: 75 | H159: 77.6 | I159: 77.6 | J159: 83.75165125 | K159: 76.83923706 | L159: 81.06591865 | M159: 77.82655348 | N159: 77.42671217 | O159: 77.02687086 | P159: 76.62702955 | Q159: 76.22718823 | R159: 75.82734692 | S159: 75.42750561 | T159: 75.0276643 | U159: 74.62782299 | V159: 74.22798168 | W159: 74.62782299 | X159: 74.49454255 | Y159: 74.45011574 | Z159: 74.52416043 | AA159: 74.48960624 | AB159: 74.4879608 | AC159: 74.50057582 | AD159: 74.49271429 | AE159: 74.4937503 | AF159: 74.49568014 | AG159: 74.49404824 | AH159: 74.49449289 | AI159: 74.49474042 | AJ159: 74.49442719 | AK159: 74.4945535 | AL159: 74.4945737 | AM159: 74.49451813 | AN159: 74.49454845 | AO159: 74.49454676 | AP159: 74.49453778 | AQ159: 74.49454433 | AR159: 74.49454296
A160: 1600000US2243920 | B160: Lillie village, Louisiana | C160: 72.2 | D160: 67.5 | E160: 70.7 | F160: 66 | G160: 64.3 | H160: 74.2 | I160: 89 | J160: 86.93181818 | K160: 88 | L160: 88.31168831 | M160: 91.66649351 | N160: 94.38506494 | O160: 97.10363636 | P160: 99.82220779 | Q160: 100 | R160: 100 | S160: 100 | T160: 100 | U160: 100 | V160: 100 | W160: 100 | X160: 100 | Y160: 100 | Z160: 100 | AA160: 100 | AB160: 100 | AC160: 100 | AD160: 100 | AE160: 100 | AF160: 100 | AG160: 100 | AH160: 100 | AI160: 100 | AJ160: 100 | AK160: 100 | AL160: 100 | AM160: 100 | AN160: 100 | AO160: 100 | AP160: 100 | AQ160: 100 | AR160: 100
A161: 1600000US2244235 | B161: Lisbon village, Louisiana | C161: 85.6 | D161: 84.4 | E161: 80.9 | F161: 87.4 | G161: 79.8 | H161: 77.2 | I161: 74.4 | J161: 84.54545455 | K161: 82.14285714 | L161: 93.03797468 | M161: 83.86826347 | N161: 84.03656071 | O161: 84.20485795 | P161: 84.37315519 | Q161: 84.54145243 | R161: 84.70974967 | S161: 84.87804692 | T161: 85.04634416 | U161: 85.2146414 | V161: 85.38293864 | W161: 85.2146414 | X161: 85.27074048 | Y161: 85.28944017 | Z161: 85.25827402 | AA161: 85.27281822 | AB161: 85.27351081 | AC161: 85.26820102 | AD161: 85.27151002 | AE161: 85.27107395 | AF161: 85.27026166 | AG161: 85.27094854 | AH161: 85.27076138 | AI161: 85.27065719 | AJ161: 85.27078904 | AK161: 85.27073587 | AL161: 85.27072737 | AM161: 85.27075076 | AN161: 85.270738 | AO161: 85.27073871 | AP161: 85.27074249 | AQ161: 85.27073973 | AR161: 85.27074031
A162: 1600000US2244655 | B162: Livingston town, Louisiana | C162: 84.5 | D162: 82 | E162: 78.5 | F162: 76.8 | G162: 78.2 | H162: 81.2 | I162: 83.1 | J162: 86.61784288 | K162: 86.28088427 | L162: 88.10606061 | M162: 86.69414376 | N162: 87.45117376 | O162: 88.20820376 | P162: 88.96523376 | Q162: 89.72226376 | R162: 90.47929376 | S162: 91.23632375 | T162: 91.99335375 | U162: 92.75038375 | V162: 93.50741375 | W162: 92.75038375 | X162: 93.00272708 | Y162: 93.08684153 | Z162: 92.94665079 | AA162: 93.01207313 | AB162: 93.01518848 | AC162: 92.99130413 | AD162: 93.00618858 | AE162: 93.00422707 | AF162: 93.00057326 | AG162: 93.00366297 | AH162: 93.0028211 | AI162: 93.00235244 | AJ162: 93.0029455 | AK162: 93.00270635 | AL162: 93.0026681 | AM162: 93.00277332 | AN162: 93.00271592 | AO162: 93.00271911 | AP162: 93.00273612 | AQ162: 93.00272372 | AR162: 93.00272631
A163: 1600000US2244690 | B163: Livonia town, Louisiana | C163: 83.3 | D163: 82.4 | E163: 82.9 | F163: 84.3 | G163: 84.7 | H163: 84.4 | I163: 82.4 | J163: 84.45040214 | K163: 78.64534337 | L163: 78.36624776 | M163: 80.28838746 | N163: 79.87060349 | O163: 79.45281951 | P163: 79.03503554 | Q163: 78.61725156 | R163: 78.19946759 | S163: 77.78168361 | T163: 77.36389964 | U163: 76.94611566 | V163: 76.52833169 | W163: 76.94611566 | X163: 76.80685434 | Y163: 76.7604339 | Z163: 76.8378013 | AA163: 76.80169651 | AB163: 76.79997723 | AC163: 76.81315835 | AD163: 76.80494403 | AE163: 76.80602654 | AF163: 76.80804297 | AG163: 76.80633785 | AH163: 76.80680245 | AI163: 76.80706109 | AJ163: 76.8067338 | AK163: 76.80686578 | AL163: 76.80688689 | AM163: 76.80682882 | AN163: 76.8068605 | AO163: 76.80685874 | AP163: 76.80684935 | AQ163: 76.80685619 | AR163: 76.80685476
A164: 1600000US2244900 | B164: Lockport town, Louisiana | C164: 61 | D164: 61.8 | E164: 67.4 | F164: 66.7 | G164: 73.8 | H164: 76.2 | I164: 76.3 | J164: 80.33282905 | K164: 75.58079504 | L164: 72.55566312 | M164: 81.04461801 | N164: 82.84056151 | O164: 84.63650502 | P164: 86.43244853 | Q164: 88.22839203 | R164: 90.02433554 | S164: 91.82027905 | T164: 93.61622255 | U164: 95.41216606 | V164: 97.20810957 | W164: 95.41216606 | X164: 96.0108139 | Y164: 96.21036317 | Z164: 95.87778104 | AA164: 96.03298604 | AB164: 96.04037675 | AC164: 95.98371461 | AD164: 96.0190258 | AE164: 96.01437239 | AF164: 96.00570427 | AG164: 96.01303415 | AH164: 96.01103694 | AI164: 96.00992512 | AJ164: 96.01133207 | AK164: 96.01076471 | AL164: 96.01067396 | AM164: 96.01092358 | AN164: 96.01078742 | AO164: 96.01079499 | AP164: 96.01083533 | AQ164: 96.01080591 | AR164: 96.01081208
A165: 1600000US2245040 | B165: Logansport town, Louisiana | C165: 81.4 | D165: 83.5 | E165: 81.6 | F165: 81.2 | G165: 80.3 | H165: 81.9 | I165: 83.9 | J165: 84.34476693 | K165: 81.34270101 | L165: 77.28337237 | M165: 80.71952047 | N165: 80.545418 | O165: 80.37131553 | P165: 80.19721307 | Q165: 80.0231106 | R165: 79.84900813 | S165: 79.67490567 | T165: 79.5008032 | U165: 79.32670073 | V165: 79.15259827 | W165: 79.32670073 | X165: 79.26866658 | Y165: 79.24932186 | Z165: 79.28156306 | AA165: 79.26651717 | AB165: 79.2658007 | AC165: 79.27129364 | AD165: 79.2678705 | AE165: 79.26832161 | AF165: 79.26916192 | AG165: 79.26845134 | AH165: 79.26864496 | AI165: 79.26875274 | AJ165: 79.26861635 | AK165: 79.26867135 | AL165: 79.26868014 | AM165: 79.26865595 | AN165: 79.26866915 | AO165: 79.26866841 | AP165: 79.2686645 | AQ165: 79.26866735 | AR165: 79.26866676
A166: 1600000US2245460 | B166: Longstreet village, Louisiana | C166: 91.2 | D166: 92.6 | E166: 93.4 | F166: 91.5 | G166: 91.9 | H166: 89.3 | I166: 85.5 | J166: 88.4057971 | K166: 89.42307692 | L166: 80.92485549 | M166: 84.07251373 | N166: 83.10108478 | O166: 82.12965583 | P166: 81.15822688 | Q166: 80.18679793 | R166: 79.21536899 | S166: 78.24394004 | T166: 77.27251109 | U166: 76.30108214 | V166: 75.32965319 | W166: 76.30108214 | X166: 75.97727249 | Y166: 75.86933594 | Z166: 76.04923019 | AA166: 75.96527954 | AB166: 75.96128189 | AC166: 75.99193054 | AD166: 75.97283066 | AE166: 75.97534769 | AF166: 75.9800363 | AG166: 75.97607155 | AH166: 75.97715185 | AI166: 75.97775323 | AJ166: 75.97699221 | AK166: 75.97729909 | AL166: 75.97734818 | AM166: 75.97721316 | AN166: 75.97728681 | AO166: 75.97728272 | AP166: 75.9772609 | AQ166: 75.97727681 | AR166: 75.97727347
A167: 1600000US2245670 | B167: Loreauville village, Louisiana | C167: 82.1 | D167: 79.7 | E167: 78.8 | F167: 77.7 | G167: 77.5 | H167: 79.4 | I167: 77.9 | J167: 77.69376181 | K167: 75.24916944 | L167: 73.05084746 | M167: 74.05506528 | N167: 73.35428117 | O167: 72.65349706 | P167: 71.95271296 | Q167: 71.25192885 | R167: 70.55114474 | S167: 69.85036063 | T167: 69.14957653 | U167: 68.44879242 | V167: 67.74800831 | W167: 68.44879242 | X167: 68.21519772 | Y167: 68.13733281 | Z167: 68.26710765 | AA167: 68.20654606 | AB167: 68.20366217 | AC167: 68.22577196 | AD167: 68.2119934 | AE167: 68.21380918 | AF167: 68.21719151 | AG167: 68.21433136 | AH167: 68.21511068 | AI167: 68.21554452 | AJ167: 68.21499552 | AK167: 68.21521691 | AL167: 68.21525232 | AM167: 68.21515492 | AN167: 68.21520805 | AO167: 68.21520509 | AP167: 68.21518935 | AQ167: 68.21520083 | AR167: 68.21519843
A168: 1600000US2246370 | B168: Lucky village, Louisiana | C168: 72.1 | D168: 65.5 | E168: 66.2 | F168: 73.8 | G168: 79.3 | H168: 80.2 | I168: 78.6 | J168: 65.63876652 | K168: 61.11111111 | L168: 55.95238095 | M168: 64.38832716 | N168: 63.39707285 | O168: 62.40581854 | P168: 61.41456423 | Q168: 60.42330992 | R168: 59.43205561 | S168: 58.4408013 | T168: 57.44954699 | U168: 56.45829268 | V168: 55.46703837 | W168: 56.45829268 | X168: 56.12787458 | Y168: 56.01773521 | Z168: 56.20130082 | AA168: 56.11563687 | AB168: 56.11155763 | AC168: 56.14283178 | AD168: 56.12334209 | AE168: 56.1259105 | AF168: 56.13069479 | AG168: 56.12664913 | AH168: 56.12775147 | AI168: 56.12836513 | AJ168: 56.12758858 | AK168: 56.12790173 | AL168: 56.12795181 | AM168: 56.12781404 | AN168: 56.12788919 | AO168: 56.12788501 | AP168: =(AO168+AN168+AM168)/3 -> 56.12786275 | AQ168: 56.12787899 | AR168: 56.12787558
A169: 1600000US2246720 | B169: Lutcher town, Louisiana | C169: 86.7 | D169: 80.8 | E169: 81.1 | F169: 79.8 | G169: 80.8 | H169: 82.4 | I169: 89.8 | J169: 84.2926491 | K169: 85.60660445 | L169: 84.16945373 | M169: 85.4946894 | N169: 85.84883825 | O169: 86.2029871 | P169: 86.55713595 | Q169: 86.9112848 | R169: 87.26543365 | S169: 87.6195825 | T169: 87.97373135 | U169: 88.3278802 | V169: 88.68202905 | W169: 88.3278802 | X169: 88.44592982 | Y169: 88.48527969 | Z169: 88.41969657 | AA169: 88.45030203 | AB169: 88.45175943 | AC169: 88.44058601 | AD169: 88.44754916 | AE169: 88.44663153 | AF169: 88.44492223 | AG169: 88.44636764 | AH169: 88.4459738 | AI169: 88.44575456 | AJ169: 88.446032 | AK169: 88.44592012 | AL169: 88.44590223 | AM169: 88.44595145 | AN169: 88.4459246 | AO169: 88.44592609 | AP169: 88.44593405 | AQ169: 88.44592825 | AR169: 88.44592946
A170: 1600000US2247560 | B170: Madisonville town, Louisiana | C170: 92 | D170: 92.2 | E170: 95.3 | F170: 95.2 | G170: 96.6 | H170: 96.5 | I170: 96.5 | J170: 94.44444444 | K170: 95.15050167 | L170: 96.47779479 | M170: 97.05313699 | N170: 97.41965752 | O170: 97.78617805 | P170: 98.15269858 | Q170: 98.5192191 | R170: 98.88573963 | S170: 99.25226016 | T170: 99.61878069 | U170: 99.98530121 | V170: 100 | W170: 99.8680273 | X170: 99.95110951 | Y170: 99.93971227 | Z170: 99.91961636 | AA170: 99.93681271 | AB170: 99.93204711 | AC170: 99.92949206 | AD170: 99.93278396 | AE170: 99.93144104 | AF170: 99.93123902 | AG170: 99.93182134 | AH170: 99.93150047 | AI170: 99.93152028 | AJ170: 99.93161403 | AK170: 99.93154493 | AL170: 99.93155974 | AM170: 99.9315729 | AN170: 99.93155919 | AO170: 99.93156395 | AP170: 99.93156535 | AQ170: 99.93156283 | AR170: 99.93156404
A171: 1600000US2248085 | B171: Mamou town, Louisiana | C171: 57.2 | D171: 58.2 | E171: 61.8 | F171: 68.2 | G171: 63.8 | H171: 60.6 | I171: 63.4 | J171: 66.52641421 | K171: 67.07427536 | L171: 67.93028322 | M171: 68.96391553 | N171: 69.96224613 | O171: 70.96057672 | P171: 71.95890731 | Q171: 72.9572379 | R171: 73.95556849 | S171: 74.95389908 | T171: 75.95222968 | U171: 76.95056027 | V171: 77.94889086 | W171: 76.95056027 | X171: 77.28333713 | Y171: 77.39426275 | Z171: 77.20938672 | AA171: 77.2956622 | AB171: 77.29977056 | AC171: 77.26827316 | AD171: 77.28790197 | AE171: 77.28531523 | AF171: 77.28049679 | AG171: 77.28457133 | AH171: 77.28346111 | AI171: 77.28284308 | AJ171: 77.28362517 | AK171: 77.28330979 | AL171: 77.28325935 | AM171: 77.2833981 | AN171: 77.28332241 | AO171: 77.28332662 | AP171: 77.28334904 | AQ171: 77.28333269 | AR171: 77.28333612
A172: 1600000US2248225 | B172: Mandeville city, Louisiana | C172: 92.7 | D172: 93.2 | E172: 92.8 | F172: 93 | G172: 92.4 | H172: 92 | I172: 93.3 | J172: 91.57725322 | K172: 91.20867551 | L172: 91.33702119 | M172: 91.2916345 | N172: 91.09878714 | O172: 90.90593978 | P172: 90.71309242 | Q172: 90.52024506 | R172: 90.3273977 | S172: 90.13455033 | T172: 89.94170297 | U172: 89.74885561 | V172: 89.55600825 | W172: 89.74885561 | X172: 89.68457316 | Y172: 89.66314567 | Z172: 89.69885815 | AA172: 89.68219233 | AB172: 89.68139872 | AC172: 89.68748306 | AD172: 89.68369137 | AE172: 89.68419105 | AF172: 89.68512183 | AG172: 89.68433475 | AH172: 89.68454921 | AI172: 89.68466859 | AJ172: 89.68451752 | AK172: 89.68457844 | AL172: 89.68458818 | AM172: 89.68456138 | AN172: 89.684576 | AO172: 89.68457519 | AP172: 89.68457086 | AQ172: 89.68457402 | AR172: 89.68457335
A173: 1600000US2248260 | B173: Mangham town, Louisiana | C173: 58 | D173: 57 | E173: 64.8 | F173: 74.5 | G173: 78.9 | H173: 76.3 | I173: 83.6 | J173: 83.93665158 | K173: 80.59701493 | L173: 72.4137931 | M173: 86.84762931 | N173: 89.36451719 | O173: 91.88140507 | P173: 94.39829295 | Q173: 96.91518083 | R173: 99.43206871 | S173: 100 | T173: 100 | U173: 100 | V173: 100 | W173: 100 | X173: 100 | Y173: 100 | Z173: 100 | AA173: 100 | AB173: 100 | AC173: 100 | AD173: 100 | AE173: 100 | AF173: 100 | AG173: 100 | AH173: 100 | AI173: 100 | AJ173: 100 | AK173: 100 | AL173: 100 | AM173: 100 | AN173: 100 | AO173: 100 | AP173: 100 | AQ173: 100 | AR173: 100
A174: 1600000US2248365 | B174: Mansfield city, Louisiana | C174: 72.1 | D174: 74.9 | E174: 72.8 | F174: 71.3 | G174: 70.6 | H174: 72.2 | I174: 69.4 | J174: 73.31127654 | K174: 70.74115044 | L174: 73.11537422 | M174: 71.32954025 | N174: 71.199133 | O174: 71.06872575 | P174: 70.9383185 | Q174: 70.80791125 | R174: 70.677504 | S174: 70.54709675 | T174: 70.4166895 | U174: 70.28628225 | V174: 70.155875 | W174: 70.28628225 | X174: 70.24281317 | Y174: 70.22832347 | Z174: 70.25247296 | AA174: 70.2412032 | AB174: 70.24066654 | AC174: 70.2447809 | AD174: 70.24221688 | AE174: 70.24255478 | AF174: 70.24318419 | AG174: 70.24265195 | AH174: 70.24279697 | AI174: 70.2428777 | AJ174: 70.24277554 | AK174: 70.24281674 | AL174: 70.24282333 | AM174: 70.2428052 | AN174: 70.24281509 | AO174: 70.24281454 | AP174: 70.24281161 | AQ174: 70.24281375 | AR174: 70.2428133
A175: 1600000US2248400 | B175: Mansura town, Louisiana | C175: 61.4 | D175: 64.5 | E175: 69.3 | F175: 67.4 | G175: 67.2 | H175: 70.5 | I175: 71.1 | J175: 70.68832173 | K175: 77.37281701 | L175: 75.72815534 | M175: 77.53242027 | N175: 78.98941861 | O175: 80.44641694 | P175: 81.90341528 | Q175: 83.36041362 | R175: 84.81741196 | S175: 86.2744103 | T175: 87.73140863 | U175: 89.18840697 | V175: 90.64540531 | W175: 89.18840697 | X175: 89.67407308 | Y175: 89.83596179 | Z175: 89.56614728 | AA175: 89.69206072 | AB175: 89.6980566 | AC175: 89.6520882 | AD175: 89.68073517 | AE175: 89.67695999 | AF175: 89.66992779 | AG175: 89.67587432 | AH175: 89.67425403 | AI175: 89.67335204 | AJ175: 89.67449346 | AK175: =(AJ175+AI175+AH175)/3 -> 89.67403318 | AL175: 89.67395956 | AM175: 89.67416207 | AN175: 89.6740516 | AO175: 89.67405774 | AP175: 89.67409047 | AQ175: 89.67406661 | AR175: 89.67407161
A176: 1600000US2248470 | B176: Many town, Louisiana | C176: 79 | D176: 74.1 | E176: 74.4 | F176: 76.2 | G176: 78.8 | H176: 81.5 | I176: 81.5 | J176: 80.7673628 | K176: 81.78760211 | L176: 83.05825243 | M176: 83.80379842 | N176: 84.656976 | O176: 85.51015358 | P176: 86.36333116 | Q176: 87.21650874 | R176: 88.06968632 | S176: 88.9228639 | T176: 89.77604148 | U176: 90.62921906 | V176: 91.48239664 | W176: 90.62921906 | X176: 90.91361158 | Y176: 91.00840909 | Z176: 90.85041325 | AA176: 90.92414464 | AB176: 90.92765566 | AC176: 90.90073785 | AD176: 90.91751272 | AE176: 90.91530208 | AF176: 90.91118421 | AG176: 90.91466634 | AH176: 90.91371754 | AI176: 90.91318936 | AJ176: 90.91385775 | AK176: 90.91358822 | AL176: 90.91354511 | AM176: 90.91366369 | AN176: 90.91359901 | AO176: 90.9136026 | AP176: 90.91362177 | AQ176: 90.91360779 | AR176: 90.91361072
A177: 1600000US2248610 | B177: Maringouin town, Louisiana | C177: 80.9 | D177: 81.4 | E177: 75.5 | F177: 78 | G177: 77.1 | H177: 78.6 | I177: 84.2 | J177: 86.35724332 | K177: 84.85221675 | L177: 84.79001135 | M177: 85.62200834 | N177: 86.43147401 | O177: 87.24093969 | P177: 88.05040536 | Q177: 88.85987103 | R177: 89.66933671 | S177: 90.47880238 | T177: 91.28826805 | U177: 92.09773372 | V177: 92.9071994 | W177: 92.09773372 | X177: 92.36755561 | Y177: 92.45749624 | Z177: 92.30759519 | AA177: 92.37754902 | AB177: 92.38088015 | AC177: 92.35534145 | AD177: 92.37125687 | AE177: 92.36915949 | AF177: 92.36525261 | AG177: 92.36855633 | AH177: 92.36765614 | AI177: 92.36715503 | AJ177: 92.36778916 | AK177: 92.36753344 | AL177: 92.36749254 | AM177: 92.36760505 | AN177: 92.36754368 | AO177: 92.36754709 | AP177: 92.36756527 | AQ177: 92.36755202 | AR177: 92.36755479
A178: 1600000US2248645 | B178: Marion town, Louisiana | C178: 82.9 | D178: 78.6 | E178: 79.1 | F178: 79.4 | G178: 76.7 | H178: 80.8 | I178: 83.1 | J178: 82.46753247 | K178: 82.3030303 | L178: 87.359199 | M178: 84.54269836 | N178: 85.1371933 | O178: 85.73168824 | P178: 86.32618318 | Q178: 86.92067813 | R178: 87.51517307 | S178: 88.10966801 | T178: 88.70416295 | U178: 89.2986579 | V178: 89.89315284 | W178: 89.2986579 | X178: 89.49682288 | Y178: 89.56287787 | Z178: 89.45278621 | AA178: 89.50416232 | AB178: 89.5066088 | AC178: 89.48785244 | AD178: 89.49954119 | AE178: 89.49800081 | AF178: 89.49513148 | AG178: 89.49755783 | AH178: 89.49689671 | AI178: 89.49652867 | AJ178: 89.4969944 | AK178: 89.49680659 | AL178: 89.49677656 | AM178: 89.49685918 | AN178: 89.49681411 | AO178: 89.49681662 | AP178: 89.49682997 | AQ178: 89.49682023 | AR178: 89.49682227
A179: 1600000US2248750 | B179: Marksville city, Louisiana | C179: 59.6 | D179: 63.4 | E179: 65.3 | F179: 58.3 | G179: 61.7 | H179: 64.7 | I179: 68.5 | J179: 66.01657728 | K179: 72.64356676 | L179: 74.67661692 | M179: 73.40292296 | N179: 74.84278603 | O179: 76.28264909 | P179: 77.72251216 | Q179: 79.16237522 | R179: 80.60223829 | S179: 82.04210136 | T179: 83.48196442 | U179: 84.92182749 | V179: 86.36169056 | W179: 84.92182749 | X179: 85.40178184 | Y179: 85.56176663 | Z179: 85.29512532 | AA179: 85.41955793 | AB179: 85.42548329 | AC179: 85.38005552 | AD179: 85.40836558 | AE179: 85.4046348 | AF179: 85.3976853 | AG179: 85.40356189 | AH179: 85.40196066 | AI179: 85.40106928 | AJ179: 85.40219728 | AK179: 85.40174241 | AL179: 85.40166966 | AM179: 85.40186978 | AN179: 85.40176062 | AO179: 85.40176668 | AP179: 85.40179903 | AQ179: 85.40177544 | AR179: 85.40178038
A180: 1600000US2248925 | B180: Martin village, Louisiana | C180: 77.2 | D180: 76.5 | E180: 68.8 | F180: 77.4 | G180: 74.8 | H180: 82.1 | I180: 85.1 | J180: 92.21311475 | K180: 92.47787611 | L180: 93.48659004 | M180: 95.53742532 | N180: 97.99736481 | O180: 100 | P180: 100 | Q180: 100 | R180: 100 | S180: 100 | T180: 100 | U180: 100 | V180: 100 | W180: 100 | X180: 100 | Y180: 100 | Z180: 100 | AA180: 100 | AB180: 100 | AC180: 100 | AD180: 100 | AE180: 100 | AF180: 100 | AG180: 100 | AH180: 100 | AI180: 100 | AJ180: 100 | AK180: 100 | AL180: 100 | AM180: 100 | AN180: 100 | AO180: 100 | AP180: 100 | AQ180: 100 | AR180: 100
A181: 1600000US2249240 | B181: Maurice village, Louisiana | C181: 88.5 | D181: 81.4 | E181: 75 | F181: 79.7 | G181: 77.4 | H181: 78.3 | I181: 79.4 | J181: 81.09280139 | K181: 79.18968692 | L181: 79.11908646 | M181: 77.5956106 | N181: 77.17478389 | O181: 76.75395718 | P181: 76.33313048 | Q181: 75.91230377 | R181: 75.49147707 | S181: 75.07065036 | T181: 74.64982366 | U181: 74.22899695 | V181: 73.80817024 | W181: 74.22899695 | X181: 74.08872138 | Y181: 74.04196286 | Z181: 74.11989373 | AA181: 74.08352599 | AB181: 74.08179419 | AC181: 74.0950713 | AD181: 74.08679716 | AE181: 74.08788755 | AF181: 74.08991867 | AG181: 74.08820113 | AH181: 74.08866912 | AI181: 74.08892964 | AJ181: 74.08859996 | AK181: 74.08873291 | AL181: 74.08875417 | AM181: 74.08869568 | AN181: 74.08872759 | AO181: 74.08872581 | AP181: 74.08871636 | AQ181: 74.08872325 | AR181: 74.08872181
A182: 1600000US2247315 | B182: McNary village, Louisiana | C182: 73.5 | D182: 78.5 | E182: 76.9 | F182: 74.1 | G182: 80.4 | H182: 81.9 | I182: 89.1 | J182: 87.02290076 | K182: 88.59060403 | L182: 85.33333333 | M182: 90.67630821 | N182: 92.33842174 | O182: 94.00053527 | P182: 95.66264879 | Q182: 97.32476232 | R182: 98.98687585 | S182: 100 | T182: 100 | U182: 100 | V182: 100 | W182: 100 | X182: 100 | Y182: 100 | Z182: 100 | AA182: 100 | AB182: 100 | AC182: 100 | AD182: 100 | AE182: 100 | AF182: 100 | AG182: 100 | AH182: 100 | AI182: 100 | AJ182: 100 | AK182: 100 | AL182: 100 | AM182: 100 | AN182: 100 | AO182: 100 | AP182: 100 | AQ182: 100 | AR182: 100
A183: 1600000US2249730 | B183: Melville town, Louisiana | C183: 68.1 | D183: 67.5 | E183: 68.6 | F183: 69.9 | G183: 72.5 | H183: 65.6 | I183: 64.7 | J183: 66.283084 | K183: 67.40576497 | L183: 65.5 | M183: 65.67074406 | N183: 65.31835481 | O183: 64.96596557 | P183: 64.61357633 | Q183: 64.26118708 | R183: 63.90879784 | S183: 63.55640859 | T183: 63.20401935 | U183: 62.85163011 | V183: 62.49924086 | W183: 62.85163011 | X183: 62.73416703 | Y183: 62.69501267 | Z183: 62.76026993 | AA183: 62.72981654 | AB183: 62.72836638 | AC183: 62.73948428 | AD183: 62.73255574 | AE183: 62.7334688 | AF183: 62.73516961 | AG183: 62.73373138 | AH183: 62.73412326 | AI183: 62.73434142 | AJ183: 62.73406535 | AK183: 62.73417668 | AL183: 62.73419448 | AM183: 62.7341455 | AN183: 62.73417222 | AO183: 62.73417074 | AP183: 62.73416282 | AQ183: 62.73416859 | AR183: 62.73416738
A184: 1600000US2249905 | B184: Mer Rouge village, Louisiana | C184: 80 | D184: 84.2 | E184: 83.4 | F184: 87.1 | G184: 83 | H184: 84.7 | I184: 88.8 | J184: 91.78082192 | K184: 89.78622328 | L184: 88.32951945 | M184: 91.53543472 | N184: 92.52193985 | O184: 93.50844499 | P184: 94.49495013 | Q184: 95.48145527 | R184: 96.4679604 | S184: 97.45446554 | T184: 98.44097068 | U184: 99.42747581 | V184: 100 | W184: 99.28948216 | X184: 99.57231933 | Y184: 99.6206005 | Z184: 99.49413399 | AA184: 99.56235127 | AB184: 99.55902859 | AC184: 99.53850462 | AD184: 99.55329483 | AE184: 99.55027601 | AF184: 99.54735848 | AG184: 99.55030977 | AH184: 99.54931476 | AI184: 99.54899434 | AJ184: 99.54953962 | AK184: 99.54928291 | AL184: 99.54927229 | AM184: 99.54936494 | AN184: 99.54930671 | AO184: 99.54931465 | AP184: 99.54932877 | AQ184: 99.54931671 | AR184: 99.54932004
A185: 1600000US2249870 | B185: Mermentau village, Louisiana | C185: 67.3 | D185: 68.4 | E185: 62.7 | F185: 68.6 | G185: 67.5 | H185: 68.8 | I185: 66 | J185: 69.21675774 | K185: 74.1509434 | L185: 79.53216374 | M185: 75.10098203 | N185: 76.17025394 | O185: 77.23952586 | P185: 78.30879778 | Q185: 79.37806969 | R185: 80.44734161 | S185: 81.51661352 | T185: 82.58588544 | U185: 83.65515736 | V185: 84.72442927 | W185: 83.65515736 | X185: 84.01158133 | Y185: 84.13038932 | Z185: 83.932376 | AA185: 84.02478222 | AB185: 84.02918251 | AC185: 83.99544691 | AD185: 84.01647055 | AE185: 84.01369999 | AF185: =(AE185+AD185+AC185)/3 -> 84.00853915 | AG185: 84.01290323 | AH185: 84.01171412 | AI185: 84.01105217 | AJ185: 84.01188984 | AK185: 84.01155204 | AL185: 84.01149802 | AM185: 84.01164663 | AN185: 84.01156556 | AO185: 84.01157007 | AP185: 84.01159409 | AQ185: 84.01157657 | AR185: 84.01158024
A186: 1600000US2250010 | B186: Merryville town, Louisiana | C186: 81.2 | D186: 82.1 | E186: 79.3 | F186: 77.7 | G186: 77.5 | H186: 73.4 | I186: 72.1 | J186: 75.74511819 | K186: 77.49490835 | L186: 71.23442809 | M186: 71.42410554 | N186: 70.450771 | O186: 69.47743647 | P186: 68.50410194 | Q186: 67.53076741 | R186: 66.55743287 | S186: 65.58409834 | T186: 64.61076381 | U186: 63.63742928 | V186: 62.66409475 | W186: =(V186+U186+T186)/3 -> 63.63742928 | X186: 63.31298443 | Y186: 63.20483615 | Z186: 63.38508329 | AA186: 63.30096796 | AB186: 63.29696247 | AC186: 63.32767124 | AD186: 63.30853389 | AE186: 63.31105586 | AF186: 63.31575366 | AG186: 63.31178114 | AH186: 63.31286355 | AI186: 63.31346612 | AJ186: 63.3127036 | AK186: 63.31301109 | AL186: 63.31306027 | AM186: 63.31292499 | AN186: 63.31299878 | AO186: 63.31299468 | AP186: 63.31297282 | AQ186: 63.31298876 | AR186: 63.31298542
A187: 1600000US2250885 | B187: Minden city, Louisiana | C187: 75.3 | D187: 75.3 | E187: 80 | F187: 81.2 | G187: 80.6 | H187: 82.2 | I187: 83.4 | J187: 83.14160218 | K187: 83.73083475 | L187: 83.86757751 | M187: 86.20840317 | N187: 87.17829439 | O187: 88.14818561 | P187: 89.11807684 | Q187: 90.08796806 | R187: 91.05785928 | S187: 92.0277505 | T187: 92.99764173 | U187: 93.96753295 | V187: 94.93742417 | W187: 93.96753295 | X187: 94.29083002 | Y187: 94.39859571 | Z187: 94.21898623 | AA187: 94.30280399 | AB187: 94.30679531 | AC187: 94.27619518 | AD187: 94.29526483 | AE187: 94.29275177 | AF187: 94.28807059 | AG187: 94.29202906 | AH187: 94.29095047 | AI187: 94.29035004 | AJ187: 94.29110986 | AK187: 94.29080346 | AL187: 94.29075445 | AM187: 94.29088926 | AN187: 94.29081572 | AO187: 94.29081981 | AP187: 94.2908416 | AQ187: 94.29082571 | AR187: 94.29082904
A188: 1600000US2251410 | B188: Monroe city, Louisiana | C188: 81.1 | D188: 80.8 | E188: 80.3 | F188: 81.6 | G188: 81.2 | H188: 82 | I188: 81.8 | J188: 83.96210359 | K188: 84.52956385 | L188: 84.07112376 | M188: 84.55486508 | N188: 84.99460798 | O188: 85.43435088 | P188: 85.87409378 | Q188: 86.31383668 | R188: 86.75357958 | S188: 87.19332248 | T188: 87.63306538 | U188: 88.07280829 | V188: 88.51255119 | W188: 88.07280829 | X188: 88.21938925 | Y188: 88.26824957 | Z188: 88.1868157 | AA188: 88.22481818 | AB188: 88.22662782 | AC188: 88.2127539 | AD188: 88.22139997 | AE188: 88.22026056 | AF188: 88.21813814 | AG188: 88.21993289 | AH188: 88.21944386 | AI188: 88.21917163 | AJ188: 88.21951613 | AK188: 88.21937721 | AL188: 88.21935499 | AM188: 88.21941611 | AN188: 88.21938277 | AO188: 88.21938462 | AP188: 88.2193945 | AQ188: 88.2193873 | AR188: 88.21938881
A189: 1600000US2251620 | B189: Montgomery town, Louisiana | C189: 73.5 | D189: 72.6 | E189: 77.1 | F189: 75.9 | G189: 76 | H189: 81.6 | I189: 87.2 | J189: 89.23357664 | K189: 90.16393443 | L189: 89.97722096 | M189: 93.7078203 | N189: 95.95879249 | O189: 98.20976469 | P189: 100 | Q189: 100 | R189: 100 | S189: 100 | T189: 100 | U189: 100 | V189: 100 | W189: 100 | X189: 100 | Y189: 100 | Z189: 100 | AA189: 100 | AB189: 100 | AC189: 100 | AD189: 100 | AE189: 100 | AF189: 100 | AG189: 100 | AH189: 100 | AI189: 100 | AJ189: 100 | AK189: 100 | AL189: 100 | AM189: 100 | AN189: 100 | AO189: 100 | AP189: 100 | AQ189: 100 | AR189: 100
A190: 1600000US2251690 | B190: Montpelier village, Louisiana | C190: 50.6 | D190: 64.6 | E190: 59.5 | F190: 65.8 | G190: 78.5 | H190: 83.5 | I190: 82.9 | J190: 81.25 | K190: 75.4789272 | L190: 78.67647059 | M190: 88.54356397 | N190: 91.5368411 | O190: 94.53011822 | P190: 97.52339535 | Q190: 100 | R190: 100 | S190: 100 | T190: 100 | U190: 100 | V190: 100 | W190: 100 | X190: 100 | Y190: 100 | Z190: 100 | AA190: 100 | AB190: 100 | AC190: 100 | AD190: 100 | AE190: 100 | AF190: 100 | AG190: 100 | AH190: 100 | AI190: 100 | AJ190: 100 | AK190: 100 | AL190: 100 | AM190: 100 | AN190: 100 | AO190: 100 | AP190: 100 | AQ190: 100 | AR190: 100
A191: 1600000US2251830 | B191: Mooringsport town, Louisiana | C191: 79.7 | D191: 75.4 | E191: 78.1 | F191: 74.2 | G191: 75.8 | H191: 77.8 | I191: 78.8 | J191: 74.5526839 | K191: 75.33632287 | L191: 78.91156463 | M191: 76.54411585 | N191: 76.48667197 | O191: 76.4292281 | P191: 76.37178423 | Q191: 76.31434036 | R191: 76.25689649 | S191: 76.19945262 | T191: 76.14200875 | U191: 76.08456487 | V191: 76.027121 | W191: 76.08456487 | X191: 76.06541692 | Y191: 76.05903426 | Z191: 76.06967202 | AA191: 76.06470773 | AB191: 76.06447134 | AC191: 76.0662837 | AD191: 76.06515426 | AE191: 76.0653031 | AF191: 76.06558035 | AG191: 76.0653459 | AH191: 76.06540978 | AI191: 76.06544534 | AJ191: 76.06540034 | AK191: 76.06541849 | AL191: 76.06542139 | AM191: 76.06541341 | AN191: 76.06541776 | AO191: 76.06541752 | AP191: 76.06541623 | AQ191: 76.06541717 | AR191: 76.06541698
A192: 1600000US2251970 | B192: Moreauville village, Louisiana | C192: 66.8 | D192: 71.7 | E192: 66.8 | F192: 72.2 | G192: 71.5 | H192: 77.1 | I192: 78.4 | J192: 84.34210526 | K192: 80.59332509 | L192: 79.59183673 | M192: 84.54573779 | N192: 86.29901254 | O192: 88.05228728 | P192: 89.80556202 | Q192: 91.55883677 | R192: 93.31211151 | S192: 95.06538625 | T192: 96.818661 | U192: 98.57193574 | V192: 100 | W192: 98.46353224 | X192: 99.01182266 | Y192: 99.15845164 | Z192: 98.87793551 | AA192: 99.01606994 | AB192: 99.01748569 | AC192: 98.97049705 | AD192: 99.00135089 | AE192: 98.99644455 | AF192: 98.98943083 | AG192: 98.99574209 | AH192: 98.99387249 | AI192: 98.99301514 | AJ192: 98.9942099 | AK192: 98.99369918 | AL192: 98.99364141 | AM192: 98.99385016 | AN192: 98.99373025 | AO192: 98.9937406 | AP192: 98.99377367 | AQ192: 98.99374817 | AR192: 98.99375415
A193: 1600000US2252040 | B193: Morgan City city, Louisiana | C193: 69.9 | D193: 69.8 | E193: 72.4 | F193: 73.7 | G193: 76.6 | H193: 80.1 | I193: 83.6 | J193: 85.65532627 | K193: 85.10948905 | L193: 85.71761417 | M193: 89.89162902 | N193: 92.00679013 | O193: 94.12195123 | P193: 96.23711233 | Q193: 98.35227344 | R193: 100 | S193: 100 | T193: 100 | U193: 100 | V193: 100 | W193: 100 | X193: 100 | Y193: 100 | Z193: 100 | AA193: 100 | AB193: 100 | AC193: 100 | AD193: 100 | AE193: 100 | AF193: 100 | AG193: 100 | AH193: 100 | AI193: 100 | AJ193: 100 | AK193: 100 | AL193: 100 | AM193: 100 | AN193: 100 | AO193: 100 | AP193: 100 | AQ193: 100 | AR193: 100
A194: 1600000US2252075 | B194: Morganza village, Louisiana | C194: 84.4 | D194: 84.2 | E194: 86.2 | F194: 87.4 | G194: 86.5 | H194: 81.1 | I194: 78.8 | J194: 79.12552891 | K194: 80.41401274 | L194: 81.25960061 | M194: 78.89531887 | N194: 78.1599379 | O194: 77.42455692 | P194: 76.68917595 | Q194: 75.95379497 | R194: 75.218414 | S194: 74.48303302 | T194: 73.74765205 | U194: 73.01227108 | V194: 72.2768901 | W194: 73.01227108 | X194: 72.76714408 | Y194: 72.68543509 | Z194: 72.82161675 | AA194: 72.75806531 | AB194: 72.75503905 | AC194: 72.77824037 | AD194: 72.76378157 | AE194: 72.765687 | AF194: 72.76923631 | AG194: 72.76623496 | AH194: 72.76705276 | AI194: 72.76750801 | AJ194: 72.76693191 | AK194: 72.76716423 | AL194: 72.76720138 | AM194: 72.76709917 | AN194: 72.76715493 | AO194: 72.76715183 | AP194: 72.76713531 | AQ194: 72.76714735 | AR194: 72.76714483
A195: 1600000US2252320 | B195: Morse village, Louisiana | C195: 52.2 | D195: 53.9 | E195: 64.1 | F195: 59.9 | G195: 61.7 | H195: 77.2 | I195: 77.1 | J195: 73.50993377 | K195: 71.85628743 | L195: 67.6056338 | M195: 78.523665 | N195: 80.81757037 | O195: 83.11147573 | P195: 85.4053811 | Q195: 87.69928646 | R195: 89.99319182 | S195: 92.28709719 | T195: 94.58100255 | U195: 96.87490792 | V195: 99.16881328 | W195: 96.87490792 | X195: 97.63954304 | Y195: 97.89442141 | Z195: 97.46962412 | AA195: 97.66786286 | AB195: 97.6773028 | AC195: 97.60492992 | AD195: 97.65003186 | AE195: 97.64408819 | AF195: 97.63301666 | AG195: 97.6423789 | AH195: 97.63982792 | AI195: 97.63840783 | AJ195: 97.64020488 | AK195: 97.63948021 | AL195: 97.63936431 | AM195: 97.63968313 | AN195: 97.63950922 | AO195: 97.63951889 | AP195: 97.63957041 | AQ195: 97.63953284 | AR195: 97.63954071
A196: 1600000US2253370 | B196: Napoleonville village, Louisiana | C196: 57.9 | D196: 55.1 | E196: 52.6 | F196: 56.2 | G196: 62.2 | H196: 62.3 | I196: 69.7 | J196: 63.25503356 | K196: 73.75 | L196: 70.95516569 | M196: 73.79340856 | N196: 75.86566104 | O196: 77.93791352 | P196: 80.010166 | Q196: 82.08241847 | R196: 84.15467095 | S196: 86.22692343 | T196: 88.29917591 | U196: 90.37142839 | V196: 92.44368087 | W196: 90.37142839 | X196: 91.06217922 | Y196: 91.29242949 | Z196: 90.90867903 | AA196: 91.08776258 | AB196: 91.09629037 | AC196: 91.03091066 | AD196: 91.07165454 | AE196: 91.06628519 | AF196: 91.05628346 | AG196: 91.06474106 | AH196: 91.06243657 | AI196: 91.0611537 | AJ196: 91.06277711 | AK196: 91.06212246 | AL196: 91.06201776 | AM196: 91.06230577 | AN196: 91.06214866 | AO196: 91.0621574 | AP196: 91.06220395 | AQ196: 91.06217 | AR196: 91.06217712
A197: 1600000US2253510 | B197: Natchez village, Louisiana | C197: 62.1 | D197: 57.8 | E197: 68.8 | F197: 75.8 | G197: 69.9 | H197: 77.1 | I197: 82.2 | J197: 72.01946472 | K197: 73.18681319 | L197: 79.17620137 | M197: 81.9379422 | N197: 83.7797048 | O197: 85.62146739 | P197: 87.46322999 | Q197: 89.30499259 | R197: 91.14675518 | S197: 92.98851778 | T197: 94.83028037 | U197: 96.67204297 | V197: 98.51380556 | W197: 96.67204297 | X197: 97.28596383 | Y197: 97.49060412 | Z197: 97.14953697 | AA197: 97.30870164 | AB197: 97.31628091 | AC197: 97.25817318 | AD197: 97.29438524 | AE197: 97.28961311 | AF197: 97.28072384 | AG197: 97.28824073 | AH197: 97.28619256 | AI197: 97.28505238 | AJ197: 97.28649523 | AK197: 97.28591339 | AL197: 97.28582033 | AM197: 97.28607632 | AN197: 97.28593668 | AO197: 97.28594444 | AP197: 97.28598581 | AQ197: 97.28595564 | AR197: 97.28596197
A198: 1600000US2253545 | B198: Natchitoches city, Louisiana | C198: 79.4 | D198: 81.4 | E198: 80.7 | F198: 81.1 | G198: 80.8 | H198: 81.4 | I198: 81.3 | J198: 84.96704231 | K198: 85.80477973 | L198: 88.38551436 | M198: 87.0003436 | N198: 87.81390905 | O198: 88.6274745 | P198: 89.44103995 | Q198: 90.25460539 | R198: 91.06817084 | S198: 91.88173629 | T198: 92.69530174 | U198: 93.50886718 | V198: 94.32243263 | W198: 93.50886718 | X198: 93.78005567 | Y198: 93.87045183 | Z198: 93.71979156 | AA198: 93.79009968 | AB198: 93.79344769 | AC198: 93.76777964 | AD198: 93.78377567 | AE198: 93.78166767 | AF198: 93.777741 | AG198: 93.78106145 | AH198: 93.7801567 | AI198: 93.77965305 | AJ198: 93.7802904 | AK198: 93.78003338 | AL198: 93.77999228 | AM198: 93.78010535 | AN198: 93.78004367 | AO198: 93.7800471 | AP198: 93.78006538 | AQ198: 93.78005205 | AR198: 93.78005484
A199: 1600000US2254035 | B199: New Iberia city, Louisiana | C199: 74.1 | D199: 75.5 | E199: 75.9 | F199: 75.9 | G199: 76.6 | H199: 76 | I199: 75.7 | J199: 77.6392164 | K199: 77.07551011 | L199: 78.64126693 | M199: 78.28546785 | N199: 78.64544394 | O199: 79.00542003 | P199: 79.36539612 | Q199: 79.72537221 | R199: 80.08534831 | S199: 80.4453244 | T199: 80.80530049 | U199: 81.16527658 | V199: 81.52525267 | W199: 81.16527658 | X199: 81.28526861 | Y199: 81.32526595 | Z199: 81.25860371 | AA199: 81.28971276 | AB199: 81.29119414 | AC199: 81.27983687 | AD199: 81.28691459 | AE199: 81.28598187 | AF199: 81.28424444 | AG199: 81.28571364 | AH199: 81.28531332 | AI199: 81.28509047 | AJ199: 81.28537247 | AK199: 81.28525875 | AL199: 81.28524056 | AM199: 81.2852906 | AN199: 81.2852633 | AO199: 81.28526482 | AP199: 81.28527291 | AQ199: 81.28526701 | AR199: 81.28526825
A200: 1600000US2254175 | B200: New Llano town, Louisiana | C200: 80.5 | D200: 80 | E200: 79.3 | F200: 79.9 | G200: 82.4 | H200: 84.8 | I200: 85.5 | J200: 85.93155894 | K200: 84.11669368 | L200: 82.64966741 | M200: 85.8605139 | N200: 86.46973607 | O200: 87.07895823 | P200: 87.6881804 | Q200: 88.29740256 | R200: 88.90662473 | S200: 89.51584689 | T200: 90.12506905 | U200: 90.73429122 | V200: 91.34351338 | W200: 90.73429122 | X200: 90.93736527 | Y200: 91.00505662 | Z200: 90.8922377 | AA200: 90.94488653 | AB200: 90.94739362 | AC200: 90.92817262 | AD200: 90.94015092 | AE200: 90.93857239 | AF200: 90.93563198 | AG200: 90.93811843 | AH200: 90.93744093 | AI200: 90.93706378 | AJ200: 90.93754105 | AK200: 90.93734859 | AL200: 90.9373178 | AM200: 90.93740248 | AN200: 90.93735629 | AO200: 90.93735886 | AP200: 90.93737254 | AQ200: 90.93736256 | AR200: 90.93736465
... 102 more rows

Sheet Bachelors (hidden)
A1: GEO_ID | B1: NAME | C1: ED_BACH_10 | D1: ED_BACH_11 | E1: ED_BACH_12 | F1: ED_BACH_13 | G1: ED_BACH_14 | H1: ED_BACH_15 | I1: ED_BACH_16 | J1: ED_BACH_17 | K1: ED_BACH_18 | L1: ED_BACH_19 | M1: ED_BACH_20 | N1: ED_BACH_21 | O1: ED_BACH_22 | P1: ED_BACH_23 | Q1: ED_BACH_24 | R1: ED_BACH_25 | S1: ED_BACH_26 | T1: ED_BACH_27 | U1: ED_BACH_28 | V1: ED_BACH_29 | W1: ED_BACH_30 | X1: ED_BACH_31 | Y1: ED_BACH_32 | Z1: ED_BACH_33 | AA1: ED_BACH_34 | AB1: ED_BACH_35 | AC1: ED_BACH_36 | AD1: ED_BACH_37 | AE1: ED_BACH_38 | AF1: ED_BACH_39 | AG1: ED_BACH_40 | AH1: ED_BACH_41 | AI1: ED_BACH_42 | AJ1: ED_BACH_43 | AK1: ED_BACH_44 | AL1: ED_BACH_45 | AM1: ED_BACH_46 | AN1: ED_BACH_47 | AO1: ED_BACH_48 | AP1: ED_BACH_49 | AQ1: ED_BACH_50 | AR1: ED_BACH_51
A2: 1600000US2200100 | B2: Abbeville city, Louisiana | C2: 9.9 | D2: 9.8 | E2: 9.9 | F2: 10.3 | G2: 9.3 | H2: 9.3 | I2: 9.1 | J2: 8.499217177 | K2: 9.947124917 | L2: 11.28127696 | M2: =(L2+K2+J2)/3 -> 9.909206353 | N2: =(M2+L2+K2)/3 -> 10.37920274 | O2: 10.52322869 | P2: 10.27054593 | Q2: 10.39099245 | R2: 10.39492236 | S2: 10.35215358 | T2: 10.37935613 | U2: 10.37547735 | V2: 10.36899569 | W2: 10.37460972 | X2: 10.37302759 | Y2: 10.372211 | Z2: 10.37328277 | AA2: 10.37284045 | AB2: 10.37277807 | AC2: 10.3729671 | AD2: =(AC2+AB2+AA2)/3 -> 10.37286188 | AE2: 10.37286902 | AF2: 10.37289933 | AG2: 10.37287674 | AH2: 10.3728817 | AI2: 10.37288592 | AJ2: 10.37288145 | AK2: 10.37288302 | AL2: 10.37288347 | AM2: =(AL2+AK2+AJ2)/3 -> 10.37288265 | AN2: =(AM2+AL2+AK2)/3 -> 10.37288305 | AO2: 10.37288305 | AP2: 10.37288292 | AQ2: 10.37288301 | AR2: 10.37288299
A3: 1600000US2200240 | B3: Abita Springs town, Louisiana | C3: 30.4 | D3: 34.5 | E3: 33.8 | F3: 33.8 | G3: 40.3 | H3: 38.8 | I3: 38.7 | J3: 37.92929293 | K3: 33.16195373 | L3: 33.9603457 | M3: =(L3+K3+J3)/3 -> 35.01719745 | N3: 34.04649896 | O3: 34.34134737 | P3: 34.46834793 | Q3: 34.28539809 | R3: 34.36503113 | S3: 34.37292572 | T3: 34.34111831 | U3: 34.35969172 | V3: 34.35791192 | W3: 34.35290732 | X3: 34.35683698 | Y3: 34.3558854 | Z3: 34.3552099 | AA3: 34.35597743 | AB3: 34.35569091 | AC3: 34.35562608 | AD3: 34.35576481 | AE3: 34.35569393 | AF3: 34.35569494 | AG3: 34.35571789 | AH3: 34.35570226 | AI3: 34.35570503 | AJ3: 34.35570839 | AK3: 34.35570523 | AL3: 34.35570622 | AM3: 34.35570661 | AN3: 34.35570602 | AO3: 34.35570628 | AP3: 34.3557063 | AQ3: 34.3557062 | AR3: 34.35570626
A4: 1600000US2200415 | B4: Addis town, Louisiana | C4: 8.5 | D4: 15.2 | E4: 19 | F4: 21.7 | G4: 21.4 | H4: 24.1 | I4: 21.2 | J4: 16.41699786 | K4: 16.34045077 | L4: 20.20460358 | M4: 17.6540174 | N4: 18.06635725 | O4: 18.64165941 | P4: 18.12067802 | Q4: 18.27623156 | R4: 18.34618967 | S4: 18.24769975 | T4: 18.29004033 | U4: 18.29464325 | V4: 18.27746111 | W4: 18.28738156 | X4: 18.28649531 | Y4: 18.28377932 | Z4: 18.2858854 | AA4: 18.28538668 | AB4: 18.28501713 | AC4: 18.28542973 | AD4: 18.28527785 | AE4: 18.28524157 | AF4: 18.28531638 | AG4: 18.2852786 | AH4: 18.28527885 | AI4: 18.28529128 | AJ4: 18.28528291 | AK4: 18.28528435 | AL4: 18.28528618 | AM4: 18.28528448 | AN4: 18.285285 | AO4: 18.28528522 | AP4: 18.2852849 | AQ4: 18.28528504 | AR4: 18.28528505
A5: 1600000US2200835 | B5: Albany village, Louisiana | C5: 11.2 | D5: 14 | E5: 13.3 | F5: 11.5 | G5: 18.3 | H5: 22.4 | I5: 19.3 | J5: 19.36842105 | K5: 20.99192618 | L5: 23.46241458 | M5: 21.27425394 | N5: 21.90953157 | O5: 22.21540003 | P5: 21.79972851 | Q5: 21.9748867 | R5: 21.99667175 | S5: 21.92376232 | T5: 21.96510692 | U5: 21.961847 | V5: 21.95023875 | W5: 21.95906422 | X5: 21.95704999 | Y5: 21.95545099 | Z5: 21.9571884 | AA5: 21.95656312 | AB5: 21.95640084 | AC5: 21.95671745 | AD5: 21.95656047 | AE5: 21.95655959 | AF5: 21.9566125 | AG5: 21.95657752 | AH5: 21.9565832 | AI5: 21.95659108 | AJ5: 21.95658393 | AK5: 21.95658607 | AL5: 21.95658703 | AM5: 21.95658568 | AN5: 21.95658626 | AO5: 21.95658632 | AP5: 21.95658608 | AQ5: 21.95658622 | AR5: 21.95658621
A6: 1600000US2200975 | B6: Alexandria city, Louisiana | C6: 22.6 | D6: 22 | E6: 21 | F6: 20.6 | G6: 20 | H6: 20.2 | I6: 22.1 | J6: 21.29904385 | K6: 22.41019444 | L6: 22.52301773 | M6: 22.07741867 | N6: 22.33687695 | O6: 22.31243778 | P6: 22.24224447 | Q6: 22.2971864 | R6: 22.28395622 | S6: 22.27446236 | T6: 22.28520166 | U6: 22.28120675 | V6: 22.28029026 | W6: 22.28223289 | X6: 22.2812433 | Y6: 22.28125548 | Z6: 22.28157722 | AA6: 22.28135867 | AB6: 22.28139712 | AC6: 22.28144434 | AD6: 22.28140004 | AE6: 22.28141383 | AF6: 22.2814194 | AG6: 22.28141109 | AH6: 22.28141478 | AI6: 22.28141509 | AJ6: 22.28141365 | AK6: 22.28141451 | AL6: 22.28141442 | AM6: 22.28141419 | AN6: 22.28141437 | AO6: 22.28141433 | AP6: 22.2814143 | AQ6: 22.28141433 | AR6: 22.28141432
A7: 1600000US2201885 | B7: Amite City town, Louisiana | C7: 21.2 | D7: 23 | E7: 22.8 | F7: 25 | G7: 26.3 | H7: 25.6 | I7: 19.5 | J7: 15.14909478 | K7: 14.24657534 | L7: 11.30278064 | M7: 13.56615025 | N7: 13.03850208 | O7: 12.63581099 | P7: 13.08015444 | Q7: 12.91815584 | R7: 12.87804042 | S7: 12.95878357 | T7: 12.91832661 | U7: 12.91838353 | V7: 12.93183124 | W7: 12.92284713 | X7: 12.92435396 | Y7: 12.92634411 | Z7: 12.92451507 | AA7: 12.92507105 | AB7: 12.92531007 | AC7: 12.9249654 | AD7: 12.92511551 | AE7: 12.92513033 | AF7: 12.92507041 | AG7: 12.92510541 | AH7: 12.92510205 | AI7: 12.92509262 | AJ7: 12.92510003 | AK7: 12.92509823 | AL7: 12.92509696 | AM7: 12.92509841 | AN7: 12.92509787 | AO7: 12.92509775 | AP7: 12.92509801 | AQ7: 12.92509787 | AR7: 12.92509788
A8: 1600000US2201920 | B8: Anacoco village, Louisiana | C8: 25.3 | D8: 24.7 | E8: 23.3 | F8: 23.3 | G8: 25.9 | H8: 22.8 | I8: 22 | J8: 17.37142857 | K8: 14.33566434 | L8: 11.18335501 | M8: 14.29681597 | N8: 13.2719451 | O8: 12.91737203 | P8: 13.4953777 | Q8: 13.22823161 | R8: 13.21366045 | S8: 13.31242325 | T8: 13.25143844 | U8: 13.25917405 | V8: 13.27434524 | W8: 13.26165258 | X8: 13.26505729 | Y8: 13.26701837 | Z8: 13.26457608 | AA8: 13.26555058 | AB8: 13.26571501 | AC8: 13.26528056 | AD8: 13.26551538 | AE8: 13.26550365 | AF8: 13.26543319 | AG8: 13.26548407 | AH8: 13.26547364 | AI8: 13.26546364 | AJ8: 13.26547378 | AK8: 13.26547035 | AL8: 13.26546926 | AM8: 13.26547113 | AN8: 13.26547025 | AO8: 13.26547021 | AP8: 13.26547053 | AQ8: 13.26547033 | AR8: 13.26547036
A9: 1600000US2202165 | B9: Angie village, Louisiana | C9: 24.6 | D9: 11.5 | E9: 13.4 | F9: 15.2 | G9: 20.9 | H9: 21.2 | I9: 14.7 | J9: 23.71134021 | K9: 23.17596567 | L9: 20.28985507 | M9: 22.39238698 | N9: 21.95273591 | O9: 21.54499265 | P9: 21.96337185 | Q9: 21.8203668 | R9: 21.77624377 | S9: 21.85332747 | T9: 21.81664601 | U9: 21.81540575 | V9: 21.82845975 | W9: 21.8201705 | X9: 21.82134533 | Y9: 21.82332519 | Z9: 21.82161368 | AA9: 21.82209474 | AB9: 21.82234454 | AC9: 21.82201765 | AD9: 21.82215231 | AE9: 21.8221715 | AF9: 21.82211382 | AG9: 21.82214587 | AH9: 21.82214373 | AI9: 21.82213447 | AJ9: 21.82214136 | AK9: 21.82213985 | AL9: 21.82213856 | AM9: 21.82213993 | AN9: 21.82213945 | AO9: 21.82213931 | AP9: 21.82213956 | AQ9: 21.82213944 | AR9: 21.82213944
A10: 1600000US2202655 | B10: Arcadia town, Louisiana | C10: 12.9 | D10: 14.8 | E10: 11.5 | F10: 12.5 | G10: 14.1 | H10: 14 | I10: 18.3 | J10: 13.77777778 | K10: 12.94542174 | L10: 14.77876106 | M10: 13.83398686 | N10: 13.85272322 | O10: 14.15515705 | P10: 13.94728904 | Q10: 13.98505644 | R10: 14.02916751 | S10: 13.987171 | T10: 14.00046498 | U10: 14.00560116 | V10: 13.99774571 | W10: 14.00127062 | X10: 14.00153916 | Y10: 14.00018517 | Z10: 14.00099832 | AA10: 14.00090755 | AB10: 14.00069701 | AC10: 14.00086763 | AD10: 14.00082406 | AE10: 14.00079623 | AF10: 14.00082931 | AG10: 14.00081653 | AH10: 14.00081402 | AI10: 14.00081995 | AJ10: 14.00081684 | AK10: 14.00081694 | AL10: 14.00081791 | AM10: 14.00081723 | AN10: 14.00081736 | AO10: 14.0008175 | AP10: 14.00081736 | AQ10: 14.00081741 | AR10: 14.00081742
A11: 1600000US2203110 | B11: Arnaudville town, Louisiana | C11: 9.1 | D11: 11.8 | E11: 14 | F11: 9.5 | G11: 7.3 | H11: 7.9 | I11: 8.4 | J11: 5.852674067 | K11: 7.226107226 | L11: 9.751243781 | M11: 7.610008358 | N11: 8.195786455 | O11: 8.519012865 | P11: 8.108269226 | Q11: 8.274356182 | R11: 8.300546091 | S11: 8.227723833 | T11: 8.267542035 | U11: 8.265270653 | V11: 8.253512174 | W11: 8.262108287 | X11: 8.260297038 | Y11: 8.258639166 | Z11: 8.260348164 | AA11: 8.259761456 | AB11: 8.259582929 | AC11: 8.259897516 | AD11: 8.2597473 | AE11: 8.259742582 | AF11: 8.259795799 | AG11: 8.259761894 | AH11: 8.259766758 | AI11: 8.259774817 | AJ11: 8.259767823 | AK11: 8.2597698 | AL11: 8.259770813 | AM11: 8.259769479 | AN11: 8.25977003 | AO11: 8.259770107 | AP11: 8.259769872 | AQ11: 8.259770003 | AR11: 8.259769994
A12: 1600000US2203145 | B12: Ashland village, Louisiana | C12: 17.1 | D12: 14.9 | E12: 19 | F12: 19.3 | G12: 22.5 | H12: 19.4 | I12: 21.5 | J12: 19.20529801 | K12: 17.03296703 | L12: 12.42236025 | M12: 16.22020843 | N12: 15.22517857 | O12: 14.62258242 | P12: 15.35598981 | Q12: 15.06791693 | R12: 15.01549639 | S12: 15.14646771 | T12: 15.07662701 | U12: 15.07953037 | V12: 15.10087503 | W12: 15.08567747 | X12: 15.08869429 | Y12: 15.09174893 | Z12: 15.08870689 | AA12: 15.0897167 | AB12: 15.09005751 | AC12: 15.0894937 | AD12: 15.08975597 | AE12: 15.08976906 | AF12: 15.08967291 | AG12: 15.08973265 | AH12: 15.08972487 | AI12: 15.08971014 | AJ12: 15.08972255 | AK12: 15.08971919 | AL12: 15.0897173 | AM12: 15.08971968 | AN12: 15.08971872 | AO12: 15.08971857 | AP12: 15.08971899 | AQ12: 15.08971876 | AR12: 15.08971877
A13: 1600000US2203320 | B13: Athens village, Louisiana | C13: 12.2 | D13: 12.2 | E13: 10.6 | F13: 11.8 | G13: 12.8 | H13: 15.4 | I13: 16.9 | J13: 15.57377049 | K13: 11.15241636 | L13: 9.160305344 | M13: 11.96216406 | N13: 10.75829525 | O13: 10.62692155 | P13: 11.11579362 | Q13: 10.83367014 | R13: 10.85879511 | S13: 10.93608629 | T13: 10.87618385 | U13: 10.89035508 | V13: 10.90087507 | W13: 10.889138 | X13: 10.89345605 | Y13: 10.89448971 | Z13: 10.89236125 | AA13: 10.89343567 | AB13: 10.89342888 | AC13: 10.89307527 | AD13: 10.89331327 | AE13: 10.89327247 | AF13: 10.89322034 | AG13: 10.8932687 | AH13: 10.89325384 | AI13: 10.89324762 | AJ13: 10.89325672 | AK13: 10.89325273 | AL13: 10.89325236 | AM13: 10.89325393 | AN13: 10.893253 | AO13: 10.8932531 | AP13: 10.89325335 | AQ13: 10.89325315 | AR13: 10.8932532
A14: 1600000US2203390 | B14: Atlanta village, Louisiana | C14: 10.3 | D14: 13.4 | E14: 7.9 | F14: 11.7 | G14: 13.6 | H14: 10.8 | I14: 10.2 | J14: 12.5 | K14: 8.571428571 | L14: 7.766990291 | M14: 9.612806288 | N14: 8.650408383 | O14: 8.676734987 | P14: 8.979983219 | Q14: 8.769042197 | R14: 8.808586801 | S14: 8.852537406 | T14: 8.810055468 | U14: 8.823726558 | V14: 8.828773144 | W14: 8.820851723 | X14: 8.824450475 | Y14: 8.824691781 | Z14: 8.823331327 | AA14: 8.824157861 | AB14: 8.824060323 | AC14: 8.823849837 | AD14: 8.824022673 | AE14: 8.823977611 | AF14: 8.82395004 | AG14: 8.823983442 | AH14: 8.823970364 | AI14: 8.823967949 | AJ14: 8.823973918 | AK14: 8.823970744 | AL14: 8.82397087 | AM14: 8.823971844 | AN14: 8.823971153 | AO14: 8.823971289 | AP14: 8.823971429 | AQ14: 8.82397129 | AR14: 8.823971336
A15: 1600000US2203985 | B15: Baker city, Louisiana | C15: 19.3 | D15: 20.3 | E15: 19.7 | F15: 18.9 | G15: 17.9 | H15: 18.1 | I15: 17.5 | J15: 15.21697934 | K15: 15.35326087 | L15: 15.05690108 | M15: 15.2090471 | N15: 15.20640302 | O15: 15.1574504 | P15: 15.19096684 | Q15: 15.18494008 | R15: 15.17778577 | S15: 15.18456423 | T15: 15.18243003 | U15: 15.18159334 | V15: 15.18286253 | W15: 15.1822953 | X15: 15.18225039 | Y15: 15.18246941 | Z15: 15.18233837 | AA15: 15.18235272 | AB15: 15.18238683 | AC15: 15.18235931 | AD15: 15.18236629 | AE15: 15.18237081 | AF15: 15.18236547 | AG15: 15.18236752 | AH15: 15.18236794 | AI15: 15.18236698 | AJ15: 15.18236748 | AK15: 15.18236746 | AL15: 15.18236731 | AM15: 15.18236742 | AN15: 15.18236739 | AO15: 15.18236737 | AP15: 15.18236739 | AQ15: 15.18236739 | AR15: 15.18236738
A16: 1600000US2204020 | B16: Baldwin town, Louisiana | C16: 13.5 | D16: 13.6 | E16: 13.9 | F16: 14.8 | G16: 14.7 | H16: 10.2 | I16: 10 | J16: 6.117908788 | K16: 7.624633431 | L16: 5.381400209 | M16: 6.374647476 | N16: 6.460227039 | O16: 6.072091575 | P16: 6.30232203 | Q16: 6.278213548 | R16: 6.217542384 | S16: 6.266025987 | T16: 6.253927306 | U16: 6.245831892 | V16: 6.255261729 | W16: 6.251673642 | X16: 6.250922421 | Y16: 6.252619264 | Z16: 6.251738443 | AA16: 6.251760043 | AB16: 6.25203925 | AC16: 6.251845912 | AD16: 6.251881735 | AE16: 6.251922299 | AF16: 6.251883315 | AG16: 6.251895783 | AH16: 6.251900465 | AI16: 6.251893188 | AJ16: 6.251896479 | AK16: 6.251896711 | AL16: 6.251895459 | AM16: 6.251896216 | AN16: 6.251896129 | AO16: 6.251895935 | AP16: 6.251896093 | AQ16: 6.251896052 | AR16: 6.251896027
A17: 1600000US2204055 | B17: Ball town, Louisiana | C17: 12.5 | D17: 11.3 | E17: 15 | F17: 15.7 | G17: 14.8 | H17: 14.6 | I17: 18.3 | J17: 17.42803504 | K17: 16.1520962 | L17: 18.22866345 | M17: 17.26959823 | N17: 17.21678596 | O17: 17.57168254 | P17: 17.35268891 | Q17: 17.3803858 | R17: 17.43491909 | S17: 17.38933127 | T17: 17.40154539 | U17: 17.40859858 | V17: 17.39982508 | W17: 17.40332301 | X17: 17.40391556 | Y17: 17.40235455 | Z17: 17.40319771 | AA17: 17.40315594 | AB17: 17.40290273 | AC17: =(AB17+AA17+Z17)/3 -> 17.40308546 | AD17: 17.40304804 | AE17: 17.40301208 | AF17: 17.40304853 | AG17: 17.40303622 | AH17: 17.40303227 | AI17: 17.40303901 | AJ17: 17.40303583 | AK17: 17.4030357 | AL17: 17.40303685 | AM17: 17.40303613 | AN17: 17.40303623 | AO17: 17.4030364 | AP17: 17.40303625 | AQ17: 17.40303629 | AR17: 17.40303631
A18: 1600000US2204580 | B18: Basile town, Louisiana | C18: 4.5 | D18: 9.1 | E18: 7.8 | F18: 7.9 | G18: 7.6 | H18: 7.1 | I18: 6.7 | J18: 4.431438127 | K18: 2.938706969 | L18: 2.208682407 | M18: 3.192942501 | N18: 2.780110626 | O18: 2.727245178 | P18: 2.900099435 | Q18: 2.802485079 | R18: 2.809943231 | S18: 2.837509248 | T18: 2.816645853 | U18: 2.82136611 | V18: 2.825173737 | W18: 2.8210619 | X18: 2.822533916 | Y18: 2.822923184 | Z18: 2.822173 | AA18: 2.822543367 | AB18: 2.822546517 | AC18: 2.822420961 | AD18: 2.822503615 | AE18: 2.822490365 | AF18: 2.822471647 | AG18: 2.822488542 | AH18: 2.822483518 | AI18: 2.822481236 | AJ18: 2.822484432 | AK18: 2.822483062 | AL18: 2.82248291 | AM18: 2.822483468 | AN18: 2.822483147 | AO18: 2.822483175 | AP18: 2.822483263 | AQ18: 2.822483195 | AR18: 2.822483211
A19: 1600000US2204615 | B19: Baskin village, Louisiana | C19: 0 | D19: 1.5 | E19: 4 | F19: 3.8 | G19: 3.8 | H19: 5.4 | I19: 7.7 | J19: 4.494382022 | K19: 6.557377049 | L19: 6.989247312 | M19: 6.013668794 | N19: 6.520097719 | O19: 6.507671275 | P19: 6.347145929 | Q19: 6.458304974 | R19: 6.437707393 | S19: 6.414386099 | T19: 6.436799489 | U19: 6.429630993 | V19: 6.42693886 | W19: 6.431123114 | X19: 6.429230989 | Y19: 6.429097655 | Z19: 6.429817253 | AA19: 6.429381965 | AB19: 6.429432291 | AC19: 6.429543836 | AD19: 6.429452698 | AE19: 6.429476275 | AF19: 6.429490936 | AG19: 6.429473303 | AH19: 6.429480171 | AI19: 6.42948147 | AJ19: 6.429478315 | AK19: 6.429479985 | AL19: 6.429479924 | AM19: 6.429479408 | AN19: 6.429479772 | AO19: 6.429479701 | AP19: 6.429479627 | AQ19: 6.4294797 | AR19: 6.429479676
A20: 1600000US2204685 | B20: Bastrop city, Louisiana | C20: 10 | D20: 10.6 | E20: 10.2 | F20: 11.2 | G20: 11.9 | H20: 11.7 | I20: 11.7 | J20: 9.711889625 | K20: 8.673747277 | L20: 6.359497862 | M20: 8.248378255 | N20: 7.760541131 | O20: 7.456139082 | P20: 7.821686156 | Q20: 7.679455457 | R20: 7.652426898 | S20: 7.71785617 | T20: 7.683246175 | U20: 7.684509748 | V20: 7.695204031 | W20: 7.687653318 | X20: 7.689122366 | Y20: 7.690659905 | Z20: 7.689145196 | AA20: 7.689642489 | AB20: 7.689815863 | AC20: 7.689534516 | AD20: 7.689664289 | AE20: 7.689671556 | AF20: 7.689623454 | AG20: 7.6896531 | AH20: 7.68964937 | AI20: 7.689641975 | AJ20: 7.689648148 | AK20: 7.689646498 | AL20: 7.68964554 | AM20: 7.689646729 | AN20: 7.689646255 | AO20: 7.689646175 | AP20: 7.689646386 | AQ20: 7.689646272 | AR20: 7.689646278
A21: 1600000US2205000 | B21: Baton Rouge city, Louisiana | C21: 32 | D21: 32.4 | E21: 32.7 | F21: 32.8 | G21: 32.7 | H21: 32.4 | I21: 32.3 | J21: 26.99024355 | K21: 27.8145057 | L21: 27.90828759 | M21: 27.57101228 | N21: 27.76460186 | O21: 27.74796725 | P21: 27.69452713 | Q21: 27.73569875 | R21: 27.72606437 | S21: 27.71876342 | T21: 27.72684218 | U21: 27.72388999 | V21: 27.72316519 | W21: 27.72463245 | X21: 27.72389588 | Y21: 27.72389784 | Z21: 27.72414206 | AA21: 27.72397859 | AB21: 27.72400616 | AC21: 27.72404227 | AD21: 27.72400901 | AE21: 27.72401915 | AF21: 27.72402348 | AG21: 27.72401721 | AH21: 27.72401995 | AI21: 27.72402021 | AJ21: 27.72401912 | AK21: 27.72401976 | AL21: 27.7240197 | AM21: 27.72401953 | AN21: 27.72401966 | AO21: 27.72401963 | AP21: 27.72401961 | AQ21: 27.72401963 | AR21: 27.72401962
A22: 1600000US2205945 | B22: Belcher village, Louisiana | C22: 30.5 | D22: 36.2 | E22: 35.3 | F22: 31.5 | G22: 30.1 | H22: 29.1 | I22: 23 | J22: 23.74429224 | K22: 28.76106195 | L22: 29.03225806 | M22: 27.17920408 | N22: 28.3241747 | O22: 28.17854562 | P22: 27.8939748 | Q22: 28.1322317 | R22: 28.06825071 | S22: 28.03148574 | T22: 28.07732272 | U22: 28.05901972 | V22: 28.05594272 | W22: 28.06409505 | X22: 28.05968583 | Y22: 28.05990787 | Z22: 28.06122958 | AA22: 28.06027443 | AB22: 28.06047063 | AC22: 28.06065821 | AD22: 28.06046776 | AE22: 28.0605322 | AF22: 28.06055272 | AG22: 28.06051756 | AH22: 28.06053416 | AI22: 28.06053481 | AJ22: 28.06052884 | AK22: 28.06053261 | AL22: 28.06053209 | AM22: 28.06053118 | AN22: 28.06053196 | AO22: 28.06053174 | AP22: 28.06053163 | AQ22: 28.06053178 | AR22: 28.06053172
A23: 1600000US2206925 | B23: Benton town, Louisiana | C23: 14.3 | D23: 15.5 | E23: 13.9 | F23: 14 | G23: 10.2 | H23: 12 | I23: 11.5 | J23: 13.14828342 | K23: 13.75305623 | L23: 15.83284285 | M23: 14.2447275 | N23: 14.61020886 | O23: 14.8959264 | P23: 14.58362092 | Q23: 14.6965854 | R23: 14.72537757 | S23: 14.66852796 | T23: 14.69683031 | U23: 14.69691195 | V23: 14.68742341 | W23: 14.69372189 | X23: 14.69268575 | Y23: 14.69127702 | Z23: 14.69256155 | AA23: 14.69217477 | AB23: 14.69200445 | AC23: 14.69224692 | AD23: 14.69214205 | AE23: 14.69213114 | AF23: 14.69217337 | AG23: 14.69214885 | AH23: 14.69215112 | AI23: 14.69215778 | AJ23: 14.69215258 | AK23: 14.69215383 | AL23: 14.69215473 | AM23: 14.69215371 | AN23: 14.69215409 | AO23: 14.69215418 | AP23: 14.69215399 | AQ23: 14.69215409 | AR23: 14.69215409
A24: 1600000US2207030 | B24: Bernice town, Louisiana | C24: 12.5 | D24: 11.8 | E24: 8.8 | F24: 7.9 | G24: 3.8 | H24: 3.4 | I24: 6.3 | J24: 5.361702128 | K24: 6.349206349 | L24: 9.595070423 | M24: 7.101992966 | N24: 7.682089913 | O24: 8.126384434 | P24: 7.636822438 | Q24: 7.815098928 | R24: 7.859435267 | S24: 7.770452211 | T24: 7.814995468 | U24: 7.814960982 | V24: 7.80013622 | W24: 7.81003089 | X24: 7.808376031 | Y24: 7.806181047 | Z24: 7.808195989 | AA24: 7.807584356 | AB24: 7.807320464 | AC24: 7.80770027 | AD24: 7.80753503 | AE24: 7.807518588 | AF24: 7.807584629 | AG24: 7.807546082 | AH24: 7.807549767 | AI24: 7.807560159 | AJ24: 7.807552003 | AK24: 7.807553976 | AL24: 7.807555379 | AM24: 7.807553786 | AN24: 7.807554381 | AO24: 7.807554515 | AP24: 7.807554227 | AQ24: 7.807554374 | AR24: 7.807554372
A25: 1600000US2207100 | B25: Berwick town, Louisiana | C25: 18.8 | D25: 16.5 | E25: 14.4 | F25: 14.8 | G25: 14 | H25: 12.1 | I25: 11.6 | J25: 11.51726139 | K25: 13.49870205 | L25: 12.52622116 | M25: 12.51406153 | N25: 12.84632825 | O25: 12.62887031 | P25: 12.6630867 | Q25: 12.71276175 | R25: 12.66823959 | S25: 12.68136268 | T25: 12.68745467 | U25: 12.67901898 | V25: 12.68261211 | W25: 12.68302859 | X25: 12.68155322 | Y25: 12.68239797 | Z25: 12.68232659 | AA25: 12.6820926 | AB25: 12.68227239 | AC25: 12.68223053 | AD25: 12.6821985 | AE25: 12.68223381 | AF25: 12.68222095 | AG25: 12.68221775 | AH25: 12.68222417 | AI25: 12.68222096 | AJ25: 12.68222096 | AK25: 12.68222203 | AL25: 12.68222131 | AM25: 12.68222143 | AN25: 12.68222159 | AO25: 12.68222145 | AP25: 12.68222149 | AQ25: 12.68222151 | AR25: 12.68222148
A26: 1600000US2207205 | B26: Bienville village, Louisiana | C26: 9.4 | D26: 12.9 | E26: 14.3 | F26: 13.6 | G26: 14 | H26: 14.5 | I26: 16.4 | J26: 9.036144578 | K26: 8.860759494 | L26: 7.692307692 | M26: 8.529737255 | N26: 8.360934814 | O26: 8.194326587 | P26: 8.361666218 | Q26: 8.30564254 | R26: 8.287211782 | S26: 8.318173513 | T26: 8.303675945 | U26: 8.303020413 | V26: 8.308289957 | W26: 8.304995438 | X26: 8.30543527 | Y26: 8.306240222 | Z26: 8.305556977 | AA26: 8.305744156 | AB26: 8.305847118 | AC26: 8.305716084 | AD26: 8.305769119 | AE26: 8.30577744 | AF26: 8.305754214 | AG26: 8.305766925 | AH26: 8.305766193 | AI26: 8.305762444 | AJ26: 8.305765187 | AK26: 8.305764608 | AL26: 8.30576408 | AM26: 8.305764625 | AN26: 8.305764438 | AO26: 8.305764381 | AP26: 8.305764481 | AQ26: 8.305764433 | AR26: 8.305764432
A27: 1600000US2207730 | B27: Blanchard town, Louisiana | C27: 24.9 | D27: 21.9 | E27: 17.9 | F27: 18.2 | G27: 17.4 | H27: 20.3 | I27: 22.1 | J27: 19.75417032 | K27: 21.14460463 | L27: 23.09562399 | M27: 21.33146631 | N27: 21.85723164 | O27: 22.09477398 | P27: 21.76115731 | Q27: 21.90438765 | R27: 21.92010631 | S27: 21.86188376 | T27: 21.89545924 | U27: 21.8924831 | V27: 21.88327537 | W27: 21.8904059 | X27: 21.88872146 | Y27: 21.88746758 | Z27: 21.88886498 | AA27: 21.88835134 | AB27: 21.88822796 | AC27: 21.88848143 | AD27: 21.88835358 | AE27: 21.88835432 | AF27: 21.88839644 | AG27: 21.88836811 | AH27: 21.88837296 | AI27: 21.88837917 | AJ27: 21.88837341 | AK27: 21.88837518 | AL27: 21.88837592 | AM27: 21.88837484 | AN27: 21.88837531 | AO27: 21.88837536 | AP27: 21.88837517 | AQ27: 21.88837528 | AR27: 21.88837527
A28: 1600000US2208150 | B28: Bogalusa city, Louisiana | C28: 11.8 | D28: 12 | E28: 11.7 | F28: 10.7 | G28: 10 | H28: 10.9 | I28: 9.7 | J28: 8.870593692 | K28: 8.980176738 | L28: 9.68746396 | M28: 9.179411463 | N28: 9.28235072 | O28: 9.383075381 | P28: 9.281612522 | Q28: 9.315679541 | R28: 9.326789148 | S28: 9.30802707 | T28: 9.31683192 | U28: 9.317216046 | V28: 9.314025012 | W28: 9.316024326 | X28: 9.315755128 | Y28: 9.315268155 | Z28: 9.315682536 | AA28: 9.315568607 | AB28: 9.315506433 | AC28: 9.315585859 | AD28: 9.315553633 | AE28: 9.315548641 | AF28: 9.315562711 | AG28: 9.315554995 | AH28: 9.315555449 | AI28: 9.315557718 | AJ28: 9.315556054 | AK28: 9.315556407 | AL28: 9.315556727 | AM28: 9.315556396 | AN28: 9.31555651 | AO28: 9.315556544 | AP28: 9.315556483 | AQ28: 9.315556512 | AR28: 9.315556513
A29: 1600000US2208535 | B29: Bonita village, Louisiana | C29: 2.2 | D29: 3.2 | E29: 2 | F29: 3.8 | G29: 4 | H29: 2.3 | I29: 6.4 | J29: 8.379888268 | K29: 8.490566038 | L29: 6.849315068 | M29: 7.906589791 | N29: 7.748823633 | O29: 7.501576164 | P29: 7.718996529 | Q29: 7.656465442 | R29: 7.625679379 | S29: 7.667047117 | T29: 7.649730646 | U29: 7.647485714 | V29: 7.654754492 | W29: 7.65065695 | X29: 7.650965719 | Y29: 7.65212572 | Z29: 7.651249463 | AA29: 7.651446967 | AB29: 7.651607384 | AC29: 7.651434605 | AD29: 7.651496319 | AE29: 7.651512769 | AF29: 7.651481231 | AG29: 7.651496773 | AH29: 7.651496924 | AI29: 7.651491643 | AJ29: 7.651495113 | AK29: 7.65149456 | AL29: 7.651493772 | AM29: 7.651494482 | AN29: 7.651494271 | AO29: 7.651494175 | AP29: 7.651494309 | AQ29: 7.651494252 | AR29: 7.651494245
A30: 1600000US2208920 | B30: Bossier City city, Louisiana | C30: 21.8 | D30: 23.4 | E30: 23.9 | F30: 25.7 | G30: 26.1 | H30: 25.5 | I30: 25.4 | J30: 22.31409863 | K30: 21.74890962 | L30: 20.50835991 | M30: 21.52378939 | N30: 21.26035297 | O30: 21.09750076 | P30: 21.29388104 | Q30: 21.21724492 | R30: 21.20287557 | S30: 21.23800051 | T30: 21.21937367 | U30: 21.22008325 | V30: 21.22581914 | W30: 21.22175869 | X30: 21.2225537 | Y30: 21.22337718 | Z30: 21.22256319 | AA30: 21.22283135 | AB30: 21.22292391 | AC30: 21.22277281 | AD30: 21.22284269 | AE30: 21.22284647 | AF30: 21.22282066 | AG30: 21.22283661 | AH30: 21.22283458 | AI30: 21.22283061 | AJ30: 21.22283393 | AK30: 21.22283304 | AL30: 21.22283253 | AM30: 21.22283317 | AN30: 21.22283291 | AO30: 21.22283287 | AP30: 21.22283298 | AQ30: 21.22283292 | AR30: 21.22283293
A31: 1600000US2209165 | B31: Boyce town, Louisiana | C31: 10.6 | D31: 9.6 | E31: 11.8 | F31: 12.6 | G31: 12.9 | H31: 12.7 | I31: 11.8 | J31: 11.50758252 | K31: 10.58091286 | L31: 6.864064603 | M31: 9.650853327 | N31: 9.031943598 | O31: 8.515620509 | P31: 9.066139145 | Q31: 8.871234417 | R31: 8.81766469 | S31: 8.918346084 | T31: 8.869081731 | U31: 8.868364168 | V31: 8.885263994 | W31: 8.874236631 | X31: 8.875954931 | Y31: 8.878485186 | Z31: 8.876225583 | AA31: 8.876888567 | AB31: 8.877199778 | AC31: 8.876771309 | AD31: 8.876953218 | AE31: 8.876974768 | AF31: 8.876899765 | AG31: 8.876942584 | AH31: 8.876939039 | AI31: 8.876927129 | AJ31: 8.876936251 | AK31: 8.87693414 | AL31: 8.876932507 | AM31: 8.876934299 | AN31: 8.876933649 | AO31: 8.876933485 | AP31: 8.876933811 | AQ31: 8.876933648 | AR31: 8.876933648
A32: 1600000US2209340 | B32: Breaux Bridge city, Louisiana | C32: 14.2 | D32: 14.8 | E32: 14.4 | F32: 14.9 | G32: 15.5 | H32: 14.1 | I32: 15 | J32: 12.41287753 | K32: 15.76282261 | L32: 15.5314674 | M32: 14.56905585 | N32: 15.28778195 | O32: 15.12943507 | P32: 14.99542429 | Q32: 15.1375471 | R32: 15.08746882 | S32: 15.07348007 | T32: 15.09949866 | U32: 15.08681585 | V32: 15.08659819 | W32: 15.0909709 | X32: 15.08812832 | Y32: 15.0885658 | Z32: 15.08922167 | AA32: 15.0886386 | AB32: 15.08880869 | AC32: 15.08888965 | AD32: 15.08877898 | AE32: 15.08882578 | AF32: 15.08883147 | AG32: 15.08881208 | AH32: 15.08882311 | AI32: 15.08882222 | AJ32: 15.08881913 | AK32: 15.08882149 | AL32: 15.08882095 | AM32: 15.08882052 | AN32: 15.08882098 | AO32: 15.08882082 | AP32: 15.08882077 | AQ32: 15.08882086 | AR32: 15.08882082
A33: 1600000US2210075 | B33: Broussard city, Louisiana | C33: 23.3 | D33: 22.6 | E33: 23.4 | F33: 28.3 | G33: 27 | H33: 30 | I33: 35.4 | J33: 37.13059473 | K33: 33.04042179 | L33: 36.05251346 | M33: =(L33+K33+J33)/3 -> 35.40784333 | N33: 34.83359286 | O33: 35.43131655 | P33: 35.22425091 | Q33: 35.16305344 | R33: 35.27287364 | S33: 35.22005933 | T33: 35.21866214 | U33: 35.23719837 | V33: 35.22530661 | W33: 35.22705571 | X33: 35.22985356 | Y33: 35.22740529 | Z33: 35.22810485 | AA33: 35.22845457 | AB33: 35.22798824 | AC33: 35.22818255 | AD33: 35.22820845 | AE33: 35.22812642 | AF33: 35.22817247 | AG33: 35.22816911 | AH33: 35.228156 | AI33: 35.22816586 | AJ33: 35.22816366 | AK33: 35.22816184 | AL33: 35.22816379 | AM33: 35.2281631 | AN33: 35.22816291 | AO33: 35.22816326 | AP33: 35.22816309 | AQ33: =(AP33+AO33+AN33)/3 -> 35.22816309 | AR33: 35.22816315
A34: 1600000US2210600 | B34: Brusly town, Louisiana | C34: 19.4 | D34: 21.4 | E34: 19.9 | F34: 21.7 | G34: 23.7 | H34: 24.5 | I34: 24.5 | J34: 24.11825726 | K34: 24.37759336 | L34: 25.60606061 | M34: 24.70063708 | N34: 24.89476368 | O34: 25.06715379 | P34: 24.88751818 | Q34: 24.94981188 | R34: 24.96816128 | S34: 24.93516378 | T34: 24.95104565 | U34: 24.95145691 | V34: 24.94588878 | W34: 24.94946378 | X34: 24.94893649 | Y34: 24.94809635 | Z34: 24.94883221 | AA34: 24.94862168 | AB34: 24.94851674 | AC34: =(AB34+AA34+Z34)/3 -> 24.94865688 | AD34: 24.94859843 | AE34: 24.94859069 | AF34: 24.94861533 | AG34: 24.94860148 | AH34: 24.9486025 | AI34: 24.94860644 | AJ34: 24.94860347 | AK34: 24.94860414 | AL34: 24.94860468 | AM34: 24.9486041 | AN34: 24.94860431 | AO34: 24.94860436 | AP34: 24.94860426 | AQ34: 24.94860431 | AR34: 24.94860431
A35: 1600000US2210950 | B35: Bunkie city, Louisiana | C35: 7 | D35: 8.8 | E35: 8.6 | F35: 13.1 | G35: 11.8 | H35: 15.4 | I35: 15.8 | J35: 12.59259259 | K35: 7.569444444 | L35: 11.2412178 | M35: 10.46775161 | N35: 9.759471285 | O35: 10.48948023 | P35: 10.23890104 | Q35: 10.16261752 | R35: 10.2969996 | S35: 10.23283939 | T35: 10.23081884 | U35: 10.25355261 | V35: 10.23907028 | W35: 10.24114724 | X35: 10.24459004 | Y35: 10.24160252 | Z35: 10.2424466 | AA35: 10.24287972 | AB35: 10.24230961 | AC35: 10.24254531 | AD35: 10.24257821 | AE35: 10.24247771 | AF35: 10.24253375 | AG35: 10.24252989 | AH35: 10.24251378 | AI35: 10.24252581 | AJ35: 10.24252316 | AK35: 10.24252092 | AL35: 10.24252329 | AM35: 10.24252246 | AN35: 10.24252222 | AO35: 10.24252266 | AP35: 10.24252245 | AQ35: 10.24252244 | AR35: 10.24252252
A36: 1600000US2211930 | B36: Calvin village, Louisiana | C36: 6.4 | D36: 4.9 | E36: 6.5 | F36: 5.1 | G36: 3.3 | H36: 4.4 | I36: 10.4 | J36: 15.54054054 | K36: 18.97810219 | L36: 13.15789474 | M36: 15.89217916 | N36: 16.00939203 | O36: 15.01982197 | P36: 15.64046439 | Q36: 15.55655946 | R36: 15.40561527 | S36: 15.53421304 | T36: 15.49879593 | U36: 15.47954141 | V36: 15.50418346 | W36: 15.4941736 | X36: 15.49263282 | Y36: 15.49699663 | Z36: 15.49460102 | AA36: 15.49474349 | AB36: 15.49544704 | AC36: 15.49493052 | AD36: 15.49504035 | AE36: 15.4951393 | AF36: 15.49503672 | AG36: 15.49507213 | AH36: 15.49508272 | AI36: 15.49506386 | AJ36: 15.4950729 | AK36: 15.49507316 | AL36: 15.49506997 | AM36: 15.49507201 | AN36: 15.49507171 | AO36: 15.49507123 | AP36: 15.49507165 | AQ36: 15.49507153 | AR36: 15.49507147
A37: 1600000US2212280 | B37: Campti town, Louisiana | C37: 5 | D37: 6.7 | E37: 6.8 | F37: 9.1 | G37: 12 | H37: 9.8 | I37: 8 | J37: 8.270676692 | K37: 7.088607595 | L37: 6.587615283 | M37: 7.31563319 | N37: 6.997285356 | O37: 6.96684461 | P37: 7.093254385 | Q37: 7.019128117 | R37: 7.026409037 | S37: 7.046263847 | T37: 7.030600334 | U37: 7.034424406 | V37: 7.037096195 | W37: 7.034040312 | X37: 7.035186971 | Y37: 7.035441159 | Z37: 7.034889481 | AA37: 7.035172537 | AB37: 7.035167726 | AC37: 7.035076581 | AD37: 7.035138948 | AE37: 7.035127752 | AF37: 7.035114427 | AG37: 7.035127042 | AH37: 7.035123073 | AI37: 7.035121514 | AJ37: 7.035123877 | AK37: 7.035122821 | AL37: 7.035122737 | AM37: 7.035123145 | AN37: 7.035122901 | AO37: 7.035122928 | AP37: 7.035122991 | AQ37: 7.03512294 | AR37: 7.035122953
A38: 1600000US2212420 | B38: Cankton village, Louisiana | C38: 5.7 | D38: 6.5 | E38: 3.3 | F38: 3.6 | G38: 3 | H38: 4.2 | I38: 8.8 | J38: 10.85106383 | K38: 11.25541126 | L38: 10.62355658 | M38: 10.91001056 | N38: 10.92965946 | O38: 10.82107553 | P38: 10.88691518 | Q38: 10.87921673 | R38: 10.86240248 | S38: 10.87617813 | T38: 10.87259911 | U38: 10.87039324 | V38: 10.87305683 | W38: 10.8720164 | X38: 10.87182216 | Y38: 10.87229846 | Z38: 10.87204567 | AA38: 10.87205543 | AB38: 10.87213319 | AC38: 10.8720781 | AD38: 10.8720889 | AE38: 10.87210006 | AF38: 10.87208902 | AG38: 10.87209266 | AH38: 10.87209391 | AI38: 10.87209187 | AJ38: 10.87209281 | AK38: 10.87209286 | AL38: 10.87209251 | AM38: 10.87209273 | AN38: 10.8720927 | AO38: 10.87209265 | AP38: 10.87209269 | AQ38: 10.87209268 | AR38: 10.87209268
A39: 1600000US2212665 | B39: Carencro city, Louisiana | C39: 11.9 | D39: 14.1 | E39: 15.3 | F39: 14.1 | G39: 15.3 | H39: 15.4 | I39: 15.4 | J39: 15.29713279 | K39: 15 | L39: 17.52764733 | M39: 15.94159337 | N39: 16.15641357 | O39: 16.54188475 | P39: 16.21329723 | Q39: 16.30386518 | R39: 16.35301572 | S39: 16.29005938 | T39: 16.31564676 | U39: 16.31957395 | V39: 16.3084267 | W39: 16.31454914 | X39: 16.31418326 | Y39: 16.31238637 | Z39: 16.31370626 | AA39: 16.3134253 | AB39: 16.31317264 | AC39: 16.31343473 | AD39: 16.31334422 | AE39: 16.3133172 | AF39: 16.31336538 | AG39: 16.31334227 | AH39: 16.31334162 | AI39: 16.31334976 | AJ39: 16.31334455 | AK39: 16.31334531 | AL39: 16.31334654 | AM39: 16.31334546 | AN39: 16.31334577 | AO39: 16.31334592 | AP39: 16.31334572 | AQ39: 16.3133458 | AR39: 16.31334581
A40: 1600000US2213260 | B40: Castor village, Louisiana | C40: 27.7 | D40: 25.7 | E40: 20.8 | F40: 12.7 | G40: 13 | H40: 6.3 | I40: 7 | J40: 6.741573034 | K40: 18.5 | L40: 14.28571429 | M40: 13.17576244 | N40: 15.32049224 | O40: 14.26065632 | P40: 14.25230367 | Q40: 14.61115074 | R40: 14.37470358 | S40: 14.41271933 | T40: 14.46619122 | U40: 14.41787138 | V40: 14.43226064 | W40: 14.43877441 | X40: 14.42963548 | Y40: 14.43355684 | Z40: 14.43398891 | AA40: 14.43239374 | AB40: 14.43331317 | AC40: 14.43323194 | AD40: 14.43297962 | AE40: 14.43317491 | AF40: 14.43312882 | AG40: 14.43309445 | AH40: 14.43313272 | AI40: 14.43311866 | AJ40: 14.43311528 | AK40: 14.43312222 | AL40: 14.43311872 | AM40: 14.43311874 | AN40: 14.4331199 | AO40: 14.43311912 | AP40: 14.43311925 | AQ40: 14.43311942 | AR40: 14.43311926
A41: 1600000US2213960 | B41: Central city, Louisiana | C41: 20.8 | D41: 20.3 | E41: 21.7 | F41: 21.2 | G41: 20.2 | H41: 22.3 | I41: 23.9 | J41: 22.57709756 | K41: 23.95613472 | L41: 24.68910022 | M41: 23.7407775 | N41: 24.12867081 | O41: 24.18618284 | P41: 24.01854372 | Q41: 24.11113246 | R41: 24.10528634 | S41: 24.07832084 | T41: 24.09824654 | U41: 24.09395124 | V41: 24.09017287 | W41: 24.09412355 | X41: 24.09274922 | Y41: 24.09234855 | Z41: 24.09307378 | AA41: 24.09272385 | AB41: 24.09271539 | AC41: 24.09283767 | AD41: 24.09275897 | AE41: 24.09277068 | AF41: 24.09278911 | AG41: 24.09277292 | AH41: 24.09277757 | AI41: 24.09277986 | AJ41: 24.09277678 | AK41: 24.09277807 | AL41: 24.09277824 | AM41: 24.0927777 | AN41: 24.092778 | AO41: 24.09277798 | AP41: 24.09277789 | AQ41: 24.09277796 | AR41: 24.09277794
A42: 1600000US2214450 | B42: Chataignier village, Louisiana | C42: 13.3 | D42: 13.6 | E42: 8.5 | F42: 7.6 | G42: 6.3 | H42: 8.8 | I42: 12.1 | J42: 10.041841 | K42: 11.41304348 | L42: 13.63636364 | M42: 11.69708271 | N42: 12.24882994 | O42: 12.52742543 | P42: 12.15777936 | Q42: 12.31134491 | R42: 12.33218323 | S42: 12.2671025 | T42: 12.30354355 | U42: 12.30094309 | V42: 12.29052971 | W42: 12.29833878 | X42: 12.29660386 | Y42: 12.29515745 | Z42: 12.29670003 | AA42: 12.29615378 | AB42: 12.29600376 | AC42: 12.29628586 | AD42: 12.2961478 | AE42: 12.2961458 | AF42: 12.29619315 | AG42: 12.29616225 | AH42: 12.29616707 | AI42: 12.29617416 | AJ42: 12.29616783 | AK42: 12.29616969 | AL42: 12.29617056 | AM42: 12.29616936 | AN42: 12.29616987 | AO42: 12.29616993 | AP42: 12.29616972 | AQ42: 12.29616984 | AR42: 12.29616983
A43: 1600000US2214485 | B43: Chatham town, Louisiana | C43: 8.3 | D43: 9.3 | E43: 13.4 | F43: 11.9 | G43: 19.5 | H43: 19.3 | I43: 14.5 | J43: 10.81730769 | K43: 10.99137931 | L43: 7.07456979 | M43: 9.627752264 | N43: 9.231233788 | O43: 8.644518614 | P43: 9.167834889 | Q43: 9.014529097 | R43: 8.9422942 | S43: 9.041552728 | T43: 8.999458675 | U43: 8.994435201 | V43: 9.011815535 | W43: 9.001903137 | X43: 9.002717958 | Y43: 9.005478877 | Z43: 9.003366657 | AA43: 9.003854497 | AB43: 9.004233344 | AC43: 9.003818166 | AD43: 9.003968669 | AE43: 9.004006726 | AF43: 9.003931187 | AG43: 9.003968861 | AH43: 9.003968925 | AI43: 9.003956324 | AJ43: 9.003964703 | AK43: 9.003963317 | AL43: 9.003961448 | AM43: 9.003963156 | AN43: 9.003962641 | AO43: 9.003962415 | AP43: 9.003962737 | AQ43: 9.003962598 | AR43: 9.003962583
A44: 1600000US2214660 | B44: Cheneyville town, Louisiana | C44: 4.9 | D44: 4.1 | E44: 5.9 | F44: 4.8 | G44: 9.5 | H44: 11 | I44: 11.3 | J44: 12.52900232 | K44: 11.71548117 | L44: 11.49897331 | M44: 11.9144856 | N44: 11.70964669 | O44: 11.70770187 | P44: 11.77727805 | Q44: 11.7315422 | R44: 11.73884071 | S44: 11.74922032 | T44: 11.73986774 | U44: 11.74264292 | V44: 11.74391033 | W44: 11.74214033 | X44: 11.74289786 | Y44: 11.74298284 | Z44: 11.74267368 | AA44: 11.74285146 | AB44: 11.74283599 | AC44: 11.74278704 | AD44: 11.74282483 | AE44: 11.74281596 | AF44: 11.74280928 | AG44: 11.74281669 | AH44: 11.74281397 | AI44: 11.74281331 | AJ44: 11.74281466 | AK44: 11.74281398 | AL44: 11.74281399 | AM44: 11.74281421 | AN44: 11.74281406 | AO44: 11.74281408 | AP44: 11.74281412 | AQ44: 11.74281409 | AR44: 11.7428141
A45: 1600000US2215290 | B45: Choudrant village, Louisiana | C45: 36.7 | D45: 32.9 | E45: 35.2 | F45: 36.8 | G45: 41.2 | H45: 34.4 | I45: 37.8 | J45: 41.51838671 | K45: 43.53499407 | L45: 39.83169705 | M45: 41.62835928 | N45: 41.6650168 | O45: 41.04169104 | P45: 41.44502238 | Q45: 41.38391007 | R45: 41.29020783 | S45: 41.37304676 | T45: 41.34905489 | U45: 41.33743649 | V45: 41.35317938 | W45: 41.34655692 | X45: 41.34572426 | Y45: 41.34848686 | Z45: 41.34692268 | AA45: 41.3470446 | AB45: 41.34748471 | AC45: 41.34715066 | AD45: 41.34722666 | AE45: 41.34728734 | AF45: 41.34722156 | AG45: 41.34724519 | AH45: 41.34725136 | AI45: 41.34723937 | AJ45: 41.34724531 | AK45: 41.34724535 | AL45: 41.34724334 | AM45: 41.34724466 | AN45: 41.34724445 | AO45: 41.34724415 | AP45: 41.34724442 | AQ45: 41.34724434 | AR45: 41.3472443
A46: 1600000US2215465 | B46: Church Point town, Louisiana | C46: 6.4 | D46: 5.3 | E46: 4.3 | F46: 4.3 | G46: 4.6 | H46: 2.4 | I46: 2.5 | J46: 3.695532267 | K46: 3.797109663 | L46: 8.666274971 | M46: 5.386305633 | N46: 5.949896756 | O46: 6.667492453 | P46: 6.001231614 | Q46: 6.206206941 | R46: 6.291643669 | S46: 6.166360742 | T46: 6.221403784 | U46: 6.226469398 | V46: 6.204744641 | W46: 6.217539275 | X46: 6.216251105 | Y46: 6.212845007 | Z46: 6.215545129 | AA46: 6.214880413 | AB46: 6.214423516 | AC46: 6.214949686 | AD46: 6.214751205 | AE46: 6.214708136 | AF46: 6.214803009 | AG46: 6.214754117 | AH46: 6.214755087 | AI46: 6.214770738 | AJ46: 6.214759981 | AK46: 6.214761935 | AL46: 6.214764218 | AM46: 6.214762045 | AN46: 6.214762733 | AO46: 6.214762998 | AP46: 6.214762592 | AQ46: 6.214762774 | AR46: 6.214762788
A47: 1600000US2215745 | B47: Clarence village, Louisiana | C47: 10.6 | D47: 6.2 | E47: 4.3 | F47: 6.7 | G47: 7.4 | H47: 11.2 | I47: 7.1 | J47: 15.96244131 | K47: 6.572769953 | L47: 5.288461538 | M47: 9.274557602 | N47: 7.045263031 | O47: 7.202760724 | P47: 7.840860452 | Q47: 7.362961402 | R47: 7.46886086 | S47: 7.557560905 | T47: 7.463127722 | U47: 7.496516496 | V47: 7.505735041 | W47: 7.488459753 | X47: 7.496903763 | Y47: 7.497032852 | Z47: 7.494132123 | AA47: 7.496022913 | AB47: 7.495729296 | AC47: 7.495294777 | AD47: 7.495682329 | AE47: 7.495568801 | AF47: 7.495515302 | AG47: 7.49558881 | AH47: 7.495557638 | AI47: 7.495553917 | AJ47: 7.495566788 | AK47: 7.495559448 | AL47: 7.495560051 | AM47: 7.495562096 | AN47: 7.495560531 | AO47: 7.495560893 | AP47: 7.495561173 | AQ47: 7.495560866 | AR47: 7.495560977
A48: 1600000US2215780 | B48: Clarks village, Louisiana | C48: 6.8 | D48: 5.9 | E48: 4.4 | F48: 0.6 | G48: 0.5 | H48: 1 | I48: 0.9 | J48: 1.650943396 | K48: 1.800720288 | L48: 2.426564496 | M48: 1.959409393 | N48: 2.062231392 | O48: 2.14940176 | P48: 2.057014182 | Q48: 2.089549112 | R48: 2.098655018 | S48: 2.081739437 | T48: 2.089981189 | U48: 2.090125215 | V48: 2.087281947 | W48: 2.08912945 | X48: 2.088845537 | Y48: 2.088418978 | Z48: 2.088797989 | AA48: 2.088687501 | AB48: =(AA48+Z48+Y48)/3 -> 2.088634823 | AC48: 2.088706771 | AD48: 2.088676365 | AE48: 2.088672653 | AF48: 2.088685263 | AG48: 2.088678094 | AH48: 2.08867867 | AI48: 2.088680675 | AJ48: 2.088679146 | AK48: 2.088679497 | AL48: 2.088679773 | AM48: 2.088679472 | AN48: 2.088679581 | AO48: 2.088679609 | AP48: 2.088679554 | AQ48: 2.088679581 | AR48: 2.088679581
A49: 1600000US2215850 | B49: Clayton town, Louisiana | C49: 2.2 | D49: 2.2 | E49: 2.1 | F49: 6.2 | G49: 3.7 | H49: 7.2 | I49: 6.9 | J49: 9.950248756 | K49: 7.857142857 | L49: 3.927492447 | M49: =(L49+K49+J49)/3 -> 7.244961353 | N49: 6.343198886 | O49: 5.838550896 | P49: 6.475570378 | Q49: 6.21910672 | R49: 6.177742665 | S49: 6.290806588 | T49: 6.229218657 | U49: 6.232589303 | V49: 6.250871516 | W49: 6.237559826 | X49: 6.240340215 | Y49: 6.242923852 | Z49: 6.240274631 | AA49: 6.241179566 | AB49: 6.24145935 | AC49: 6.240971182 | AD49: 6.241203366 | AE49: 6.241211299 | AF49: 6.241128616 | AG49: 6.241181094 | AH49: 6.24117367 | AI49: 6.241161126 | AJ49: 6.241171963 | AK49: 6.24116892 | AL49: 6.241167336 | AM49: 6.241169406 | AN49: 6.241168554 | AO49: 6.241168432 | AP49: 6.241168798 | AQ49: 6.241168595 | AR49: 6.241168608
A50: 1600000US2215990 | B50: Clinton town, Louisiana | C50: 14.9 | D50: 14.7 | E50: 15.5 | F50: 15.1 | G50: 17.8 | H50: 18.1 | I50: 21.1 | J50: 16.5735568 | K50: 15.48436308 | L50: 22.20459952 | M50: 18.08750647 | N50: 18.59215636 | O50: 19.62808745 | P50: 18.76925009 | Q50: 18.99649797 | R50: 19.1312785 | S50: 18.96567552 | T50: 19.03115066 | U50: 19.04270156 | V50: 19.01317592 | W50: 19.02900938 | X50: 19.02829562 | Y50: 19.02349364 | Z50: 19.02693288 | AA50: 19.02624071 | AB50: 19.02555574 | AC50: 19.02624311 | AD50: 19.02601319 | AE50: 19.02593735 | AF50: 19.02606455 | AG50: 19.02600503 | AH50: 19.02600231 | AI50: 19.02602396 | AJ50: 19.02601043 | AK50: 19.02601223 | AL50: 19.02601554 | AM50: 19.02601274 | AN50: 19.02601351 | AO50: 19.02601393 | AP50: 19.02601339 | AQ50: 19.02601361 | AR50: 19.02601364
A51: 1600000US2216375 | B51: Colfax town, Louisiana | C51: 8.3 | D51: 6.8 | E51: 8.3 | F51: 9.4 | G51: 9.6 | H51: 8.8 | I51: 10.5 | J51: 7.113543092 | K51: 8.338405356 | L51: 9.744779582 | M51: 8.398909343 | N51: 8.827364761 | O51: 8.990351229 | P51: 8.738875111 | Q51: 8.852197033 | R51: 8.860474458 | S51: 8.817182201 | T51: 8.843284564 | U51: 8.840313741 | V51: 8.833593502 | W51: 8.839063936 | X51: 8.837657059 | Y51: 8.836771499 | Z51: 8.837830831 | AA51: 8.837419796 | AB51: 8.837340709 | AC51: 8.837530446 | AD51: 8.837430317 | AE51: 8.837433824 | AF51: 8.837464862 | AG51: 8.837443001 | AH51: 8.837447229 | AI51: 8.837451697 | AJ51: 8.837447309 | AK51: 8.837448745 | AL51: 8.837449251 | AM51: 8.837448435 | AN51: 8.83744881 | AO51: 8.837448832 | AP51: 8.837448692 | AQ51: 8.837448778 | AR51: 8.837448767
A52: 1600000US2216655 | B52: Collinston village, Louisiana | C52: 20.9 | D52: 10.6 | E52: 11.7 | F52: 16.3 | G52: 6.4 | H52: 5.5 | I52: 3.8 | J52: 1.153846154 | K52: 2.164502165 | L52: 2.824858757 | M52: 2.047735692 | N52: 2.345698871 | O52: 2.406097773 | P52: 2.266510779 | Q52: 2.339435808 | R52: 2.33734812 | S52: 2.314431569 | T52: 2.330405165 | U52: 2.327394951 | V52: 2.324077229 | W52: 2.327292448 | X52: 2.326254876 | Y52: 2.325874851 | Z52: 2.326474059 | AA52: 2.326201262 | AB52: 2.326183391 | AC52: 2.326286237 | AD52: 2.32622363 | AE52: 2.326231086 | AF52: =(AE52+AD52+AC52)/3 -> 2.326246984 | AG52: 2.3262339 | AH52: 2.326237323 | AI52: 2.326239402 | AJ52: 2.326236875 | AK52: 2.326237867 | AL52: 2.326238048 | AM52: 2.326237597 | AN52: 2.326237837 | AO52: 2.326237827 | AP52: 2.326237754 | AQ52: 2.326237806 | AR52: 2.326237796
A53: 1600000US2216830 | B53: Columbia town, Louisiana | C53: 11.5 | D53: 12.1 | E53: 10.3 | F53: 13.3 | G53: 11.8 | H53: 10.6 | I53: 20.1 | J53: 15.04178273 | K53: 13.59773371 | L53: 16.52661064 | M53: 15.0553757 | N53: 15.05990668 | O53: 15.54729767 | P53: 15.22086002 | Q53: 15.27602146 | R53: 15.34805972 | S53: 15.28164706 | T53: 15.30190941 | U53: 15.31053873 | V53: 15.29803174 | W53: 15.30349329 | X53: 15.30402125 | Y53: 15.30184876 | Z53: 15.3031211 | AA53: 15.30299704 | AB53: 15.30265563 | AC53: 15.30292459 | AD53: 15.30285909 | AE53: 15.30281311 | AF53: 15.3028656 | AG53: 15.30284593 | AH53: 15.30284154 | AI53: 15.30285102 | AJ53: 15.30284617 | AK53: 15.30284624 | AL53: 15.30284781 | AM53: 15.30284674 | AN53: 15.30284693 | AO53: 15.30284716 | AP53: 15.30284694 | AQ53: 15.30284701 | AR53: 15.30284704
A54: 1600000US2217215 | B54: Converse village, Louisiana | C54: 7.7 | D54: 7.6 | E54: 9.3 | F54: 6.8 | G54: 7.2 | H54: 10.1 | I54: 9.6 | J54: 9.281437126 | K54: 8.441558442 | L54: 8.108108108 | M54: 8.610367892 | N54: 8.386678147 | O54: 8.368384716 | P54: 8.455143585 | Q54: 8.403402149 | R54: 8.408976817 | S54: 8.422507517 | T54: 8.411628828 | U54: 8.414371054 | V54: 8.416169133 | W54: 8.414056338 | X54: 8.414865508 | Y54: 8.415030326 | Z54: 8.414650724 | AA54: 8.414848853 | AB54: 8.414843301 | AC54: 8.414780959 | AD54: 8.414824371 | AE54: 8.414816211 | AF54: 8.41480718 | AG54: 8.414815921 | AH54: 8.414813104 | AI54: 8.414812068 | AJ54: 8.414813698 | AK54: 8.414812957 | AL54: 8.414812907 | AM54: 8.414813187 | AN54: 8.414813017 | AO54: 8.414813037 | AP54: 8.414813081 | AQ54: 8.414813045 | AR54: 8.414813054
A55: 1600000US2217915 | B55: Cotton Valley town, Louisiana | C55: 7.8 | D55: 11.5 | E55: 12.2 | F55: 13.5 | G55: 14.6 | H55: 12 | I55: 8.3 | J55: 7.078651685 | K55: 5.9972106 | L55: 5.20984081 | M55: 6.095234365 | N55: 5.767428592 | O55: 5.690834589 | P55: 5.851165849 | Q55: 5.769809677 | R55: 5.770603371 | S55: 5.797192966 | T55: 5.779202005 | U55: 5.782332781 | V55: 5.786242584 | W55: 5.782592456 | X55: 5.783722607 | Y55: 5.784185882 | Z55: 5.783500315 | AA55: 5.783802935 | AB55: 5.783829711 | AC55: 5.783710987 | AD55: 5.783781211 | AE55: 5.783773969 | AF55: 5.783755389 | AG55: 5.78377019 | AH55: 5.783766516 | AI55: 5.783764032 | AJ55: 5.783766912 | AK55: 5.78376582 | AL55: 5.783765588 | AM55: 5.783766107 | AN55: 5.783765838 | AO55: 5.783765844 | AP55: 5.78376593 | AQ55: 5.783765871 | AR55: 5.783765882
A56: 1600000US2217880 | B56: Cottonport town, Louisiana | C56: 6.2 | D56: 5 | E56: 6.7 | F56: 6.8 | G56: 8.9 | H56: 10.8 | I56: 11.5 | J56: 11.88870152 | K56: 12.28668942 | L56: 10.66552901 | M56: 11.61363998 | N56: 11.5219528 | O56: 11.2670406 | P56: 11.46754446 | Q56: 11.41884596 | R56: 11.38447701 | S56: 11.42362247 | T56: 11.40898181 | U56: 11.40569376 | V56: 11.41276602 | W56: 11.4091472 | X56: 11.40920233 | Y56: 11.41037185 | Z56: 11.40957379 | AA56: 11.40971599 | AB56: 11.40988721 | AC56: 11.40972566 | AD56: 11.40977629 | AE56: 11.40979639 | AF56: 11.40976611 | AG56: 11.40977959 | AH56: 11.4097807 | AI56: 11.40977547 | AJ56: 11.40977859 | AK56: 11.40977825 | AL56: 11.40977743 | AM56: 11.40977809 | AN56: 11.40977792 | AO56: 11.40977782 | AP56: 11.40977794 | AQ56: 11.40977789 | AR56: 11.40977788
A57: 1600000US2218055 | B57: Coushatta town, Louisiana | C57: 15.3 | D57: 15.6 | E57: 13 | F57: 9.1 | G57: 7 | H57: 8.1 | I57: 12.1 | J57: 11.55606407 | K57: 8.623548922 | L57: 9.3387471 | M57: 9.839453365 | N57: 9.267249796 | O57: 9.481816753 | P57: 9.529506638 | Q57: 9.426191062 | R57: 9.479171485 | S57: 9.478289728 | T57: 9.461217425 | U57: 9.472892879 | V57: 9.470800011 | W57: 9.468303438 | X57: 9.470665443 | Y57: 9.469922964 | Z57: 9.469630615 | AA57: 9.470073007 | AB57: 9.469875529 | AC57: 9.469859717 | AD57: 9.469936084 | AE57: 9.469890444 | AF57: 9.469895415 | AG57: 9.469907314 | AH57: 9.469897724 | AI57: 9.469900151 | AJ57: 9.46990173 | AK57: 9.469899868 | AL57: 9.469900583 | AM57: 9.469900727 | AN57: 9.469900393 | AO57: 9.469900568 | AP57: 9.469900563 | AQ57: 9.469900508 | AR57: 9.469900546
A58: 1600000US2218125 | B58: Covington city, Louisiana | C58: 32.4 | D58: 37.6 | E58: 37.7 | F58: 31.4 | G58: 32.9 | H58: 34.4 | I58: 34.2 | J58: 32.84957092 | K58: 35.63663626 | L58: 36.60395918 | M58: 35.03005545 | N58: 35.75688363 | O58: 35.79696609 | P58: 35.52796839 | Q58: 35.69393937 | R58: 35.67295795 | S58: 35.6316219 | T58: 35.66617307 | U58: 35.65691764 | V58: 35.65157087 | W58: 35.65822053 | X58: 35.65556968 | Y58: 35.65512036 | Z58: 35.65630353 | AA58: 35.65566452 | AB58: 35.65569614 | AC58: 35.65588806 | AD58: 35.65574957 | AE58: 35.65577792 | AF58: 35.65580519 | AG58: 35.65577756 | AH58: 35.65578689 | AI58: 35.65578988 | AJ58: 35.65578478 | AK58: 35.65578718 | AL58: 35.65578728 | AM58: 35.65578641 | AN58: 35.65578696 | AO58: 35.65578688 | AP58: 35.65578675 | AQ58: 35.65578686 | AR58: 35.65578683
A59: 1600000US2218295 | B59: Creola village, Louisiana | C59: 25.8 | D59: 20.4 | E59: 17.6 | F59: 11.3 | G59: 8 | H59: 3.5 | I59: 3.5 | J59: 4.201680672 | K59: 4.587155963 | L59: 0 | M59: 2.929612212 | N59: 2.505589392 | O59: 1.811733868 | P59: 2.415645157 | Q59: 2.244322806 | R59: 2.157233944 | S59: 2.272400635 | T59: 2.224652462 | U59: 2.21809568 | V59: 2.238382926 | W59: 2.227043689 | X59: 2.227840765 | Y59: 2.231089127 | Z59: 2.22865786 | AA59: 2.229195917 | AB59: 2.229647635 | AC59: 2.229167137 | AD59: 2.229336896 | AE59: 2.22938389 | AF59: 2.229295974 | AG59: 2.22933892 | AH59: 2.229339595 | AI59: 2.22932483 | AJ59: 2.229334448 | AK59: 2.229332958 | AL59: 2.229330745 | AM59: 2.229332717 | AN59: 2.22933214 | AO59: 2.229331867 | AP59: 2.229332241 | AQ59: 2.229332083 | AR59: 2.229332064
A60: 1600000US2218650 | B60: Crowley city, Louisiana | C60: 13.1 | D60: 11.6 | E60: 11.8 | F60: 11 | G60: 10.4 | H60: 11.8 | I60: 11.5 | J60: 12.2625929 | K60: 13.19607425 | L60: 14.19786385 | M60: 13.21884366 | N60: 13.53759392 | O60: 13.65143381 | P60: 13.46929046 | Q60: 13.55277273 | R60: 13.55783234 | S60: 13.52663184 | T60: 13.54574564 | U60: 13.54340327 | V60: 13.53859358 | W60: 13.54258083 | X60: 13.5415259 | Y60: 13.5409001 | Z60: 13.54166894 | AA60: 13.54136498 | AB60: 13.54131134 | AC60: 13.54144842 | AD60: 13.54137492 | AE60: 13.54137823 | AF60: 13.54140052 | AG60: 13.54138455 | AH60: 13.54138777 | AI60: 13.54139095 | AJ60: 13.54138776 | AK60: 13.54138882 | AL60: 13.54138918 | AM60: 13.54138859 | AN60: 13.54138886 | AO60: 13.54138888 | AP60: 13.54138877 | AQ60: 13.54138884 | AR60: 13.54138883
A61: 1600000US2218790 | B61: Cullen town, Louisiana | C61: 11 | D61: 9.9 | E61: 11.9 | F61: 8 | G61: 4.2 | H61: 4.1 | I61: 6 | J61: 2.611940299 | K61: 5.354919054 | L61: 4.700352526 | M61: 4.222403959 | N61: 4.75922518 | O61: 4.560660555 | P61: 4.514096565 | Q61: 4.611327433 | R61: 4.562028184 | S61: 4.562484061 | T61: 4.578613226 | U61: 4.567708491 | V61: 4.569601926 | W61: 4.571974548 | X61: 4.569761655 | Y61: 4.570446043 | Z61: 4.570727415 | AA61: 4.570311704 | AB61: 4.570495054 | AC61: 4.570511391 | AD61: 4.570439383 | AE61: 4.570481943 | AF61: 4.570477572 | AG61: 4.570466299 | AH61: 4.570475271 | AI61: 4.570473048 | AJ61: 4.570471539 | AK61: 4.570473286 | AL61: 4.570472624 | AM61: 4.570472483 | AN61: 4.570472798 | AO61: 4.570472635 | AP61: 4.570472639 | AQ61: 4.570472691 | AR61: 4.570472655
A62: 1600000US2220155 | B62: Delcambre town, Louisiana | C62: 6.7 | D62: 8.1 | E62: 8.3 | F62: 7.5 | G62: 8.3 | H62: 9.3 | I62: 8.9 | J62: 11.06500692 | K62: 11.07594937 | L62: 13.11018131 | M62: 11.7503792 | N62: 11.97883663 | O62: 12.27979904 | P62: 12.00300496 | Q62: 12.08721354 | R62: 12.12333918 | S62: 12.07118589 | T62: 12.09391287 | U62: 12.09614598 | V62: 12.08708158 | W62: 12.09238015 | X62: 12.09186924 | Y62: 12.09044365 | Z62: 12.09156435 | AA62: 12.09129241 | AB62: 12.09110014 | AC62: 12.09131897 | AD62: 12.09123717 | AE62: 12.09121876 | AF62: 12.0912583 | AG62: 12.09123808 | AH62: 12.09123838 | AI62: 12.09124492 | AJ62: 12.09124046 | AK62: 12.09124125 | AL62: 12.09124221 | AM62: 12.09124131 | AN62: 12.09124159 | AO62: 12.0912417 | AP62: 12.09124153 | AQ62: 12.09124161 | AR62: 12.09124161
A63: 1600000US2220190 | B63: Delhi town, Louisiana | C63: 14.3 | D63: 15.1 | E63: 13.1 | F63: 14.1 | G63: 15.1 | H63: 14.9 | I63: 13.3 | J63: 15.5741311 | K63: 14.00088613 | L63: 15.26932084 | M63: 14.94811269 | N63: 14.73943989 | O63: 14.98562448 | P63: 14.89105902 | Q63: 14.87204113 | R63: 14.91624154 | S63: 14.8931139 | T63: 14.89379885 | U63: 14.90105143 | V63: 14.89598806 | W63: 14.89694612 | X63: 14.8979952 | Y63: 14.89697646 | Z63: 14.89730593 | AA63: 14.89742586 | AB63: 14.89723608 | AC63: 14.89732262 | AD63: 14.89732819 | AE63: 14.89729563 | AF63: 14.89731548 | AG63: 14.8973131 | AH63: 14.89730807 | AI63: 14.89731222 | AJ63: 14.89731113 | AK63: 14.89731047 | AL63: 14.89731127 | AM63: 14.89731096 | AN63: 14.8973109 | AO63: 14.89731104 | AP63: 14.89731097 | AQ63: 14.89731097 | AR63: 14.897311
A64: 1600000US2220330 | B64: Delta village, Louisiana | C64: 2 | D64: 0 | E64: 11.1 | F64: 7.2 | G64: 5.3 | H64: 7.3 | I64: 9.1 | J64: 4.04040404 | K64: 5.625 | L64: 5.988023952 | M64: 5.217809331 | N64: 5.610277761 | O64: 5.605370348 | P64: 5.477819147 | Q64: 5.564489085 | R64: 5.549226193 | S64: 5.530511475 | T64: 5.548075584 | U64: 5.542604418 | V64: 5.540397159 | W64: 5.543692387 | X64: 5.542231321 | Y64: 5.542106956 | Z64: 5.542676888 | AA64: 5.542338388 | AB64: 5.542374077 | AC64: 5.542463118 | AD64: 5.542391861 | AE64: 5.542409685 | AF64: 5.542421555 | AG64: 5.542407701 | AH64: 5.54241298 | AI64: 5.542414079 | AJ64: 5.542411586 | AK64: 5.542412882 | AL64: 5.542412849 | AM64: 5.542412439 | AN64: 5.542412723 | AO64: 5.54241267 | AP64: 5.542412611 | AQ64: 5.542412668 | AR64: 5.54241265
A65: 1600000US2220435 | B65: Denham Springs city, Louisiana | C65: 20.4 | D65: 17.2 | E65: 16.9 | F65: 15.9 | G65: 13 | H65: 15.5 | I65: 15.3 | J65: 15.43555782 | K65: 16.4413829 | L65: 20.96667109 | M65: 17.61453727 | N65: 18.34086375 | O65: 18.97402404 | P65: 18.30980835 | Q65: 18.54156538 | R65: 18.60846592 | S65: 18.48661322 | T65: 18.54554818 | U65: 18.54687577 | V65: 18.52634572 | W65: 18.53958989 | X65: 18.5376038 | Y65: 18.53451314 | Z65: 18.53723561 | AA65: 18.53645085 | AB65: 18.53606653 | AC65: 18.53658433 | AD65: 18.53636723 | AE65: 18.53633936 | AF65: 18.53643031 | AG65: 18.53637897 | AH65: 18.53638288 | AI65: 18.53639739 | AJ65: 18.53638641 | AK65: 18.53638889 | AL65: 18.5363909 | AM65: 18.53638873 | AN65: 18.53638951 | AO65: 18.53638971 | AP65: 18.53638932 | AQ65: 18.53638951 | AR65: 18.53638951
A66: 1600000US2220575 | B66: DeQuincy city, Louisiana | C66: 11.1 | D66: 12.1 | E66: 11 | F66: 9.1 | G66: 10.9 | H66: 9.5 | I66: 8.8 | J66: 11.18367347 | K66: 13.27241079 | L66: 10.02061856 | M66: =(L66+K66+J66)/3 -> 11.49223427 | N66: 11.59508787 | O66: 11.03598023 | P66: 11.37443413 | Q66: 11.33516741 | R66: 11.24852726 | S66: 11.31937627 | T66: 11.30102364 | U66: 11.28964239 | V66: 11.30334743 | W66: 11.29800449 | X66: 11.2969981 | Y66: 11.29945001 | Z66: 11.29815087 | AA66: 11.29819966 | AB66: 11.29860018 | AC66: 11.2983169 | AD66: 11.29837225 | AE66: 11.29842978 | AF66: 11.29837297 | AG66: 11.29839167 | AH66: 11.29839814 | AI66: 11.29838759 | AJ66: 11.29839247 | AK66: 11.29839273 | AL66: 11.29839093 | AM66: 11.29839204 | AN66: 11.2983919 | AO66: 11.29839163 | AP66: 11.29839186 | AQ66: 11.29839179 | AR66: 11.29839176
A67: 1600000US2220610 | B67: DeRidder city, Louisiana | C67: 21.8 | D67: 21.6 | E67: 21.8 | F67: 21.4 | G67: 21.6 | H67: 20 | I67: 23.1 | J67: 20.14440433 | K67: 19.76716839 | L67: 20.91136825 | M67: 20.27431366 | N67: 20.31761676 | O67: 20.50109956 | P67: 20.36434333 | Q67: 20.39435321 | R67: 20.41993203 | S67: 20.39287619 | T67: 20.40238715 | U67: 20.40506512 | V67: 20.40010949 | W67: 20.40252058 | X67: 20.40256506 | Y67: 20.40173171 | Z67: 20.40227245 | AA67: 20.40218974 | AB67: 20.40206464 | AC67: 20.40217561 | AD67: 20.40214333 | AE67: 20.40212786 | AF67: 20.40214893 | AG67: 20.40214004 | AH67: 20.40213894 | AI67: 20.40214264 | AJ67: 20.40214054 | AK67: 20.40214071 | AL67: 20.4021413 | AM67: 20.40214085 | AN67: 20.40214095 | AO67: 20.40214103 | AP67: 20.40214094 | AQ67: 20.40214098 | AR67: 20.40214098
A68: 1600000US2221135 | B68: Dixie Inn village, Louisiana | C68: 2 | D68: 1.5 | E68: 3.5 | F68: 10.6 | G68: 14.9 | H68: 13 | I68: 15 | J68: 11.95219124 | K68: 7.042253521 | L68: 4.716981132 | M68: 7.903808629 | N68: 6.554347761 | O68: 6.391712507 | P68: 6.949956299 | Q68: 6.632005523 | R68: 6.657891443 | S68: 6.746617755 | T68: 6.67883824 | U68: 6.694449146 | V68: 6.706635047 | W68: 6.693307478 | X68: 6.698130557 | Y68: 6.699357694 | Z68: 6.69693191 | AA68: 6.698140053 | AB68: 6.698143219 | AC68: 6.697738394 | AD68: 6.698007222 | AE68: 6.697962945 | AF68: 6.697902854 | AG68: 6.697957674 | AH68: 6.697941157 | AI68: 6.697933895 | AJ68: 6.697944242 | AK68: 6.697939765 | AL68: 6.697939301 | AM68: 6.697941102 | AN68: 6.697940056 | AO68: 6.697940153 | AP68: 6.697940437 | AQ68: 6.697940215 | AR68: 6.697940269
A69: 1600000US2221170 | B69: Dodson village, Louisiana | C69: 10.4 | D69: 7.2 | E69: 8 | F69: 11.9 | G69: 6 | H69: 5.7 | I69: 5.7 | J69: 3.773584906 | K69: 7.063197026 | L69: 9.210526316 | M69: 6.682436082 | N69: 7.652053141 | O69: 7.848338513 | P69: 7.394275912 | Q69: 7.631555856 | R69: 7.624723427 | S69: 7.550185065 | T69: 7.602154783 | U69: 7.592354425 | V69: 7.581564758 | W69: 7.592024655 | X69: 7.588647946 | Y69: 7.587412453 | Z69: 7.589361685 | AA69: 7.588474028 | AB69: 7.588416055 | AC69: 7.588750589 | AD69: 7.588546891 | AE69: 7.588571178 | AF69: 7.588622886 | AG69: 7.588580318 | AH69: 7.588591461 | AI69: 7.588598222 | AJ69: 7.58859 | AK69: 7.588593228 | AL69: 7.588593817 | AM69: 7.588592348 | AN69: 7.588593131 | AO69: 7.588593098 | AP69: 7.588592859 | AQ69: 7.588593029 | AR69: 7.588592996
A70: 1600000US2221240 | B70: Donaldsonville city, Louisiana | C70: 13.4 | D70: 13.5 | E70: 14.8 | F70: 16.1 | G70: 13.6 | H70: 13.6 | I70: 15.8 | J70: 14.82191343 | K70: 15.25732252 | L70: 15.15000829 | M70: 15.07641475 | N70: 15.16124852 | O70: 15.12922385 | P70: 15.12229571 | Q70: 15.13758936 | R70: 15.12970297 | S70: 15.12986268 | T70: 15.132385 | U70: 15.13065022 | V70: 15.13096597 | W70: 15.13133373 | X70: 15.1309833 | Y70: 15.13109433 | Z70: 15.13113712 | AA70: 15.13107159 | AB70: 15.13110101 | AC70: 15.13110324 | AD70: 15.13109195 | AE70: 15.13109873 | AF70: 15.13109797 | AG70: 15.13109622 | AH70: 15.13109764 | AI70: 15.13109728 | AJ70: 15.13109705 | AK70: 15.13109732 | AL70: 15.13109722 | AM70: 15.1310972 | AN70: 15.13109724 | AO70: 15.13109722 | AP70: 15.13109722 | AQ70: 15.13109723 | AR70: 15.13109722
A71: 1600000US2221450 | B71: Downsville village, Louisiana | C71: 44.4 | D71: 30.4 | E71: 31.1 | F71: 32.4 | G71: 38.7 | H71: 32.3 | I71: 44.4 | J71: 41.37931034 | K71: 34.93975904 | L71: 32.67326733 | M71: 36.3307789 | N71: 34.64793509 | O71: 34.55066044 | P71: 35.17645814 | Q71: 34.79168456 | R71: 34.83960105 | S71: 34.93591458 | T71: 34.8557334 | U71: 34.87708301 | V71: 34.889577 | W71: 34.87413113 | X71: 34.88026371 | Y71: 34.88132395 | Z71: 34.87857293 | AA71: 34.88005353 | AB71: 34.87998347 | AC71: 34.87953664 | AD71: 34.87985788 | AE71: 34.87979266 | AF71: 34.87972906 | AG71: 34.8797932 | AH71: 34.87977164 | AI71: 34.87976464 | AJ71: 34.87977649 | AK71: 34.87977092 | AL71: 34.87977068 | AM71: 34.8797727 | AN71: 34.87977144 | AO71: 34.87977161 | AP71: 34.87977192 | AQ71: 34.87977165 | AR71: 34.87977173
A72: 1600000US2221590 | B72: Doyline village, Louisiana | C72: 11.2 | D72: 8.8 | E72: 7.9 | F72: 8.6 | G72: 8.3 | H72: 11.4 | I72: 10.4 | J72: 8.032786885 | K72: 8.45323741 | L72: 10.49723757 | M72: 8.994420621 | N72: 9.3149652 | O72: 9.602207797 | P72: 9.30386454 | Q72: 9.407012512 | R72: 9.43769495 | S72: 9.382857334 | T72: 9.409188265 | U72: 9.409913516 | V72: 9.400653038 | W72: 9.40658494 | X72: 9.405717165 | Y72: 9.404318381 | Z72: 9.405540162 | AA72: 9.405191903 | AB72: 9.405016815 | AC72: 9.405249627 | AD72: 9.405152781 | AE72: 9.405139741 | AF72: 9.405180716 | AG72: 9.405157746 | AH72: 9.405159401 | AI72: 9.405165955 | AJ72: 9.405161034 | AK72: 9.40516213 | AL72: 9.40516304 | AM72: 9.405162068 | AN72: 9.405162412 | AO72: 9.405162507 | AP72: 9.405162329 | AQ72: 9.405162416 | AR72: 9.405162417
A73: 1600000US2221765 | B73: Dry Prong village, Louisiana | C73: 32.1 | D73: 30.6 | E73: 30.1 | F73: 27.6 | G73: 25.8 | H73: 17.4 | I73: 14.3 | J73: 14.02439024 | K73: 12.64705882 | L73: 13.70967742 | M73: 13.4603755 | N73: 13.27237058 | O73: 13.48080783 | P73: 13.40451797 | Q73: 13.38589879 | R73: 13.42374153 | S73: 13.40471943 | T73: 13.40478659 | U73: 13.41108252 | V73: 13.40686284 | W73: 13.40757732 | X73: 13.40850756 | Y73: 13.40764924 | Z73: 13.40791137 | AA73: 13.40802272 | AB73: 13.40786111 | AC73: 13.40793173 | AD73: 13.40793852 | AE73: 13.40791046 | AF73: 13.4079269 | AG73: 13.40792529 | AH73: 13.40792089 | AI73: 13.40792436 | AJ73: 13.40792351 | AK73: 13.40792292 | AL73: 13.4079236 | AM73: 13.40792334 | AN73: 13.40792329 | AO73: 13.40792341 | AP73: 13.40792335 | AQ73: 13.40792335 | AR73: 13.40792337
A74: 1600000US2221800 | B74: Dubach town, Louisiana | C74: 16.5 | D74: 14.1 | E74: 15.9 | F74: 13.9 | G74: 14.7 | H74: 14.3 | I74: 16.7 | J74: 15.02525253 | K74: 12.94797688 | L74: 12.82689913 | M74: 13.60004284 | N74: 13.12497295 | O74: 13.18397164 | P74: 13.30299581 | Q74: 13.20398013 | R74: 13.23031586 | S74: 13.24576394 | T74: 13.22668664 | U74: 13.23425548 | V74: 13.23556869 | W74: 13.23217027 | X74: 13.23399815 | Y74: 13.23391237 | Z74: 13.23336026 | AA74: 13.23375693 | AB74: 13.23367652 | AC74: 13.2335979 | AD74: 13.23367712 | AE74: 13.23365051 | AF74: 13.23364184 | AG74: 13.23365649 | AH74: 13.23364961 | AI74: 13.23364932 | AJ74: 13.23365181 | AK74: 13.23365025 | AL74: 13.23365046 | AM74: 13.23365084 | AN74: 13.23365051 | AO74: 13.2336506 | AP74: 13.23365065 | AQ74: 13.23365059 | AR74: 13.23365061
A75: 1600000US2221835 | B75: Dubberly village, Louisiana | C75: 24.9 | D75: 17.5 | E75: 16.4 | F75: 15.8 | G75: 10.8 | H75: 8.3 | I75: 12 | J75: 11.45833333 | K75: 14.62264151 | L75: 16.91542289 | M75: 14.33213258 | N75: 15.29006566 | O75: 15.51254037 | P75: 15.04491287 | Q75: 15.2825063 | R75: 15.27998651 | S75: 15.20246856 | T75: 15.25498712 | U75: 15.24581407 | V75: 15.23442325 | W75: 15.24507481 | X75: 15.24177071 | Y75: 15.24042292 | Z75: 15.24242282 | AA75: 15.24153882 | AB75: 15.24146152 | AC75: 15.24180772 | AD75: 15.24160268 | AE75: 15.24162397 | AF75: 15.24167813 | AG75: 15.24163493 | AH75: =(AG75+AF75+AE75)/3 -> 15.24164568 | AI75: 15.24165291 | AJ75: 15.2416445 | AK75: 15.2416477 | AL75: 15.24164837 | AM75: 15.24164686 | AN75: 15.24164764 | AO75: 15.24164762 | AP75: 15.24164737 | AQ75: 15.24164755 | AR75: 15.24164751
A76: 1600000US2222255 | B76: Duson town, Louisiana | C76: 4.9 | D76: 4.7 | E76: 3.5 | F76: 6.8 | G76: 6.2 | H76: 6 | I76: 4.1 | J76: 3.037569944 | K76: 3.371710526 | L76: 0.8403361345 | M76: 2.416538868 | N76: 2.20952851 | O76: 1.822134504 | P76: 2.149400627 | Q76: 2.060354547 | R76: 2.010629893 | S76: 2.073461689 | T76: 2.04814871 | U76: 2.044080097 | V76: 2.055230165 | W76: 2.049152991 | X76: 2.049487751 | Y76: 2.051290302 | Z76: 2.049977015 | AA76: 2.050251689 | AB76: 2.050506336 | AC76: 2.050245013 | AD76: 2.050334346 | AE76: 2.050361898 | AF76: 2.050313752 | AG76: 2.050336666 | AH76: 2.050337439 | AI76: 2.050329286 | AJ76: 2.050334463 | AK76: 2.050333729 | AL76: 2.050332493 | AM76: 2.050333562 | AN76: 2.050333261 | AO76: 2.050333105 | AP76: 2.050333309 | AQ76: 2.050333225 | AR76: 2.050333213
A77: 1600000US2222465 | B77: East Hodge village, Louisiana | C77: 8.8 | D77: 8 | E77: 6.6 | F77: 6 | G77: 4.9 | H77: 8.6 | I77: 13.1 | J77: 10.0456621 | K77: 12.20657277 | L77: 13.33333333 | M77: 11.86185607 | N77: 12.46725406 | O77: 12.55414782 | P77: 12.29441931 | Q77: 12.43860706 | R77: 12.42905807 | S77: 12.38736148 | T77: 12.4183422 | U77: 12.41158725 | V77: 12.40576365 | W77: 12.4118977 | X77: 12.40974953 | Y77: 12.40913696 | Z77: 12.4102614 | AA77: 12.40971596 | AB77: 12.40970477 | AC77: 12.40989404 | AD77: 12.40977159 | AE77: 12.40979014 | AF77: 12.40981859 | AG77: 12.40979344 | AH77: 12.40980072 | AI77: 12.40980425 | AJ77: 12.40979947 | AK77: 12.40980148 | AL77: 12.40980173 | AM77: 12.4098009 | AN77: 12.40980137 | AO77: 12.40980133 | AP77: 12.4098012 | AQ77: 12.4098013 | AR77: 12.40980128
A78: 1600000US2222850 | B78: Edgefield village, Louisiana | C78: 9.5 | D78: 11.7 | E78: 16 | F78: 9.6 | G78: 17.5 | H78: 16.5 | I78: 13 | J78: 13.98601399 | K78: 17.72727273 | L78: 12.94642857 | M78: 14.88657176 | N78: 15.18675769 | O78: 14.33991934 | P78: 14.80441626 | Q78: 14.7770311 | R78: 14.64045557 | S78: 14.74063431 | T78: 14.71937366 | U78: 14.70015451 | V78: 14.72005416 | W78: 14.71319411 | X78: 14.71113426 | Y78: 14.71479418 | Z78: 14.71304085 | AA78: 14.71298976 | AB78: 14.71360826 | AC78: 14.71321296 | AD78: 14.71327033 | AE78: 14.71336385 | AF78: 14.71328238 | AG78: 14.71330552 | AH78: 14.71331725 | AI78: 14.71330171 | AJ78: 14.71330816 | AK78: 14.71330904 | AL78: 14.7133063 | AM78: 14.71330783 | AN78: 14.71330773 | AO78: 14.71330729 | AP78: 14.71330762 | AQ78: 14.71330754 | AR78: 14.71330748
A79: 1600000US2223235 | B79: Elizabeth town, Louisiana | C79: 12.3 | D79: 20.5 | E79: 16.7 | F79: 10.7 | G79: 10.5 | H79: 12.8 | I79: 11.3 | J79: 23.07692308 | K79: 18.31831832 | L79: 20.76023392 | M79: 20.71849177 | N79: 19.932348 | O79: 20.4703579 | P79: 20.37373256 | Q79: 20.25881282 | R79: 20.36763442 | S79: 20.33339327 | T79: 20.31994684 | U79: 20.34032484 | V79: 20.33122165 | W79: 20.33049778 | X79: 20.33401476 | Y79: 20.33191139 | Z79: 20.33214131 | AA79: 20.33268915 | AB79: 20.33224728 | AC79: 20.33235925 | AD79: 20.3324319 | AE79: 20.33234614 | AF79: 20.3323791 | AG79: 20.33238571 | AH79: 20.33237032 | AI79: 20.33237837 | AJ79: 20.33237813 | AK79: 20.33237561 | AL79: 20.33237737 | AM79: 20.33237704 | AN79: 20.33237667 | AO79: 20.33237703 | AP79: 20.33237691 | AQ79: 20.33237687 | AR79: 20.33237694
A80: 1600000US2223620 | B80: Elton town, Louisiana | C80: 13.8 | D80: 10.7 | E80: 12.8 | F80: 10.2 | G80: 7.7 | H80: 3.9 | I80: 5 | J80: 9.072375127 | K80: 9.756097561 | L80: 14.89817792 | M80: 11.24221687 | N80: 11.96549745 | O80: 12.70196408 | P80: 11.9698928 | Q80: 12.21245144 | R80: 12.29476944 | S80: 12.1590379 | T80: 12.22208626 | U80: 12.22529787 | V80: 12.20214067 | W80: 12.21650827 | X80: 12.21464894 | Y80: 12.21109929 | Z80: 12.2140855 | AA80: 12.21327791 | AB80: 12.2128209 | AC80: 12.21339477 | AD80: 12.21316453 | AE80: 12.21312673 | AF80: 12.21322867 | AG80: 12.21317331 | AH80: 12.21317624 | AI80: 12.21319274 | AJ80: 12.21318076 | AK80: 12.21318325 | AL80: 12.21318558 | AM80: 12.2131832 | AN80: 12.21318401 | AO80: 12.21318426 | AP80: 12.21318382 | AQ80: 12.21318403 | AR80: 12.21318404
A81: 1600000US2224145 | B81: Epps village, Louisiana | C81: 2.4 | D81: 3.7 | E81: 3.1 | F81: 3.9 | G81: 5.5 | H81: 3.8 | I81: 3.4 | J81: 4.487179487 | K81: 5.322763307 | L81: 3.417721519 | M81: 4.409221438 | N81: 4.383235421 | O81: 4.070059459 | P81: 4.287505439 | Q81: 4.24693344 | R81: 4.201499446 | S81: 4.245312775 | T81: 4.231248554 | U81: 4.226020258 | V81: 4.234193862 | W81: 4.230487558 | X81: 4.230233893 | Y81: 4.231638438 | Z81: 4.23078663 | AA81: 4.23088632 | AB81: 4.231103796 | AC81: 4.230925582 | AD81: 4.230971899 | AE81: 4.231000426 | AF81: 4.230965969 | AG81: 4.230979431 | AH81: 4.230981942 | AI81: 4.230975781 | AJ81: 4.230979051 | AK81: 4.230978925 | AL81: 4.230977919 | AM81: 4.230978632 | AN81: 4.230978492 | AO81: 4.230978348 | AP81: 4.23097849 | AQ81: 4.230978443 | AR81: 4.230978427
A82: 1600000US2224180 | B82: Erath town, Louisiana | C82: 11.8 | D82: 13.2 | E82: 11.2 | F82: 10.5 | G82: 13 | H82: 13 | I82: 11.5 | J82: 10.08883249 | K82: 11.64736165 | L82: 12.98857486 | M82: 11.574923 | N82: 12.0702865 | O82: 12.21126146 | P82: 11.95215699 | Q82: 12.07790165 | R82: 12.08044003 | S82: 12.03683289 | T82: 12.06505819 | U82: 12.06077704 | V82: 12.0542227 | W82: 12.06001931 | X82: 12.05833968 | Y82: 12.05752723 | Z82: 12.05862874 | AA82: 12.05816522 | AB82: 12.05810706 | AC82: 12.05830034 | AD82: 12.05819088 | AE82: 12.05819943 | AF82: 12.05823022 | AG82: 12.05820684 | AH82: 12.05821216 | AI82: 12.05821641 | AJ82: 12.0582118 | AK82: 12.05821346 | AL82: 12.05821389 | AM82: 12.05821305 | AN82: 12.05821346 | AO82: 12.05821347 | AP82: 12.05821333 | AQ82: 12.05821342 | AR82: 12.0582134
A83: 1600000US2224215 | B83: Eros town, Louisiana | C83: 4.3 | D83: 0 | E83: 0 | F83: 1.3 | G83: 4.2 | H83: 3.5 | I83: 5.7 | J83: 8.396946565 | K83: 5.333333333 | L83: 1.829268293 | M83: =(L83+K83+J83)/3 -> 5.186516064 | N83: 4.116372563 | O83: 3.710718973 | P83: 4.3378692 | Q83: 4.054986912 | R83: 4.034525028 | S83: 4.14246038 | T83: 4.077324107 | U83: 4.084769839 | V83: 4.101518109 | W83: 4.087870685 | X83: 4.091386211 | Y83: 4.093591668 | Z83: 4.090949521 | AA83: 4.0919758 | AB83: 4.09217233 | AC83: 4.091699217 | AD83: 4.091949115 | AE83: 4.091940221 | AF83: 4.091862851 | AG83: 4.091917396 | AH83: 4.091906822 | AI83: 4.09189569 | AJ83: 4.091906636 | AK83: 4.091903049 | AL83: 4.091901792 | AM83: 4.091903826 | AN83: 4.091902889 | AO83: 4.091902835 | AP83: 4.091903183 | AQ83: 4.091902969 | AR83: 4.091902996
A84: 1600000US2224460 | B84: Estherwood village, Louisiana | C84: 12.1 | D84: 13.1 | E84: 10.9 | F84: 11.6 | G84: 12.2 | H84: 14.9 | I84: 11.7 | J84: 10.26086957 | K84: 9.797297297 | L84: 8.702531646 | M84: 9.586899503 | N84: 9.362242815 | O84: 9.217224654 | P84: 9.388788991 | Q84: 9.322752153 | R84: 9.3095886 | S84: 9.340376581 | T84: 9.324239111 | U84: 9.324734764 | V84: 9.329783486 | W84: 9.326252454 | X84: 9.326923568 | Y84: 9.327653169 | Z84: 9.326943064 | AA84: 9.327173267 | AB84: 9.3272565 | AC84: 9.327124277 | AD84: 9.327184681 | AE84: 9.327188486 | AF84: 9.327165815 | AG84: 9.327179661 | AH84: 9.327177987 | AI84: 9.327174487 | AJ84: 9.327177378 | AK84: 9.327176618 | AL84: 9.327176161 | AM84: 9.327176719 | AN84: 9.327176499 | AO84: 9.32717646 | AP84: 9.327176559 | AQ84: 9.327176506 | AR84: 9.327176508
A85: 1600000US2224565 | B85: Eunice city, Louisiana | C85: 14.5 | D85: 14.1 | E85: 13.8 | F85: 13.1 | G85: 9.8 | H85: 9.3 | I85: 11.3 | J85: 9.651793989 | K85: 8.725371934 | L85: 10.14218009 | M85: 9.506448673 | N85: 9.458000234 | O85: 9.702209667 | P85: 9.555552858 | Q85: 9.57192092 | R85: 9.609894482 | S85: 9.579122753 | T85: 9.586979385 | U85: 9.591998873 | V85: 9.58603367 | W85: 9.588337309 | X85: 9.588789951 | Y85: 9.58772031 | Z85: 9.588282523 | AA85: 9.588264262 | AB85: 9.588089032 | AC85: 9.588211939 | AD85: 9.588188411 | AE85: 9.588163127 | AF85: 9.588187826 | AG85: 9.588179788 | AH85: 9.588176913 | AI85: 9.588181509 | AJ85: 9.588179403 | AK85: 9.588179275 | AL85: 9.588180063 | AM85: 9.58817958 | AN85: 9.588179639 | AO85: 9.588179761 | AP85: 9.58817966 | AQ85: 9.588179687 | AR85: 9.588179703
A86: 1600000US2224775 | B86: Evergreen town, Louisiana | C86: 4.3 | D86: 5.8 | E86: 6.6 | F86: 7.4 | G86: 9.2 | H86: 4.1 | I86: 2.1 | J86: 2.120141343 | K86: 2.573529412 | L86: 4.152249135 | M86: 2.948639963 | N86: 3.22480617 | O86: 3.441898423 | P86: 3.205114852 | Q86: 3.290606482 | R86: 3.312539919 | S86: 3.269420417 | T86: 3.290855606 | U86: 3.290938647 | V86: 3.283738224 | W86: 3.288510826 | X86: 3.287729232 | Y86: 3.286659427 | Z86: 3.287633162 | AA86: 3.287340607 | AB86: 3.287211065 | AC86: 3.287394945 | AD86: 3.287315539 | AE86: 3.287307183 | AF86: 3.287339222 | AG86: 3.287320648 | AH86: 3.287322351 | AI86: 3.287327407 | AJ86: 3.287323469 | AK86: 3.287324409 | AL86: 3.287325095 | AM86: 3.287324324 | AN86: 3.287324609 | AO86: 3.287324676 | AP86: 3.287324537 | AQ86: 3.287324607 | AR86: 3.287324607
A87: 1600000US2225160 | B87: Farmerville town, Louisiana | C87: 15.5 | D87: 16.3 | E87: 14.1 | F87: 13.8 | G87: 11.4 | H87: 9.4 | I87: 12.8 | J87: 12.38164603 | K87: 11.44005848 | L87: 10.39285714 | M87: 11.40485388 | N87: 11.0792565 | O87: 10.95898918 | P87: 11.14769985 | Q87: 11.06198184 | R87: 11.05622363 | S87: 11.08863511 | T87: 11.06894686 | U87: 11.07126853 | V87: 11.0762835 | W87: 11.0721663 | X87: 11.07323944 | Y87: 11.07389641 | Z87: 11.07310072 | AA87: 11.07341219 | AB87: 11.07346977 | AC87: 11.07332756 | AD87: 11.07340317 | AE87: 11.07340017 | AF87: 11.07337697 | AG87: 11.07339344 | AH87: 11.07339019 | AI87: 11.07338687 | AJ87: 11.07339016 | AK87: 11.07338907 | AL87: 11.0733887 | AM87: 11.07338931 | AN87: 11.07338903 | AO87: 11.07338902 | AP87: 11.07338912 | AQ87: 11.07338905 | AR87: 11.07338906
A88: 1600000US2225335 | B88: Fenton village, Louisiana | C88: 2 | D88: 14 | E88: 20.1 | F88: 16.7 | G88: 17.5 | H88: 17 | I88: 9.5 | J88: 7.251908397 | K88: 6.896551724 | L88: 7.476635514 | M88: 7.208365212 | N88: 7.193850817 | O88: 7.292950514 | P88: 7.231722181 | Q88: 7.239507837 | R88: 7.254726844 | S88: 7.241985621 | T88: 7.245406767 | U88: 7.247373077 | V88: 7.244921822 | W88: 7.245900555 | X88: 7.246065152 | Y88: 7.245629176 | Z88: 7.245864961 | AA88: 7.245853096 | AB88: 7.245782411 | AC88: 7.24583349 | AD88: 7.245822999 | AE88: 7.245812967 | AF88: 7.245823152 | AG88: 7.245819706 | AH88: 7.245818608 | AI88: 7.245820488 | AJ88: 7.245819601 | AK88: 7.245819566 | AL88: 7.245819885 | AM88: 7.245819684 | AN88: 7.245819712 | AO88: 7.24581976 | AP88: 7.245819718 | AQ88: 7.24581973 | AR88: 7.245819736
A89: 1600000US2225440 | B89: Ferriday town, Louisiana | C89: 7.8 | D89: 8 | E89: 7 | F89: 7 | G89: 9.4 | H89: 16.2 | I89: 17.1 | J89: 19.31518876 | K89: 23.93526405 | L89: 23.06738322 | M89: 22.10594534 | N89: 23.03619754 | O89: 22.7365087 | P89: 22.62621719 | Q89: 22.79964114 | R89: 22.72078901 | S89: 22.71554912 | T89: 22.74532642 | U89: 22.72722152 | V89: 22.72936569 | W89: 22.73397121 | X89: 22.73018614 | Y89: 22.73117434 | Z89: 22.73177723 | AA89: 22.7310459 | AB89: 22.73133249 | AC89: 22.73138521 | AD89: 22.73125454 | AE89: 22.73132408 | AF89: 22.73132127 | AG89: 22.73129996 | AH89: 22.73131511 | AI89: 22.73131211 | AJ89: 22.73130906 | AK89: 22.73131209 | AL89: 22.73131109 | AM89: 22.73131075 | AN89: 22.73131131 | AO89: 22.73131105 | AP89: 22.73131104 | AQ89: 22.73131113 | AR89: 22.73131107
A90: 1600000US2225615 | B90: Fisher village, Louisiana | C90: 8.8 | D90: 4.6 | E90: 6.8 | F90: 7.3 | G90: 4.8 | H90: 5.2 | I90: 5.4 | J90: 6.698564593 | K90: 7.906976744 | L90: 8.097165992 | M90: 7.56756911 | N90: 7.857237282 | O90: 7.840657461 | P90: 7.755154618 | Q90: 7.81768312 | R90: 7.8044984 | S90: 7.792445379 | T90: 7.804875633 | U90: 7.800606471 | V90: 7.799309161 | W90: 7.801597088 | X90: 7.80050424 | Y90: 7.800470163 | Z90: 7.800857164 | AA90: 7.800610522 | AB90: 7.80064595 | AC90: 7.800704545 | AD90: 7.800653672 | AE90: 7.800668056 | AF90: 7.800675424 | AG90: 7.800665718 | AH90: 7.800669733 | AI90: 7.800670292 | AJ90: 7.800668581 | AK90: 7.800669535 | AL90: 7.800669469 | AM90: 7.800669195 | AN90: 7.8006694 | AO90: 7.800669354 | AP90: 7.800669316 | AQ90: 7.800669357 | AR90: 7.800669343
A91: 1600000US2225860 | B91: Florien village, Louisiana | C91: 14.5 | D91: 17.6 | E91: 21 | F91: 21.4 | G91: 21.5 | H91: 19.3 | I91: 16.4 | J91: 14.5 | K91: 11.38952164 | L91: 10.85106383 | M91: 12.24686182 | N91: 11.49581576 | O91: 11.53124714 | P91: 11.75797491 | Q91: 11.5950126 | R91: 11.62807822 | S91: 11.66035524 | T91: 11.62781536 | U91: 11.63874961 | V91: 11.64230673 | W91: 11.63629056 | X91: 11.63911563 | Y91: 11.63923764 | Z91: 11.63821461 | AA91: 11.63885596 | AB91: 11.63876941 | AC91: 11.63861333 | AD91: 11.63874623 | AE91: 11.63870966 | AF91: 11.63868974 | AG91: 11.63871521 | AH91: 11.63870487 | AI91: 11.63870327 | AJ91: 11.63870778 | AK91: 11.63870531 | AL91: 11.63870546 | AM91: 11.63870618 | AN91: 11.63870565 | AO91: 11.63870576 | AP91: 11.63870586 | AQ91: 11.63870576 | AR91: 11.6387058
A92: 1600000US2226140 | B92: Folsom village, Louisiana | C92: 8.8 | D92: 9 | E92: 13 | F92: 20 | G92: 16.5 | H92: 18.3 | I92: 18 | J92: 14.91365777 | K92: 10.63464837 | L92: 19.39393939 | M92: 14.98074851 | N92: 15.00311209 | O92: 16.45926667 | P92: 15.48104242 | Q92: 15.64780706 | R92: 15.86270538 | S92: 15.66385162 | T92: 15.72478802 | U92: 15.75044834 | V92: 15.71302933 | W92: 15.7294219 | X92: 15.73096652 | Y92: 15.72447258 | Z92: 15.728287 | AA92: 15.7279087 | AB92: 15.72688943 | AC92: 15.72769504 | AD92: 15.72749773 | AE92: 15.72736073 | AF92: 15.72751783 | AG92: 15.72745876 | AH92: 15.72744578 | AI92: 15.72747413 | AJ92: 15.72745956 | AK92: 15.72745982 | AL92: 15.7274645 | AM92: 15.72746129 | AN92: 15.72746187 | AO92: 15.72746255 | AP92: 15.72746191 | AQ92: 15.72746211 | AR92: 15.72746219
A93: 1600000US2226280 | B93: Fordoche town, Louisiana | C93: 7.5 | D93: 4.9 | E93: 8 | F93: 8.7 | G93: 9.5 | H93: 10.9 | I93: 10.4 | J93: 9.568733154 | K93: 7.824933687 | L93: 5.37084399 | M93: 7.588170277 | N93: 6.927982651 | O93: 6.628998973 | P93: 7.048383967 | Q93: 6.868455197 | R93: 6.848612712 | S93: 6.921817292 | T93: 6.8796284 | U93: 6.883352801 | V93: 6.894932831 | W93: 6.885971344 | X93: 6.888085659 | Y93: 6.889663278 | Z93: 6.887906761 | AA93: 6.888551899 | AB93: 6.888707313 | AC93: 6.888388657 | AD93: 6.88854929 | AE93: 6.88854842 | AF93: 6.888495456 | AG93: 6.888531055 | AH93: 6.888524977 | AI93: 6.888517163 | AJ93: 6.888524398 | AK93: 6.888522179 | AL93: 6.888521247 | AM93: 6.888522608 | AN93: 6.888522011 | AO93: 6.888521955 | AP93: 6.888522192 | AQ93: 6.888522053 | AR93: 6.888522067
A94: 1600000US2226420 | B94: Forest Hill village, Louisiana | C94: 15.1 | D94: 10.3 | E94: 7.4 | F94: 8.3 | G94: 9.8 | H94: 9.2 | I94: 10.6 | J94: 10.99585062 | K94: 10.70663812 | L94: 11.58645276 | M94: 11.09631383 | N94: 11.12980157 | O94: 11.27085606 | P94: 11.16565715 | Q94: 11.18877159 | R94: 11.20842827 | S94: 11.187619 | T94: 11.19493962 | U94: 11.19699563 | V94: 11.19318475 | W94: 11.19504 | X94: 11.19507346 | Y94: 11.19443274 | Z94: 11.19484873 | AA94: 11.19478498 | AB94: 11.19468882 | AC94: 11.19477418 | AD94: 11.19474932 | AE94: 11.19473744 | AF94: 11.19475365 | AG94: 11.1947468 | AH94: 11.19474596 | AI94: 11.1947488 | AJ94: 11.19474719 | AK94: 11.19474732 | AL94: 11.19474777 | AM94: 11.19474743 | AN94: 11.19474751 | AO94: 11.19474757 | AP94: 11.1947475 | AQ94: 11.19474752 | AR94: 11.19474753
A95: 1600000US2226350 | B95: Forest village, Louisiana | C95: 9.8 | D95: 7.9 | E95: 13.2 | F95: 17 | G95: 16.2 | H95: 16.5 | I95: 12.2 | J95: 4.385964912 | K95: 5.069124424 | L95: 7.172995781 | M95: 5.542695039 | N95: 5.928271748 | O95: 6.214654189 | P95: 5.895206992 | Q95: 6.012710976 | R95: 6.040857386 | S95: 5.982925118 | T95: 6.012164493 | U95: 6.011982332 | V95: 6.002357315 | W95: 6.008834713 | X95: 6.007724787 | Y95: 6.006305605 | Z95: 6.007621702 | AA95: 6.007217365 | AB95: 6.007048224 | AC95: 6.007295763 | AD95: 6.007187117 | AE95: 6.007177035 | AF95: 6.007219972 | AG95: 6.007194708 | AH95: 6.007197238 | AI95: 6.007203973 | AJ95: 6.00719864 | AK95: 6.00719995 | AL95: 6.007200854 | AM95: 6.007199815 | AN95: 6.007200206 | AO95: 6.007200292 | AP95: 6.007200104 | AQ95: 6.007200201 | AR95: 6.007200199
A96: 1600000US2227155 | B96: Franklin city, Louisiana | C96: 10.2 | D96: 11.2 | E96: 13.1 | F96: 12.5 | G96: 11.6 | H96: 11.2 | I96: 10.5 | J96: 9.011469143 | K96: 8.410138249 | L96: 8.848207475 | M96: 8.756604956 | N96: 8.671650227 | O96: 8.758820886 | P96: 8.729025356 | Q96: 8.719832156 | R96: 8.735892799 | S96: 8.728250104 | T96: 8.727991686 | U96: 8.73071153 | V96: 8.72898444 | W96: 8.729229219 | X96: 8.729641729 | Y96: 8.729285129 | Z96: 8.729385359 | AA96: 8.729437406 | AB96: 8.729369298 | AC96: 8.729397354 | AD96: 8.729401353 | AE96: 8.729389335 | AF96: 8.729396014 | AG96: 8.729395567 | AH96: 8.729393639 | AI96: 8.729395074 | AJ96: 8.72939476 | AK96: 8.729394491 | AL96: 8.729394775 | AM96: 8.729394675 | AN96: 8.729394647 | AO96: 8.729394699 | AP96: 8.729394674 | AQ96: 8.729394673 | AR96: 8.729394682
A97: 1600000US2227190 | B97: Franklinton town, Louisiana | C97: 12.4 | D97: 12.4 | E97: 12.5 | F97: 12.7 | G97: 13.5 | H97: 16 | I97: 14.6 | J97: 15.21670357 | K97: 12.95609153 | L97: 15.28455285 | M97: 14.48578265 | N97: 14.24214234 | O97: 14.67082595 | P97: 14.46625031 | Q97: 14.45973953 | R97: 14.53227193 | S97: 14.48608726 | T97: 14.49269957 | U97: 14.50368625 | V97: 14.4941577 | W97: 14.49684784 | X97: 14.4982306 | Y97: 14.49641204 | Z97: 14.49716349 | AA97: 14.49726871 | AB97: 14.49694808 | AC97: 14.49712676 | AD97: 14.49711452 | AE97: 14.49706312 | AF97: 14.49710147 | AG97: 14.49709304 | AH97: 14.49708588 | AI97: 14.49709346 | AJ97: 14.49709079 | AK97: 14.49709004 | AL97: 14.49709143 | AM97: 14.49709075 | AN97: 14.49709074 | AO97: 14.49709098 | AP97: 14.49709082 | AQ97: 14.49709085 | AR97: 14.49709088
A98: 1600000US2227435 | B98: French Settlement village, Louisiana | C98: 9 | D98: 8.2 | E98: 8.2 | F98: 8.6 | G98: 9.1 | H98: 10.3 | I98: 12.3 | J98: 12.33019854 | K98: 13.37579618 | L98: 19.35007386 | M98: 15.01868952 | N98: 15.91485319 | O98: 16.76120552 | P98: 15.89824941 | Q98: 16.19143604 | R98: 16.28363032 | S98: 16.12443859 | T98: 16.19983498 | U98: 16.20263463 | V98: 16.17563607 | W98: 16.1927019 | X98: 16.1903242 | Y98: 16.18622072 | Z98: 16.18974894 | AA98: 16.18876462 | AB98: 16.18824476 | AC98: 16.18891944 | AD98: 16.18864294 | AE98: 16.18860238 | AF98: 16.18872159 | AG98: 16.18865564 | AH98: 16.18865987 | AI98: 16.18867903 | AJ98: 16.18866484 | AK98: 16.18866791 | AL98: 16.1886706 | AM98: 16.18866778 | AN98: 16.18866876 | AO98: 16.18866905 | AP98: 16.18866853 | AQ98: 16.18866878 | AR98: 16.18866879
A99: 1600000US2228660 | B99: Georgetown village, Louisiana | C99: 3.9 | D99: 2.6 | E99: 0 | F99: 0.5 | G99: 5.2 | H99: 3.8 | I99: 7.4 | J99: 9.322033898 | K99: 10.76923077 | L99: 13.8996139 | M99: 11.33029286 | N99: 11.99971251 | O99: 12.40987309 | P99: 11.91329282 | Q99: 12.10762614 | R99: 12.14359735 | S99: 12.05483877 | T99: 12.10202075 | U99: 12.10015229 | V99: 12.0856706 | W99: 12.09594788 | X99: 12.09392359 | Y99: 12.09184736 | Z99: 12.09390628 | AA99: 12.09322574 | AB99: 12.09299313 | AC99: 12.09337505 | AD99: 12.09319797 | AE99: 12.09318871 | AF99: 12.09325391 | AG99: 12.09321353 | AH99: 12.09321872 | AI99: 12.09322872 | AJ99: 12.09322032 | AK99: 12.09322259 | AL99: 12.09322388 | AM99: 12.09322226 | AN99: 12.09322291 | AO99: 12.09322302 | AP99: 12.09322273 | AQ99: 12.09322289 | AR99: 12.09322288
A100: 1600000US2228835 | B100: Gibsland town, Louisiana | C100: 12 | D100: 12.7 | E100: 14.2 | F100: 16.9 | G100: 13.1 | H100: 12.8 | I100: 11.3 | J100: 13.51351351 | K100: 6.324110672 | L100: 7.337526205 | M100: =(L100+K100+J100)/3 -> 9.058383464 | N100: 7.573340114 | O100: 7.989749928 | P100: 8.207157835 | Q100: 7.923415959 | R100: 8.040107907 | S100: 8.0568939 | T100: 8.006805922 | U100: 8.034602576 | V100: 8.032767466 | W100: 8.024725322 | X100: 8.030698455 | Y100: 8.029397081 | Z100: 8.028273619 | AA100: 8.029456385 | AB100: 8.029042362 | AC100: 8.028924122 | AD100: 8.029140956 | AE100: 8.029035813 | AF100: 8.02903363 | AG100: 8.029070133 | AH100: 8.029046526 | AI100: 8.029050096 | AJ100: 8.029055585 | AK100: 8.029050736 | AL100: 8.029052139 | AM100: 8.02905282 | AN100: 8.029051898 | AO100: 8.029052286 | AP100: 8.029052335 | AQ100: 8.029052173 | AR100: 8.029052264
A101: 1600000US2228940 | B101: Gilbert village, Louisiana | C101: 5.3 | D101: 6.3 | E101: 5 | F101: 6.6 | G101: 2.8 | H101: 5.2 | I101: 6.4 | J101: 10.86956522 | K101: 12.90322581 | L101: 10.19417476 | M101: 11.32232193 | N101: 11.47324083 | O101: 10.99657917 | P101: 11.26404731 | Q101: 11.24462244 | R101: 11.16841631 | S101: 11.22569535 | T101: 11.21291136 | U101: 11.20234101 | V101: 11.21364924 | W101: 11.20963387 | X101: 11.20854137 | Y101: 11.21060816 | Z101: 11.20959447 | AA101: 11.20958133 | AB101: 11.20992799 | AC101: 11.20970126 | AD101: 11.20973686 | AE101: 11.2097887 | AF101: 11.20974228 | AG101: 11.20975595 | AH101: 11.20976231 | AI101: 11.20975351 | AJ101: 11.20975726 | AK101: 11.20975769 | AL101: 11.20975615 | AM101: 11.20975703 | AN101: 11.20975696 | AO101: 11.20975672 | AP101: 11.2097569 | AQ101: 11.20975686 | AR101: 11.20975683
A102: 1600000US2229010 | B102: Gilliam village, Louisiana | C102: 8.9 | D102: 9.4 | E102: 14.4 | F102: 18.4 | G102: 17.4 | H102: 31.6 | I102: 37 | J102: 34.04255319 | K102: 26.47058824 | L102: 25 | M102: 28.50438048 | N102: 26.6583229 | O102: 26.72090113 | P102: 27.29453484 | Q102: 26.89125296 | R102: 26.96889631 | S102: 27.05156137 | T102: 26.97057021 | U102: 26.99700929 | V102: 27.00638029 | W102: 26.99131993 | X102: 26.9982365 | Y102: 26.99864557 | Z102: 26.99606734 | AA102: 26.9976498 | AB102: 26.99745424 | AC102: 26.99705713 | AD102: =(AC102+AB102+AA102)/3 -> 26.99738706 | AE102: 26.99729947 | AF102: 26.99724789 | AG102: 26.99731147 | AH102: 26.99728628 | AI102: 26.99728188 | AJ102: =(AI102+AH102+AG102)/3 -> 26.99729321 | AK102: 26.99728712 | AL102: 26.9972874 | AM102: 26.99728924 | AN102: 26.99728792 | AO102: 26.99728819 | AP102: 26.99728845 | AQ102: 26.99728819 | AR102: 26.99728828
A103: 1600000US2229220 | B103: Glenmora town, Louisiana | C103: 4.9 | D103: 4.6 | E103: 5.1 | F103: 6.2 | G103: 9.4 | H103: 11 | I103: 14.8 | J103: 10.70615034 | K103: 9.799554566 | L103: 12.41758242 | M103: 10.97442911 | N103: 11.06385536 | O103: 11.48528896 | P103: 11.17452448 | Q103: 11.24122294 | R103: 11.30034546 | S103: 11.23869762 | T103: 11.26008867 | U103: 11.26637725 | V103: 11.25505452 | W103: 11.26050681 | X103: 11.26064619 | Y103: 11.25873584 | Z103: 11.25996295 | AA103: 11.25978166 | AB103: 11.25949348 | AC103: =(AB103+AA103+Z103)/3 -> 11.25974603 | AD103: 11.25967373 | AE103: 11.25963775 | AF103: 11.25968584 | AG103: 11.25966577 | AH103: 11.25966312 | AI103: 11.25967157 | AJ103: 11.25966682 | AK103: 11.25966717 | AL103: 11.25966852 | AM103: 11.2596675 | AN103: 11.25966773 | AO103: 11.25966792 | AP103: 11.25966772 | AQ103: 11.25966779 | AR103: 11.25966781
A104: 1600000US2229640 | B104: Golden Meadow town, Louisiana | C104: 7.1 | D104: 7.9 | E104: 6.7 | F104: 8.1 | G104: 8 | H104: 8.5 | I104: 8.4 | J104: 6.809078772 | K104: 7.623888183 | L104: 7.915567282 | M104: 7.449511412 | N104: 7.662988959 | O104: 7.676022551 | P104: 7.596174308 | Q104: 7.645061939 | R104: 7.639086266 | S104: 7.626774171 | T104: 7.636974125 | U104: 7.634278188 | V104: 7.632675495 | W104: 7.634642603 | X104: 7.633865428 | Y104: 7.633727842 | Z104: 7.634078624 | AA104: 7.633890631 | AB104: 7.633899033 | AC104: 7.633956096 | AD104: 7.633915253 | AE104: 7.633923461 | AF104: 7.633931603 | AG104: 7.633923439 | AH104: 7.633926168 | AI104: 7.63392707 | AJ104: 7.633925559 | AK104: 7.633926266 | AL104: 7.633926298 | AM104: 7.633926041 | AN104: 7.633926202 | AO104: 7.63392618 | AP104: 7.633926141 | AQ104: 7.633926174 | AR104: 7.633926165
A105: 1600000US2229745 | B105: Goldonna village, Louisiana | C105: 11.5 | D105: 13.6 | E105: 12.2 | F105: 14.9 | G105: 12.3 | H105: 9.6 | I105: 8.7 | J105: 12.8113879 | K105: 11.48148148 | L105: 11.70886076 | M105: 12.00057671 | N105: 11.73030632 | O105: 11.81324793 | P105: 11.84804365 | Q105: 11.7971993 | R105: 11.81949696 | S105: 11.82157997 | T105: 11.81275875 | U105: 11.81794523 | V105: 11.81742798 | W105: 11.81604398 | X105: 11.81713906 | Y105: 11.81687034 | Z105: 11.81668446 | AA105: 11.81689796 | AB105: 11.81681759 | AC105: 11.8168 | AD105: 11.81683852 | AE105: 11.8168187 | AF105: 11.81681907 | AG105: 11.81682543 | AH105: 11.81682107 | AI105: 11.81682186 | AJ105: 11.81682279 | AK105: 11.8168219 | AL105: 11.81682218 | AM105: 11.81682229 | AN105: 11.81682213 | AO105: 11.8168222 | AP105: 11.81682221 | AQ105: 11.81682218 | AR105: 11.81682219
A106: 1600000US2229850 | B106: Gonzales city, Louisiana | C106: 18.5 | D106: 18.6 | E106: 18.3 | F106: 18.2 | G106: 17.2 | H106: 17.3 | I106: 17.8 | J106: 18.05745554 | K106: 16.88407581 | L106: 17.29540043 | M106: 17.41231059 | N106: 17.19726227 | O106: 17.30165776 | P106: 17.30374354 | Q106: 17.26755453 | R106: 17.29098528 | S106: 17.28742778 | T106: 17.2819892 | U106: 17.28680075 | V106: 17.28540591 | W106: 17.28473195 | X106: 17.28564621 | Y106: 17.28526136 | Z106: 17.28521317 | AA106: 17.28537358 | AB106: 17.2852827 | AC106: 17.28528982 | AD106: 17.28531537 | AE106: 17.28529596 | AF106: 17.28530038 | AG106: 17.2853039 | AH106: 17.28530008 | AI106: 17.28530146 | AJ106: 17.28530181 | AK106: 17.28530112 | AL106: 17.28530146 | AM106: 17.28530146 | AN106: 17.28530135 | AO106: 17.28530142 | AP106: 17.28530141 | AQ106: 17.28530139 | AR106: 17.28530141
A107: 1600000US2230515 | B107: Grambling city, Louisiana | C107: 35.5 | D107: 35.7 | E107: 31.3 | F107: 29.7 | G107: 32.4 | H107: 33.5 | I107: 30.2 | J107: 23.10200279 | K107: 28.43568946 | L107: 27.62812872 | M107: 26.38860699 | N107: 27.48414172 | O107: 27.16695915 | P107: 27.01323595 | Q107: 27.22144561 | R107: 27.13388024 | S107: 27.12285393 | T107: 27.15939326 | U107: 27.13870914 | V107: 27.14031878 | W107: 27.14614039 | X107: 27.14172277 | Y107: 27.14272731 | Z107: 27.14353016 | AA107: 27.14266008 | AB107: 27.14297252 | AC107: 27.14305425 | AD107: 27.14289562 | AE107: 27.14297413 | AF107: 27.14297467 | AG107: 27.14294814 | AH107: 27.14296565 | AI107: 27.14296282 | AJ107: 27.14295887 | AK107: 27.14296244 | AL107: 27.14296138 | AM107: 27.1429609 | AN107: 27.14296157 | AO107: 27.14296128 | AP107: 27.14296125 | AQ107: 27.14296137 | AR107: 27.1429613
A108: 1600000US2230550 | B108: Gramercy town, Louisiana | C108: 16.6 | D108: 15.6 | E108: 17.8 | F108: 18.8 | G108: 19.7 | H108: 13.9 | I108: 10.5 | J108: 8.803986711 | K108: 8.749516067 | L108: 10.55623224 | M108: 9.369911672 | N108: 9.558553325 | O108: 9.828232411 | P108: 9.585565803 | Q108: 9.657450513 | R108: 9.690416242 | S108: 9.644477519 | T108: 9.664114758 | U108: 9.666336173 | V108: 9.658309484 | W108: 9.662920138 | X108: 9.662521932 | Y108: 9.661250518 | Z108: 9.662230863 | AA108: 9.662001104 | AB108: 9.661827495 | AC108: 9.662019821 | AD108: 9.661949473 | AE108: 9.661932263 | AF108: 9.661967186 | AG108: 9.661949641 | AH108: 9.661949696 | AI108: 9.661955507 | AJ108: 9.661951615 | AK108: 9.661952273 | AL108: 9.661953132 | AM108: 9.66195234 | AN108: 9.661952581 | AO108: 9.661952684 | AP108: 9.661952535 | AQ108: 9.6619526 | AR108: 9.661952607
A109: 1600000US2230690 | B109: Grand Cane village, Louisiana | C109: 18.9 | D109: 21.6 | E109: 18.8 | F109: 19.2 | G109: 16.9 | H109: 17.5 | I109: 40.8 | J109: 40.0862069 | K109: 37.25490196 | L109: 40.76086957 | M109: 39.36732614 | N109: 39.12769922 | O109: 39.75196498 | P109: 39.41566345 | Q109: 39.43177588 | R109: 39.53313477 | S109: 39.46019137 | T109: 39.47503401 | U109: 39.48945338 | V109: 39.47489292 | W109: 39.47979343 | X109: 39.48137991 | Y109: 39.47868875 | Z109: 39.47995403 | AA109: 39.48000757 | AB109: 39.47955012 | AC109: 39.47983724 | AD109: 39.47979831 | AE109: 39.47972855 | AF109: 39.47978803 | AG109: 39.47977163 | AH109: 39.47976274 | AI109: 39.47977413 | AJ109: 39.4797695 | AK109: 39.47976879 | AL109: 39.47977081 | AM109: 39.4797697 | AN109: 39.47976977 | AO109: 39.47977009 | AP109: 39.47976985 | AQ109: 39.4797699 | AR109: 39.47976995
A110: 1600000US2230760 | B110: Grand Coteau town, Louisiana | C110: 26.2 | D110: 22 | E110: 14.4 | F110: 11.5 | G110: 13.9 | H110: 13 | I110: 13.4 | J110: 10.90425532 | K110: 13.37683524 | L110: 11.32075472 | M110: 11.86728176 | N110: 12.18829057 | O110: 11.79210901 | P110: 11.94922711 | Q110: 11.97654223 | R110: 11.90595945 | S110: 11.9439096 | T110: 11.9421371 | U110: 11.93066872 | V110: 11.93890514 | W110: 11.93723698 | X110: 11.93560361 | Y110: 11.93724858 | Z110: 11.93669639 | AA110: 11.93651619 | AB110: 11.93682039 | AC110: 11.93667766 | AD110: 11.93667141 | AE110: 11.93672315 | AF110: 11.93669074 | AG110: 11.9366951 | AH110: 11.936703 | AI110: 11.93669628 | AJ110: 11.93669813 | AK110: 11.93669914 | AL110: 11.93669785 | AM110: 11.93669837 | AN110: 11.93669845 | AO110: 11.93669822 | AP110: 11.93669835 | AQ110: 11.93669834 | AR110: 11.9366983
A111: 1600000US2230830 | B111: Grand Isle town, Louisiana | C111: 7.5 | D111: 5.8 | E111: 4.6 | F111: 1 | G111: 6.5 | H111: 4.8 | I111: 8.7 | J111: 7.049180328 | K111: 8.524590164 | L111: 9.800664452 | M111: 8.458144981 | N111: 8.927799866 | O111: 9.0622031 | P111: 8.816049315 | Q111: 8.93535076 | R111: 8.937867725 | S111: 8.8964226 | T111: 8.923213695 | U111: 8.919168007 | V111: 8.912934767 | W111: 8.918438823 | X111: 8.916847199 | Y111: 8.916073597 | Z111: 8.917119873 | AA111: 8.916680223 | AB111: 8.916624564 | AC111: 8.91680822 | AD111: 8.916704336 | AE111: 8.916712373 | AF111: 8.916741643 | AG111: 8.916719451 | AH111: 8.916724489 | AI111: 8.916728528 | AJ111: 8.916724156 | AK111: 8.916725724 | AL111: 8.916726136 | AM111: 8.916725339 | AN111: 8.916725733 | AO111: 8.916725736 | AP111: 8.916725602 | AQ111: 8.91672569 | AR111: 8.916725676
A112: 1600000US2231250 | B112: Grayson village, Louisiana | C112: 5.1 | D112: 4.8 | E112: 6.8 | F112: 8.6 | G112: 8 | H112: 10.2 | I112: 11.3 | J112: 8.888888889 | K112: 9.6 | L112: 13.5770235 | M112: 10.68863746 | N112: 11.28855365 | O112: 11.85140487 | P112: 11.27619866 | Q112: 11.4720524 | R112: 11.53321864 | S112: 11.42715657 | T112: 11.47747587 | U112: 11.47928369 | V112: 11.46130538 | W112: 11.47268831 | X112: 11.47109246 | Y112: 11.46836205 | Z112: 11.47071427 | AA112: 11.47005626 | AB112: 11.46971086 | AC112: 11.47016047 | AD112: 11.46997586 | AE112: 11.46994906 | AF112: 11.47002846 | AG112: 11.46998446 | AH112: 11.46998733 | AI112: 11.47000009 | AJ112: 11.46999063 | AK112: 11.46999268 | AL112: 11.46999446 | AM112: 11.46999259 | AN112: 11.46999325 | AO112: 11.46999343 | AP112: 11.46999309 | AQ112: 11.46999326 | AR112: 11.46999326
A113: 1600000US2231565 | B113: Greensburg town, Louisiana | C113: 23.2 | D113: 15.7 | E113: 17.8 | F113: 19.8 | G113: 12.8 | H113: 12.3 | I113: 12 | J113: 10.34482759 | K113: 11.14457831 | L113: 11.04477612 | M113: 10.84472734 | N113: 11.01136059 | O113: 10.96695468 | P113: 10.9410142 | Q113: 10.97310983 | R113: 10.96035957 | S113: 10.9581612 | T113: 10.96387687 | U113: 10.96079921 | V113: 10.96094576 | W113: 10.96187395 | X113: 10.96120631 | Y113: 10.961342 | Z113: 10.96147409 | AA113: 10.9613408 | AB113: 10.96138563 | AC113: 10.96140017 | AD113: 10.96137553 | AE113: 10.96138711 | AF113: 10.96138761 | AG113: 10.96138342 | AH113: 10.96138604 | AI113: 10.96138569 | AJ113: 10.96138505 | AK113: 10.96138559 | AL113: 10.96138544 | AM113: 10.96138536 | AN113: 10.96138547 | AO113: 10.96138542 | AP113: 10.96138542 | AQ113: 10.96138544 | AR113: 10.96138543
A114: 1600000US2231705 | B114: Greenwood town, Louisiana | C114: 18.8 | D114: 21.3 | E114: 19.3 | F114: 25.2 | G114: 28.5 | H114: 24.1 | I114: 23.5 | J114: 23.07408773 | K114: 24.25725271 | L114: 19.35719503 | M114: 22.22951182 | N114: 21.94798652 | O114: 21.17823113 | P114: 21.78524316 | Q114: 21.6371536 | R114: 21.53354263 | S114: 21.6519798 | T114: 21.60755867 | U114: 21.5976937 | V114: 21.61907739 | W114: 21.60810992 | X114: 21.60829367 | Y114: 21.61182699 | Z114: 21.60941019 | AA114: 21.60984362 | AB114: 21.61036027 | AC114: 21.60987136 | AD114: 21.61002508 | AE114: 21.61008557 | AF114: 21.60999401 | AG114: 21.61003489 | AH114: 21.61003815 | AI114: 21.61002235 | AJ114: 21.6100318 | AK114: 21.61003077 | AL114: 21.6100283 | AM114: 21.61003029 | AN114: 21.61002979 | AO114: 21.61002946 | AP114: 21.61002985 | AQ114: 21.6100297 | AR114: 21.61002967
A115: 1600000US2231915 | B115: Gretna city, Louisiana | C115: 16.7 | D115: 17.9 | E115: 17.2 | F115: 16.8 | G115: 17.4 | H115: 17.8 | I115: 16.8 | J115: 18.02917111 | K115: 18.68299094 | L115: 18.60002742 | M115: 18.43739649 | N115: 18.57347162 | O115: 18.53696518 | P115: 18.51594443 | Q115: 18.54212708 | R115: 18.53167889 | S115: 18.5299168 | T115: 18.53457426 | U115: 18.53205665 | V115: 18.53218257 | W115: 18.53293782 | X115: 18.53239235 | Y115: 18.53250425 | Z115: 18.53261147 | AA115: 18.53250269 | AB115: 18.53253947 | AC115: 18.53255121 | AD115: 18.53253112 | AE115: 18.5325406 | AF115: 18.53254098 | AG115: 18.53253757 | AH115: 18.53253972 | AI115: 18.53253942 | AJ115: 18.5325389 | AK115: 18.53253935 | AL115: 18.53253922 | AM115: 18.53253916 | AN115: 18.53253924 | AO115: 18.53253921 | AP115: 18.5325392 | AQ115: 18.53253922 | AR115: 18.53253921
